Workbook

Sheet LDC Info
AA3: Algoma Power Inc.
AA4: Atikokan Hydro Inc.
AA5: Attawapiskat Power Corporation
AA6: Bluewater Power Distribution Corp.
AA7: Brant County Power
AA8: Brantford Power Inc.
AA9: Burlington Hydro Inc.
AA10: Cambridge and North Dumfries Hydro
AA11: Canadian Niagara Power Inc. – Eastern Ontario Power/Fort Erie/Port Colborne
AA12: Centre Wellington Hydro Ltd.
N13: Version 1.1 | AA13: Chapleau Public Utilities Corporation
D14: Utility Name | E14: West Coast Huron Energy Inc. | AA14: COLLUS Power Corp.
AA15: Cooperative Hydro Embrun Inc.
D16: Service Territory | AA16: E.L.K. Energy Inc.
AA17: Enersource Hydro Mississauga Inc.
D18: Assigned EB Number | E18: EB-2012-0175 | AA18: Entegrus Powerlines Inc.
AA19: ENWIN Utilities Ltd.
D20: Name of Contact and Title | E20: wally curry | AA20: Erie Thames Powerlines Corp.
AA21: Espanola Regional Hydro Distribution Corporation
D22: Phone Number | E22: 226-234-4102 | AA22: Essex Powerlines Corporation
AA23: Festival Hydro Inc.
D24: Email Address | E24: wcurry@erfthcorp.com | AA24: Fort Albany Power Corporation
AA25: Fort Frances Power Corporation
D26: Bridge Year | E26: 2012 | AA26: Greater Sudbury Hydro Inc.
AA27: Grimsby Power Inc.
D28: Test Year | E28: 2013 | AA28: Guelph Hydro Electric Systems Inc.
AA29: Haldimand County Hydro Inc.
D30: Last Rebasing Year | E30: 2009 | AA30: Guelph Hydro Electric Systems Inc.
AA31: Halton Hills Hydro Inc.
B32: Notes | AA32: Hearst Power Distribution Co. Ltd.
AA33: Horizon Utilities Corporation
C34: Pale green cells represent input cells. | AA34: Hydro 2000 Inc.
AA35: Hydro Hawkesbury Inc.
C36: Pale blue cells represent drop-down lists. The applicant should select the appropriate item from the drop-down list. | AA36: Hydro One Brampton Networks Inc.
AA37: Hydro One Networks Inc.
C38: White cells contain fixed values, automatically generated values or formulae. | AA38: Hydro One Remote Communities Inc.
AA39: Hydro Ottawa Limited
AA40: Innisfil Hydro Dist. Systems Limited
AA41: Kashechewan Power Corporation
AA42: Kenora Hydro Electric Corporation Ltd.
AA43: Kingston Hydro Corporation
AA44: Kitchener-Wilmot Hydro Inc.
AA45: Lakefront Utilities Inc.
AA46: Lakeland Power Distribution Ltd.
AA47: London Hydro Inc.
AA48: Midland Power Utility Corporation
AA49: Milton Hydro Distribution Inc.
AA50: Newmarket – Tay Power Distribution Ltd.
AA51: Niagara Peninsula Energy Inc.
AA52: Niagara-on-the-Lake Hydro Inc.
AA53: Norfolk Power Distribution Ltd.
AA54: North Bay Hydro Distribution Limited
AA55: Northern Ontario Wires Inc.
AA56: Oakville Hydro Distribution Inc.
AA57: Orangeville Hydro Limited
AA58: Orillia Power Distribution Corp.
AA59: Oshawa PUC Networks Inc.
AA60: Ottawa River Power Corporation
AA61: Parry Sound Power Corporation
AA62: Peterborough Distribution Inc.
AA63: PowerStream Inc.
AA64: PUC Distribution Inc.
AA65: Renfrew Hydro Inc.
AA66: Rideau St. Lawrence Distribution Inc.
AA67: St. Thomas Energy Inc.
AA68: Sioux Lookout Hydro Inc.
AA69: Thunder Bay Hydro Electricity Distribution
AA70: Tillsonburg Hydro Inc.
AA71: Toronto Hydro-Electric System Limited
AA72: Veridian Connections Inc.
AA73: Wasaga Distribution Inc.
AA74: Waterloo North Hydro Inc.
AA75: Welland Hydro Electric System Corp.
AA76: Wellington North Power Inc.
AA77: West Coast Huron Energy Inc.
AA78: Westario Power Inc.
AA79: Whitby Hydro Electric Corporation
AA80: Woodstock Hydro Services Inc.

Sheet Index
A15: 1 | B15: LDC Information Sheet | E15: 19 | F15: Appendix 2-H OM&A Detailed Analysis
A16: 2 | B16: Index | E16: 20 | F16: Appendix 2-I OM&A Summary Analysis
A17: 3 | B17: Appendix 2-A Capital Projects | E17: 21 | F17: Appendix 2-J OM&A Cost Drivers
A18: 4 | B18: Appendix 2-B Fixed Asset Continuity | E18: 22 | F18: Appendix 2-K Employee Costs
A19: 5 | B19: Appendix 2-CA CGAAP Depreciation Expense 2011 | E19: 23 | F19: Appendix 2-L OM&A per Cust FTEE
A20: 6 | B20: Appendix 2-CB MIFRS Depreciation Expense 2011 | E20: 24 | F20: Appendix 2-M Regulatory Costs
A21: 7 | B21: Appendix 2-CC MIFRS Depreciation Expense 2012 | E21: 25 | F21: Appendix 2-N Corp Cost Allocation
A22: 8 | B22: Appendix 2-CD MIFRS Depreciation Expense 2013 | E22: 26 | F22: Appendix 2-OA Capital Structure and Cost of Capital
A23: 9 | B23: Appendix 2-CE CGAAP Depreciation Expense 2011 | E23: 27 | F23: Appendix 2-OB Debt Instruments
A24: 10 | B24: Appendix 2-CF CGAAP Depreciation Expense 2012 | E24: 28 | F24: Appendix 2-P Cost Allocation
A25: 11 | B25: Appendix 2-CG MIFRS Depreciation Expense 2012 | E25: 29 | F25: Appendix 2-Q Cost of Service Embedded Distributor
A26: 12 | B26: Appendix 2-CH MIFRS Depreciation Expense 2013 | E26: 30 | F26: Appendix 2-R Loss Factors
A27: 13 | B27: Appendix 2-CI Alternative Accounting Standards Depreciation Expense | E27: 31 | F27: Appendix 2-S Stranded Meters
A28: 14 | B28: Appendix 2-D Overhead | E28: 32 | F28: Appendix 2-T 1592 Tax Variance
A29: 15 | B29: Appendix 2-EA PP&E Deferral Account - 2012 IFRS Adopters | E29: 33 | F29: Appendix 2-U IFRS Transition Costs
A30: 16 | B30: Appendix 2-EB PP&E Deferral Account - 2013 IFRS Adopters | E30: 34 | F30: Appendix 2-V Rev Reconciliation
A31: 17 | B31: Appendix 2-F Other Operating Revenue | E31: 35 | F31: Appendix 2-W Bill Impacts
A32: 18 | B32: Appendix 2-G Detailed OM&A Expenses | E32: 36 | F32: Appendix 2-X CoS Flowchart

Sheet App.2-A_Capital Projects
G1: File Number: | H1: ='LDC Info'!$E$18 -> EB-2012-0175
G2: Exhibit:
G3: Tab:
G4: Schedule:
G5: Page:
G7: Date:
A9: Appendix 2-A
A10: Capital Projects Table
A13: Projects | B13: =IF(ISBLANK('LDC Info'!E26), "Year 1", 'LDC Info'!E26-5) -> 2007 | C13: =IF(ISBLANK('LDC Info'!E26), "Year 2", 'LDC Info'!E26-4) -> 2008 | D13: =IF(ISBLANK('LDC Info'!E26), "Year 3", 'LDC Info'!E26-3) -> 2009 | E13: =IF(ISBLANK('LDC Info'!E26), "Year 4", 'LDC Info'!E26-2) -> 2010 | F13: =IF(ISBLANK('LDC Info'!E26), "Year 5", 'LDC Info'!E26-1) -> 2011 | G13: ='LDC Info'!E26 & " Bridge Year" -> 2012 Bridge Year | H13: ='LDC Info'!E28 & " Test Year" -> 2013 Test Year
A14: Reporting Basis | D14: CGAAP | E14: CGAAP | F14: CGAAP | G14: CGAAP | H14: MIFRS
A15: Line Upgrade
A16: Overhead lines | G16: 1700000
A17: Transformers | G17: 100000
A21: Sub-Total | B21: =SUM(B16:B20) -> 0 | C21: =SUM(C16:C20) -> 0 | D21: 0 | E21: 0 | F21: 0 | G21: 1800000 | H21: 0
A22: New Operations Building
A23: Building | G23: 910000 | H23: 200000
A24: Land | G24: 90000
A28: Sub-Total | B28: =SUM(B23:B27) -> 0 | C28: 0 | D28: 0 | E28: 0 | F28: 0 | G28: 1000000 | H28: 200000
A29: Ongoing upgrades due to tornado
A30: Overhead lines | G30: 625000 | H30: 650000
A31: Underground | G31: 800000
A32: Transformers | G32: =75000+200000 -> 275000 | H32: 200000
A33: Office equipment replaced | F33: 37485
A34: Sub-Total | B34: =SUM(B30:B33) -> 0 | C34: 0 | D34: 0 | E34: 0 | F34: 37485 | G34: 1700000 | H34: 850000
A35: Tornado Repairs - regular labour and truck time
A36: Overhead lines | F36: 59191
A37: Sub-Total | F37: =SUM(F36) -> 59191
A38: Conversions and Upgrades
A39: Poles, towers and fixtures | D39: 811 | F39: 3797 | G39: 30000 | H39: 30000
A40: Overhead lines | D40: 1724 | F40: 2286 | G40: 20000 | H40: 270000
A41: Underground conduit | D41: 8313 | F41: 4902 | G41: 5000 | H41: 5000
A42: Underground lines | D42: 14501 | F42: 5080 | H42: 20000
A43: Transformers | D43: 23489 | F43: 20151 | H43: =124000+75000 -> 199000
A44: Services | D44: 725 | F44: 139
A45: Sub-Total | B45: =SUM(B39:B44) -> 0 | C45: 0 | D45: 49563 | E45: 0 | F45: 36355 | G45: 55000 | H45: 524000
A46: Replace Line Truck/Bucket truck
A47: Transportation equipment | D47: 326071 | H47: 300000
A49: Sub-Total | B49: =SUM(B46:B47) -> 0 | C49: 0 | D49: 326071 | E49: 0 | F49: 0 | G49: 0 | H49: 300000
A50: Releave 31 M3 27.6kv constraints on South Loop
A51: by introducing 31 M4 27.6 circuit
A52: Overhead lines | D52: 131681 | E52: 37974 | F52: 124889
A53: Transformers | D53: 76932 | E53: 37555 | F53: 9434
A54: Poles, towers and fixtures | D54: 81634 | E54: 65669 | F54: 47279
A55: Services | D55: 6804 | E55: 9451 | F55: 2701
A56: UG lines | D56: 172424 | E56: 3435 | F56: 1928
A57: UG conduit | D57: 4338 | E57: 3166 | F57: 795
A58: Sub-Total | D58: =SUM(D52:D57) -> 473813 | E58: =SUM(E52:E57) -> 157250 | F58: =SUM(F52:F57) -> 187026
A59: Line extension
A60: Overhead lines | G60: 120000 | H60: 120000
A62: Sub-Total | G62: =SUM(G60:G61) -> 120000 | H62: =SUM(H60:H61) -> 120000
A63: New Meter Service Point
A64: Meter | G64: 100000
A66: Sub-Total | G66: =SUM(G64:G65) -> 100000 | H66: =SUM(H64:H65) -> 0
A67: Leasehold Improvements
A68: Leasehold improvements | E68: 128450 | F68: 3181
A69: Sub-Total | E69: =SUM(E68) -> 128450 | F69: =SUM(F68) -> 3181
A70: New Customer Connections
A71: Transformers | D71: 4287 | E71: 27507 | F71: 35247 | G71: 80000 | H71: 60000
A72: Services | D72: 6787 | E72: 10009 | F72: 12376 | G72: 20000 | H72: 20000
A73: UG Conduit | D73: 4918 | E73: 26 | F73: 10976
A74: UG lines | D74: 9209 | E74: 3014 | F74: 14973
A75: Overhead lines | F75: 6224
A76: Poles, towers and fixtures | F76: 234
A77: Sub-Total | D77: =SUM(D71:D76) -> 25201 | E77: =SUM(E71:E74) -> 40556 | F77: =SUM(F71:F76) -> 80030 | G77: =SUM(G71:G72) -> 100000 | H77: =SUM(H71:H72) -> 80000
A78: Tools, truck and equipment replacement
A79: Computer hardware | D79: 9586 | E79: 3276 | F79: 7622 | G79: 15000
A80: Transportation equipment | E80: 33526 | F80: 56350 | G80: 65000
A81: Tools | D81: 8577 | E81: 3252 | F81: 13872 | G81: 10000 | H81: 8500
A83: Sub-Total | D83: =SUM(D79:D82) -> 18163 | E83: 40054 | F83: 77844 | G83: =SUM(G79:G82) -> 90000 | H83: =SUM(H79:H82) -> 8500
A84: Pole replacements
A85: Poles, towers and fixtures | E85: 30919
A86: Sub-Total | E86: =SUM(E85) -> 30919
A87: Smart Meters - internal regular labour costs
A88: Smart meters | E88: 98909 | F88: 10478
A89: Sub-Total | E89: =SUM(E88) -> 98909 | F89: =SUM(F88) -> 10478
A90: Miscellaneous | D90: 1735 | E90: 11661 | G90: 50000 | H90: 40000
A91: Total | B91: =SUMPRODUCT(--($A15:$A90="Sub-Total"), B$15:B$90)+B90 -> 0 | C91: =SUMPRODUCT(--($A15:$A90="Sub-Total"), C$15:C$90)+C90 -> 0 | D91: =SUMPRODUCT(--($A15:$A90="Sub-Total"), D$15:D$90)+D90 -> 894546 | E91: =SUMPRODUCT(--($A15:$A90="Sub-Total"), E$15:E$90)+E90 -> 507799 | F91: =SUMPRODUCT(--($A15:$A90="Sub-Total"), F$15:F$90)+F90 -> 491590 | G91: =+G21+G28+G34+G45+G49+G66+G62+G77+G83+G90 -> 5015000 | H91: =+H21+H28+H34+H45+H49+H66+H62+H77+H83+H90 -> 2122500
A94: Notes:
A96: 1 Please provide a breakdown of the major components of each capital project. Please ensure that all projects below the materiality threshold are included in the miscellaneous line. Add more projects as required.
A98: 2 Amounts should be reported on a MIFRS basis for the adoption year and any subsequent years, only.

Sheet App.2-B_Fixed Asset Contin 09
M1: File Number: | N1: ='LDC Info'!$E$18 -> EB-2012-0175
M2: Exhibit:
M3: Tab:
M4: Schedule:
M5: Page:
M7: Date:
A9: Appendix 2-B
A10: Fixed Asset Continuity Schedule
F12: Year | G12: 2009 CGAAP
E14: Cost | K14: Accumulated Depreciation
A15: CCA Class | B15: OEB | C15: Description | D15: Depreciation Rate | E15: Opening Balance | F15: Additions | G15: Disposals | H15: Closing Balance | J15: Opening Balance | K15: Additions | L15: Disposals | M15: Closing Balance | N15: Net Book Value
A16: 12 | B16: 1611 | C16: Computer Software (Formally known as Account 1925) | H16: =E16+F16+G16 -> 0 | M16: =J16+K16+L16 -> 0 | N16: =H16+M16 -> 0
A17: CEC | B17: 1612 | C17: Land Rights (Formally known as Account 1906) | H17: =E17+F17+G17 -> 0 | M17: =J17+K17+L17 -> 0 | N17: =H17+M17 -> 0
A18: N/A | B18: 1805 | C18: Land | E18: 21747 | H18: =E18+F18+G18 -> 21747 | M18: =J18+K18+L18 -> 0 | N18: =H18+M18 -> 21747
A19: 47 | B19: 1808 | C19: Buildings | E19: 71126 | H19: =E19+F19+G19 -> 71126 | J19: -22093 | K19: -2846 | M19: =J19+K19+L19 -> -24939 | N19: =H19+M19 -> 46187
A20: 13 | B20: 1810 | C20: Leasehold Improvements | H20: 0 | M20: 0 | N20: 0
A21: 47 | B21: 1815 | C21: Transformer Station Equipment >50 kV | H21: 0 | M21: 0 | N21: 0
A22: 47 | B22: 1820 | C22: Distribution Station Equipment <50 kV | E22: 152252 | H22: 152252 | J22: -48664 | K22: -6090 | M22: -54754 | N22: 97498
A23: 47 | B23: 1825 | C23: Storage Battery Equipment | H23: 0 | M23: 0 | N23: 0
A24: 47 | B24: 1830 | C24: Poles, Towers & Fixtures | E24: 164339 | F24: 82445 | H24: 246784 | J24: -10413 | K24: -9872 | M24: -20285 | N24: 226499
A25: 47 | B25: 1835 | C25: Overhead Conductors & Devices | E25: 2210936 | F25: 133405 | H25: 2344341 | J25: -652979 | K25: -93775 | M25: -746754 | N25: 1597587
A26: 47 | B26: 1840 | C26: Underground Conduit | E26: 23426 | F26: 17569 | H26: 40995 | J26: -1219 | K26: -1641 | M26: -2860 | N26: 38135
A27: 47 | B27: 1845 | C27: Underground Conductors & Devices | E27: 1085235 | F27: 196134 | H27: 1281369 | J27: -296867 | K27: -51224 | M27: -348091 | N27: 933278
A28: 47 | B28: 1850 | C28: Line Transformers | E28: 859124 | F28: 104708 | H28: 963832 | J28: -237760 | K28: -45472 | M28: -283232 | N28: 680600
A29: 47 | B29: 1855 | C29: Services (Overhead & Underground) | E29: 98356 | F29: 14316 | H29: 112672 | J29: -7951 | K29: -4508 | M29: -12459 | N29: 100213
A30: 47 | B30: 1860 | C30: Meters | E30: 395967 | F30: 1735 | H30: 397702 | J30: -110493 | K30: -15909 | M30: -126402 | N30: 271300
A31: 47 | B31: 1860 | C31: Meters (Smart Meters) | H31: 0 | M31: 0 | N31: 0
A32: N/A | B32: 1905 | C32: Land | H32: 0 | M32: 0 | N32: 0
A33: 47 | B33: 1908 | C33: Buildings & Fixtures | H33: 0 | M33: 0 | N33: 0
A34: 13 | B34: 1910 | C34: Leasehold Improvements | H34: 0 | M34: 0 | N34: 0
A35: 8 | B35: 1915 | C35: Office Furniture & Equipment (10 years) | E35: 63794 | H35: 63794 | J35: -42026 | K35: -6380 | M35: -48406 | N35: 15388
A36: 8 | B36: 1915 | C36: Office Furniture & Equipment (5 years) | H36: 0 | M36: 0 | N36: 0
A37: 10 | B37: 1920 | C37: Computer Equipment - Hardware | E37: 39678 | H37: 39678 | J37: -29766 | K37: -3967 | M37: -33733 | N37: 5945
A38: 45 | B38: 1920 | C38: Computer Equip.-Hardware(Post Mar. 22/04) | E38: 23637 | H38: 23637 | J38: -6641 | K38: -4130 | M38: -10771 | N38: 12866
A39: 45.1 | B39: 1920 | C39: Computer Equip.-Hardware(Post Mar. 19/07) | E39: 18239 | F39: 9586 | H39: 27825 | J39: -3592 | K39: -2784 | M39: -6376 | N39: 21449
A40: 12 | B40: 1925 | C40: Software | E40: 74866 | H40: 74866 | J40: -37751 | K40: -5866 | M40: -43617 | N40: 31249
A41: 10 | B41: 1930 | C41: Transportation Equipment | E41: 259658 | F41: 326071 | H41: 585729 | J41: -221734 | K41: -43476 | M41: -265210 | N41: 320519
A42: 8 | B42: 1935 | C42: Stores Equipment | H42: 0 | M42: 0 | N42: 0
A43: 8 | B43: 1940 | C43: Tools, Shop & Garage Equipment | E43: 76644 | F43: 8577 | H43: 85221 | J43: -65732 | K43: -7169 | M43: -72901 | N43: 12320
A44: 8 | B44: 1945 | C44: Measurement & Testing Equipment | E44: 2678 | H44: 2678 | J44: -2009 | K44: -669 | M44: -2678 | N44: 0
A45: 8 | B45: 1950 | C45: Power Operated Equipment | H45: 0 | M45: 0 | N45: 0
A46: 8 | B46: 1955 | C46: Communications Equipment | H46: 0 | M46: 0 | N46: 0
A47: 8 | B47: 1955 | C47: Communication Equipment (Smart Meters) | H47: 0 | M47: 0 | N47: 0
A48: 8 | B48: 1960 | C48: Miscellaneous Equipment | H48: 0 | M48: 0 | N48: 0
A49: 47 | B49: 1975 | C49: Load Management Controls Utility Premises | H49: 0 | M49: 0 | N49: 0
A50: 47 | B50: 1980 | C50: System Supervisor Equipment | H50: 0 | M50: 0 | N50: 0
A51: 47 | B51: 1985 | C51: Miscellaneous Fixed Assets | H51: 0 | M51: 0 | N51: 0
A52: 47 | B52: 1995 | C52: Contributions & Grants | E52: -320424 | F52: -26120 | H52: -346544 | J52: 35229 | K52: 14796 | M52: 50025 | N52: -296519
H53: 0 | M53: 0 | N53: 0
C55: Total | E55: =SUM(E16:E54) -> 5321278 | F55: =SUM(F16:F54) -> 868426 | G55: 0 | H55: 6189704 | J55: =SUM(J16:J54) -> -1762461 | K55: =SUM(K16:K54) -> -290982 | L55: 0 | M55: -2053443 | N55: 4136261
J57: Less: Fully Allocated Depreciation
A58: 10 | C58: Transportation | J58: Transportation | L58: -43476
A59: 8 | C59: Stores Equipment | J59: Stores Equipment
J60: Net Depreciation | L60: =K55-L58-L59 -> -247506
A62: Notes:
A64: 1 | B64: Tables in the format outlined above covering all fixed asset accounts should be submitted for the Test Year, Bridge Year and all relevant historical years. At a minimum , the applicant must provide data for the earlier of: 1) all historical years back to its last rebasing; or 2) at least three years of historical actuals, in addition to Bridge Year and Test Year forecasts.
A67: 2 | B67: The "CCA Class" for fixed assets should agree with the CCA Class used for tax purposes in Tax Returns. Fixed Assets sub-components may be used where the underlying asset components are classified under multiple CCA Classes for tax purposes. If an applicant uses any different classes from those shown in the table, an explanation should be provided. (also see note 3 below).
A70: 3 | B70: The table may need to be customized for a utility's asset categories or for any new asset accounts announced or authorized by the Board.
A72: 4 | B72: The depreciation column (D) is not required as the relevant information will be provided in the following 2-C series of appendices.

Sheet App.2-B_Fixed Asset Contin 10
M3: File Number: | N3: ='LDC Info'!$E$18 -> EB-2012-0175
M4: Exhibit:
M5: Tab:
M6: Schedule:
M7: Page:
M9: Date:
A11: Appendix 2-B
A12: Fixed Asset Continuity Schedule
F14: Year | G14: 2010 CGAAP
E16: Cost | K16: Accumulated Depreciation
A17: CCA Class | B17: OEB | C17: Description | D17: Depreciation Rate | E17: Opening Balance | F17: Additions | G17: Disposals | H17: Closing Balance | J17: Opening Balance | K17: Additions | L17: Disposals | M17: Closing Balance | N17: Net Book Value
A18: 12 | B18: 1611 | C18: Computer Software (Formally known as Account 1925) | H18: =E18+F18+G18 -> 0 | M18: =J18+K18+L18 -> 0 | N18: =H18+M18 -> 0
A19: CEC | B19: 1612 | C19: Land Rights (Formally known as Account 1906) | H19: =E19+F19+G19 -> 0 | M19: =J19+K19+L19 -> 0 | N19: =H19+M19 -> 0
A20: N/A | B20: 1805 | C20: Land | E20: 21747 | H20: =E20+F20+G20 -> 21747 | M20: =J20+K20+L20 -> 0 | N20: =H20+M20 -> 21747
A21: 47 | B21: 1808 | C21: Buildings | E21: 71126 | F21: 9838 | H21: =E21+F21+G21 -> 80964 | J21: -24939 | K21: -3240 | M21: =J21+K21+L21 -> -28179 | N21: =H21+M21 -> 52785
A22: 13 | B22: 1810 | C22: Leasehold Improvements | H22: 0 | M22: 0 | N22: 0
A23: 47 | B23: 1815 | C23: Transformer Station Equipment >50 kV | H23: 0 | M23: 0 | N23: 0
A24: 47 | B24: 1820 | C24: Distribution Station Equipment <50 kV | E24: 152252 | H24: 152252 | J24: -54754 | K24: -6090 | M24: -60844 | N24: 91408
A25: 47 | B25: 1825 | C25: Storage Battery Equipment | H25: 0 | M25: 0 | N25: 0
A26: 47 | B26: 1830 | C26: Poles, Towers & Fixtures | E26: 246784 | F26: 96588 | H26: 343372 | J26: -20285 | K26: -9872 | M26: -30157 | N26: 313215
A27: 47 | B27: 1835 | C27: Overhead Conductors & Devices | E27: 2344341 | F27: 37974 | H27: 2382315 | J27: -746754 | K27: -95128 | M27: -841882 | N27: 1540433
A28: 47 | B28: 1840 | C28: Underground Conduit | E28: 40995 | F28: 5015 | H28: 46010 | J28: -2860 | K28: -1842 | M28: -4702 | N28: 41308
A29: 47 | B29: 1845 | C29: Underground Conductors & Devices | E29: 1281369 | F29: 6449 | H29: 1287818 | J29: -348091 | K29: -51243 | M29: -399334 | N29: 888484
A30: 47 | B30: 1850 | C30: Line Transformers | E30: 963832 | F30: 65062 | H30: 1028894 | J30: -283232 | K30: -48272 | M30: -331504 | N30: 697390
A31: 47 | B31: 1855 | C31: Services (Overhead & Underground) | E31: 112672 | F31: 19460 | H31: 132132 | J31: -12459 | K31: -5287 | M31: -17746 | N31: 114386
A32: 47 | B32: 1860 | C32: Meters | E32: 397702 | H32: 397702 | J32: -126402 | K32: -19322 | M32: -145724 | N32: 251978
A33: 47 | B33: 1860 | C33: Meters (Smart Meters) | F33: 98909 | H33: 98909 | M33: 0 | N33: 98909
A34: N/A | B34: 1905 | C34: Land | H34: 0 | M34: 0 | N34: 0
A35: 47 | B35: 1908 | C35: Buildings & Fixtures | H35: 0 | M35: 0 | N35: 0
A36: 13 | B36: 1910 | C36: Leasehold Improvements | F36: 128450 | H36: 128450 | K36: -6422 | M36: -6422 | N36: 122028
A37: 8 | B37: 1915 | C37: Office Furniture & Equipment (10 years) | E37: 63794 | H37: 63794 | J37: -48406 | K37: -6376 | M37: -54782 | N37: 9012
A38: 8 | B38: 1915 | C38: Office Furniture & Equipment (5 years) | H38: 0 | M38: 0 | N38: 0
A39: 10 | B39: 1920 | C39: Computer Equipment - Hardware | E39: 39678 | H39: 39678 | J39: -33733 | K39: -3965 | M39: -37698 | N39: 1980
A40: 45 | B40: 1920 | C40: Computer Equip.-Hardware(Post Mar. 22/04) | E40: 23637 | H40: 23637 | J40: -10771 | K40: -2363 | M40: -13134 | N40: 10503
A41: 45.1 | B41: 1920 | C41: Computer Equip.-Hardware(Post Mar. 19/07) | E41: 27825 | F41: 3276 | H41: 31101 | J41: -6376 | K41: -3110 | M41: -9486 | N41: 21615
A42: 12 | B42: 1925 | C42: Software | E42: 74866 | F42: 33526 | H42: 108392 | J42: -43617 | K42: -4569 | M42: -48186 | N42: 60206
A43: 10 | B43: 1930 | C43: Transportation Equipment | E43: 585729 | H43: 585729 | J43: -265210 | K43: -40826 | M43: -306036 | N43: 279693
A44: 8 | B44: 1935 | C44: Stores Equipment | H44: 0 | M44: 0 | N44: 0
A45: 8 | B45: 1940 | C45: Tools, Shop & Garage Equipment | E45: 85221 | F45: 3252 | H45: 88473 | J45: -72901 | K45: -6097 | M45: -78998 | N45: 9475
A46: 8 | B46: 1945 | C46: Measurement & Testing Equipment | E46: 2678 | H46: 2678 | J46: -2678 | M46: -2678 | N46: 0
A47: 8 | B47: 1950 | C47: Power Operated Equipment | H47: 0 | M47: 0 | N47: 0
A48: 8 | B48: 1955 | C48: Communications Equipment | H48: 0 | M48: 0 | N48: 0
A49: 8 | B49: 1955 | C49: Communication Equipment (Smart Meters) | H49: 0 | M49: 0 | N49: 0
A50: 8 | B50: 1960 | C50: Miscellaneous Equipment | H50: 0 | M50: 0 | N50: 0
A51: 47 | B51: 1975 | C51: Load Management Controls Utility Premises | H51: 0 | M51: 0 | N51: 0
A52: 47 | B52: 1980 | C52: System Supervisor Equipment | H52: 0 | M52: 0 | N52: 0
A53: 47 | B53: 1985 | C53: Miscellaneous Fixed Assets | H53: 0 | M53: 0 | N53: 0
A54: 47 | B54: 1995 | C54: Contributions & Grants | E54: -346544 | F54: -79075 | H54: -425619 | J54: 50025 | K54: 18405 | M54: 68430 | N54: -357189
H55: 0 | M55: 0 | N55: 0
C57: Total | E57: =SUM(E18:E56) -> 6189704 | F57: =SUM(F18:F56) -> 428724 | G57: =SUM(G18:G56) -> 0 | H57: =SUM(H18:H56) -> 6618428 | J57: =SUM(J18:J56) -> -2053443 | K57: =SUM(K18:K56) -> -295619 | L57: 0 | M57: -2349062 | N57: 4269366
C59: Transfer Stranded Meters from 1860 to 1555 | H59: -326079 | M59: 121940 | N59: =H59+M59 -> -204139
C60: REVISED CLOSING BALANCE FORWARD | H60: =SUM(H57:H59) -> 6292349 | M60: =SUM(M57:M59) -> -2227122 | N60: =SUM(N57:N59) -> 4065227
J62: Less: Fully Allocated Depreciation
A63: 10 | C63: Transportation | J63: Transportation | L63: -40826
A64: 8 | C64: Stores Equipment | J64: Stores Equipment
J65: Net Depreciation | L65: =K57-L63-L64 -> -254793
A67: Notes:
A69: 1 | B69: Tables in the format outlined above covering all fixed asset accounts should be submitted for the Test Year, Bridge Year and all relevant historical years. At a minimum , the applicant must provide data for the earlier of: 1) all historical years back to its last rebasing; or 2) at least three years of historical actuals, in addition to Bridge Year and Test Year forecasts.
A72: 2 | B72: The "CCA Class" for fixed assets should agree with the CCA Class used for tax purposes in Tax Returns. Fixed Assets sub-components may be used where the underlying asset components are classified under multiple CCA Classes for tax purposes. If an applicant uses any different classes from those shown in the table, an explanation should be provided. (also see note 3 below).
A75: 3 | B75: The table may need to be customized for a utility's asset categories or for any new asset accounts announced or authorized by the Board.
A77: 4 | B77: The depreciation column (D) is not required as the relevant information will be provided in the following 2-C series of appendices.

Sheet App.2-B_Fixed Asset 11
M2: File Number: | N2: ='LDC Info'!$E$18 -> EB-2012-0175
M3: Exhibit:
M4: Tab:
M5: Schedule:
M6: Page:
M8: Date:
A10: Appendix 2-B
A11: Fixed Asset Continuity Schedule
F13: Year | G13: 2011 CGAAP
E15: Cost | K15: Accumulated Depreciation
A16: CCA Class | B16: OEB | C16: Description | D16: Depreciation Rate | E16: Opening Balance | F16: Additions | G16: Disposals | H16: Closing Balance | J16: Opening Balance | K16: Additions | L16: Disposals | M16: Closing Balance | N16: Net Book Value
A17: 12 | B17: 1611 | C17: Computer Software (Formally known as Account 1925) | H17: =E17+F17+G17 -> 0 | M17: =J17+K17+L17 -> 0 | N17: =H17+M17 -> 0
A18: CEC | B18: 1612 | C18: Land Rights (Formally known as Account 1906) | H18: =E18+F18+G18 -> 0 | M18: =J18+K18+L18 -> 0 | N18: =H18+M18 -> 0
A19: N/A | B19: 1805 | C19: Land | E19: 21747 | H19: =E19+F19+G19 -> 21747 | M19: =J19+K19+L19 -> 0 | N19: =H19+M19 -> 21747
A20: 47 | B20: 1808 | C20: Buildings | E20: 80964 | H20: =E20+F20+G20 -> 80964 | J20: -28179 | K20: -3240 | M20: =J20+K20+L20 -> -31419 | N20: =H20+M20 -> 49545
A21: 13 | B21: 1810 | C21: Leasehold Improvements | H21: 0 | M21: 0 | N21: 0
A22: 47 | B22: 1815 | C22: Transformer Station Equipment >50 kV | H22: 0 | M22: 0 | N22: 0
A23: 47 | B23: 1820 | C23: Distribution Station Equipment <50 kV | E23: 152252 | H23: 152252 | J23: -60844 | K23: -6090 | M23: -66934 | N23: 85318
A24: 47 | B24: 1825 | C24: Storage Battery Equipment | H24: 0 | M24: 0 | N24: 0
A25: 47 | B25: 1830 | C25: Poles, Towers & Fixtures | E25: 343372 | F25: 51310 | H25: 394682 | J25: -30157 | K25: -15788 | M25: -45945 | N25: 348737
A26: 47 | B26: 1830 | C26: Poles, Towers & Fixtures - Tornado | F26: 770866 | H26: 770866 | M26: 0 | N26: 770866
A27: 47 | B27: 1835 | C27: Overhead Conductors & Devices | E27: 2382315 | F27: 192590 | G27: -329475 | H27: 2245430 | J27: -841882 | K27: -89589 | L27: 177629 | M27: -753842 | N27: 1491588
A28: 47 | B28: 1835 | C28: Overhead Conductors & Devices - Tornado | F28: 82079 | H28: 82079 | M28: =J28+K28+L28 -> 0 | N28: =H28+M28 -> 82079
A29: 47 | B29: 1840 | C29: Underground Conduit | E29: 46010 | F29: 16673 | H29: 62683 | J29: -4702 | K29: -2509 | M29: -7211 | N29: 55472
A30: 47 | B30: 1845 | C30: Underground Conductors & Devices | E30: 1287818 | F30: 21981 | H30: 1309799 | J30: -399334 | K30: -52391 | M30: -451725 | N30: 858074
A31: 47 | B31: 1850 | C31: Line Transformers | E31: 1028894 | F31: 64832 | G31: -108094 | H31: 985632 | J31: -331504 | K31: -44993 | L31: 62830 | M31: -313667 | N31: 671965
A32: 47 | B32: 1850 | C32: Line Transformers - Tornado | F32: 276369 | H32: 276369 | M32: =J32+K32+L32 -> 0 | N32: =H32+M32 -> 276369
A33: 47 | B33: 1855 | C33: Services (Overhead & Underground) | E33: 132132 | F33: 15216 | H33: 147348 | J33: -17746 | K33: -5896 | M33: -23642 | N33: 123706
A34: 47 | B34: 1855 | C34: Services (Overhead & Underground) - Tornado | F34: 123416 | H34: 123416 | M34: =J34+K34+L34 -> 0 | N34: =H34+M34 -> 123416
A35: 47 | B35: 1860 | C35: Meters | E35: 71623 | H35: 71623 | J35: -23784 | K35: -2865 | M35: -26649 | N35: 44974
A36: 47 | B36: 1860 | C36: Meters (Smart Meters) | E36: 98909 | F36: 10478 | H36: 109387 | K36: -7293 | M36: -7293 | N36: 102094
A37: N/A | B37: 1905 | C37: Land | H37: 0 | M37: 0 | N37: 0
A38: 47 | B38: 1908 | C38: Buildings & Fixtures | H38: 0 | M38: 0 | N38: 0
A39: 13 | B39: 1910 | C39: Leasehold Improvements | E39: 128450 | F39: 3181 | G39: -131631 | H39: 0 | J39: -6422 | K39: -3748 | L39: 6422 | M39: -3748 | N39: -3748
A40: 8 | B40: 1915 | C40: Office Furniture & Equipment (10 years) | E40: 63794 | F40: 37485 | G40: -63794 | H40: 37485 | J40: -54782 | L40: 54782 | M40: 0 | N40: 37485
A41: 8 | B41: 1915 | C41: Office Furniture & Equipment (5 years) | H41: 0 | M41: 0 | N41: 0
A42: 10 | B42: 1920 | C42: Computer Equipment - Hardware | E42: 39678 | H42: 39678 | J42: -37698 | K42: -988 | M42: -38686 | N42: 992
A43: 45 | B43: 1920 | C43: Computer Equip.-Hardware(Post Mar. 22/04) | E43: 23637 | H43: 23637 | J43: -13134 | K43: -2363 | M43: -15497 | N43: 8140
A44: 45.1 | B44: 1920 | C44: Computer Equip.-Hardware(Post Mar. 19/07) | E44: 31101 | F44: 7622 | G44: -7260 | H44: 31463 | J44: -9486 | K44: -3110 | L44: 1295 | M44: -11301 | N44: 20162
A45: 12 | B45: 1925 | C45: Software | E45: 108392 | H45: 108392 | J45: -48186 | K45: -8144 | M45: -56330 | N45: 52062
A46: 10 | B46: 1930 | C46: Transportation Equipment | E46: 585729 | F46: 56350 | G46: -11892 | H46: 630187 | J46: -306036 | K46: -43681 | L46: 10409 | M46: -339308 | N46: 290879
A47: 8 | B47: 1935 | C47: Stores Equipment | H47: 0 | M47: 0 | N47: 0
A48: 8 | B48: 1940 | C48: Tools, Shop & Garage Equipment | E48: 88473 | F48: 13872 | G48: -89037 | H48: 13308 | J48: -78998 | K48: -3214 | L48: 77906 | M48: -4306 | N48: 9002
A49: 8 | B49: 1945 | C49: Measurement & Testing Equipment | E49: 2678 | G49: -2678 | H49: 0 | J49: -2678 | L49: 2678 | M49: 0 | N49: 0
A50: 8 | B50: 1950 | C50: Power Operated Equipment | H50: 0 | M50: 0 | N50: 0
A51: 8 | B51: 1955 | C51: Communications Equipment | H51: 0 | M51: 0 | N51: 0
A52: 8 | B52: 1955 | C52: Communication Equipment (Smart Meters) | H52: 0 | M52: 0 | N52: 0
A53: 8 | B53: 1960 | C53: Miscellaneous Equipment | H53: 0 | M53: 0 | N53: 0
A54: 47 | B54: 1975 | C54: Load Management Controls Utility Premises | H54: 0 | M54: 0 | N54: 0
A55: 47 | B55: 1980 | C55: System Supervisor Equipment | H55: 0 | M55: 0 | N55: 0
A56: 47 | B56: 1985 | C56: Miscellaneous Fixed Assets | H56: 0 | M56: 0 | N56: 0
A57: 47 | B57: 1995 | C57: Contributions & Grants | E57: -425619 | H57: -425619 | J57: 68430 | K57: 17956 | M57: 86386 | N57: -339233
H58: 0 | M58: 0 | N58: 0
C60: Total | E60: =SUM(E17:E59) -> 6292349 | F60: =SUM(F17:F59) -> 1744320 | G60: -743861 | H60: 7292808 | J60: =SUM(J17:J59) -> -2227122 | K60: =SUM(K17:K59) -> -277946 | L60: 393951 | M60: -2111117 | N60: 5181691
E62: Addtions | F62: 495547 | J62: Less: Fully Allocated Depreciation
A63: 10 | C63: Transportation | E63: Tornado | F63: 1252730 | J63: Transportation | L63: -43681
A64: 8 | C64: Stores Equipment | F64: =SUM(F62:F63) -> 1748277 | J64: Stores Equipment
J65: Net Depreciation | L65: =K60-L63-L64 -> -234265
A67: Notes:
A69: 1 | B69: Tables in the format outlined above covering all fixed asset accounts should be submitted for the Test Year, Bridge Year and all relevant historical years. At a minimum , the applicant must provide data for the earlier of: 1) all historical years back to its last rebasing; or 2) at least three years of historical actuals, in addition to Bridge Year and Test Year forecasts.
A72: 2 | B72: The "CCA Class" for fixed assets should agree with the CCA Class used for tax purposes in Tax Returns. Fixed Assets sub-components may be used where the underlying asset components are classified under multiple CCA Classes for tax purposes. If an applicant uses any different classes from those shown in the table, an explanation should be provided. (also see note 3 below).
A75: 3 | B75: The table may need to be customized for a utility's asset categories or for any new asset accounts announced or authorized by the Board.
A77: 4 | B77: The depreciation column (D) is not required as the relevant information will be provided in the following 2-C series of appendices.

Sheet App.2-B_F Asset 12 CGAAP
M3: File Number: | N3: ='LDC Info'!$E$18 -> EB-2012-0175
M4: Exhibit:
M5: Tab:
M6: Schedule:
M7: Page:
M9: Date:
A11: Appendix 2-B
A12: Fixed Asset Continuity Schedule
F14: Year | G14: 2012 CGAAP
E16: Cost | K16: Accumulated Depreciation
A17: CCA Class | B17: OEB | C17: Description | D17: Depreciation Rate | E17: Opening Balance | F17: Additions | G17: Disposals | H17: Closing Balance | J17: Opening Balance | K17: Additions | L17: Disposals | M17: Closing Balance | N17: Net Book Value
A18: 12 | B18: 1611 | C18: Computer Software (Formally known as Account 1925) | E18: 108392 | H18: =E18+F18+G18 -> 108392 | J18: -56330 | K18: -8140 | M18: =J18+K18+L18 -> -64470 | N18: =H18+M18 -> 43922
A19: CEC | B19: 1612 | C19: Land Rights (Formally known as Account 1906) | H19: =E19+F19+G19 -> 0 | M19: =J19+K19+L19 -> 0 | N19: =H19+M19 -> 0
A20: N/A | B20: 1805 | C20: Land | E20: 21747 | F20: 90000 | H20: =E20+F20+G20 -> 111747 | M20: =J20+K20+L20 -> 0 | N20: =H20+M20 -> 111747
A21: 47 | B21: 1808 | C21: Buildings | E21: 80964 | F21: 910000 | H21: =E21+F21+G21 -> 990964 | J21: -31419 | K21: -43240 | M21: =J21+K21+L21 -> -74659 | N21: =H21+M21 -> 916305
A22: 13 | B22: 1810 | C22: Leasehold Improvements | H22: 0 | M22: 0 | N22: 0
A23: 47 | B23: 1815 | C23: Transformer Station Equipment >50 kV | H23: 0 | M23: 0 | N23: 0
A24: 47 | B24: 1820 | C24: Distribution Station Equipment <50 kV | E24: 152252 | F24: 20000 | H24: 172252 | J24: -66934 | K24: -6890 | M24: -73824 | N24: 98428
A25: 47 | B25: 1825 | C25: Storage Battery Equipment | H25: 0 | M25: 0 | N25: 0
A26: 47 | B26: 1830 | C26: Poles, Towers & Fixtures | E26: 394682 | F26: 30000 | H26: 424682 | J26: -45945 | K26: -16987 | M26: -62932 | N26: 361750
A27: 47 | B27: 1830 | C27: Poles, Towers & Fixtures - Tornado | E27: 770866 | H27: 770866 | K27: -30835 | M27: -30835 | N27: 740031
A28: 47 | B28: 1835 | C28: Overhead Conductors & Devices | E28: 2245430 | F28: 2465000 | H28: 4710430 | J28: -753842 | K28: -196885 | M28: -950727 | N28: 3759703
A29: 47 | B29: 1835 | C29: Overhead Conductors & Devices - Tornado | E29: 82079 | H29: 82079 | K29: -3283 | M29: -3283 | N29: 78796
A30: 47 | B30: 1840 | C30: Underground Conduit | E30: 62683 | F30: 5000 | H30: 67683 | J30: -7211 | K30: -2709 | M30: -9920 | N30: 57763
A31: 47 | B31: 1845 | C31: Underground Conductors & Devices | E31: 1309799 | F31: 800000 | H31: 2109799 | J31: -451725 | K31: -84392 | M31: -536117 | N31: 1573682
A32: 47 | B32: 1850 | C32: Line Transformers | E32: 985632 | F32: =285000+200000 -> 485000 | H32: 1470632 | J32: -313667 | K32: -61425 | M32: -375092 | N32: 1095540
A33: 47 | B33: 1850 | C33: Line Transformers - Tornado | E33: 276369 | H33: 276369 | K33: -11055 | M33: -11055 | N33: 265314
A34: 47 | B34: 1855 | C34: Services (Overhead & Underground) | E34: 147348 | F34: 20000 | H34: 167348 | J34: -23642 | K34: -6696 | M34: -30338 | N34: 137010
A35: 47 | B35: 1855 | C35: Services (Overhead & Underground) - Tornado | E35: 123416 | H35: 123416 | K35: -4937 | M35: -4937 | N35: 118479
A36: 47 | B36: 1860 | C36: Meters | E36: 71623 | F36: 100000 | H36: 171623 | J36: -26649 | K36: -6865 | M36: -33514 | N36: 138109
A37: 47 | B37: 1860 | C37: Meters (Smart Meters) | E37: 109387 | H37: 109387 | J37: -7293 | K37: -7293 | M37: -14586 | N37: 94801
A38: N/A | B38: 1905 | C38: Land | H38: 0 | M38: 0 | N38: 0
A39: 47 | B39: 1908 | C39: Buildings & Fixtures | H39: 0 | M39: 0 | N39: 0
A40: 13 | B40: 1910 | C40: Leasehold Improvements | H40: 0 | M40: 0 | N40: 0
A41: 8 | B41: 1915 | C41: Office Furniture & Equipment (10 years) | E41: 37485 | H41: 37485 | J41: -3748 | K41: -3748 | M41: -7496 | N41: 29989
A42: 8 | B42: 1915 | C42: Office Furniture & Equipment (5 years) | H42: 0 | M42: 0 | N42: 0
A43: 10 | B43: 1920 | C43: Computer Equipment - Hardware | E43: 39678 | H43: 39678 | J43: -38686 | K43: -988 | M43: -39674 | N43: 4
A44: 45 | B44: 1920 | C44: Computer Equip.-Hardware(Post Mar. 22/04) | E44: 23637 | H44: 23637 | J44: -15497 | K44: -2364 | M44: -17861 | N44: 5776
A45: 45.1 | B45: 1920 | C45: Computer Equip.-Hardware(Post Mar. 19/07) | E45: 31463 | F45: 15000 | H45: 46463 | J45: -11301 | K45: -4649 | M45: -15950 | N45: 30513
A46: 10 | B46: 1930 | C46: Transportation Equipment | E46: 630187 | F46: 65000 | H46: 695187 | J46: -339308 | K46: -51806 | M46: -391114 | N46: 304073
A47: 8 | B47: 1935 | C47: Stores Equipment | H47: 0 | M47: 0 | N47: 0
A48: 8 | B48: 1940 | C48: Tools, Shop & Garage Equipment | E48: 13308 | F48: 10000 | H48: 23308 | J48: -4306 | K48: -5827 | M48: -10133 | N48: 13175
A49: 8 | B49: 1945 | C49: Measurement & Testing Equipment | H49: 0 | M49: 0 | N49: 0
A50: 8 | B50: 1950 | C50: Power Operated Equipment | H50: 0 | M50: 0 | N50: 0
A51: 8 | B51: 1955 | C51: Communications Equipment | H51: 0 | M51: 0 | N51: 0
A52: 8 | B52: 1955 | C52: Communication Equipment (Smart Meters) | H52: 0 | M52: 0 | N52: 0
A53: 8 | B53: 1960 | C53: Miscellaneous Equipment | H53: 0 | M53: 0 | N53: 0
A54: 47 | B54: 1975 | C54: Load Management Controls Utility Premises | H54: 0 | M54: 0 | N54: 0
A55: 47 | B55: 1980 | C55: System Supervisor Equipment | H55: 0 | M55: 0 | N55: 0
A56: 47 | B56: 1985 | C56: Miscellaneous Fixed Assets | H56: 0 | M56: 0 | N56: 0
A57: 47 | B57: 1995 | C57: Contributions & Grants | E57: -425619 | F57: =-1800000-200000 -> -2000000 | H57: -2425619 | J57: 86386 | K57: 96408 | M57: 182794 | N57: -2242825
H58: 0 | M58: 0 | N58: 0
C60: Total | E60: =SUM(E18:E59) -> 7292808 | F60: =SUM(F18:F59) -> 3015000 | G60: 0 | H60: 10307808 | J60: =SUM(J18:J59) -> -2111117 | K60: =SUM(K18:K59) -> -464606 | L60: 0 | M60: -2575723 | N60: 7732085
C62: Transfer of Smart Meters | H62: 565777 | M62: -121614
H63: =SUM(H60:H62) -> 10873585 | M63: =SUM(M60:M62) -> -2697337
J65: Less: Fully Allocated Depreciation
A66: 10 | C66: Transportation | J66: Transportation | L66: -51806
A67: 8 | C67: Stores Equipment | J67: Stores Equipment
J68: Net Depreciation | L68: =K60-L66-L67 -> -412800
A70: Notes:
A72: 1 | B72: Tables in the format outlined above covering all fixed asset accounts should be submitted for the Test Year, Bridge Year and all relevant historical years. At a minimum , the applicant must provide data for the earlier of: 1) all historical years back to its last rebasing; or 2) at least three years of historical actuals, in addition to Bridge Year and Test Year forecasts.
A75: 2 | B75: The "CCA Class" for fixed assets should agree with the CCA Class used for tax purposes in Tax Returns. Fixed Assets sub-components may be used where the underlying asset components are classified under multiple CCA Classes for tax purposes. If an applicant uses any different classes from those shown in the table, an explanation should be provided. (also see note 3 below).
A78: 3 | B78: The table may need to be customized for a utility's asset categories or for any new asset accounts announced or authorized by the Board.
A80: 4 | B80: The depreciation column (D) is not required as the relevant information will be provided in the following 2-C series of appendices.

Sheet App.2-B_F Asset 12-MIFRS
A8: Appendix 2-B
A9: Fixed Asset Continuity Schedule
F11: Year | G11: 2012 MIFRS
E13: Cost | K13: Accumulated Depreciation
A14: CCA Class | B14: OEB | C14: Description | D14: Depreciation Rate | E14: Opening Balance | F14: Additions | G14: Disposals | H14: Closing Balance | J14: Opening Balance | K14: Additions | L14: Disposals | M14: Closing Balance | N14: Net Book Value
A15: 12 | B15: 1611 | C15: Computer Software (Formally known as Account 1925) | E15: 108392 | H15: =E15+F15+G15 -> 108392 | J15: -56330 | K15: -8140 | M15: =J15+K15+L15 -> -64470 | N15: =H15+M15 -> 43922
A16: CEC | B16: 1612 | C16: Land Rights (Formally known as Account 1906) | H16: =E16+F16+G16 -> 0 | M16: =J16+K16+L16 -> 0 | N16: =H16+M16 -> 0
A17: N/A | B17: 1805 | C17: Land | E17: 21747 | F17: 90000 | H17: =E17+F17+G17 -> 111747 | M17: =J17+K17+L17 -> 0 | N17: =H17+M17 -> 111747
A18: 47 | B18: 1808 | C18: Buildings | E18: 80964 | F18: 910000 | H18: =E18+F18+G18 -> 990964 | J18: -31419 | K18: -23240 | M18: =J18+K18+L18 -> -54659 | N18: =H18+M18 -> 936305
A19: 13 | B19: 1810 | C19: Leasehold Improvements | H19: 0 | M19: 0 | N19: 0
A20: 47 | B20: 1815 | C20: Transformer Station Equipment >50 kV | H20: 0 | M20: 0 | N20: 0
A21: 47 | B21: 1820 | C21: Distribution Station Equipment <50 kV | E21: 152252 | F21: 20000 | H21: 172252 | J21: -66934 | K21: -6490 | M21: -73424 | N21: 98828
A22: 47 | B22: 1825 | C22: Storage Battery Equipment | H22: 0 | M22: 0 | N22: 0
A23: 47 | B23: 1830 | C23: Poles, Towers & Fixtures | E23: 2116750 | F23: 1993580 | H23: 4110330 | J23: -628180 | K23: -63500 | M23: -691680 | N23: 3418650
A24: 47 | B24: 1830 | C24: Poles, Towers & Fixtures - Tornado | E24: 770866 | H24: 770866 | K24: -17130 | M24: =J24+K24+L24 -> -17130 | N24: =H24+M24 -> 753736
A25: 47 | B25: 1835 | C25: Overhead Conductors & Devices | E25: 431598 | F25: 393352 | H25: 824950 | J25: -134754 | K25: -10507 | M25: -145261 | N25: 679689
A26: 47 | B26: 1835 | C26: Overhead Conductors & Devices - Tornado | E26: 82079 | H26: 82079 | K26: -1496 | M26: =J26+K26+L26 -> -1496 | N26: =H26+M26 -> 80583
A27: 47 | B27: 1840 | C27: Underground Conduit | E27: 62683 | F27: 5000 | H27: 67683 | J27: -7211 | K27: -1230 | M27: -8441 | N27: 59242
A28: 47 | B28: 1845 | C28: Underground Conductors & Devices | E28: 1309799 | F28: 800000 | H28: 2109799 | J28: -451725 | K28: -42703 | M28: -494428 | N28: 1615371
A29: 47 | B29: 1850 | C29: Line Transformers | E29: 985632 | F29: 485000 | H29: 1470632 | J29: -313667 | K29: -25261 | M29: -338928 | N29: 1131704
A30: 47 | B30: 1850 | C30: Line Transformers - Tornado | E30: 276369 | H30: 276369 | K30: -6909 | M30: =J30+K30+L30 -> -6909 | N30: =H30+M30 -> 269460
A31: 47 | B31: 1855 | C31: Services (Overhead & Underground) | E31: 239112 | F31: 128068 | H31: 367180 | J31: -60495 | K31: -6057 | M31: -66552 | N31: 300628
A32: 47 | B32: 1855 | C32: Services (Overhead & Underground) - Tornado | E32: 123416 | H32: 123416 | K32: -2057 | M32: =J32+K32+L32 -> -2057 | N32: =H32+M32 -> 121359
A33: 47 | B33: 1860 | C33: Meters | E33: 71623 | F33: 100000 | H33: 171623 | J33: -26649 | K33: -4865 | M33: -31514 | N33: 140109
A34: 47 | B34: 1860 | C34: Meters (Smart Meters) | E34: 109387 | H34: 109387 | J34: -7293 | K34: -7293 | M34: -14586 | N34: 94801
A35: N/A | B35: 1905 | C35: Land | H35: 0 | M35: 0 | N35: 0
A36: 47 | B36: 1908 | C36: Buildings & Fixtures | H36: 0 | M36: 0 | N36: 0
A37: 13 | B37: 1910 | C37: Leasehold Improvements | H37: 0 | M37: 0 | N37: 0
A38: 8 | B38: 1915 | C38: Office Furniture & Equipment (10 years) | E38: 37485 | H38: 37485 | J38: -3748 | K38: -3748 | M38: -7496 | N38: 29989
A39: 8 | B39: 1915 | C39: Office Furniture & Equipment (5 years) | H39: 0 | M39: 0 | N39: 0
A40: 10 | B40: 1920 | C40: Computer Equipment - Hardware | E40: 39678 | H40: 39678 | J40: -38686 | K40: -988 | M40: -39674 | N40: 4
A41: 45 | B41: 1920 | C41: Computer Equip.-Hardware(Post Mar. 22/04) | E41: 23637 | H41: 23637 | J41: -15497 | K41: -2364 | M41: -17861 | N41: 5776
A42: 45.1 | B42: 1920 | C42: Computer Equip.-Hardware(Post Mar. 19/07) | E42: 31463 | F42: 15000 | H42: 46463 | J42: -11301 | K42: -3899 | M42: -15200 | N42: 31263
A43: 10 | B43: 1930 | C43: Transportation Equipment | E43: 630187 | F43: 65000 | H43: 695187 | J43: -339308 | K43: -47744 | M43: -387052 | N43: 308135
A44: 8 | B44: 1935 | C44: Stores Equipment | H44: 0 | M44: 0 | N44: 0
A45: 8 | B45: 1940 | C45: Tools, Shop & Garage Equipment | E45: 13308 | F45: 10000 | H45: 23308 | J45: -4306 | K45: -4577 | M45: -8883 | N45: 14425
A46: 8 | B46: 1945 | C46: Measurement & Testing Equipment | H46: 0 | M46: 0 | N46: 0
A47: 8 | B47: 1950 | C47: Power Operated Equipment | H47: 0 | M47: 0 | N47: 0
A48: 8 | B48: 1955 | C48: Communications Equipment | H48: 0 | M48: 0 | N48: 0
A49: 8 | B49: 1955 | C49: Communication Equipment (Smart Meters) | H49: 0 | M49: 0 | N49: 0
A50: 8 | B50: 1960 | C50: Miscellaneous Equipment | H50: 0 | M50: 0 | N50: 0
A51: 47 | B51: 1975 | C51: Load Management Controls Utility Premises | H51: 0 | M51: 0 | N51: 0
A52: 47 | B52: 1980 | C52: System Supervisor Equipment | H52: 0 | M52: 0 | N52: 0
A53: 47 | B53: 1985 | C53: Miscellaneous Fixed Assets | H53: 0 | M53: 0 | N53: 0
A54: 47 | B54: 1995 | C54: Contributions & Grants | E54: -425619 | F54: -2000000 | H54: -2425619 | J54: 86386 | K54: 33325 | M54: 119711 | N54: -2305908
H55: 0 | M55: 0 | N55: 0
C57: Total | E57: =SUM(E15:E56) -> 7292808 | F57: =SUM(F15:F56) -> 3015000 | G57: 0 | H57: 10307808 | J57: =SUM(J15:J56) -> -2111117 | K57: =SUM(K15:K56) -> -256873 | L57: 0 | M57: -2367990 | N57: 7939818
A59: Transfer of Smart Meters costs from 1555 | H59: 565777 | M59: -121614
H60: =SUM(H57:H59) -> 10873585 | M60: =SUM(M57:M59) -> -2489604
J62: Less: Fully Allocated Depreciation
A63: 10 | C63: Transportation | J63: Transportation | L63: -47744
A64: 8 | C64: Stores Equipment | J64: Stores Equipment
J65: Net Depreciation | L65: =K57-L63-L64 -> -209129
A67: Notes:
A69: 1 | B69: Tables in the format outlined above covering all fixed asset accounts should be submitted for the Test Year, Bridge Year and all relevant historical years. At a minimum , the applicant must provide data for the earlier of: 1) all historical years back to its last rebasing; or 2) at least three years of historical actuals, in addition to Bridge Year and Test Year forecasts.
A72: 2 | B72: The "CCA Class" for fixed assets should agree with the CCA Class used for tax purposes in Tax Returns. Fixed Assets sub-components may be used where the underlying asset components are classified under multiple CCA Classes for tax purposes. If an applicant uses any different classes from those shown in the table, an explanation should be provided. (also see note 3 below).
A75: 3 | B75: The table may need to be customized for a utility's asset categories or for any new asset accounts announced or authorized by the Board.
A77: 4 | B77: The depreciation column (D) is not required as the relevant information will be provided in the following 2-C series of appendices.

Sheet App.2-B_F Asset 13 MIFRS
M3: File Number: | N3: ='LDC Info'!$E$18 -> EB-2012-0175
M4: Exhibit:
M5: Tab:
M6: Schedule:
M7: Page:
M9: Date:
A11: Appendix 2-B
A12: Fixed Asset Continuity Schedule
F14: Year | G14: 2013 MIFRS
E16: Cost | K16: Accumulated Depreciation
A17: CCA Class | B17: OEB | C17: Description | D17: Depreciation Rate | E17: Opening Balance | F17: Additions | G17: Disposals | H17: Closing Balance | J17: Opening Balance | K17: Additions | L17: Disposals | M17: Closing Balance | N17: Net Book Value
A18: 12 | B18: 1611 | C18: Computer Software (Formally known as Account 1925) | E18: 108392 | H18: =E18+F18+G18 -> 108392 | J18: -64470 | K18: -8079 | M18: =J18+K18+L18 -> -72549 | N18: =H18+M18 -> 35843
A19: CEC | B19: 1612 | C19: Land Rights (Formally known as Account 1906) | H19: =E19+F19+G19 -> 0 | M19: =J19+K19+L19 -> 0 | N19: =H19+M19 -> 0
A20: N/A | B20: 1805 | C20: Land | E20: 111747 | H20: =E20+F20+G20 -> 111747 | M20: =J20+K20+L20 -> 0 | N20: =H20+M20 -> 111747
A21: 47 | B21: 1808 | C21: Buildings | E21: 990964 | F21: 200000 | H21: =E21+F21+G21 -> 1190964 | J21: -54659 | K21: -45440 | M21: =J21+K21+L21 -> -100099 | N21: =H21+M21 -> 1090865
A22: 13 | B22: 1810 | C22: Leasehold Improvements | H22: 0 | M22: 0 | N22: 0
A23: 47 | B23: 1815 | C23: Transformer Station Equipment >50 kV | H23: 0 | M23: 0 | N23: 0
A24: 47 | B24: 1820 | C24: Distribution Station Equipment <50 kV | E24: 172252 | F24: 20000 | H24: 192252 | J24: -73424 | K24: -7290 | M24: -80714 | N24: 111538
A25: 47 | B25: 1825 | C25: Storage Battery Equipment | H25: 0 | M25: 0 | N25: 0
A26: 47 | B26: 1830 | C26: Poles, Towers & Fixtures | E26: 4110330 | F26: 865224 | H26: 4975554 | J26: -691680 | K26: -95265 | M26: -786945 | N26: 4188609
A27: 47 | B27: 1830 | C27: Poles, Towers & Fixtures - Tornado | E27: 770866 | H27: 770866 | J27: -17130 | K27: -17130 | M27: -34260 | N27: 736606
A28: 47 | B28: 1835 | C28: Overhead Conductors & Devices | E28: 824950 | F28: 158808 | H28: 983758 | J28: -145261 | K28: -15537 | M28: -160798 | N28: 822960
A29: 47 | B29: 1835 | C29: Overhead Conductors & Devices - Tornado | E29: 82079 | H29: 82079 | J29: -1496 | K29: -1496 | M29: -2992 | N29: 79087
A30: 47 | B30: 1840 | C30: Underground Conduit | E30: 67683 | F30: 5000 | H30: 72683 | J30: -8441 | K30: -1330 | M30: -9771 | N30: 62912
A31: 47 | B31: 1845 | C31: Underground Conductors & Devices | E31: 2109799 | F31: 20000 | H31: 2129799 | J31: -494428 | K31: -52953 | M31: -547381 | N31: 1582418
A32: 47 | B32: 1850 | C32: Line Transformers | E32: 1470632 | F32: =204000+275000 -> 479000 | H32: 1949632 | J32: -338928 | K32: -37311 | M32: -376239 | N32: 1573393
A33: 47 | B33: 1850 | C33: Line Transformers - Tornado | E33: 276369 | H33: 276369 | J33: -6909 | K33: -6909 | M33: -13818 | N33: 262551
A34: 47 | B34: 1855 | C34: Services (Overhead & Underground) | E34: 367180 | F34: 65968 | H34: 433148 | J34: -66552 | K34: -7674 | M34: -74226 | N34: 358922
A35: 47 | B35: 1855 | C35: Services (Overhead & Underground) - Tornado | E35: 123416 | H35: 123416 | J35: -2057 | K35: -2057 | M35: -4114 | N35: 119302
A36: 47 | B36: 1860 | C36: Meters | E36: 171623 | H36: 171623 | J36: -31514 | K36: -6865 | M36: -38379 | N36: 133244
A37: 47 | B37: 1860 | C37: Meters (Smart Meters) | E37: 109387 | H37: 109387 | J37: -14586 | K37: -7293 | M37: -21879 | N37: 87508
A38: N/A | B38: 1905 | C38: Land | H38: 0 | M38: 0 | N38: 0
A39: 47 | B39: 1908 | C39: Buildings & Fixtures | H39: 0 | M39: 0 | N39: 0
A40: 13 | B40: 1910 | C40: Leasehold Improvements | H40: 0 | M40: 0 | N40: 0
A41: 8 | B41: 1915 | C41: Office Furniture & Equipment (10 years) | E41: 37485 | H41: 37485 | J41: -7496 | K41: -3748 | M41: -11244 | N41: 26241
A42: 8 | B42: 1915 | C42: Office Furniture & Equipment (5 years) | H42: 0 | M42: 0 | N42: 0
A43: 10 | B43: 1920 | C43: Computer Equipment - Hardware | E43: 39678 | H43: 39678 | J43: -39674 | K43: -4 | M43: -39678 | N43: 0
A44: 45 | B44: 1920 | C44: Computer Equip.-Hardware(Post Mar. 22/04) | E44: 23637 | H44: 23637 | J44: -17861 | K44: -2363 | M44: -20224 | N44: 3413
A45: 45.1 | B45: 1920 | C45: Computer Equip.-Hardware(Post Mar. 19/07) | E45: 46463 | H45: 46463 | J45: -15200 | K45: -4649 | M45: -19849 | N45: 26614
A46: 10 | B46: 1930 | C46: Transportation Equipment | E46: 695187 | F46: 300000 | H46: 995187 | J46: -387052 | K46: -69626 | M46: -456678 | N46: 538509
A47: 8 | B47: 1935 | C47: Stores Equipment | H47: 0 | M47: 0 | N47: 0
A48: 8 | B48: 1940 | C48: Tools, Shop & Garage Equipment | E48: 23308 | F48: 8500 | H48: 31808 | J48: -8883 | K48: -6345 | M48: -15228 | N48: 16580
A49: 8 | B49: 1945 | C49: Measurement & Testing Equipment | H49: 0 | M49: 0 | N49: 0
A50: 8 | B50: 1950 | C50: Power Operated Equipment | H50: 0 | M50: 0 | N50: 0
A51: 8 | B51: 1955 | C51: Communications Equipment | H51: 0 | M51: 0 | N51: 0
A52: 8 | B52: 1955 | C52: Communication Equipment (Smart Meters) | H52: 0 | M52: 0 | N52: 0
A53: 8 | B53: 1960 | C53: Miscellaneous Equipment | H53: 0 | M53: 0 | N53: 0
A54: 47 | B54: 1975 | C54: Load Management Controls Utility Premises | H54: 0 | M54: 0 | N54: 0
A55: 47 | B55: 1980 | C55: System Supervisor Equipment | H55: 0 | M55: 0 | N55: 0
A56: 47 | B56: 1985 | C56: Miscellaneous Fixed Assets | H56: 0 | M56: 0 | N56: 0
A57: 47 | B57: 1995 | C57: Contributions & Grants | E57: -2425619 | F57: -275000 | H57: -2700619 | J57: 119711 | K57: 58329 | M57: 178040 | N57: -2522579
H58: 0 | M58: 0 | N58: 0
C60: Total | E60: =SUM(E18:E59) -> 10307808 | F60: =SUM(F18:F59) -> 1847500 | G60: 0 | H60: 12155308 | J60: =SUM(J18:J59) -> -2367990 | K60: =SUM(K18:K59) -> -341035 | L60: 0 | M60: -2709025 | N60: 9446283
C62: Transfer of Smart Meters costs from 1555 | E62: 565777 | H62: 565777 | J62: -121614 | K62: -37631 | M62: =J62+K62+L62 -> -159245 | N62: =H62+M62 -> 406532
C63: REVISED CLOSING BALANCE FORWARD | E63: =SUM(E60:E62) -> 10873585 | H63: =SUM(H60:H62) -> 12721085 | J63: =SUM(J60:J62) -> -2489604 | K63: =SUM(K60:K62) -> -378666 | L63: 0 | M63: -2868270 | N63: 9852815
J65: Less: Fully Allocated Depreciation
A66: 10 | C66: Transportation | J66: Transportation | L66: =+K46 -> -69626
A67: 8 | C67: Stores Equipment | J67: Stores Equipment
J68: Net Depreciation | L68: =K63-L66-L67 -> -309040
A70: Notes:
A72: 1 | B72: Tables in the format outlined above covering all fixed asset accounts should be submitted for the Test Year, Bridge Year and all relevant historical years. At a minimum , the applicant must provide data for the earlier of: 1) all historical years back to its last rebasing; or 2) at least three years of historical actuals, in addition to Bridge Year and Test Year forecasts.
A75: 2 | B75: The "CCA Class" for fixed assets should agree with the CCA Class used for tax purposes in Tax Returns. Fixed Assets sub-components may be used where the underlying asset components are classified under multiple CCA Classes for tax purposes. If an applicant uses any different classes from those shown in the table, an explanation should be provided. (also see note 3 below).
A78: 3 | B78: The table may need to be customized for a utility's asset categories or for any new asset accounts announced or authorized by the Board.
A80: 4 | B80: The depreciation column (D) is not required as the relevant information will be provided in the following 2-C series of appendices.

Sheet App.2-CE_CGAAP_DepExp_2011
K1: File Number: | L1: ='LDC Info'!$E$18 -> EB-2012-0175
K2: Exhibit:
K3: Tab:
K4: Schedule:
K5: Page:
K7: Date:
A9: Appendix 2-CE
A10: Depreciation and Amortization Expense
A11: Assumes the applicant adopted IFRS for financial reporting purposes January 1, 2013
C12: Year | D12: 2011 | E12: CGAAP
A14: Account | B14: Description | C14: Opening Regulatory Gross PP&E as at Jan 1, 2011 | D14: Less Fully Depreciated | E14: Net for Depreciation | F14: Additions | G14: Total for Depreciation | H14: Years | I14: Depreciation Rate | J14: 2011 Depreciation Expense | K14: 2011 Depreciation Expense per Appendix 2-B Fixed Assets, Column K (l) | L14: Variance 2
C15: (a) | D15: (b) | E15: (c) | F15: (d) | G15: (e) = (c) + ½ x (d) 1 | H15: (f) | I15: (g) = 1 / (f) | J15: (h) = (e) / (f) | L15: (m) = (h) - (l)
A16: 1611 | B16: Computer Software (Formally known as Account 1925) | C16: 108392 | D16: 26959 | E16: =C16-D16 -> 81433 | G16: =E16+0.5*F16 -> 81433 | H16: 10 | I16: =IF(H16=0,"",1/H16) -> 0.1 | J16: =IF(H16=0,0,G16/H16) -> 8143.3 | K16: 8144 | L16: =IF(ISERROR(+J16-K16), "", +J16-K16) -> -0.7
A17: 1612 | B17: Land Rights (Formally known as Account 1906) | E17: =C17-D17 -> 0 | G17: =E17+0.5*F17 -> 0 | J17: 0 | L17: =IF(ISERROR(+J17-K17), "", +J17-K17) -> 0
A18: 1805 | B18: Land | C18: 21747 | E18: 21747 | G18: 21747 | J18: 0 | L18: 0
A19: 1808 | B19: Buildings | C19: 80964 | E19: 80964 | G19: 80964 | H19: 25 | I19: 0.04 | J19: 3238.56 | K19: 3240 | L19: -1.44
A20: 1810 | B20: Leasehold Improvements | E20: 0 | G20: 0 | J20: 0 | L20: 0
A21: 1815 | B21: Transformer Station Equipment >50 kV | E21: 0 | G21: 0 | J21: 0 | L21: 0
A22: 1820 | B22: Distribution Station Equipment <50 kV | C22: 152252 | E22: 152252 | G22: 152252 | H22: 25 | I22: 0.04 | J22: 6090.08 | K22: 6090 | L22: 0.08
A23: 1825 | B23: Storage Battery Equipment | E23: 0 | G23: 0 | J23: 0 | L23: 0
A24: 1830 | B24: Poles, Towers & Fixtures | C24: 343372 | E24: 343372 | F24: 51310 | G24: 369027 | H24: 25 | I24: 0.04 | J24: 14761.08 | K24: 15788 | L24: -1026.92
A25: 1830 | B25: Poles, Towers & Fixtures - Tornado | F25: 770866 | G25: 385433 | H25: 25
A26: 1835 | B26: Overhead Conductors & Devices | C26: 2382315 | E26: 2382315 | F26: 192590 | G26: 2478610 | H26: 25 | I26: 0.04 | J26: 99144.4 | K26: 89589 | L26: 9555.4
A27: 1835 | B27: Overhead Conductors & Devices - Tornado | F27: 82079 | G27: 41039.5 | H27: 25 | I27: 0.04 | J27: 1641.58
A28: 1840 | B28: Underground Conduit | C28: 46010 | E28: 46010 | F28: 16673 | G28: 54346.5 | H28: 25 | I28: 0.04 | J28: 2173.86 | K28: 2509 | L28: -335.14
A29: 1845 | B29: Underground Conductors & Devices | C29: 1287818 | E29: 1287818 | F29: 21981 | G29: 1298808.5 | H29: 25 | I29: 0.04 | J29: 51952.34 | K29: 52391 | L29: -438.66
A30: 1850 | B30: Line Transformers | C30: 1202880 | E30: 1202880 | F30: 64832 | G30: 1235296 | H30: 25 | I30: 0.04 | J30: 49411.84 | K30: 44993 | L30: 4418.84
A31: 1850 | B31: Line Transformers - Tornado | F31: 276369 | G31: 138184.5 | H31: 25 | I31: 0.04 | J31: 5527.38
A32: 1855 | B32: Services (Overhead & Underground) | C32: 132132 | E32: 132132 | F32: 15216 | G32: 139740 | H32: 25 | I32: 0.04 | J32: 5589.6 | K32: 5896 | L32: -306.4
A33: 1855 | B33: Services (Overhead & Underground) - Tornado | F33: 123416 | G33: 61708 | H33: 25 | I33: 0.04 | J33: 2468.32
A34: 1860 | B34: Meters | C34: 170532 | E34: 170532 | F34: 10478 | G34: 175771 | H34: 15 | I34: 0.06666666667 | J34: 11718.06667 | K34: 10158 | L34: 1560.066667
A35: 1860 | B35: Meters (Smart Meters) | E35: 0 | G35: 0 | J35: 0 | L35: 0
A36: 1905 | B36: Land | E36: 0 | G36: 0 | J36: 0 | L36: 0
A37: 1908 | B37: Buildings & Fixtures | E37: 0 | G37: 0 | J37: 0 | L37: 0
A38: 1910 | B38: Leasehold Improvements | C38: 128450 | E38: 128450 | F38: 3181 | G38: 130040.5 | H38: 10 | I38: 0.1 | J38: 13004.05 | K38: 0 | L38: 13004.05
A39: 1915 | B39: Office Furniture & Equipment (10 years) | C39: 63794 | E39: 63794 | F39: 37485 | G39: 82536.5 | H39: 10 | I39: 0.1 | J39: 8253.65 | K39: 3748 | L39: 4505.65
A40: 1915 | B40: Office Furniture & Equipment (5 years) | E40: 0 | G40: 0 | J40: 0 | L40: 0
A41: 1920 | B41: Computer Equipment - Hardware | C41: 39678 | D41: 29794 | E41: 9884 | G41: 9884 | H41: 10 | I41: 0.1 | J41: 988.4 | K41: 988 | L41: 0.4
A42: 1920 | B42: Computer Equip.-Hardware(Post Mar. 22/04) | C42: 23637 | E42: 23637 | G42: 23637 | H42: 10 | I42: 0.1 | J42: 2363.7 | K42: 2363 | L42: 0.7
A43: 1920 | B43: Computer Equip.-Hardware(Post Mar. 19/07) | C43: 31101 | E43: 31101 | F43: 7622 | G43: 34912 | H43: 10 | I43: 0.1 | J43: 3491.2 | K43: 3110 | L43: 381.2
A44: 1930 | B44: Transportation Equipment | C44: 585729 | D44: 233957 | E44: 351772 | F44: 56350 | G44: 379947 | H44: 8 | I44: 0.125 | J44: 47493.375 | K44: 43681 | L44: 3812.375
A45: 1935 | B45: Stores Equipment | E45: 0 | G45: 0 | J45: 0 | L45: 0
A46: 1940 | B46: Tools, Shop & Garage Equipment | C46: 88473 | D46: 60832 | E46: 27641 | F46: 13872 | G46: 34577 | H46: 4 | I46: 0.25 | J46: 8644.25 | K46: 3214 | L46: 5430.25
A47: 1945 | B47: Measurement & Testing Equipment | C47: 2678 | D47: 2678 | E47: 0 | G47: 0 | H47: 4 | I47: 0.25 | J47: 0 | K47: 0 | L47: 0
A48: 1950 | B48: Power Operated Equipment | E48: 0 | G48: 0 | J48: 0 | L48: 0
A49: 1955 | B49: Communications Equipment | E49: 0 | G49: 0 | J49: 0 | L49: 0
A50: 1955 | B50: Communication Equipment (Smart Meters) | E50: 0 | G50: 0 | J50: 0 | L50: 0
A51: 1960 | B51: Miscellaneous Equipment | E51: 0 | G51: 0 | J51: 0 | L51: 0
A52: 1975 | B52: Load Management Controls Utility Premises | E52: 0 | G52: 0 | J52: 0 | L52: 0
A53: 1980 | B53: System Supervisor Equipment | E53: 0 | G53: 0 | J53: 0 | L53: 0
A54: 1985 | B54: Miscellaneous Fixed Assets | E54: 0 | G54: 0 | J54: 0 | L54: 0
A55: 1995 | B55: Contributions & Grants | C55: -425619 | E55: -425619 | G55: -425619 | H55: 25 | I55: 0.04 | J55: -17024.76 | K55: -17956 | L55: 931.24
E56: 0 | G56: 0 | J56: 0 | L56: 0
E57: 0 | G57: 0 | J57: 0 | L57: 0
B58: Total | C58: =SUM(C16:C57) -> 6466335 | D58: =SUM(D16:D57) -> 354220 | E58: =SUM(E16:E57) -> 6112115 | F58: =SUM(F16:F57) -> 1744320 | G58: =SUM(G16:G57) -> 6984275 | J58: =SUM(J16:J57) -> 329074.2717 | K58: =SUM(K16:K57) -> 277946 | L58: =SUM(L16:L57) -> 41490.99167
A60: Notes:
A61: 1 | B61: Board policy of the "half-year" rule - the applicant must ensure that additions in the year attract a half-year depreciation expense in the first year. Deviations from this standard practice must be supported in the application.
A62: 2 | B62: The applicant must provide an explanation of material variances in evidence
A63: General: | B63: Applicants must provide a breakdown of depreciation and amortization expense in the above format for all relevant accounts. Asset Retirement Obligations (AROs), depreciation and accretion expense should be disclosed separately consistent with the Notes of historical Audited Financial Statements.

Sheet App.2-CF_CGAAP_DepExp_2012
K1: File Number: | L1: ='LDC Info'!$E$18 -> EB-2012-0175
K2: Exhibit:
K3: Tab:
K4: Schedule:
K5: Page:
K7: Date:
A9: Appendix 2-CF
A10: Depreciation and Amortization Expense
A11: Assumes the applicant adopted IFRS for financial reporting purposes January 1, 2013
C12: Year | D12: 2012 | E12: CGAAP
A14: Account | B14: Description | C14: Opening Regulatory Gross PP&E as at Jan 1, 2012 | D14: Less Fully Depreciated | E14: Net for Depreciation | F14: Additions | G14: Total for Depreciation | H14: Years | I14: Depreciation Rate | J14: 2012 Depreciation Expense | K14: 2012 Depreciation Expense per Appendix 2-B Fixed Assets, Column K (l) | L14: Variance 2
C15: (a) | D15: (b) | E15: (c) | F15: (d) | G15: (e) = (c) + ½ x (d) 1 | H15: (f) | I15: (g) = 1 / (f) | J15: (h) = (e) / (f) | L15: (m) = (h) - (l)
A16: 1611 | B16: Computer Software (Formally known as Account 1925) | C16: 108392 | D16: 26959 | E16: =C16-D16 -> 81433 | G16: =E16+0.5*F16 -> 81433 | H16: 10 | I16: =IF(H16=0,0,1/H16) -> 0.1 | J16: =IF(H16=0,0,G16/H16) -> 8143.3 | K16: 8140 | L16: =IF(ISERROR(+J16-K16), 0, +J16-K16) -> 3.3
A17: 1612 | B17: Land Rights (Formally known as Account 1906) | E17: =C17-D17 -> 0 | G17: =E17+0.5*F17 -> 0 | I17: 0 | J17: 0 | L17: 0
A18: 1805 | B18: Land | C18: 21747 | E18: 21747 | F18: 90000 | G18: 66747 | I18: 0 | J18: 0 | L18: 0
A19: 1808 | B19: Buildings | C19: 80964 | E19: 80964 | F19: 910000 | G19: 535964 | H19: 25 | I19: 0.04 | J19: 21438.56 | K19: 43240 | L19: -21801.44
A20: 1810 | B20: Leasehold Improvements | E20: 0 | G20: 0 | I20: 0 | J20: 0 | L20: 0
A21: 1815 | B21: Transformer Station Equipment >50 kV | E21: 0 | G21: 0 | I21: 0 | J21: 0 | L21: 0
A22: 1820 | B22: Distribution Station Equipment <50 kV | C22: 152252 | E22: 152252 | F22: 20000 | G22: 162252 | H22: 25 | I22: 0.04 | J22: 6490.08 | K22: 6890 | L22: -399.92
A23: 1825 | B23: Storage Battery Equipment | E23: 0 | G23: 0 | I23: 0 | J23: 0 | L23: 0
A24: 1830 | B24: Poles, Towers & Fixtures | C24: 394682 | E24: 394682 | F24: 30000 | G24: 409682 | H24: 25 | I24: 0.04 | J24: 16387.28 | K24: 16987 | L24: -599.72
A25: 1830 | B25: Poles, Towers & Fixtures - Tornado | C25: 770866 | E25: 770866 | G25: 770866 | H25: 25 | I25: 0.04 | J25: 30834.64 | K25: 30835 | L25: -0.36
A26: 1835 | B26: Overhead Conductors & Devices | C26: 2245430 | E26: 2245430 | F26: 2465000 | G26: 3477930 | H26: 25 | I26: 0.04 | J26: 139117.2 | K26: 196885 | L26: -57767.8
A27: 1835 | B27: Overhead Conductors & Devices - Tornado | C27: 82079 | E27: 82079 | G27: 82079 | H27: 25 | I27: 0.04 | J27: 3283.16 | K27: 3283 | L27: 0.16
A28: 1840 | B28: Underground Conduit | C28: 62683 | E28: 62683 | F28: 5000 | G28: 65183 | H28: 25 | I28: 0.04 | J28: 2607.32 | K28: 2709 | L28: -101.68
A29: 1845 | B29: Underground Conductors & Devices | C29: 1309799 | E29: 1309799 | F29: 800000 | G29: 1709799 | H29: 25 | I29: 0.04 | J29: 68391.96 | K29: 84392 | L29: -16000.04
A30: 1850 | B30: Line Transformers | C30: 985632 | E30: 985632 | F30: 485000 | G30: 1228132 | H30: 25 | I30: 0.04 | J30: 49125.28 | K30: 61425 | L30: -12299.72
A31: 1850 | B31: Line Transformers - Tornado | C31: 276369 | E31: 276369 | G31: 276369 | H31: 25 | I31: 0.04 | J31: 11054.76 | K31: 11055 | L31: -0.24
A32: 1855 | B32: Services (Overhead & Underground) | C32: 147348 | E32: 147348 | F32: 20000 | G32: 157348 | H32: 25 | I32: 0.04 | J32: 6293.92 | K32: 6696 | L32: -402.08
A33: 1855 | B33: Services (Overhead & Underground) - Tornado | C33: 123416 | E33: 123416 | G33: 123416 | H33: 25 | I33: 0.04 | J33: 4936.64 | K33: 4937 | L33: -0.36
A34: 1860 | B34: Meters | C34: 181010 | E34: 181010 | F34: 100000 | G34: 231010 | H34: 25 | I34: 0.04 | J34: 9240.4 | K34: 14158 | L34: -4917.6
A35: 1860 | B35: Meters (Smart Meters) | E35: 0 | G35: 0 | I35: 0 | J35: 0 | L35: 0
A36: 1905 | B36: Land | E36: 0 | G36: 0 | I36: 0 | J36: 0 | L36: 0
A37: 1908 | B37: Buildings & Fixtures | E37: 0 | G37: 0 | I37: 0 | J37: 0 | L37: 0
A38: 1910 | B38: Leasehold Improvements | C38: 0 | E38: 0 | G38: 0 | I38: 0 | J38: 0 | L38: 0
A39: 1915 | B39: Office Furniture & Equipment (10 years) | C39: 37485 | E39: 37485 | G39: 37485 | H39: 10 | I39: 0.1 | J39: 3748.5 | K39: 3748 | L39: 0.5
A40: 1915 | B40: Office Furniture & Equipment (5 years) | E40: 0 | G40: 0 | I40: 0 | J40: 0 | L40: 0
A41: 1920 | B41: Computer Equipment - Hardware | C41: 39678 | D41: 29794 | E41: 9884 | G41: 9884 | H41: 10 | I41: 0.1 | J41: 988.4 | K41: 988 | L41: 0.4
A42: 1920 | B42: Computer Equip.-Hardware(Post Mar. 22/04) | C42: 23637 | E42: 23637 | G42: 23637 | H42: 10 | I42: 0.1 | J42: 2363.7 | K42: 2364 | L42: -0.3
A43: 1920 | B43: Computer Equip.-Hardware(Post Mar. 19/07) | C43: 31463 | E43: 31463 | F43: 15000 | G43: 38963 | H43: 10 | I43: 0.1 | J43: 3896.3 | K43: 4649 | L43: -752.7
A44: 1930 | B44: Transportation Equipment | C44: 630187 | D44: 245849 | E44: 384338 | F44: 65000 | G44: 416838 | H44: 8 | I44: 0.125 | J44: 52104.75 | K44: 51806 | L44: 298.75
A45: 1935 | B45: Stores Equipment | E45: 0 | G45: 0 | I45: 0 | J45: 0 | L45: 0
A46: 1940 | B46: Tools, Shop & Garage Equipment | C46: 13308 | E46: 13308 | F46: 10000 | G46: 18308 | H46: 4 | I46: 0.25 | J46: 4577 | K46: 5827 | L46: -1250
A47: 1945 | B47: Measurement & Testing Equipment | C47: 0 | E47: 0 | G47: 0 | I47: 0 | J47: 0 | L47: 0
A48: 1950 | B48: Power Operated Equipment | E48: 0 | G48: 0 | I48: 0 | J48: 0 | L48: 0
A49: 1955 | B49: Communications Equipment | E49: 0 | G49: 0 | I49: 0 | J49: 0 | L49: 0
A50: 1955 | B50: Communication Equipment (Smart Meters) | E50: 0 | G50: 0 | I50: 0 | J50: 0 | L50: 0
A51: 1960 | B51: Miscellaneous Equipment | E51: 0 | G51: 0 | I51: 0 | J51: 0 | L51: 0
A52: 1975 | B52: Load Management Controls Utility Premises | E52: 0 | G52: 0 | I52: 0 | J52: 0 | L52: 0
A53: 1980 | B53: System Supervisor Equipment | E53: 0 | G53: 0 | I53: 0 | J53: 0 | L53: 0
A54: 1985 | B54: Miscellaneous Fixed Assets | E54: 0 | G54: 0 | I54: 0 | J54: 0 | L54: 0
A55: 1995 | B55: Contributions & Grants | C55: -425619 | E55: -425619 | F55: -2000000 | G55: -1425619 | H55: 25 | I55: 0.04 | J55: -57024.76 | K55: -96408 | L55: 39383.24
E56: 0 | G56: 0 | I56: 0 | J56: 0 | L56: 0
E57: 0 | G57: 0 | I57: 0 | J57: 0 | L57: 0
B58: Total | C58: =SUM(C16:C57) -> 7292808 | D58: =SUM(D16:D57) -> 302602 | E58: =SUM(E16:E57) -> 6990206 | F58: =SUM(F16:F57) -> 3015000 | G58: =SUM(G16:G57) -> 8497706 | J58: =SUM(J16:J57) -> 387998.39 | K58: =SUM(K16:K57) -> 464606 | L58: =SUM(L16:L57) -> -76607.61
A60: Notes:
A61: 1 | B61: Board policy of the "half-year" rule - the applicant must ensure that additions in the year attract a half-year depreciation expense in the first year. Deviations from this standard practice must be supported in the application.
A62: 2 | B62: The applicant must provide an explanation of material variances in evidence
A64: General: | B64: Applicants must provide a breakdown of depreciation and amortization expense in the above format for all relevant accounts. Asset Retirement Obligations (AROs), depreciation and accretion expense should be disclosed separately consistent with the Notes of historical Audited Financial Statements.

Sheet App.2-CG_MIFRS_DepExp_2012
N1: File Number: | O1: ='LDC Info'!$E$18 -> EB-2012-0175
N2: Exhibit:
N3: Tab:
N4: Schedule:
N5: Page:
N7: Date:
A9: Appendix 2-CG
A10: Depreciation and Amortization Expense
A11: Assumes the applicant adopted IFRS for financial reporting purposes January 1, 2013
C12: Year | D12: 2012 | E12: MIFRS
A14: Account | B14: Description | C14: Opening NBV as at Jan 1, 2012 5 | D14: Additions | E14: Average Remaining Life of Opening NBV 4 | F14: Years (new additions only) 3 | G14: Depreciation Rate on New Additions | H14: Depreciation Expense on Opening NBV | I14: Depreciation Expense on Additions 1 | J14: 2012 Depreciation Expense | K14: 2012 Depreciation Expense per Appendix 2-B Fixed Assets, Column K (l) | L14: Variance 2 | M14: Depreciation Expense on 2012 Full Year Additions | N14: Less Depreciation Expense on Assets Fully Depreciated during the year (o) | O14: 2012 Full Year Depreciation 6
C15: (a) | D15: (d) | E15: (i) | F15: (f) | G15: (g) = 1 / (f) | H15: (j) = (a) / (i) | I15: (h)=((d)*0.5)/(f) | J15: (k) = (j) + (h) | L15: (m) = (k) - (l) | M15: (n)=((d))/(f) | O15: (p) = (j) + (n) - (o)
A16: 1611 | B16: Computer Software (Formally known as Account 1925) | C16: 52062 | E16: 6.3958 | G16: =IF(F16=0,0,1/F16) -> 0 | H16: =IF(E16=0,0,+C16/E16) -> 8140.029394 | I16: =IF(F16=0,0,+(D16*0.5)/F16) -> 0 | J16: =IF(ISERROR(+H16+I16), 0, +H16+I16) -> 8140.029394 | K16: 8140 | L16: =IF(ISERROR(+J16-K16), 0, +J16-K16) -> 0.02939429 | M16: =IF(F16=0,0,+(D16)/F16) -> 0 | N16: 61 | O16: =IF(ISERROR(+M16+H16-N16), 0, +M16+H16-N16) -> 8079.029394
A17: 1612 | B17: Land Rights (Formally known as Account 1906) | G17: 0 | H17: 0 | I17: 0 | J17: 0 | L17: 0 | M17: 0 | O17: =IF(ISERROR(+M17+H17-N17), 0, +M17+H17-N17) -> 0
A18: 1805 | B18: Land | C18: 21747 | D18: 90000 | G18: 0 | H18: 0 | I18: 0 | J18: 0 | L18: 0 | M18: 0 | O18: 0
A19: 1808 | B19: Buildings | C19: 49545 | D19: 910000 | E19: 9.83 | F19: 25 | G19: 0.04 | H19: 5040.183113 | I19: 18200 | J19: 23240.18311 | K19: 23240 | L19: 0.1831129196 | M19: 36400 | O19: 41440.18311
A20: 1810 | B20: Leasehold Improvements | G20: 0 | H20: 0 | I20: 0 | J20: 0 | L20: 0 | M20: 0 | O20: 0
A21: 1815 | B21: Transformer Station Equipment >50 kV | G21: 0 | H21: 0 | I21: 0 | J21: 0 | L21: 0 | M21: 0 | O21: 0
A22: 1820 | B22: Distribution Station Equipment <50 kV | C22: 85318 | D22: 20000 | E22: 14.01 | F22: 25 | G22: 0.04 | H22: 6089.793005 | I22: 400 | J22: 6489.793005 | K22: 6490 | L22: -0.2069950036 | M22: 800 | O22: 6889.793005
A23: 1825 | B23: Storage Battery Equipment | G23: 0 | H23: 0 | I23: 0 | J23: 0 | L23: 0 | M23: 0 | O23: 0
A24: 1830 | B24: Poles, Towers & Fixtures | C24: 1488570 | D24: 1993580 | E24: 36 | F24: 45 | G24: 0.02222222222 | H24: 41349.16667 | I24: 22150.88889 | J24: 63500.05556 | K24: 63500 | L24: 0.05555555555 | M24: 44301.77778 | O24: 85650.94444
A25: 1830 | B25: Poles, Towers & Fixtures - Tornado | C25: 770866 | E25: 45 | F25: 45 | G25: 0.02222222222 | H25: 17130.35556 | I25: 0 | J25: 17130.35556 | K25: 17130 | L25: 0.3555555556 | O25: 17130.35556
A26: 1835 | B26: Overhead Conductors & Devices | C26: 296844 | D26: 393352 | E26: 42.88 | F26: 54.87 | G26: 0.01822489521 | H26: 6922.66791 | I26: 3584.39949 | J26: 10507.0674 | K26: 10507 | L26: 0.0674001507 | M26: 7168.798979 | O26: 14091.46689
A27: 1835 | B27: Overhead Conductors & Devices - Tornado | C27: 82079 | E27: 54.87 | F27: 54.87 | G27: 0.01822489521 | H27: 1495.881174 | I27: 0 | J27: 1495.881174 | K27: 1496 | L27: -0.1188263167 | O27: 1495.881174
A28: 1840 | B28: Underground Conduit | C28: 55472 | D28: 5000 | E28: 47.01 | F28: 50 | G28: 0.02 | H28: 1180.004254 | I28: 50 | J28: 1230.004254 | K28: 1230 | L28: 0.004254413955 | M28: 100 | O28: 1280.004254
A29: 1845 | B29: Underground Conductors & Devices | C29: 858074 | D29: 800000 | E29: 26.2394 | F29: 40 | G29: 0.025 | H29: 32701.73861 | I29: 10000 | J29: 42701.73861 | K29: 42703 | L29: -1.261393172 | M29: 20000 | O29: 52701.73861
A30: 1850 | B30: Line Transformers | C30: 671965 | D30: 485000 | E30: 35 | F30: 40 | G30: 0.025 | H30: 19199 | I30: 6062.5 | J30: 25261.5 | K30: 25261 | L30: 0.5 | M30: 12125 | O30: 31324
A31: 1850 | B31: Line Transformers - Tornado | C31: 276369 | E31: 40 | F31: 40 | G31: 0.025 | H31: 6909.225 | I31: 0 | J31: 6909.225 | K31: 6909 | L31: 0.225 | O31: 6909.225
A32: 1855 | B32: Services (Overhead & Underground) | C32: 178617 | D32: 128068 | E32: 35.796 | F32: 60 | G32: 0.01666666667 | H32: 4989.859202 | I32: 1067.233333 | J32: 6057.092535 | K32: 6057 | L32: 0.09253547883 | M32: 2134.466667 | O32: 7124.325869
A33: 1855 | B33: Services (Overhead & Underground) - Tornado | C33: 123416 | E33: 60 | F33: 60 | G33: 0.01666666667 | H33: 2056.933333 | I33: 0 | J33: 2056.933333 | K33: 2057 | L33: -0.06666666667 | O33: 2056.933333
A34: 1860 | B34: Meters | C34: 44974 | D34: 100000 | E34: 15.698 | F34: 25 | G34: 0.04 | H34: 2864.950949 | I34: 2000 | J34: 4864.950949 | K34: 4865 | L34: -0.0490508345 | M34: 4000 | O34: 6864.950949
A35: 1860 | B35: Meters (Smart Meters) | C35: 102094 | E35: 13.9989 | F35: 15 | G35: 0.06666666667 | H35: 7293.001593 | I35: 0 | J35: 7293.001593 | K35: 7293 | L35: 0.001592982306 | M35: 0 | O35: 7293.001593
A36: 1905 | B36: Land | G36: 0 | H36: 0 | I36: 0 | J36: 0 | L36: 0 | M36: 0 | O36: 0
A37: 1908 | B37: Buildings & Fixtures | G37: 0 | H37: 0 | I37: 0 | J37: 0 | L37: 0 | M37: 0 | O37: 0
A38: 1910 | B38: Leasehold Improvements | G38: 0 | H38: 0 | I38: 0 | J38: 0 | L38: 0 | M38: 0 | O38: 0
A39: 1915 | B39: Office Furniture & Equipment (10 years) | C39: 33737 | E39: 9.001 | G39: 0 | H39: 3748.139096 | I39: 0 | J39: 3748.139096 | K39: 3748 | L39: 0.139095656 | M39: 0 | O39: 3748.139096
A40: 1915 | B40: Office Furniture & Equipment (5 years) | G40: 0 | H40: 0 | I40: 0 | J40: 0 | L40: 0 | M40: 0 | O40: 0
A41: 1920 | B41: Computer Equipment - Hardware | C41: 4944 | E41: 5 | G41: 0 | H41: 988.8 | I41: 0 | J41: 988.8 | K41: 988 | L41: 0.8 | M41: 0 | N41: 984 | O41: 4.8
A42: 1920 | B42: Computer Equip.-Hardware(Post Mar. 22/04) | C42: 4188 | E42: 1.7715 | G42: 0 | H42: 2364.098222 | I42: 0 | J42: 2364.098222 | K42: 2364 | L42: 0.09822184589 | M42: 0 | O42: 2364.098222
A43: 1920 | B43: Computer Equip.-Hardware(Post Mar. 19/07) | C43: 20162 | D43: 15000 | E43: 6.403 | F43: 10 | G43: 0.1 | H43: 3148.836483 | I43: 750 | J43: 3898.836483 | K43: 3899 | L43: -0.1635171014 | M43: 1500 | O43: 4648.836483
A44: 1930 | B44: Transportation Equipment | C44: 290879 | D44: 65000 | E44: 6.659 | F44: 8 | G44: 0.125 | H44: 43682.0844 | I44: 4062.5 | J44: 47744.5844 | K44: 47744 | L44: 0.5843970566 | M44: 8125 | N44: 931 | O44: 50876.0844
A45: 1935 | B45: Stores Equipment | G45: 0 | H45: 0 | I45: 0 | J45: 0 | L45: 0 | M45: 0 | O45: 0
A46: 1940 | B46: Tools, Shop & Garage Equipment | C46: 9002 | D46: 10000 | E46: 2.7057 | F46: 4 | G46: 0.25 | H46: 3327.050301 | I46: 1250 | J46: 4577.050301 | K46: 4577 | L46: 0.05030121595 | M46: 2500 | N46: 545 | O46: 5282.050301
A47: 1945 | B47: Measurement & Testing Equipment | G47: 0 | H47: 0 | I47: 0 | J47: 0 | L47: 0 | M47: 0 | O47: 0
A48: 1950 | B48: Power Operated Equipment | G48: 0 | H48: 0 | I48: 0 | J48: 0 | L48: 0 | M48: 0 | O48: 0
A49: 1955 | B49: Communications Equipment | G49: 0 | H49: 0 | I49: 0 | J49: 0 | L49: 0 | M49: 0 | O49: 0
A50: 1955 | B50: Communication Equipment (Smart Meters) | G50: 0 | H50: 0 | I50: 0 | J50: 0 | L50: 0 | M50: 0 | O50: 0
A51: 1960 | B51: Miscellaneous Equipment | G51: 0 | H51: 0 | I51: 0 | J51: 0 | L51: 0 | M51: 0 | O51: 0
A52: 1975 | B52: Load Management Controls Utility Premises | G52: 0 | H52: 0 | I52: 0 | J52: 0 | L52: 0 | M52: 0 | O52: 0
A53: 1980 | B53: System Supervisor Equipment | G53: 0 | H53: 0 | I53: 0 | J53: 0 | L53: 0 | M53: 0 | O53: 0
A54: 1985 | B54: Miscellaneous Fixed Assets | G54: 0 | H54: 0 | I54: 0 | J54: 0 | L54: 0 | M54: 0 | O54: 0
A55: 1995 | B55: Contributions & Grants | C55: -339233 | D55: -2000000 | E55: 28.85129 | F55: 46.3678 | G55: 0.02156669068 | H55: -11757.98379 | I55: -21566.69068 | J55: -33324.67446 | K55: -33325 | L55: 0.3255372906 | M55: -43133.38136 | O55: -54891.36514
G56: 0 | H56: 0 | I56: 0 | J56: 0 | L56: 0 | M56: 0 | O56: 0
G57: 0 | H57: 0 | I57: 0 | J57: 0 | L57: 0 | M57: 0 | O57: 0
B58: Total | C58: =SUM(C16:C57) -> 5181691 | D58: =SUM(D16:D57) -> 3015000 | H58: =SUM(H16:H57) -> 208863.8145 | I58: 48010.83103 | J58: 256874.6455 | K58: 256873 | L58: 1.645505317 | M58: 96021.66207 | N58: =SUM(N16:N57) -> 2521 | O58: 302364.4765
A60: Notes:
A62: 1 | B62: Board policy of the "half-year" rule - the applicant must ensure that additions in the year attract a half-year depreciation expense in the first year. Deviations from this standard practice must be supported in the application.
A63: 2 | B63: The applicant must provide an explanation of material variances in evidence
A64: 3 | B64: The applicant should ensure that the years for new additions of assets are the asset useful lives determined by management in accordance with IFRS.
A65: 4 | B65: A recalculation should be performed to determine the average remaining life of opening balance of assets (i.e. excluding 2012 additions) under IFRS. For example, Asset A had a useful life of 20 years under CGAAP. On January 1, 2012, the date of transition, Asset A was 3 years depreciated. As a result, Asset A would have a remaining service life of 17 years (20 years less 3 years) under CGAAP as of January 1, 2012. Due to the transition to IFRS, management re-assessed the asset useful lives under IFRS principles and concluded that the revised useful life of Asset A is now 30 years. Therefore, the average remaining useful life of opening balance of Asset A is determined to be 27 years (30 years less 3 years) under IFRS as of January 1, 2012.
A66: 5 | B66: NBV must exclude assets still on the books but which have been fully amortized or depreciated.
A67: 6 | B67: This column refers to the calculated full year depreciation but excludes the depreciation expense on assets fully depreciated during the year. This column is used for the purpose of calculating depreciation expense in the following year on the next worksheet.
A69: General: | B69: Applicants must provide a breakdown of depreciation and amortization expense in the above format for all relevant accounts. Asset Retirement Obligations (AROs), depreciation and accretion expense should be disclosed separately consistent with the Notes of historical Audited Financial Statements.

Sheet App.2-CG_MIFRS_DepExp_2013
I1: File Number: | J1: ='LDC Info'!$E$18 -> EB-2012-0175
I2: Exhibit:
I3: Tab:
I4: Schedule:
I5: Page:
I7: Date:
A9: Appendix 2-CH
A10: Depreciation and Amortization Expense
A11: Assumes the applicant adopted IFRS for financial reporting purposes January 1, 2013
C12: Year | D12: 2013 | E12: MIFRS
A14: Account | B14: Description | C14: Additions | D14: Years (new additions only) | E14: Depreciation Rate on New Additions | F14: 2013 Depreciation Expense 1 | G14: 2013 Depreciation Expense per Appendix 2-B Fixed Assets, Column K (l) | H14: Variance 2
C15: (d) | D15: (f) | E15: (g) = 1 / (f) | F15: (h)=2012 Full Year Depreciation + ((d)*0.5)/(f) | H15: (m) = (h) - (l)
A16: 1611 | B16: Computer Software (Formally known as Account 1925) | E16: =IF(D16=0,0,1/D16) -> 0 | F16: =IF(D16=0,'App.2-CG_MIFRS_DepExp_2012'!O16,+'App.2-CG_MIFRS_DepExp_2012'!O16+((C16*0.5)/D16)) -> 8079.029394 | G16: 8079 | H16: =IF(ISERROR(+F16-G16), 0, +F16-G16) -> 0.02939429
A17: 1612 | B17: Land Rights (Formally known as Account 1906) | E17: 0 | F17: =IF(D17=0,'App.2-CG_MIFRS_DepExp_2012'!O17,+'App.2-CG_MIFRS_DepExp_2012'!O17+((C17*0.5)/D17)) -> 0 | H17: 0
A18: 1805 | B18: Land | E18: 0 | F18: =IF(D18=0,'App.2-CG_MIFRS_DepExp_2012'!O18,+'App.2-CG_MIFRS_DepExp_2012'!O18+((C18*0.5)/D18)) -> 0 | H18: 0
A19: 1808 | B19: Buildings | C19: 200000 | D19: 25 | E19: 0.04 | F19: =IF(D19=0,'App.2-CG_MIFRS_DepExp_2012'!O19,+'App.2-CG_MIFRS_DepExp_2012'!O19+((C19*0.5)/D19)) -> 45440.18311 | G19: 45440 | H19: 0.1831129196
A20: 1810 | B20: Leasehold Improvements | E20: 0 | F20: =IF(D20=0,'App.2-CG_MIFRS_DepExp_2012'!O20,+'App.2-CG_MIFRS_DepExp_2012'!O20+((C20*0.5)/D20)) -> 0 | H20: 0
A21: 1815 | B21: Transformer Station Equipment >50 kV | E21: 0 | F21: =IF(D21=0,'App.2-CG_MIFRS_DepExp_2012'!O21,+'App.2-CG_MIFRS_DepExp_2012'!O21+((C21*0.5)/D21)) -> 0 | H21: 0
A22: 1820 | B22: Distribution Station Equipment <50 kV | C22: 20000 | D22: 25 | E22: 0.04 | F22: =IF(D22=0,'App.2-CG_MIFRS_DepExp_2012'!O22,+'App.2-CG_MIFRS_DepExp_2012'!O22+((C22*0.5)/D22)) -> 7289.793005 | G22: 7290 | H22: -0.2069950036
A23: 1825 | B23: Storage Battery Equipment | E23: 0 | F23: =IF(D23=0,'App.2-CG_MIFRS_DepExp_2012'!O23,+'App.2-CG_MIFRS_DepExp_2012'!O23+((C23*0.5)/D23)) -> 0 | H23: 0
A24: 1830 | B24: Poles, Towers & Fixtures | C24: 865224 | D24: 45 | E24: 0.02222222222 | F24: =IF(D24=0,'App.2-CG_MIFRS_DepExp_2012'!O24,+'App.2-CG_MIFRS_DepExp_2012'!O24+((C24*0.5)/D24)) -> 95264.54444 | G24: 95265 | H24: -0.4555555556
A25: 1830 | B25: Poles, Towers & Fixtures - Tornado | D25: 45 | E25: 0.02222222222 | F25: =IF(D25=0,'App.2-CG_MIFRS_DepExp_2012'!O25,+'App.2-CG_MIFRS_DepExp_2012'!O25+((C25*0.5)/D25)) -> 17130.35556 | G25: 17130 | H25: 0.3555555556
A26: 1835 | B26: Overhead Conductors & Devices | C26: 158808 | D26: 54.894 | E26: 0.01821692717 | F26: =IF(D26=0,'App.2-CG_MIFRS_DepExp_2012'!O26,+'App.2-CG_MIFRS_DepExp_2012'!O26+((C26*0.5)/D26)) -> 15537.96377 | G26: 15537 | H26: 0.9637747591
A27: 1835 | B27: Overhead Conductors & Devices - Tornado | D27: 54.89 | E27: 0.01821825469 | F27: =IF(D27=0,'App.2-CG_MIFRS_DepExp_2012'!O27,+'App.2-CG_MIFRS_DepExp_2012'!O27+((C27*0.5)/D27)) -> 1495.881174 | G27: 1496 | H27: -0.1188263167
A28: 1840 | B28: Underground Conduit | C28: 5000 | D28: 50 | E28: 0.02 | F28: =IF(D28=0,'App.2-CG_MIFRS_DepExp_2012'!O28,+'App.2-CG_MIFRS_DepExp_2012'!O28+((C28*0.5)/D28)) -> 1330.004254 | G28: 1330 | H28: 0.004254413955
A29: 1845 | B29: Underground Conductors & Devices | C29: 20000 | D29: 40 | E29: 0.025 | F29: =IF(D29=0,'App.2-CG_MIFRS_DepExp_2012'!O29,+'App.2-CG_MIFRS_DepExp_2012'!O29+((C29*0.5)/D29)) -> 52951.73861 | G29: 52953 | H29: -1.261393172
A30: 1850 | B30: Line Transformers | C30: =204000+275000 -> 479000 | D30: 40 | E30: 0.025 | F30: =IF(D30=0,'App.2-CG_MIFRS_DepExp_2012'!O30,+'App.2-CG_MIFRS_DepExp_2012'!O30+((C30*0.5)/D30)) -> 37311.5 | G30: 37311 | H30: 0.5
A31: 1850 | B31: Line Transformers - Tornado | D31: 40 | E31: 0.025 | F31: =IF(D31=0,'App.2-CG_MIFRS_DepExp_2012'!O31,+'App.2-CG_MIFRS_DepExp_2012'!O31+((C31*0.5)/D31)) -> 6909.225 | G31: 6909 | H31: 0.225
A32: 1855 | B32: Services (Overhead & Underground) | C32: 65968 | D32: 60 | E32: 0.01666666667 | F32: =IF(D32=0,'App.2-CG_MIFRS_DepExp_2012'!O32,+'App.2-CG_MIFRS_DepExp_2012'!O32+((C32*0.5)/D32)) -> 7674.059202 | G32: 7674 | H32: 0.05920214549
A33: 1855 | B33: Services (Overhead & Underground) - Tornado | D33: 60 | E33: 0.01666666667 | F33: =IF(D33=0,'App.2-CG_MIFRS_DepExp_2012'!O33,+'App.2-CG_MIFRS_DepExp_2012'!O33+((C33*0.5)/D33)) -> 2056.933333 | G33: 2057 | H33: -0.06666666667
A34: 1860 | B34: Meters | E34: 0 | F34: =IF(D34=0,'App.2-CG_MIFRS_DepExp_2012'!O34,+'App.2-CG_MIFRS_DepExp_2012'!O34+((C34*0.5)/D34)) -> 6864.950949 | G34: 6865 | H34: -0.0490508345
A35: 1860 | B35: Meters (Smart Meters) | E35: 0 | F35: =IF(D35=0,'App.2-CG_MIFRS_DepExp_2012'!O35,+'App.2-CG_MIFRS_DepExp_2012'!O35+((C35*0.5)/D35)) -> 7293.001593 | G35: 7293 | H35: 0.001592982306
A36: 1905 | B36: Land | E36: 0 | F36: =IF(D36=0,'App.2-CG_MIFRS_DepExp_2012'!O36,+'App.2-CG_MIFRS_DepExp_2012'!O36+((C36*0.5)/D36)) -> 0 | H36: 0
A37: 1908 | B37: Buildings & Fixtures | E37: 0 | F37: =IF(D37=0,'App.2-CG_MIFRS_DepExp_2012'!O37,+'App.2-CG_MIFRS_DepExp_2012'!O37+((C37*0.5)/D37)) -> 0 | H37: 0
A38: 1910 | B38: Leasehold Improvements | E38: 0 | F38: =IF(D38=0,'App.2-CG_MIFRS_DepExp_2012'!O38,+'App.2-CG_MIFRS_DepExp_2012'!O38+((C38*0.5)/D38)) -> 0 | H38: 0
A39: 1915 | B39: Office Furniture & Equipment (10 years) | E39: 0 | F39: =IF(D39=0,'App.2-CG_MIFRS_DepExp_2012'!O39,+'App.2-CG_MIFRS_DepExp_2012'!O39+((C39*0.5)/D39)) -> 3748.139096 | G39: 3748 | H39: 0.139095656
A40: 1915 | B40: Office Furniture & Equipment (5 years) | E40: 0 | F40: =IF(D40=0,'App.2-CG_MIFRS_DepExp_2012'!O40,+'App.2-CG_MIFRS_DepExp_2012'!O40+((C40*0.5)/D40)) -> 0 | H40: 0
A41: 1920 | B41: Computer Equipment - Hardware | E41: 0 | F41: =IF(D41=0,'App.2-CG_MIFRS_DepExp_2012'!O41,+'App.2-CG_MIFRS_DepExp_2012'!O41+((C41*0.5)/D41)) -> 4.8 | G41: 4 | H41: 0.8
A42: 1920 | B42: Computer Equip.-Hardware(Post Mar. 22/04) | E42: 0 | F42: =IF(D42=0,'App.2-CG_MIFRS_DepExp_2012'!O42,+'App.2-CG_MIFRS_DepExp_2012'!O42+((C42*0.5)/D42)) -> 2364.098222 | G42: 2363 | H42: 1.098221846
A43: 1920 | B43: Computer Equip.-Hardware(Post Mar. 19/07) | E43: 0 | F43: =IF(D43=0,'App.2-CG_MIFRS_DepExp_2012'!O43,+'App.2-CG_MIFRS_DepExp_2012'!O43+((C43*0.5)/D43)) -> 4648.836483 | G43: 4649 | H43: -0.1635171014
A44: 1930 | B44: Transportation Equipment | C44: 300000 | D44: 8 | E44: 0.125 | F44: =IF(D44=0,'App.2-CG_MIFRS_DepExp_2012'!O44,+'App.2-CG_MIFRS_DepExp_2012'!O44+((C44*0.5)/D44)) -> 69626.0844 | G44: 69626 | H44: 0.08439705661
A45: 1935 | B45: Stores Equipment | E45: 0 | F45: =IF(D45=0,'App.2-CG_MIFRS_DepExp_2012'!O45,+'App.2-CG_MIFRS_DepExp_2012'!O45+((C45*0.5)/D45)) -> 0 | H45: 0
A46: 1940 | B46: Tools, Shop & Garage Equipment | C46: 8500 | D46: 4 | E46: 0.25 | F46: =IF(D46=0,'App.2-CG_MIFRS_DepExp_2012'!O46,+'App.2-CG_MIFRS_DepExp_2012'!O46+((C46*0.5)/D46)) -> 6344.550301 | G46: 6345 | H46: -0.449698784
A47: 1945 | B47: Measurement & Testing Equipment | E47: 0 | F47: =IF(D47=0,'App.2-CG_MIFRS_DepExp_2012'!O47,+'App.2-CG_MIFRS_DepExp_2012'!O47+((C47*0.5)/D47)) -> 0 | H47: 0
A48: 1950 | B48: Power Operated Equipment | E48: 0 | F48: =IF(D48=0,'App.2-CG_MIFRS_DepExp_2012'!O48,+'App.2-CG_MIFRS_DepExp_2012'!O48+((C48*0.5)/D48)) -> 0 | H48: 0
A49: 1955 | B49: Communications Equipment | E49: 0 | F49: =IF(D49=0,'App.2-CG_MIFRS_DepExp_2012'!O49,+'App.2-CG_MIFRS_DepExp_2012'!O49+((C49*0.5)/D49)) -> 0 | H49: 0
A50: 1955 | B50: Communication Equipment (Smart Meters) | E50: 0 | F50: =IF(D50=0,'App.2-CG_MIFRS_DepExp_2012'!O50,+'App.2-CG_MIFRS_DepExp_2012'!O50+((C50*0.5)/D50)) -> 0 | H50: 0
A51: 1960 | B51: Miscellaneous Equipment | E51: 0 | F51: =IF(D51=0,'App.2-CG_MIFRS_DepExp_2012'!O51,+'App.2-CG_MIFRS_DepExp_2012'!O51+((C51*0.5)/D51)) -> 0 | H51: 0
A52: 1975 | B52: Load Management Controls Utility Premises | E52: 0 | F52: =IF(D52=0,'App.2-CG_MIFRS_DepExp_2012'!O52,+'App.2-CG_MIFRS_DepExp_2012'!O52+((C52*0.5)/D52)) -> 0 | H52: 0
A53: 1980 | B53: System Supervisor Equipment | E53: 0 | F53: =IF(D53=0,'App.2-CG_MIFRS_DepExp_2012'!O53,+'App.2-CG_MIFRS_DepExp_2012'!O53+((C53*0.5)/D53)) -> 0 | H53: 0
A54: 1985 | B54: Miscellaneous Fixed Assets | E54: 0 | F54: =IF(D54=0,'App.2-CG_MIFRS_DepExp_2012'!O54,+'App.2-CG_MIFRS_DepExp_2012'!O54+((C54*0.5)/D54)) -> 0 | H54: 0
A55: 1995 | B55: Contributions & Grants | C55: -275000 | D55: 40 | E55: 0.025 | F55: =IF(D55=0,'App.2-CG_MIFRS_DepExp_2012'!O55,+'App.2-CG_MIFRS_DepExp_2012'!O55+((C55*0.5)/D55)) -> -58328.86514 | G55: -58329 | H55: 0.1348597083
E56: 0 | F56: =IF(D56=0,'App.2-CG_MIFRS_DepExp_2012'!O56,+'App.2-CG_MIFRS_DepExp_2012'!O56+((C56*0.5)/D56)) -> 0 | H56: 0
E57: 0 | F57: =IF(D57=0,'App.2-CG_MIFRS_DepExp_2012'!O57,+'App.2-CG_MIFRS_DepExp_2012'!O57+((C57*0.5)/D57)) -> 0 | H57: 0
B58: Total | C58: =SUM(C16:C57) -> 1847500 | F58: =SUM(F16:F57) -> 341036.8068 | G58: =SUM(G16:G57) -> 341035 | H58: =SUM(H16:H57) -> 1.806757898
B59: Deduct Fully allocated depreciation - transportation equipment | G59: -69626
B60: Add Transfer of Smart Meters costs from 1555 | G60: 37631
B61: Depreciation expense adjustment resulting from amortization of Account 1575 | G61: -51933
B62: Total Depreciation expense to be included in the test year revenue requirement | G62: =+G61+G58+G60+G59 -> 257107
A64: Notes:
A65: 1 | B65: Board policy of the "half-year" rule - the applicant must ensure that additions in the year attract a half-year depreciation expense in the first year. Deviations from this standard practice must be supported in the application.
A66: 2 | B66: The applicant must provide an explanation of material variances in evidence
A69: General: | B69: Applicants must provide a breakdown of depreciation and amortization expense in the above format for all relevant accounts. Asset Retirement Obligations (AROs), depreciation and accretion expense should be disclosed separately consistent with the Notes of historical Audited Financial Statements.

Sheet App.2-D_Overhead
L1: File Number: | M1: ='LDC Info'!$E$18 -> EB-2012-0175
L2: Exhibit:
L3: Tab:
L4: Schedule:
L5: Page:
L7: Date:
A9: Appendix 2-D
A10: Overhead Expense
A12: The following table should be completed based on the information requested below. An explanation should be provided for any blank entries. The entries should include overhead costs that are currently capitalized on self-constructed assets under MIFRS or an alternate accounting standard.
E13: (A) 1 | F13: (B) | G13: (C) | H13: (D) | I13: (E) 1 | J13: (F) | K13: (G)
A14: Nature of the Overhead Costs | E14: Dollar | F14: Dollar | G14: Dollar | H14: Dollar Impact - | I14: Dollar Impact - | J14: Directly | K14: Reasons why the overhead costs are allowed to be
E15: Impact on PP&E | F15: Impact on PP&E | G15: Impact on PP&E | H15: PP&E Variance | I15: PP&E Variance | J15: Attributable? | K15: capitalized under MIFRS or an alternate accounting
E16: Historic Year | F16: Bridge Year | G16: Test Year | H16: Test versus Bridge | I16: Test versus Historic | J16: (Y/N) | K16: standard given limitations on capitalized overhead
A17: employee benefits | H17: =+G17-F17 -> 0 | I17: =+G17-E17 -> 0
A18: costs of site preparation | H18: 0 | I18: 0
A19: initial delivery and handling costs | H19: 0 | I19: 0
A20: costs of testing whether the asset is functioning properly | H20: 0 | I20: 0
A21: professional fees | H21: 0 | I21: 0
H22: 0 | I22: 0
A23: costs of opening a new facility | H23: 0 | I23: 0
A24: costs of introducing a new product or service (including costs of advertising and promotional activities) | H24: 0 | I24: 0
A25: costs of conducting business in a new location or with a new class of customer (including costs of staff training) | H25: 0 | I25: 0
A26: administration and other general overhead costs | H26: 0 | I26: 0
H27: 0 | I27: 0
H28: 0 | I28: 0
H29: 0 | I29: 0
A30: Insert description of additional item(s) and new rows if needed. | H30: 0 | I30: 0
A31: Total | E31: =SUM(E17:E30) -> 0 | F31: =SUM(F17:F30) -> 0 | G31: =SUM(G17:G30) -> 0 | H31: =SUM(H17:H30) -> 0 | I31: =SUM(I17:I30) -> 0
A34: The following table should be completed based on the information requested below. An explanation should be provided for any blank entries. The entries should include overhead costs that were capitalized on self-constructed assets under CGAAP but are no longer capitalized under MIFRS or an alternate accounting standard and are included in OM&A.
E35: (A) 1 | F35: (B) | G35: (C) | H35: (D) | I35: (E) 1 | J35: (F) | K35: (G)
A36: Nature of the Overhead Costs | E36: Dollar | F36: Dollar | G36: Dollar | H36: Dollar Impact - | I36: Dollar Impact - | J36: Directly | K36: Reasons why the overhead costs are not allowed to be
E37: Impact on OM&A | F37: Impact on OM&A | G37: Impact on OM&A | H37: OM&A Variance | I37: OM&A Variance | J37: Attributable? | K37: capitalized under MIFRS or an alternate accounting
E38: Historic Year | F38: Bridge Year | G38: Test Year | H38: Test versus Bridge | I38: Test versus Historic | J38: (Y/N) | K38: standard given limitations on capitalized overhead
A39: employee benefits | H39: =+G39-F39 -> 0 | I39: =+G39-E39 -> 0
A40: costs of site preparation | H40: =+G40-F40 -> 0 | I40: =+G40-E40 -> 0
A41: initial delivery and handling costs | H41: =+G41-F41 -> 0 | I41: =+G41-E41 -> 0
A42: costs of testing whether the asset is functioning properly | H42: =+G42-F42 -> 0 | I42: =+G42-E42 -> 0
A43: professional fees | H43: =+G43-F43 -> 0 | I43: =+G43-E43 -> 0
A45: costs of opening a new facility | H45: =+G45-F45 -> 0 | I45: =+G45-E45 -> 0
A46: costs of introducing a new product or service (including costs of advertising and promotional activities) | H46: 0 | I46: 0
A47: costs of conducting business in a new location or with a new class of customer (including costs of staff training) | H47: 0 | I47: 0
A48: administration and other general overhead costs | H48: 0 | I48: 0
H49: 0 | I49: 0
H50: 0 | I50: 0
H51: 0 | I51: 0
A52: Insert description of additional item(s) and new rows if needed. | H52: 0 | I52: 0
A53: Total | E53: =SUM(E39:E52) -> 0 | F53: =SUM(F39:F52) -> 0 | G53: =SUM(G39:G52) -> 0 | H53: =SUM(H39:H52) -> 0 | I53: =SUM(I39:I52) -> 0
A55: Notes:
A56: 1 | B56: If the applicant chooses to adopt IFRS or an alternate accounting standard for financial reporting purposes in 2013, the applicant does not need to complete Columns A, E. If the applicant adopts IFRS or an alternate accounting standard for financial reporting purposes in 2012, the applicant must complete all columns.

Sheet App.2-EB_PP&E Deferral Account
H1: File Number: | I1: ='LDC Info'!$E$18 -> EB-2012-0175
H2: Exhibit:
H3: Tab:
H4: Schedule:
H5: Page:
H7: Date:
A9: Appendix 2-EB
A10: IFRS-CGAAP Transitional PP&E Amounts
A11: 2013 Adopters of IFRS for Financial Reporting Purposes
A13: For applicants that adopt IFRS on January 1, 2013 for financial reporting purposes
A15: Note: this sheet should be filled out if the applicant adopts IFRS for its financial reporting purpose as of January 1, 2013.
B17: 2009 Rebasing Year | C17: 2010 | D17: 2011 | E17: 2012 | F17: 2013 Rebasing Year | G17: 2014 | H17: 2015 | I17: 2016
A18: Reporting Basis | B18: CGAAP | C18: IRM | D18: IRM | E18: IRM | F18: MIFRS | G18: IRM | H18: IRM | I18: IRM
A19: Forecast vs. Actual Used in Rebasing Year | B19: Forecast | C19: Actual | D19: Actual | E19: Forecast | F19: Forecast
D20: $ | E20: $ | F20: $ | G20: $ | H20: $ | I20: $
A21: PP&E Values under CGAAP
A22: Opening net PP&E - Note 1 | E22: 5185594
A23: Additions | E23: 3015000
A24: Depreciation (amounts should be negative) | E24: -466116
A25: Closing net PP&E (1) | E25: =SUM(E22:E24) -> 7734478
A27: PP&E Values under MIFRS (Starts from 2012, the transition year)
A28: Opening net PP&E - Note 1 | E28: 5185594
A29: Additions | E29: 3015000
A30: Depreciation (amounts should be negative) | E30: -258383
A31: Closing net PP&E (2) | E31: =SUM(E28:E30) -> 7942211
A33: Difference in Closing net PP&E, CGAAP vs. MIFRS (Shown as adjustment to rate base on rebasing) | E33: =E25-E31 -> -207733
A35: Account 1575 - IFRS-CGAAP Transitional PP&E Amounts
A36: Opening balance | E36: =D40 -> 0 | F36: =E40 -> -207733 | G36: =F40 -> -155799.75 | H36: =G40 -> -103866.5 | I36: =H40 -> -51933.25
A37: Amounts added in the year | E37: =E33-D33 -> -207733
A38: Sub-total | E38: =E36+E37 -> -207733 | F38: =F36+F37 -> -207733 | G38: =G36+G37 -> -155799.75 | H38: =H36+H37 -> -103866.5 | I38: =I36+I37 -> -51933.25
A39: Amount of amortization, included in depreciation expense - Note 2 | F39: =IF(ISERROR(-E33/I44), 0, -E33/I44) -> 51933.25 | G39: =+F39 -> 51933.25 | H39: =+F39 -> 51933.25 | I39: =+F39 -> 51933.25
A40: Closing balance in deferral account | E40: =E38+E39 -> -207733 | F40: =IF(ISERROR(F38+F39), 0, F38+F39) -> -155799.75 | G40: =G38+G39 -> -103866.5 | H40: =H38+H39 -> -51933.25 | I40: =I38+I39 -> 0
A42: Effect on Revenue Requirement
A43: Amortization of deferred balance as above - Note 2 | F43: =IF(ISERROR(E33/I44), 0, E33/I44) -> -51933.25 | H43: WACC | I43: 0.0602
A44: Return on Rate Base Associated with deferred PP&E balance at WACC - Note 3 | F44: =E33*I43 -> -12505.5266 | H44: Disposition Period - Note 4 | I44: 4 | J44: Years
A45: Amount included in Revenue Requirement on rebasing | F45: =F43+F44 -> -64438.7766
A47: Notes:
A48: 1 For an applicant that adopts IFRS on January 1, 2013, the PP&E values as of January 1, 2012 under both CGAAP and MIFRS should be the same.
A49: 2 Amortization of the deferred balance in Account 1575 will start from the rebasing year.
A50: Assume the utility requests for a certain disposition period, the amortization that should be included in the depreciation expense is calculated as:
A51: the opening balance of Account 1575 / the approved disposition period
A52: 3 Return on rate base associated with deferred balance is calculated as:
A53: the deferred account opening balance as of 2013 rebasing year x WACC
A54: * Please note that the calculation should be adjusted once WACC is updated and finalized in the rate application.
A55: 4 Consistent with the 4 year normal rate cycle, the model is using a 4 year amortization period as a default selection to "clear" the PP&E deferral account through a one-time adjustment to ratebase to capture and remove the impact of the accounting policy changes as caused by the transition from CGAAP to MIFRS.

Sheet App.2-F_Other_Oper_Rev
H1: File Number: | I1: ='LDC Info'!$E$18 -> EB-2012-0175
H2: Exhibit:
H3: Tab:
H4: Schedule:
H5: Page:
H7: Date:
A9: Appendix 2-F
A10: Other Operating Revenue
A12: USoA # | B12: USoA Description | C12: =G13-3 & " Actual" -> 2009 Actual | D12: =G13-2 & " Actual" -> 2010 Actual | E12: =G13-1 & " Actual"& CHAR(178) -> 2011 Actual² | F12: =G13-1 & " Actual"& CHAR(178) -> 2011 Actual² | G12: ="Bridge Year" & CHAR(179) -> Bridge Year³ | H12: ="Bridge Year" & CHAR(179) -> Bridge Year³ | I12: Test Year
G13: ='LDC Info'!E26 -> 2012 | H13: ='LDC Info'!E26 -> 2012 | I13: ='LDC Info'!E28 -> 2013
B14: Reporting Basis | C14: CGAAP | D14: CGAAP | F14: CGAAP | G14: CGAAP | H14: MIFRS | I14: MIFRS
A15: 4235 | B15: Specific Service Charges | C15: 25140 | D15: 20920 | F15: 19755 | G15: 20000 | H15: 20000 | I15: 20000
A16: 4225 | B16: Late Payment Charges | C16: 10971 | D16: 13762 | F16: 8058 | G16: 10000 | H16: 10000 | I16: 10000
A17: 4082 | B17: Retail Services Revenues | C17: 3000 | D17: 3040 | F17: 3480 | G17: 3480 | H17: 3480 | I17: 3600
A18: 4080 | B18: Distribution service revenue | C18: 1795625 | D18: 2122366 | F18: 2043888 | G18: 2300000 | H18: 2300000 | I18: 2648930
A19: 4084 | B19: Service Transaction Requests | C19: 6626 | D19: 6427 | F19: 5203 | G19: 7000 | H19: 7000 | I19: 7000
A20: 4210 | B20: Rent from Electric Property | C20: 17545 | D20: 1810 | F20: 29659 | G20: 20000 | H20: 20000 | I20: 20000
A21: 4355 | B21: Gain on disposition of Utility and Other Property | C21: 15000 | F21: 6517
A22: 4360 | B22: Loss on disposition of Utility and Other Property | D22: -48471
A23: 4375 | B23: Revenue from Non-Utility Operations | C23: 135993 | D23: 149786 | F23: 88530 | G23: 133932 | H23: 133932 | I23: 104747
A24: 4380 | B24: Expenses of Non-Utility Operations | C24: -75542 | D24: -117705 | F24: -42823 | G24: -89932 | H24: -89932 | I24: -60747
A25: 4385 | B25: Non-Utility Rental Income | C25: 14046 | D25: 8461 | F25: 8311 | G25: 8600 | H25: 8600 | I25: 8600
A26: 4390 | B26: Miscellaneous Non-Operating Income | C26: 10895 | D26: 49909 | F26: 12502
A27: 4405 | B27: Interest an Dividend income | C27: 4777 | D27: 1517 | F27: 19564 | G27: 5500 | H27: 5500 | I27: 1500
A30: Specific Service Charges | C30: =C15 -> 25140 | D30: 20920 | E30: 0 | F30: =F15 -> 19755 | G30: =G15 -> 20000 | H30: =H15 -> 20000 | I30: =I15 -> 20000
A31: Late Payment Charges | C31: 10971 | D31: 13762 | E31: 0 | F31: =F16 -> 8058 | G31: =G16 -> 10000 | H31: =H16 -> 10000 | I31: =I16 -> 10000
A32: Other Operating Revenues | C32: =C17+C18+C19+C20 -> 1822796 | D32: =D17+D18+D19+D20 -> 2133643 | F32: =F17+F18+F19+F20 -> 2082230 | G32: =G17+G18+G19+G20 -> 2330480 | H32: 2330480 | I32: 2679530
A33: Other Income or Deductions | C33: =+C21+C22+C23+C24+C25+C26+C27 -> 105169 | D33: =+D21+D22+D23+D24+D25+D26+D27 -> 43497 | F33: =+F21+F22+F23+F24+F25+F26+F27 -> 92601 | G33: =+G21+G22+G23+G24+G25+G26+G27 -> 58100 | H33: 58100 | I33: 54100
A34: Total | C34: =SUM(C30:C33) -> 1964076 | D34: 2211822 | E34: 0 | F34: 2202644 | G34: 2418580 | H34: 2418580 | I34: 2763630
A36: Description | C36: Account(s)
A37: Specific Service Charges: | C37: 4235
A38: Late Payment Charges: | C38: 4225
A39: Other Distribution Revenues: | C39: 4080, 4082, 4084, 4090, 4205, 4210, 4215, 4220, 4240, 4245
A40: Other Income and Expenses: | C40: 4305, 4310, 4315, 4320, 4325, 4330, 4335, 4340, 4345, 4350, 4355, 4360, 4365, 4370, 4375, 4380, 4385, 4390, 4395, 4398, 4405, 4415
A43: Note: Add all applicable accounts listed above to the table and include all relevant information.
A44: The above table assumes adoption of MIFRS as of January 1, 2013. If the adoption year differs, please adjust the table accordingly.
A47: Account Breakdown Details
A49: For each "Other Operating Revenue" and "Other Income or Deductions" Account, a detailed breakdown of the account components is required. See the example below for Account 4405, Interest and Dividend Income.
A52: Account 4405 - Interest and Dividend Income
C53: =C12 -> 2009 Actual | D53: =D12 -> 2010 Actual | E53: =E12 -> 2011 Actual² | F53: =F12 -> 2011 Actual² | G53: Bridge Year | H53: Bridge Year | I53: Test Year
A54: Reporting Basis | C54: =IF(ISBLANK(C14), "", C14) -> CGAAP | D54: CGAAP | F54: CGAAP | G54: CGAAP | H54: MIFRS | I54: MIFRS
A55: Short-term Investment Interest
A56: Bank Deposit Interest | C56: 11668 | D56: 4649 | F56: 4877 | G56: 5500 | H56: 5500 | I56: 1500
A57: Miscellaneous Interest Revenue
A58: Interest on variances | C58: -6891 | D58: -3132 | F58: 14687
A60: Total | C60: =SUM(C55:C59) -> 4777 | D60: 1517 | E60: 0 | F60: 19564 | G60: 5500 | H60: 5500 | I60: 1500
A63: Notes:
A64: 1 | B64: List and specify any other interest revenue
A65: 2 | B65: If the applicant is adopting IFRS or an alternate accounting standard as of January 1, 2012 for financial reporting purposes, 2011 must be presented on both a CGAAP and MIFRS (or alternate accounting standard) basis.
A66: 3 | B66: If the applicant is adopting IFRS or an alternate accounting standard as of January 1, 2013 for financial reporting purposes, 2012 must be presented on both a CGAAP and MIFRS (or alternate accounting standard) basis.
A68: Account 4235 - Specific Service Charges
C69: 2009 Actual | D69: 2010 Actual | E69: =E28 -> 0 | F69: 2011 Actual | G69: Bridge Year | H69: Bridge Year | I69: Test Year
A70: Reporting Basis | C70: CGAAP | D70: CGAAP | E70: =IF(ISBLANK(E30), "", E30) -> 0 | F70: CGAAP | G70: CGAAP | H70: IFRS | I70: IFRS
A71: Miscellaneous Service Revenue | C71: 25140 | D71: 20920 | F71: 19755 | G71: 20000 | H71: 20000 | I71: 20000
A76: Total | C76: =SUM(C71:C75) -> 25140 | D76: 20920 | E76: 0 | F76: 19755 | G76: 20000 | H76: 20000 | I76: 20000
A79: Account 4225 - Late Payment Charges
C80: 2009 Actual | D80: 2010 Actual | E80: =E39 -> 0 | F80: 2011 Actual | G80: Bridge Year | H80: Bridge Year | I80: Test Year
A81: Reporting Basis | C81: CGAAP | D81: CGAAP | E81: =IF(ISBLANK(E41), "", E41) ->  | F81: CGAAP | G81: CGAAP | H81: IFRS | I81: IFRS
A82: Interest on overdue accounts | C82: 10971 | D82: 13762 | F82: 8058 | G82: 10000 | H82: 10000 | I82: 10000
A87: Total | C87: =SUM(C82:C86) -> 10971 | D87: 13762 | E87: 0 | F87: 8058 | G87: 10000 | H87: 10000 | I87: 10000
A89: Account 4082 - Retail Service Revenue
C90: 2009 Actual | D90: 2010 Actual | E90: =E49 -> 0 | F90: 2011 Actual | G90: Bridge Year | H90: Bridge Year | I90: Test Year
A91: Reporting Basis | C91: CGAAP | D91: CGAAP | E91: =IF(ISBLANK(E51), "", E51) ->  | F91: CGAAP | G91: CGAAP | H91: IFRS | I91: IFRS
A92: Retail Service Revenue | C92: 3000 | D92: 3040 | F92: 3408 | G92: 3480 | H92: 3480 | I92: 3600
A97: Total | C97: =SUM(C92:C96) -> 3000 | D97: 3040 | E97: 0 | F97: 3408 | G97: 3480 | H97: 3480 | I97: 3600
A99: Account 4080 - Distribution Service Revenue
C100: 2009 Actual | D100: 2010 Actual | E100: =E59 -> 0 | F100: 2011 Actual | G100: Bridge Year | H100: Bridge Year | I100: Test Year
A101: Reporting Basis | C101: CGAAP | D101: CGAAP | E101: =IF(ISBLANK(E61), "", E61) ->  | F101: CGAAP | G101: CGAAP | H101: IFRS | I101: IFRS
A102: Monthly Service Charge | C102: 1083605 | D102: 1119342 | F102: 1108941
A103: Base Distribution | C103: 628023 | D103: 906930 | F103: 924150
A104: Forgone Distribution Rate Rider | C104: 37143 | D104: 70299 | F104: 9
A105: SSS Admin Charge | C105: 8524 | D105: 8756 | F105: 10787
A106: PILS | C106: 38330 | D106: 17039 | F106: 1
A107: Total | C107: =SUM(C102:C106) -> 1795625 | D107: 2122366 | E107: 0 | F107: =SUM(F102:F106) -> 2043888 | G107: 2300000 | H107: 2300000 | I107: 0
A109: Account 4084 - Service Transaction Request
C110: 2009 Actual | D110: 2010 Actual | E110: =E69 -> 0 | F110: 2011 Actual | G110: Bridge Year | H110: Bridge Year | I110: Test Year
A111: Reporting Basis | C111: CGAAP | D111: CGAAP | E111: =IF(ISBLANK(E71), "", E71) ->  | F111: CGAAP | G111: CGAAP | H111: IFRS | I111: IFRS
A112: Service Transaction Requests | C112: 6626 | D112: 6407 | F112: 5203 | G112: 7000 | H112: 7000 | I112: 7000
A117: Total | C117: =SUM(C112:C116) -> 6626 | D117: 6407 | E117: 0 | F117: 5203 | G117: 7000 | H117: 7000 | I117: 7000
A119: Account 4210 - Rent from electric property
C120: 2009 Actual | D120: 2010 Actual | E120: =E79 -> 0 | F120: 2011 Actual | G120: Bridge Year | H120: Bridge Year | I120: Test Year
A121: Reporting Basis | C121: CGAAP | D121: CGAAP | E121: =IF(ISBLANK(E81), "", E81) ->  | F121: CGAAP | G121: CGAAP | H121: IFRS | I121: IFRS
A122: Pole rental | C122: 17545 | D122: 1810 | F122: 29659 | G122: 20000 | H122: 20000 | I122: 20000
A127: Total | C127: =SUM(C122:C126) -> 17545 | D127: 1810 | E127: 0 | F127: 29659 | G127: 20000 | H127: 20000 | I127: 20000
A129: Account 4355 - Gain on disposition of utility and other property
C130: 2009 Actual | D130: 2010 Actual | E130: =E89 -> 0 | F130: 2011 Actual | G130: Bridge Year | H130: Bridge Year | I130: Test Year
A131: Reporting Basis | C131: CGAAP | D131: CGAAP | E131: =IF(ISBLANK(E91), "", E91) ->  | F131: CGAAP | G131: CGAAP | H131: IFRS | I131: IFRS
A132: Gain on sale of utility and other property | C132: 15000 | F132: 6517 | G132: 0 | H132: 0 | I132: 0
A137: Total | C137: =SUM(C132:C136) -> 15000 | D137: 0 | E137: 0 | F137: 6517 | G137: 0 | H137: 0 | I137: 0
A139: Account 4360 - Loss on disposition of utility and other property
C140: 2009 Actual | D140: 2010 Actual | E140: =E99 -> 0 | F140: 2011 Actual | G140: Bridge Year | H140: Bridge Year | I140: Test Year
A141: Reporting Basis | C141: CGAAP | D141: CGAAP | E141: =IF(ISBLANK(E101), "", E101) ->  | F141: CGAAP | G141: CGAAP | H141: IFRS | I141: IFRS
A142: Loss on diposition of utility and other property | D142: -48471
A147: Total | C147: =SUM(C142:C146) -> 0 | D147: -48471 | E147: 0 | F147: 0 | G147: 0 | H147: 0 | I147: 0
A149: Account 4375 - Revenues from Non-Utility Operations
C150: 2009 Actual | D150: 2010 Actual | E150: =E109 -> 0 | F150: 2011 Actual | G150: Bridge Year | H150: Bridge Year | I150: Test Year
A151: Reporting Basis | C151: CGAAP | D151: CGAAP | E151: =IF(ISBLANK(E111), "", E111) ->  | F151: CGAAP | G151: CGAAP | H151: IFRS | I151: IFRS
A152: Water and Sewer collection fees | C152: 27264 | D152: 27537 | F152: 40700 | G152: 44000 | H152: 44000 | I152: 44000
A153: OPA Conservation revenues | C153: 108729 | D153: 122249 | F153: 47830 | G153: 89932 | H153: 89932 | I153: 60747
A157: Total | C157: =SUM(C152:C156) -> 135993 | D157: 149786 | E157: 0 | F157: 88530 | G157: 133932 | H157: 133932 | I157: 104747
A159: Account 4380 - Expenses of Non-Utility operations
C160: 2009 Actual | D160: 2010 Actual | E160: =E119 -> 0 | F160: 2011 Actual | G160: Bridge Year | H160: Bridge Year | I160: Test Year
A161: Reporting Basis | C161: CGAAP | D161: CGAAP | E161: =IF(ISBLANK(E121), "", E121) ->  | F161: CGAAP | G161: CGAAP | H161: IFRS | I161: IFRS
A162: OPA Conservation expense | C162: 75542 | D162: 117705 | F162: 42823 | G162: 89932 | H162: 89932 | I162: 60747
A167: Total | C167: =SUM(C162:C166) -> 75542 | D167: 117705 | E167: 0 | F167: 42823 | G167: 89932 | H167: 89932 | I167: 60747
A169: Account 4385 - Non-Utility Rental Income
C170: 2009 Actual | D170: 2010 Actual | E170: =E129 -> 0 | F170: 2011 Actual | G170: Bridge Year | H170: Bridge Year | I170: Test Year
A171: Reporting Basis | C171: CGAAP | D171: CGAAP | E171: =IF(ISBLANK(E131), "", E131) ->  | F171: CGAAP | G171: CGAAP | H171: IFRS | I171: IFRS
A172: Building rent | C172: 5500
A173: Water heater rent | C173: 8548 | D173: 8461 | F173: 8311 | G173: 8600 | H173: 8600 | I173: 8600
A177: Total | C177: =SUM(C172:C176) -> 14048 | D177: 8461 | E177: 0 | F177: 8311 | G177: 8600 | H177: 8600 | I177: 8600
A179: Account 4390 - Miscellaneous Non-operating income
C180: 2009 Actual | D180: 2010 Actual | E180: =E139 -> 0 | F180: 2011 Actual | G180: Bridge Year | H180: Bridge Year | I180: Test Year
A181: Reporting Basis | C181: CGAAP | D181: CGAAP | E181: =IF(ISBLANK(E141), "", E141) ->  | F181: CGAAP | G181: CGAAP | H181: IFRS | I181: IFRS
A182: Profit on 3rd party work orders | C182: 10476 | D182: 37975 | F182: 4013
A183: Arrears certificates | C183: 1081 | D183: 765 | F183: 585
A184: Miscellaneous revenue | C184: -662 | D184: 11169 | F184: 7904
A187: Total | C187: =SUM(C182:C186) -> 10895 | D187: 49909 | E187: 0 | F187: 12502 | G187: 0 | H187: 0 | I187: 0

Sheet App.2-G_Detailed_OM&A_Expenses
H1: File Number: | I1: ='LDC Info'!$E$18 -> EB-2012-0175
H2: Exhibit:
H3: Tab:
H4: Schedule:
H5: Page:
H7: Date:
A9: Appendix 2-G
A10: Detailed, Account by Account, OM&A Expense Table
A11: (excluding Depreciation and Amortization)
A14: Account | B14: Description | C14: ="Last Rebasing Year (" & 'LDC Info'!E30 & " Actuals)" -> Last Rebasing Year (2009 Actuals) | D14: ='LDC Info'!E26-2 & " Actual" -> 2010 Actual | E14: ='LDC Info'!E26-1 & " Actual" & CHAR(178) -> 2011 Actual² | F14: ='LDC Info'!E26-1 & " Actual"& CHAR(178) -> 2011 Actual² | G14: ="Bridge Year " & 'LDC Info'!E26& CHAR(179) -> Bridge Year 2012³ | H14: ="Bridge Year " & 'LDC Info'!E26& CHAR(179) -> Bridge Year 2012³ | I14: ="Test Year " & 'LDC Info'!E28 -> Test Year 2013
A15: Reporting Basis | C15: CGAAP | D15: CGAAP | E15: CGAAP | G15: CGAAP | H15: MIFRS | I15: MIFRS
A16: Operations
A17: 5005 | B17: Operation Supervision and Engineering | C17: 11879 | D17: 9664 | E17: 20569 | G17: 20000 | H17: 20000 | I17: 20600
A18: 5010 | B18: Load Dispatching | C18: 512 | D18: 1442 | E18: 4984 | G18: 4000 | H18: 4000 | I18: 4000
A19: 5012 | B19: Station Buildings and Fixtures Expense
A20: 5014 | B20: Transformer Station Equipment - Operation Labour | C20: 19167 | D20: 32848 | E20: 26083 | G20: 21000 | H20: 21000 | I20: 22000
A21: 5015 | B21: Transformer Station Equipment - Operation Supplies and Expenses | C21: 50
A22: 5016 | B22: Distribution Station Equipment - Operation Labour | E22: 950
A23: 5017 | B23: Distribution Station Equipment - Operation Supplies and Expenses
A24: 5020 | B24: Overhead Distribution Lines and Feeders - Operation Labour | C24: 142175 | D24: 142124 | E24: 165091 | G24: 287500 | H24: 287500 | I24: 259269
A25: 5025 | B25: Overhead Distribution Lines and Feeders - Operation Supplies and Expenses
A26: 5030 | B26: Overhead Sub-transmission Feeders - Operation
A27: 5035 | B27: Overhead Distribution Transformers - Operation
A28: 5040 | B28: Underground Distribution Lines and Feeders - Operation Labour
A29: 5045 | B29: Underground Distribution Lines and Feeders - Operation Supplies and Expenses
A30: 5050 | B30: Underground Sub-transmission Feeders - Operation | C30: 45144 | D30: 31046 | E30: 9754 | G30: 83500 | H30: 83500 | I30: 74090
A31: 5055 | B31: Underground Distribution Transformers - Operation
A32: 5060 | B32: Street Lighting and Signal System Expense
A33: 5065 | B33: Meter Expense
A34: 5070 | B34: Customer Premises - Operation Labour
A35: 5075 | B35: Customer Premises - Operation Materials and Expenses | G35: 2000 | H35: 2000 | I35: 2000
A36: 5085 | B36: Miscellaneous Distribution Expenses
A37: 5090 | B37: Underground Distribution Lines and Feeders - Rental Paid
A38: 5095 | B38: Overhead Distribution Lines and Feeders - Rental Paid
A39: 5096 | B39: Other Rent
A40: Total - Operations | C40: =SUM(C17:C39) -> 218927 | D40: =SUM(D17:D39) -> 217124 | E40: =SUM(E17:E39) -> 227431 | F40: =SUM(F17:F39) -> 0 | G40: 418000 | H40: 418000 | I40: =SUM(I17:I39) -> 381959
A41: Account | B41: Description | C41: =C14 -> Last Rebasing Year (2009 Actuals) | D41: 2010 Actual | E41: 2011 Actual² | F41: 2011 Actual² | G41: Bridge Year 2012³ | H41: Bridge Year 2012³ | I41: Test Year 2013
A42: Maintenance
A43: 5105 | B43: Maintenance Supervision and Engineering | C43: 2321 | D43: 12827 | E43: 6905 | G43: 10000 | H43: 10000 | I43: 10500
A44: 5110 | B44: Maintenance of Buildings and Fixtures - Distribution Stations
A45: 5112 | B45: Maintenance of Transformer Station Equipment
A46: 5114 | B46: Maintenance of Distribution Station Equipment | C46: 3058 | D46: 4601 | E46: 13133 | G46: 8000 | H46: 8000 | I46: 8300
A47: 5120 | B47: Maintenance of Poles, Towers and Fixtures | C47: 17094 | D47: 6638 | E47: 5896 | G47: 20000 | H47: 20000 | I47: 21000
A48: 5125 | B48: Maintenance of Overhead Conductors and Devices
A49: 5130 | B49: Maintenance of Overhead Services | C49: 25684 | D49: 27803 | E49: 20167 | G49: 20000 | H49: 20000 | I49: 21000
A50: 5135 | B50: Overhead Distribution Lines and Feeders - Right of Way
A51: 5145 | B51: Maintenance of Underground Conduit
A52: 5150 | B52: Maintenance of Underground Conductors and Devices | C52: 64492 | D52: 43491 | E52: 50699 | G52: 36000 | H52: 36000 | I52: 37000
A53: 5155 | B53: Maintenance of Underground Services | C53: 12651 | D53: 7345 | E53: 5666 | G53: 8000 | H53: 8000 | I53: 8300
A54: 5160 | B54: Maintenance of Line Transformers | C54: 14104 | D54: 10983 | E54: 5396 | G54: 10000 | H54: 10000 | I54: 10000
A55: 5165 | B55: Maintenance of Street Lighting and Signal Systems
A56: 5170 | B56: Sentinel Lights - Labour
A57: 5172 | B57: Sentinel Lights - Materials and Expenses
A58: 5175 | B58: Maintenance of Meters | C58: 12569 | D58: 6769 | E58: 11096 | G58: 19200 | H58: 19200 | I58: 22400
A59: 5178 | B59: Customer Installations Expenses - Leased Property
A60: 5195 | B60: Maintenance of Other Installations on Customer Premises
A61: Total - Maintenance | C61: =SUM(C43:C60) -> 151973 | D61: =SUM(D43:D60) -> 120457 | E61: =SUM(E43:E60) -> 118958 | F61: =SUM(F43:F60) -> 0 | G61: 131200 | H61: 131200 | I61: =SUM(I43:I60) -> 138500
A62: Account | B62: Description | C62: =C41 -> Last Rebasing Year (2009 Actuals) | D62: =D41 -> 2010 Actual | E62: =E41 -> 2011 Actual² | F62: =F41 -> 2011 Actual² | G62: Bridge Year 2012³ | H62: Bridge Year 2012³ | I62: =I41 -> Test Year 2013
A63: Billing and Collecting
A64: 5305 | B64: Supervision
A65: 5310 | B65: Meter Reading Expense | C65: 87665 | D65: 85080 | E65: 91173 | G65: 97900 | H65: 97900 | I65: 102100
A66: 5315 | B66: Customer Billing | C66: 274605 | D66: 276032 | E66: 325991 | G66: 406900 | H66: 406900 | I66: 382300
A67: 5320 | B67: Collecting
A68: 5325 | B68: Collecting - Cash Over and Short | C68: -10 | D68: -100 | E68: 100
A69: 5330 | B69: Collection Charges
A70: 5335 | B70: Bad Debt Expense | D70: 10000 | G70: 10000 | H70: 10000 | I70: 10000
A71: 5340 | B71: Miscellaneous Customer Accounts Expenses
A72: Total - Billing and Collecting | C72: =SUM(C64:C71) -> 362260 | D72: =SUM(D64:D71) -> 371012 | E72: =SUM(E64:E71) -> 417264 | F72: =SUM(F64:F71) -> 0 | G72: 514800 | H72: 514800 | I72: =SUM(I64:I71) -> 494400
A73: Account | B73: Description | C73: =C62 -> Last Rebasing Year (2009 Actuals) | D73: =D62 -> 2010 Actual | E73: =E62 -> 2011 Actual² | F73: =F62 -> 2011 Actual² | G73: Bridge Year 2012³ | H73: Bridge Year 2012³ | I73: =I62 -> Test Year 2013
A74: Community Relations
A75: 5405 | B75: Supervision
A76: 5410 | B76: Community Relations - Sundry | C76: 11701 | D76: 3654 | E76: 10951 | G76: 10000 | H76: 10000 | I76: 10000
A77: 5415 | B77: Energy Conservation
A78: 5420 | B78: Community Safety Program
A79: 5425 | B79: Miscellaneous Customer Service and Informational Expenses
A80: 5505 | B80: Supervision
A81: 5510 | B81: Demonstrating and Selling Expense
A82: 5515 | B82: Advertising Expenses | C82: 3964 | D82: 3907 | E82: 3345 | G82: 5000 | H82: 5000 | I82: 5000
A83: 5520 | B83: Miscellaneous Sales Expense
A84: Total - Community Relations | C84: =SUM(C75:C83) -> 15665 | D84: =SUM(D75:D83) -> 7561 | E84: =SUM(E75:E83) -> 14296 | F84: =SUM(F75:F83) -> 0 | G84: 15000 | H84: 15000 | I84: =SUM(I75:I83) -> 15000
A85: Account | B85: Description | C85: =C73 -> Last Rebasing Year (2009 Actuals) | D85: =D73 -> 2010 Actual | E85: =E73 -> 2011 Actual² | F85: =F73 -> 2011 Actual² | G85: Bridge Year 2012³ | H85: Bridge Year 2012³ | I85: =I73 -> Test Year 2013
A86: Administrative and General Expenses
A87: 5605 | B87: Executive Salaries and Expenses | C87: 50128 | D87: 50160 | E87: 50715 | G87: 56500 | H87: 56500 | I87: 57000
A88: 5610 | B88: Management Salaries and Expenses | C88: 11526 | D88: 10188 | E88: 10315 | G88: 13750 | H88: 13750 | I88: 14250
A89: 5615 | B89: General Administrative Salaries and Expenses | C89: 83647 | D89: 81501 | E89: 85917 | G89: 84825 | H89: 84825 | I89: 87325
A90: 5620 | B90: Office Supplies and Expenses | C90: 3329 | D90: 2579 | E90: 1040 | G90: 1500 | H90: 1500 | I90: 1500
A91: 5625 | B91: Administrative Expense Transferred - Credit
A92: 5630 | B92: Outside Services Employed | C92: 310801 | D92: 252344 | E92: 260204 | G92: 637970 | H92: 637970 | I92: 431400
A93: 5635 | B93: Property Insurance | C93: 26323 | D93: 23644 | E93: 26070 | G93: 27200 | H93: 27200 | I93: 28500
A94: 5640 | B94: Injuries and Damages
A95: 5645 | B95: OMERS Pensions and Benefits
A96: 5646 | B96: Employee Pensions and OPEB
A97: 5647 | B97: Employee Sick Leave
A98: 5650 | B98: Franchise Requirements
A99: 5655 | B99: Regulatory Expenses | C99: 31703 | D99: 15123 | E99: 17769 | G99: 35900 | H99: 35900 | I99: 25100
A100: 5660 | B100: General Advertising Expenses
A101: 5665 | B101: Miscellaneous General Expenses | C101: 52131 | D101: 48737 | E101: 47228 | G101: 48870 | H101: 48870 | I101: 50895
A102: 5670 | B102: Rent | C102: 32829 | D102: 58616 | E102: 62362 | G102: 66000 | H102: 66000 | I102: 70000
A103: 5672 | B103: Lease Payment Charge
A104: 5675 | B104: Maintenance of General Plant | C104: 83751 | D104: 47534 | E104: 37250 | G104: 50000 | H104: 50000 | I104: 50000
A105: 5680 | B105: Electrical Safety Authority Fees
A106: 5681 | B106: Special Purpose Charge Expense
A107: 5685 | B107: Independent Electricity System Operator Fees and Penalties
A108: 5695 | B108: OM&A Contra Account
A109: 6205 | B109: Donations
A110: 6205 | B110: Donations, Sub-account LEAP Funding
A111: Total - Administrative and General Expenses | C111: =SUM(C87:C110) -> 686168 | D111: =SUM(D87:D110) -> 590426 | E111: 598870 | F111: 0 | G111: 1022515 | H111: 1022515 | I111: 815970
A112: Total OM&A | C112: =C40+C61+C72+C84+C111 -> 1434993 | D112: =D40+D61+D72+D84+D111 -> 1306580 | E112: =E40+E61+E72+E84+E111 -> 1376819 | F112: =F40+F61+F72+F84+F111 -> 0 | G112: 2101515 | H112: 2101515 | I112: =I40+I61+I72+I84+I111 -> 1845829
A113: Adjustments for non-recoverable items
A114: 5681 | B114: Special Purpose Charge Expense
A115: 6205 | B115: Donations1
A119: Total Recoverable OM&A | C119: =C112-SUM(C114:C118) -> 1434993 | D119: =D112-SUM(D114:D118) -> 1306580 | E119: 1376819 | F119: =F112-SUM(F114:F118) -> 0 | G119: 2101515 | H119: 2101515 | I119: 1845829
A121: 1 Account 6205 - Donations is generally non-recoverable. However, the sub-account LEAP funding of account 6205 is generally recoverable.
A123: Note:
A124: 1 | B124: If it has been more than three years since the applicant last filed a cost of service application, additional years of historical actuals should be incorporated into the table, as necessary, to go back to the last cost of service application. If the applicant last filed a cost of service application less than three years ago, a minimum of three years of actual information is required.
A125: 2 | B125: If the applicant is adopting IFRS or an alternate accounting standard as of January 1, 2012 for financial reporting purposes, 2011 must be presented on both a CGAAP and MIFRS (or alternate accounting standard) basis.
A126: 3 | B126: If the applicant is adopting IFRS or an alternate accounting standard as of January 1, 2013 for financial reporting purposes, 2012 must be presented on both a CGAAP and MIFRS (or alternate accounting standard) basis.

Sheet App.2-H_OM&A_Detailed_Analysis
H1: File Number: | I1: ='LDC Info'!$E$18 -> EB-2012-0175
H2: Exhibit:
H3: Tab:
H4: Schedule:
H5: Page:
H7: Date:
A9: Appendix 2-H
A10: OM&A Detailed Variance Analysis
A11: (excluding Depreciation and Amortization)
A14: Account | B14: Description | C14: ="Last Board-approved Rebasing Year ("&'LDC Info'!E30&" Year)" -> Last Board-approved Rebasing Year (2009 Year) | D14: Most Current Actuals Year 2011 | E14: ="Test Year " & 'LDC Info'!E28 -> Test Year 2013 | F14: Test Year Versus Last Rebasing | H14: Test Year Versus Most Current Actuals
F15: Variance ($) | G15: Percentage Change (%) | H15: Variance ($) | I15: Percentage Change (%)
A16: Reporting Basis | C16: CGAAP | D16: CGAAP | E16: MIFRS
A17: Operations
A18: 5005 | B18: Operation Supervision and Engineering | C18: 11879 | D18: 20569 | E18: 20600 | F18: =E18-C18 -> 8721 | G18: =IF(C18=0,"",(E18/C18)-1) -> 0.7341527065 | H18: =E18-D18 -> 31 | I18: =IF(D18=0,"",(E18/D18)-1) -> 0.001507122369
A19: 5010 | B19: Load Dispatching | C19: 512 | D19: 4984 | E19: 4000 | F19: =E19-C19 -> 3488 | G19: =IF(C19=0,"",(E19/C19)-1) -> 6.8125 | H19: =E19-D19 -> -984 | I19: =IF(D19=0,"",(E19/D19)-1) -> -0.1974317817
A20: 5012 | B20: Station Buildings and Fixtures Expense | F20: 0 | H20: 0
A21: 5014 | B21: Transformer Station Equipment - Operation Labour | C21: 19167 | D21: 26083 | E21: 22000 | F21: 2833 | G21: 0.1478061251 | H21: -4083 | I21: -0.1565387417
A22: 5015 | B22: Transformer Station Equipment - Operation Supplies and Expenses | C22: 50 | F22: -50 | G22: -1 | H22: 0
A23: 5016 | B23: Distribution Station Equipment - Operation Labour | D23: 950 | F23: 0 | H23: -950 | I23: -1
A24: 5017 | B24: Distribution Station Equipment - Operation Supplies and Expenses | F24: 0 | H24: 0
A25: 5020 | B25: Overhead Distribution Lines and Feeders - Operation Labour | C25: 142175 | D25: 165091 | E25: 259269 | F25: 117094 | G25: 0.8235906453 | H25: 94178 | I25: 0.5704611396
A26: 5025 | B26: Overhead Distribution Lines and Feeders - Operation Supplies and Expenses | F26: 0 | H26: 0
A27: 5030 | B27: Overhead Sub-transmission Feeders - Operation | F27: 0 | H27: 0
A28: 5035 | B28: Overhead Distribution Transformers - Operation | F28: 0 | H28: 0
A29: 5040 | B29: Underground Distribution Lines and Feeders - Operation Labour | F29: 0 | H29: 0
A30: 5045 | B30: Underground Distribution Lines and Feeders - Operation Supplies and Expenses | F30: 0 | H30: 0
A31: 5050 | B31: Underground Sub-transmission Feeders - Operation | C31: 45144 | D31: 9754 | E31: 74090 | F31: 28946 | G31: 0.641192628 | H31: 64336 | I31: 6.595858109
A32: 5055 | B32: Underground Distribution Transformers - Operation | F32: 0 | H32: 0
A33: 5060 | B33: Street Lighting and Signal System Expense | F33: 0 | H33: 0
A34: 5065 | B34: Meter Expense | F34: 0 | H34: 0
A35: 5070 | B35: Customer Premises - Operation Labour | F35: 0 | H35: 0
A36: 5075 | B36: Customer Premises - Operation Materials and Expenses | E36: 2000 | F36: 2000 | H36: 2000
A37: 5085 | B37: Miscellaneous Distribution Expenses | F37: 0 | H37: 0
A38: 5090 | B38: Underground Distribution Lines and Feeders - Rental Paid | F38: 0 | H38: 0
A39: 5095 | B39: Overhead Distribution Lines and Feeders - Rental Paid | F39: 0 | H39: 0
A40: 5096 | B40: Other Rent | F40: 0 | H40: 0
A41: Total - Operations | C41: =SUM(C18:C40) -> 218927 | D41: =SUM(D18:D40) -> 227431 | E41: =SUM(E18:E40) -> 381959 | F41: 163032 | G41: 0.744686585 | H41: 154528 | I41: 0.679450031
A42: Account | B42: Description
A43: Maintenance
A44: 5105 | B44: Maintenance Supervision and Engineering | C44: 2321 | D44: 6905 | E44: 10500 | F44: =E44-C44 -> 8179 | G44: =IF(C44=0,"",(E44/C44)-1) -> 3.523912107 | H44: =E44-D44 -> 3595 | I44: =IF(D44=0,"",(E44/D44)-1) -> 0.5206372194
A45: 5110 | B45: Maintenance of Buildings and Fixtures - Distribution Stations | F45: 0 | H45: 0
A46: 5112 | B46: Maintenance of Transformer Station Equipment | F46: 0 | H46: 0
A47: 5114 | B47: Maintenance of Distribution Station Equipment | C47: 3058 | D47: 13133 | E47: 8300 | F47: 5242 | G47: 1.714192283 | H47: -4833 | I47: -0.3680042641
A48: 5120 | B48: Maintenance of Poles, Towers and Fixtures | C48: 17094 | D48: 5896 | E48: 21000 | F48: 3906 | G48: 0.2285012285 | H48: 15104 | I48: 2.561736771
A49: 5125 | B49: Maintenance of Overhead Conductors and Devices | F49: 0 | H49: 0
A50: 5130 | B50: Maintenance of Overhead Services | C50: 25684 | D50: 20167 | E50: 21000 | F50: -4684 | G50: -0.1823703473 | H50: 833 | I50: 0.0413051024
A51: 5135 | B51: Overhead Distribution Lines and Feeders - Right of Way | F51: 0 | H51: 0
A52: 5145 | B52: Maintenance of Underground Conduit | F52: 0 | H52: 0
A53: 5150 | B53: Maintenance of Underground Conductors and Devices | C53: 64492 | D53: 50699 | E53: 37000 | F53: -27492 | G53: -0.4262854308 | H53: -13699 | I53: -0.2702025681
A54: 5155 | B54: Maintenance of Underground Services | C54: 12651 | D54: 5666 | E54: 8300 | F54: -4351 | G54: -0.3439253814 | H54: 2634 | I54: 0.464878221
A55: 5160 | B55: Maintenance of Line Transformers | C55: 14104 | D55: 5396 | E55: 10000 | F55: -4104 | G55: -0.2909812819 | H55: 4604 | I55: 0.8532246108
A56: 5165 | B56: Maintenance of Street Lighting and Signal Systems | F56: 0 | H56: 0
A57: 5170 | B57: Sentinel Lights - Labour | F57: 0 | H57: 0
A58: 5172 | B58: Sentinel Lights - Materials and Expenses | F58: 0 | H58: 0
A59: 5175 | B59: Maintenance of Meters | C59: 12569 | D59: 11096 | E59: 22400 | F59: 9831 | G59: 0.7821624632 | H59: 11304 | I59: 1.018745494
A60: 5178 | B60: Customer Installations Expenses - Leased Property | F60: 0 | H60: 0
A61: 5195 | B61: Maintenance of Other Installations on Customer Premises | F61: 0 | H61: 0
A62: Total - Maintenance | C62: =SUM(C44:C61) -> 151973 | D62: =SUM(D44:D61) -> 118958 | E62: =SUM(E44:E61) -> 138500 | F62: -13473 | G62: -0.08865390563 | H62: 19542 | I62: 0.1642764673
A63: Account | B63: Description
A64: Billing and Collecting
A65: 5305 | B65: Supervision | F65: =E65-C65 -> 0 | G65: =IF(C65=0,"",(E65/C65)-1) ->  | H65: =E65-D65 -> 0 | I65: =IF(D65=0,"",(E65/D65)-1) -> 
A66: 5310 | B66: Meter Reading Expense | C66: 87665 | D66: 91173 | E66: 102100 | F66: 14435 | G66: 0.1646609251 | H66: 10927 | I66: 0.1198490781
A67: 5315 | B67: Customer Billing | C67: 274605 | D67: 325991 | E67: 382300 | F67: 107695 | G67: 0.3921814971 | H67: 56309 | I67: 0.1727317625
A68: 5320 | B68: Collecting | F68: 0 | H68: 0
A69: 5325 | B69: Collecting - Cash Over and Short | C69: -10 | D69: 100 | F69: 10 | G69: -1 | H69: -100 | I69: -1
A70: 5330 | B70: Collection Charges | F70: 0 | H70: 0
A71: 5335 | B71: Bad Debt Expense | E71: 10000 | F71: 10000 | H71: 10000
A72: 5340 | B72: Miscellaneous Customer Accounts Expenses | F72: 0 | H72: 0
A73: Total - Billing and Collecting | C73: =SUM(C65:C72) -> 362260 | D73: =SUM(D65:D72) -> 417264 | E73: =SUM(E65:E72) -> 494400 | F73: 132140 | G73: 0.3647656379 | H73: 77136 | I73: 0.1848613827
A74: Account | B74: Description
A75: Community Relations
A76: 5405 | B76: Supervision | F76: =E76-C76 -> 0 | G76: =IF(C76=0,"",(E76/C76)-1) ->  | H76: =E76-D76 -> 0 | I76: =IF(D76=0,"",(E76/D76)-1) -> 
A77: 5410 | B77: Community Relations - Sundry | C77: 11701 | D77: 10951 | E77: 10000 | F77: -1701 | G77: -0.1453721904 | H77: -951 | I77: -0.08684138435
A78: 5415 | B78: Energy Conservation | F78: 0 | H78: 0
A79: 5420 | B79: Community Safety Program | F79: 0 | H79: 0
A80: 5425 | B80: Miscellaneous Customer Service and Informational Expenses | F80: 0 | H80: 0
A81: 5505 | B81: Supervision | F81: 0 | H81: 0
A82: 5510 | B82: Demonstrating and Selling Expense | F82: 0 | H82: 0
A83: 5515 | B83: Advertising Expenses | C83: 3964 | D83: 3345 | E83: 5000 | F83: 1036 | G83: 0.2613521695 | H83: 1655 | I83: 0.4947683109
A84: 5520 | B84: Miscellaneous Sales Expense | F84: 0 | H84: 0
A85: Total - Community Relations | C85: =SUM(C76:C84) -> 15665 | D85: =SUM(D76:D84) -> 14296 | E85: =SUM(E76:E84) -> 15000 | F85: -665 | G85: -0.04245132461 | H85: 704 | I85: 0.04924454393
A86: Account | B86: Description
A87: Administrative and General Expenses
A88: 5605 | B88: Executive Salaries and Expenses | C88: 50128 | D88: 50715 | E88: 57000 | F88: =E88-C88 -> 6872 | G88: =IF(C88=0,"",(E88/C88)-1) -> 0.137089052 | H88: =E88-D88 -> 6285 | I88: =IF(D88=0,"",(E88/D88)-1) -> 0.123927832
A89: 5610 | B89: Management Salaries and Expenses | C89: 11526 | D89: 10315 | E89: 14250 | F89: 2724 | G89: 0.2363352421 | H89: 3935 | I89: 0.3814832768
A90: 5615 | B90: General Administrative Salaries and Expenses | C90: 83647 | D90: 85917 | E90: 87325 | F90: 3678 | G90: 0.04397049506 | H90: 1408 | I90: 0.01638790926
A91: 5620 | B91: Office Supplies and Expenses | C91: 3329 | D91: 1040 | E91: 1500 | F91: -1829 | G91: -0.5494142385 | H91: 460 | I91: 0.4423076923
A92: 5625 | B92: Administrative Expense Transferred - Credit | F92: 0 | H92: 0
A93: 5630 | B93: Outside Services Employed | C93: 310801 | D93: 260204 | E93: 431400 | F93: 120599 | G93: 0.3880264221 | H93: 171196 | I93: 0.6579299319
A94: 5635 | B94: Property Insurance | C94: 26323 | D94: 26070 | E94: 28500 | F94: 2177 | G94: 0.08270333929 | H94: 2430 | I94: 0.09321058688
A95: 5640 | B95: Injuries and Damages | F95: 0 | H95: 0
A96: 5645 | B96: OMERS Pensions and Benefits | F96: 0 | H96: 0
A97: 5646 | B97: Employee Pensions and OPEB | F97: =E97-C97 -> 0 | G97: =IF(C97=0,"",(E97/C97)-1) ->  | H97: =E97-D97 -> 0 | I97: =IF(D97=0,"",(E97/D97)-1) -> 
A98: 5647 | B98: Employee Sick Leave | F98: 0 | H98: 0
A99: 5650 | B99: Franchise Requirements | F99: 0 | H99: 0
A100: 5655 | B100: Regulatory Expenses | C100: 31703 | D100: 17769 | E100: 25100 | F100: -6603 | G100: -0.2082768192 | H100: 7331 | I100: 0.4125724577
A101: 5660 | B101: General Advertising Expenses | F101: 0 | H101: 0
A102: 5665 | B102: Miscellaneous General Expenses | C102: 52131 | D102: 47228 | E102: 50895 | F102: -1236 | G102: -0.02370950106 | H102: 3667 | I102: 0.0776446176
A103: 5670 | B103: Rent | C103: 32829 | D103: 62362 | E103: 70000 | F103: =E103-C103 -> 37171 | G103: =IF(C103=0,"",(E103/C103)-1) -> 1.132261111 | H103: =E103-D103 -> 7638 | I103: 0.1224784324
A104: 5672 | B104: Lease Payment Charge | C104: 83751 | D104: 37250 | E104: 50000 | F104: -33751 | G104: -0.4029922031 | H104: 12750 | I104: 0.3422818792
A105: 5675 | B105: Maintenance of General Plant | F105: 0 | H105: 0
A106: 5680 | B106: Electrical Safety Authority Fees | F106: 0 | H106: 0
A107: 5681 | B107: Special Purpose Charge Expense | F107: 0 | H107: 0
A108: 5685 | B108: Independent Electricity System Operator Fees and Penalties | F108: 0 | H108: 0
A109: 5695 | B109: OM&A Contra Account | F109: 0 | H109: 0
A110: 6205 | B110: Donations | F110: =E110-C110 -> 0 | G110: =IF(C110=0,"",(E110/C110)-1) ->  | H110: =E110-D110 -> 0 | I110: =IF(D110=0,"",(E110/D110)-1) -> 
A111: 6205 | B111: Donations, Sub-account LEAP Funding | F111: 0 | H111: 0
A112: Total - Administrative and General Expenses | C112: =SUM(C88:C111) -> 686168 | D112: =SUM(D88:D111) -> 598870 | E112: =SUM(E88:E111) -> 815970 | F112: 129802 | G112: 0.1891694162 | H112: 217100 | I112: 0.3625160719
A113: Total OM&A | C113: =C112+C85+C73+C62+C41 -> 1434993 | D113: =D112+D85+D73+D62+D41 -> 1376819 | E113: =E112+E85+E73+E62+E41 -> 1845829 | F113: 410836 | G113: 0.2862982607 | H113: 469010 | I113: 0.3406475361
A114: Adjustments for non-recoverable items
A115: 5681 | B115: Special Purpose Charge Expense | F115: =E115-C115 -> 0 | G115: =IF(C115=0,"",(E115/C115)-1) ->  | H115: =E115-D115 -> 0 | I115: =IF(D115=0,"",(E115/D115)-1) -> 
A116: 6205 | B116: Donations1 | F116: =E116-C116 -> 0 | G116: =IF(C116=0,"",(E116/C116)-1) ->  | H116: =E116-D116 -> 0 | I116: =IF(D116=0,"",(E116/D116)-1) -> 
F117: =E117-C117 -> 0 | G117: =IF(C117=0,"",(E117/C117)-1) ->  | H117: =E117-D117 -> 0 | I117: =IF(D117=0,"",(E117/D117)-1) -> 
F118: =E118-C118 -> 0 | G118: =IF(C118=0,"",(E118/C118)-1) ->  | H118: =E118-D118 -> 0 | I118: =IF(D118=0,"",(E118/D118)-1) -> 
F119: =E119-C119 -> 0 | G119: =IF(C119=0,"",(E119/C119)-1) ->  | H119: =E119-D119 -> 0 | I119: =IF(D119=0,"",(E119/D119)-1) -> 
A120: Total Recoverable OM&A | C120: =C113-SUM(C115:C119) -> 1434993 | D120: =D113-SUM(D115:D119) -> 1376819 | E120: 1845829 | F120: 410836 | G120: =IF(C120=0,"",(E120/C120)-1) -> 0.2862982607 | H120: 469010 | I120: =IF(D120=0,"",(E120/D120)-1) -> 0.3406475361
A122: 1 Account 6205 - Donations is generally non-recoverable. However, the sub-account LEAP funding of account 6205 is generally recoverable.
A125: Note:
A127: 1 | B127: If the applicant is adopting IFRS or an alternate accounting standard as of January 1, 2013 for financial reporting purposes, Column D "Most Current Actual Year" must be provided on CGAAP.
A128: 2 | B128: If the applicant is adopting IFRS or an alternate accounting standard as of January 1, 2012 for financial reporting purposes, Column D "Most Current Actual Year" must be provided on that standard.

Sheet App.2-I_OM&A_Summary_Analys
K1: File Number: | L1: ='LDC Info'!$E$18 -> EB-2012-0175
K2: Exhibit:
K3: Tab:
K4: Schedule:
K5: Page:
K7: Date:
A9: Appendix 2-I
A10: Summary of Recoverable OM&A Expenses
B13: ="Last Rebasing Year (" & 'LDC Info'!E30 & " BA)" -> Last Rebasing Year (2009 BA) | C13: ="Last Rebasing Year (" & 'LDC Info'!E30 & " Actuals)" -> Last Rebasing Year (2009 Actuals) | D13: ='LDC Info'!E26 -2 & " Actuals" -> 2010 Actuals | E13: ='LDC Info'!E26 -1 & " Actuals" -> 2011 Actuals | F13: ='LDC Info'!E26 & " Bridge Year" -> 2012 Bridge Year | G13: ='LDC Info'!E28 & " Test Year" -> 2013 Test Year
A14: Reporting Basis | B14: CGAAP | C14: CGAAP | D14: CGAAP | E14: CGAAP | F14: CGAAP | G14: MIFRS
A15: Operations | B15: 380750 | C15: 218927 | D15: 217124 | E15: 227431 | F15: 418000 | G15: 381959
A16: Maintenance | B16: 91800 | C16: 151973 | D16: 120457 | E16: 118958 | F16: 131200 | G16: 138500
A17: SubTotal | B17: =SUM(B15:B16) -> 472550 | C17: =SUM(C15:C16) -> 370900 | D17: 337581 | E17: 346389 | F17: 549200 | G17: 520459
A18: %Change (year over year) | D18: =IF(ISERROR((D17-C17)/C17), "", (D17-C17)/C17) -> -0.08983283904 | E18: =IF(ISERROR((E17-D17)/D17), "", (E17-D17)/D17) -> 0.02609151581 | F18: 0.5855006943 | G18: -0.05233248361
A19: %Change (Test Year vs Last Rebasing Year - Actual) | G19: =IF(ISERROR((G17-C17)/C17), "", (G17-C17)/C17) -> 0.4032326773
A20: Billing and Collecting | B20: 436800 | C20: 362260 | D20: 371012 | E20: 417264 | F20: 514800 | G20: 494400
A21: Community Relations | B21: 26000 | C21: 15665 | D21: 7561 | E21: 14296 | F21: 15000 | G21: 15000
A22: Administrative and General | B22: 609000 | C22: 686168 | D22: 590426 | E22: 598870 | F22: 1022515 | G22: 815970
A23: SubTotal | B23: =SUM(B20:B22) -> 1071800 | C23: =SUM(C20:C22) -> 1064093 | D23: 968999 | E23: 1030430 | F23: 1552315 | G23: 1325370
A24: %Change (year over year) | D24: =IF(ISERROR((D23-C23)/C23), "", (D23-C23)/C23) -> -0.089366249 | E24: =IF(ISERROR((E23-D23)/D23), "", (E23-D23)/D23) -> 0.06339635025 | F24: =IF(ISERROR((F23-E23)/E23), "", (F23-E23)/E23) -> 0.5064730258 | G24: =IF(ISERROR((G23-F23)/F23), "", (G23-F23)/F23) -> -0.1461977756
A25: %Change (Test Year vs Last Rebasing Year - Actual) | G25: =IF(ISERROR((G23-C23)/C23), "", (G23-C23)/C23) -> 0.2455396286
A26: Total | B26: =SUM(B23,B17) -> 1544350 | C26: =SUM(C23,C17) -> 1434993 | D26: 1306580 | E26: 1376819 | F26: 2101515 | G26: 1845829
A27: %Change (year over year) | D27: =IF(ISERROR((D26-C26)/C26), "", (D26-C26)/C26) -> -0.08948684767 | E27: =IF(ISERROR((E26-D26)/D26), "", (E26-D26)/D26) -> 0.05375790231 | F27: =IF(ISERROR((F26-E26)/E26), "", (F26-E26)/E26) -> 0.5263553161 | G27: =IF(ISERROR((G26-F26)/F26), "", (G26-F26)/F26) -> -0.1216674637
B30: =B13 -> Last Rebasing Year (2009 BA) | C30: =C13 -> Last Rebasing Year (2009 Actuals) | D30: 2010 Actuals | E30: 2011 Actuals | F30: 2012 Bridge Year | G30: 2013 Test Year
A31: Operations | B31: =B15 -> 380750 | C31: =C15 -> 218927 | D31: 217124 | E31: 227431 | F31: 418000 | G31: 381959
A32: Maintenance | B32: =B16 -> 91800 | C32: =C16 -> 151973 | D32: 120457 | E32: 118958 | F32: 131200 | G32: 138500
A33: Billing and Collecting | B33: =B20 -> 436800 | C33: =C20 -> 362260 | D33: 371012 | E33: 417264 | F33: 514800 | G33: 494400
A34: Community Relations | B34: =B21 -> 26000 | C34: =C21 -> 15665 | D34: 7561 | E34: 14296 | F34: 15000 | G34: 15000
A35: Administrative and General | B35: =B22 -> 609000 | C35: =C22 -> 686168 | D35: 590426 | E35: 598870 | F35: 1022515 | G35: 815970
A36: Total | B36: =SUM(B31:B35) -> 1544350 | C36: =SUM(C31:C35) -> 1434993 | D36: 1306580 | E36: 1376819 | F36: 2101515 | G36: 1845829
A37: %Change (year over year) | D37: =IF(ISERROR((D36-C36)/C36), "", (D36-C36)/C36) -> -0.08948684767 | E37: =IF(ISERROR((E36-D36)/D36), "", (E36-D36)/D36) -> 0.05375790231 | F37: =IF(ISERROR((F36-E36)/E36), "", (F36-E36)/E36) -> 0.5263553161 | G37: =IF(ISERROR((G36-F36)/F36), "", (G36-F36)/F36) -> -0.1216674637
B40: =B13 -> Last Rebasing Year (2009 BA) | C40: =C13 -> Last Rebasing Year (2009 Actuals) | D40: ="Variance " & 'LDC Info'!E30 & " BA – " & 'LDC Info'!E30 & " Actuals" -> Variance 2009 BA – 2009 Actuals | E40: =D13 -> 2010 Actuals | F40: ="Variance " & 'LDC Info'!E26 -2 & " Actuals vs. " & 'LDC Info'!E30 & " Actuals" -> Variance 2010 Actuals vs. 2009 Actuals | G40: =E13 -> 2011 Actuals | H40: ="Variance " & 'LDC Info'!E26 -1 & " Actuals vs. " & 'LDC Info'!E26-2 & " Actuals" -> Variance 2011 Actuals vs. 2010 Actuals | I40: =F13 -> 2012 Bridge Year | J40: ="Variance " & 'LDC Info'!E26 & " Bridge vs. " & 'LDC Info'!E26 -1 & " Actuals" -> Variance 2012 Bridge vs. 2011 Actuals | K40: =G13 -> 2013 Test Year | L40: ="Variance " & 'LDC Info'!E28 & " Test vs. " & 'LDC Info'!E26 & " Bridge" -> Variance 2013 Test vs. 2012 Bridge
A41: Operations | B41: =B15 -> 380750 | C41: 218927 | D41: =B41-C41 -> 161823 | E41: =D15 -> 217124 | F41: =E41-C41 -> -1803 | G41: =E15 -> 227431 | H41: =G41-E41 -> 10307 | I41: =F15 -> 418000 | J41: =I41-G41 -> 190569 | K41: =G15 -> 381959 | L41: =K41-I41 -> -36041
A42: Maintenance | B42: 91800 | C42: 151973 | D42: =B42-C42 -> -60173 | E42: =D16 -> 120457 | F42: =E42-C42 -> -31516 | G42: =E16 -> 118958 | H42: =G42-E42 -> -1499 | I42: =F16 -> 131200 | J42: 12242 | K42: =G16 -> 138500 | L42: 7300
A43: Billing and Collecting | B43: =B20 -> 436800 | C43: 362260 | D43: 74540 | E43: =D20 -> 371012 | F43: 8752 | G43: =E20 -> 417264 | H43: 46252 | I43: =F20 -> 514800 | J43: 97536 | K43: =G20 -> 494400 | L43: -20400
A44: Community Relations | B44: 26000 | C44: 15665 | D44: 10335 | E44: =D21 -> 7561 | F44: -8104 | G44: =E21 -> 14296 | H44: 6735 | I44: =F21 -> 15000 | J44: 704 | K44: =G21 -> 15000 | L44: 0
A45: Administrative and General | B45: 609000 | C45: 686168 | D45: -77168 | E45: 590426 | F45: -95742 | G45: 598870 | H45: 8444 | I45: 1022515 | J45: 423645 | K45: 815970 | L45: -206545
A46: Total OM&A Expenses | B46: =SUM(B41:B45) -> 1544350 | C46: =SUM(C41:C45) -> 1434993 | D46: 109357 | E46: 1306580 | F46: -128413 | G46: 1376819 | H46: 70239 | I46: 2101515 | J46: 724696 | K46: 1845829 | L46: -255686
A47: Variance from previous year | E47: =E46-C46 -> -128413 | G47: =G46-E46 -> 70239 | I47: =I46-G46 -> 724696 | K47: =K46-I46 -> -255686
A48: Percent change (year over year) | E48: =IF(ISERROR(E47/C46), "", E47/C46) -> -0.08948684767 | G48: =IF(ISERROR(G47/E46), "", G47/E46) -> 0.05375790231 | I48: =IF(ISERROR(I47/G46), "", I47/G46) -> 0.5263553161 | K48: =IF(ISERROR(K47/I46), "", K47/I46) -> -0.1216674637
A49: Percent Change: Test year vs. Most Current Actual | G49: =IF(ISERROR((K46-G46)/G46), "", (K46-G46)/G46) -> 0.3406475361
A50: Simple average of % variance for all years | G50: =IF(ISERROR((K46-C46)/C46), "", (K46-C46)/C46) -> 0.2862982607 | L50: =IF(ISERROR(AVERAGE(E48,G48,I48,K48)), "", AVERAGE(E48,G48,I48,K48)) -> 0.09223972676
A51: Compound Annual Growth Rate for all years | G51: =IF(ISERROR((K47-C47)/C47), "", (K47-C47)/C47) ->  | L51: =IF((K46-C46)=0, "", (K46-C46)^(1/5)-1) -> 12.26580773
A52: ="Compound Growth Rate (" & E13 & " vs. " & 'LDC Info'!E30 & " Actuals)" -> Compound Growth Rate (2011 Actuals vs. 2009 Actuals) | G52: =IF(ISERROR((G46/C46)^(1/(2010-2008)) - 1), "", (G46-C46)/C46) -> -0.04053957058
A54: Note:
A56: 1 "BA" = Board-Approved
A57: 2 If it has been more than three years since the applicant last filed a cost of service application, additional years of historical actuals should be incorporated into the table, as necessary, to go back to the last cost of service application. If the applicant last filed a cost of service application less than three years ago, a minimum of three years of actual information is required.
A59: 3 Recoverable OM&A that is included on these tables should be identical to the recoverable OM&A that is shown for the corresponding periods on Appendix 2-H.

Sheet App.2-J_OM&A_Cost _Drivers
F1: File Number: | G1: ='LDC Info'!$E$18 -> EB-2012-0175
F2: Exhibit:
F3: Tab:
F4: Schedule:
F5: Page:
F7: Date:
A10: Appendix 2-J
A11: OM&A Cost Driver Table
A13: OM&A | B13: ="Last Rebasing Year (" & 'LDC Info'!E30 & " Actuals)" -> Last Rebasing Year (2009 Actuals) | C13: 2009 Actuals | D13: ='LDC Info'!E26 -2 & " Actuals" -> 2010 Actuals | E13: ='LDC Info'!E26 -1 & " Actuals" -> 2011 Actuals | F13: ='LDC Info'!E26 & " Bridge Year" -> 2012 Bridge Year | G13: ='LDC Info'!E28 & " Test Year" -> 2013 Test Year
A14: Reporting Basis | B14: CGAAP | D14: CGAAP | E14: CGAAP | F14: CGAAP | G14: MIFRS
A15: Opening Balance | B15: 1544350 | C15: =B41 -> 1434993 | D15: =IF(ISERROR(FIND("2008", $B$13)), B41, C41) -> 1434993 | E15: =+D41 -> 1306580 | F15: =+E41 -> 1376819 | G15: =+F41 -> 2101515
A16: Wages and benefits increase | D16: 17303 | E16: 14229 | F16: 15269 | G16: 18628
A17: Additional staff | F17: 90000
A18: Change in types and cost of materials used | D18: -54058 | E18: 16261 | F18: 5201 | G18: 11041
A19: Increased overhead lines maintenance due to tornado | F19: 20000 | G19: -20000
A20: Decrease in wages and benefits due to reallocation of time spent from OM & A to tornado recovery work | E20: -48161 | F20: 48161
A21: Increase in bad debts expense | B21: -10000 | D21: 10000 | E21: -10000
A22: Insulator washing at Salt Mine | F22: 20000 | G22: -20000
A23: Overestimation of billing and meter reading costs | B23: -64530
A24: Increase in billings costs due to monthly billing implementation | E24: 56052 | F24: 25000
A25: Increase in billing contract costs | F25: 56000
A26: Increase in training costs - smart meters | F26: 10000 | G26: -10000
A27: Harmonics work performed | E27: 6300
A28: Increase cost of community relations - safety programs | E28: 7059
A29: Third party professional fees - rate application | D29: -80900 | E29: 7860 | F29: 183000 | G29: -183000
A30: Third party professional fees - other | F30: 123000 | G30: -20000
A31: Regulatory intervenors costs | F31: 10000 | G31: -8000
A32: Additional costs - IFRS | F32: 25000
A33: Implementation of One call system | F33: 6000
A34: Upgrades to financial systems software | F34: 25000 | G34: -25000
A35: Meter reading expense increase due to additional meter point | F35: 7200
A36: Rent expense increase due to nental of additional space starting 2010 | D36: 24000 | E36: 3750
A37: Renovation of general plant building in 2009 | B37: 29510 | D37: -29510
A38: Meter verification costs | F38: 11000
A39: Increase is costs to maintain general plant | F39: 13000
A40: Remaining balance | B40: -64337 | D40: -15248 | E40: 16889 | F40: 31865 | G40: 645
A41: Closing Balance | B41: =SUM(B15:B40) -> 1434993 | C41: =SUM(C15:C40) -> 1434993 | D41: 1306580 | E41: 1376819 | F41: 2101515 | G41: 1845829
A43: Notes:
A45: 1 | B45: For each year, a detailed explanation for each cost driver and associated amount is
B46: required.
A47: 2 | B47: The closing balance for each year becomes the opening balance for the next year.
A48: 3 | B48: If it has been more than three years since the applicant last filed a cost of service application, additional years of historical actuals should be incorporated into the table, as necessary, to go back to the last cost of service application. If the applicant last filed a cost of service application less than three years ago, a minimum of three years of actual information is required.
A52: 4 | B52: Opening Balance for "Last Rebasing Year" (cell B15) should be equal to the Board-Approved amount.

Sheet App.2-K_Employee Costs
F1: File Number: | H1: ='LDC Info'!$E$18 -> EB-2012-0175
F2: Exhibit:
F3: Tab:
F4: Schedule:
F5: Page:
F7: Date:
A9: Appendix 2-K
A10: Employee Costs
B12: ="Last Rebasing Year (" & 'LDC Info'!E30 & " Board-Approved)" -> Last Rebasing Year (2009 Board-Approved) | C12: ="Last Rebasing Year (" & 'LDC Info'!E30 & " Actuals)" -> Last Rebasing Year (2009 Actuals) | D12: ='LDC Info'!E26 -2 & " Actuals" -> 2010 Actuals | E12: ='LDC Info'!E26 -1 & " Actuals" -> 2011 Actuals | F12: ='LDC Info'!E26 & " Bridge Year" -> 2012 Bridge Year | G12: ='LDC Info'!F26 & " Bridge Year" -> Bridge Year | H12: ='LDC Info'!E28 & " Test Year" -> 2013 Test Year
A13: Reporting Basis | B13: CGAAP | C13: CGAAP | D13: CGAAP | E13: CGAAP | F13: CGAAP | G13: MIFRS | H13: MIFRS
A14: Number of Employees (FTEs including Part-Time)1
A15: Executive | B15: 3 | C15: 3 | D15: 3 | E15: 3 | F15: 3 | G15: 3 | H15: 3
A16: Management | B16: 1 | C16: 1 | D16: 1 | E16: 1 | F16: 1 | G16: 1 | H16: 1
A17: Non-Union
A18: Union | B18: 8 | C18: 8 | D18: 8 | E18: 7 | F18: 8 | G18: 8 | H18: 8
A19: Total | B19: =SUM(B15:B18) -> 12 | C19: 12 | D19: 12 | E19: 11 | F19: 12 | G19: =SUM(G15:G18) -> 12 | H19: 12
A20: Number of Part-Time Employees
A21: Executive
A22: Management
A23: Non-Union | C23: 0.5 | D23: 0.4 | F23: 0.4 | G23: 0.4 | H23: 0.4
A24: Union
A25: Total | B25: =SUM(B21:B24) -> 0 | C25: 0.5 | D25: 0.4 | E25: 0 | F25: 0.4 | G25: =SUM(G21:G24) -> 0.4 | H25: 0.4
A26: Total Salary and Wages
A27: Executive | B27: 30385 | C27: 25000 | D27: 25000 | E27: 25000 | F27: 25000 | G27: 25000 | H27: 25000
A28: Management | B28: 135564 | C28: 62258 | D28: 67810 | E28: 69667 | F28: 72000 | G28: 72000 | H28: 74000
A29: Non-Union | B29: 22200 | C29: 9171 | D29: 8273 | F29: 8500 | G29: 8500 | H29: 8800
A30: Union | B30: 585019 | C30: 474465 | D30: 485560 | E30: 529243 | F30: 504853 | G30: 576853 | H30: 592428
A31: Total | B31: =SUM(B27:B30) -> 773168 | C31: 570894 | D31: 586643 | E31: 623910 | F31: 610353 | G31: =SUM(G27:G30) -> 682353 | H31: 700228
A32: Current Benefits
A33: Executive | B33: 715
A34: Management | B34: 39639 | C34: 21704 | D34: 22018 | E34: 22664 | F34: 23400 | G34: 23400 | H34: 24100
A35: Non-Union | B35: 3011 | C35: 577 | D35: 537 | F35: 520 | G35: 520 | H35: 530
A36: Union | B36: 207845 | C36: 118802 | D36: 116775 | E36: 120205 | F36: 130700 | G36: 148700 | H36: 152715
A37: Total | B37: =SUM(B33:B36) -> 251210 | C37: 141083 | D37: 139330 | E37: 142869 | F37: 154620 | G37: =SUM(G34:G36) -> 172620 | H37: 177345
A38: Accrued Pension and Post-Retirement Benefits
A39: Executive
A40: Management | C40: 11893 | D40: 11919 | E40: 11928 | F40: 12167 | G40: 12167 | H40: 12410
A41: Non-Union
A42: Union | C42: 30583 | D42: 30650 | E42: 30672 | F42: 31285 | G42: 31285 | H42: 31911
A43: Total | B43: =SUM(B39:B42) -> 0 | C43: 42476 | D43: 42569 | E43: 42600 | F43: 43452 | G43: =SUM(G40:G42) -> 43452 | H43: 44321
A44: Total Benefits (Current + Accrued)
A45: Executive | B45: =B33+B39 -> 715 | C45: 0 | D45: 0 | E45: 0 | F45: 0 | H45: 0
A46: Management | B46: 39639 | C46: 33597 | D46: 33937 | E46: 34592 | F46: 35567 | G46: 35567 | H46: 36510
A47: Non-Union | B47: 3011 | C47: 577 | D47: 537 | E47: 0 | F47: 520 | G47: 520 | H47: 530
A48: Union | B48: 207845 | C48: 149385 | D48: 147425 | E48: 150877 | F48: 161985 | G48: 179985 | H48: 184626
A49: Total | B49: 251210 | C49: 183559 | D49: 181899 | E49: 185469 | F49: 198072 | G49: =SUM(G46:G48) -> 216072 | H49: 221666
A50: Total Compensation (Salary, Wages, & Benefits)
A51: Executive | B51: =B27+B45 -> 31100 | C51: 25000 | D51: 25000 | E51: 25000 | F51: 25000 | G51: 25000 | H51: 25000
A52: Management | B52: 175203 | C52: 95855 | D52: 101747 | E52: 104259 | F52: 107567 | G52: 107567 | H52: 110510
A53: Non-Union | B53: 25211 | C53: 9748 | D53: 8810 | E53: 0 | F53: 9020 | G53: 9020 | H53: 9330
A54: Union | B54: 792864 | C54: 623850 | D54: 632985 | E54: 680120 | F54: 666838 | G54: 756838 | H54: 777054
A55: Total | B55: 1024378 | C55: 754453 | D55: 768542 | E55: 809379 | F55: 808425 | G55: =SUM(G51:G54) -> 898425 | H55: 921894
A56: Compensation - Average Yearly Base Wages
A57: Executive | B57: 10128 | C57: 8333 | D57: 8333 | E57: 8333 | F57: 8333 | G57: 8333 | H57: 8333
A58: Management | B58: 45188 | C58: 62258 | D58: 67810 | E58: 69667 | F58: 72000 | G58: 72000 | H58: 74000
A59: Non-Union | B59: 7400 | C59: 18342 | D59: 20683 | F59: 21250 | G59: 21250 | H59: 22000
A60: Union | B60: 73127 | C60: 59308 | D60: 60695 | E60: 71519 | F60: 72122 | G60: 72106 | H60: 74053
A61: Total
A62: Compensation - Average Yearly Overtime
A63: Executive
A64: Management | C64: 425 | D64: 4110 | E64: 4554 | F64: 4700 | G64: 4700 | H64: 4830
A65: Non-Union
A66: Union | C66: 3547 | D66: 1858 | E66: 10801 | F66: 6265 | G66: 6265 | H66: 6434
A67: Total
A68: Compensation - Average Yearly Incentive Pay
A69: Executive | B69: 4635 | C69: 1500 | D69: 1500 | E69: 1500 | F69: 1500 | G69: 1500 | H69: 1500
A70: Management | B70: 6180 | C70: 6000 | D70: 6500 | E70: 6500 | F70: 6500 | G70: 6500 | H70: 6500
A71: Non-Union
A72: Union
A73: Total
A74: Compensation - Average Yearly Benefits
A75: Executive | B75: 238
A76: Management | B76: 13213 | C76: 33597 | D76: 33937 | E76: 34592 | F76: 25567 | G76: 25567 | H76: 36510
A77: Non-Union | B77: 1004 | C77: 1154 | D77: 1343 | F77: 1300 | G77: 1300 | H77: 1325
A78: Union | B78: 25981 | C78: 18673 | D78: 18428 | E78: 20389 | F78: 23141 | G78: 22623 | H78: 23106
A79: Total
A81: Total Compensation | B81: =SUM(B51:B54) -> 1024378 | C81: 754453 | D81: 768542 | E81: 809379 | F81: 808425 | G81: 898425 | H81: 921894
A82: Total Compensation Capitalized (CGAAP) | F82: 129348 | G82: 129348
A83: Total Compensation Charged to OM&A (CGAAP) | B83: =B81-B82 -> 1024378 | C83: 754453 | D83: 768542 | E83: 809379 | F83: 679077 | G83: 769077
A85: Total Compensation Capitalized (MIFRS) | F85: 129348 | G85: 129348 | H85: 132726
A86: Total Compensation Charged to OM&A (MIFRS) | E86: =E81-E85 -> 809379 | F86: =F81-F85 -> 679077 | G86: =G81-G85 -> 769077 | H86: =H81-H85 -> 789168
A89: 1 If an applicant wishes to use headcount, it must also file the same schedule on an FTE basis.
A91: Note:
A92: 1 Please report compensation on a CGAAP and MIFRS basis for your transition year.

Sheet App.2-L_OM&A_per_Cust_FTEE
G1: File Number: | H1: ='LDC Info'!$E$18 -> EB-2012-0175
G2: Exhibit:
G3: Tab:
G4: Schedule:
G5: Page:
G7: Date:
A9: Appendix 2-L
A10: Recoverable OM&A Cost per Customer and per FTEE
C12: ="Last Rebasing Year (" & 'LDC Info'!E30 & " Board-Approved)" -> Last Rebasing Year (2009 Board-Approved) | D12: ="Last Rebasing Year (" & 'LDC Info'!E30 & " Actuals)" -> Last Rebasing Year (2009 Actuals) | E12: ='LDC Info'!E26 -2 & " Actuals" -> 2010 Actuals | F12: ='LDC Info'!E26 -1 & " Actuals" -> 2011 Actuals | G12: ='LDC Info'!E26 & " Bridge Year" -> 2012 Bridge Year | H12: ='LDC Info'!E28 & " Test Year" -> 2013 Test Year
A13: Reporting Basis | C13: CGAAP | D13: CGAAP | E13: CGAAP | F13: CGAAP | G13: CGAAP | H13: MIFRS
A14: Number of Customers | C14: 5285 | D14: 5056 | E14: 5067 | F14: 5001 | G14: 5019 | H14: 5055
A15: Total Recoverable OM&A from Appendix 2-I | C15: 1544350 | D15: 1434993 | E15: 1306580 | F15: 1376819 | G15: 2101515 | H15: 1845829
A16: OM&A cost per customer | C16: =IF(C14=0,"",C15/C14) -> 292.2138127 | D16: 283.819818 | E16: 257.8606671 | F16: 275.3087383 | G16: 418.7118948 | H16: 365.1491592
A17: Number of FTEEs | C17: 12 | D17: 12 | E17: 12 | F17: 11 | G17: 12 | H17: 12
A18: Customers/FTEEs | C18: =IF(C17=0,"",C14/C17) -> 440.4166667 | D18: 421.3333333 | E18: 422.25 | F18: 454.6363636 | G18: 418.25 | H18: 421.25
A19: OM&A Cost per FTEE | C19: =IF(C17=0,"",C15/C17) -> 128695.8333 | D19: 119582.75 | E19: 108881.6667 | F19: 125165.3636 | G19: 175126.25 | H19: 153819.0833
A21: Notes:
A23: 1 | B23: If it has been more than three years since the applicant last filed a cost of service application, additional years of historical actuals should be incorporated into the table, as necessary, to go back to the last cost of service application. If the applicant last filed a cost of service application less than three years ago, a minimum of three years of actual information is required.
A27: 2 | B27: The method of calculating the number of customers must be identified.
A28: 3 | B28: The method of calculating the number of FTEEs must be identified. See also Appendix 2-K
A29: 4 | B29: The number of customers and the number of FTEEs should correspond to mid-year or average of January 1 and December 31 figures.

Sheet App.2-M_Regulatory_Costs
J1: File Number: | K1: ='LDC Info'!$E$18 -> EB-2012-0175
J2: Exhibit:
J3: Tab:
J4: Schedule:
J5: Page:
J7: Date:
A9: Appendix 2-M
A10: Regulatory Cost Schedule
A13: Regulatory Cost Category | C13: USoA Account | D13: USoA Account Balance | E13: Ongoing or One-time Cost? 2 | F13: ="Last Rebasing Year (" & 'LDC Info'!E30 & " Board Approved)" -> Last Rebasing Year (2009 Board Approved) | G13: Most Current Actuals Year 2011 | H13: ='LDC Info'!E26 & " Bridge Year" -> 2012 Bridge Year | I13: Annual % Change | J13: ='LDC Info'!E28 & " Test Year" -> 2013 Test Year | K13: Annual % Change
A14: (A) | C14: (B) | D14: (C ) | E14: (D) | F14: (E) | G14: (F) | H14: (G) | I14: (H) = [(G)-(F)]/(F) | J14: (I) | K14: (J) = [(I)-(G)]/(G)
A15: 1 | B15: OEB Annual Assessment | C15: 5655 | E15: On-Going | G15: 12582 | H15: 13000 | I15: =IF(G15=0,"",(H15-G15)/G15) -> 0.03322206326 | J15: 13500 | K15: =IF(H15=0,"",(J15-H15)/H15) -> 0.03846153846
A16: 2 | B16: OEB Section 30 Costs (Applicant-originated) | I16: =IF(G16=0,"",(H16-G16)/G16) ->  | K16: =IF(H16=0,"",(J16-H16)/H16) -> 
A17: 3 | B17: OEB Section 30 Costs (OEB-initiated) | C17: 5655 | E17: On-Going | G17: 549 | H17: 2500 | I17: 3.553734062 | J17: 800 | K17: -0.68
A18: 4 | B18: Expert Witness costs for regulatory matters
A19: 5 | B19: Legal costs for regulatory matters
A20: 6 | B20: Consultants' costs for regulatory matters | C20: 5630 | E20: On-Time | G20: 8463 | H20: 183000 | I20: 20.62353775 | K20: -1
A21: 7 | B21: Operating expenses associated with staff resources allocated to regulatory matters
A22: 8 | B22: Operating expenses associated with other resources allocated to regulatory matters 1
A23: 9 | B23: Other regulatory agency fees or assessments | C23: 5655 | E23: On-Going | G23: 3838 | H23: 4500 | I23: 0.1724856696 | J23: 4800 | K23: 0.06666666667
A24: 10 | B24: Any other costs for regulatory matters (please define) | C24: 5655 | E24: On-Going | G24: 800 | H24: 900 | I24: 0.125 | J24: 1000 | K24: 0.1111111111
A25: 11 | B25: Intervenor costs | C25: 5655 | E25: On-Time | H25: 15000 | J25: 5000 | K25: -0.6666666667
A26: 12 | B26: Sub-total - Ongoing Costs 3 | D26: =SUMIF($E15:$E25,$E11,D15:D25) -> 0 | F26: =SUMIF($E15:$E25,$E11,F15:F25) -> 0 | G26: =+G15+G17+G23+G24 -> 17769 | H26: =+H15+H17+H23+H24 -> 20900 | I26: 0.1762057516 | J26: =+J15+J17+J23+J24 -> 20100 | K26: -0.03827751196
A27: 13 | B27: Sub-total - One-time Costs 4 | D27: =SUMIF($E15:$E25,$E12,D15:D25) -> 0 | F27: =SUMIF($E15:$E25,$E12,F15:F25) -> 0 | G27: =+G20+G25 -> 8463 | H27: =+H20+H25 -> 198000 | I27: 22.39595888 | J27: =+J20+J25 -> 5000 | K27: -0.9747474747
A28: 14 | B28: Total | D28: =D26+D27 -> 0 | F28: =F26+F27 -> 0 | G28: =G26+G27 -> 26232 | H28: =H26+H27 -> 218900 | I28: 7.344769747 | J28: =J26+J27 -> 25100 | K28: -0.8853357698
A31: 1 | B31: Please identify the resources involved.
A32: 2 | B32: Where a category's costs include both one-time and ongoing costs, the applicant should prove a separate breakdown between one-time and ongoing costs.
A33: 3 | B33: Sum of all ongoing costs identified in rows 1 to 11 inclusive.
A34: 4 | B34: Sum of all one-time costs identified in rows 1 to 11 inclusive.
A37: Please fill out the following table for all one-time costs related to this cost of service application
C39: 2009 | D39: 2010 | E39: 2011 | F39: =H13 -> 2012 Bridge Year | G39: =J13 -> 2013 Test Year
A40: 4 | B40: Expert Witness costs for regulatory matters | F40: =H18 -> 0 | G40: =J18 -> 0
A41: 6 | B41: Consultants' costs for regulatory matters | F41: =H20 -> 183000 | G41: =J20 -> 0
A42: 7 | B42: Operating expenses associated with staff resources allocated to regulatory matters | F42: =H21 -> 0 | G42: =J21 -> 0
A43: 8 | B43: Operating expenses associated with other resources allocated to regulatory matters 1 | F43: =H22 -> 0 | G43: =J22 -> 0
A44: 11 | B44: Intervenor costs | F44: =H25 -> 15000 | G44: =J25 -> 5000

Sheet App.2-N_Shared Services 13
F1: File Number: | G1: ='LDC Info'!$E$18 -> EB-2012-0175
F2: Exhibit:
F3: Tab:
F4: Schedule:
F5: Page:
F7: Date:
A9: Appendix 2-N
A10: Shared Services and Corporate Cost Allocation
B12: Year: | C12: 2013
A14: Shared Services
A16: Name of Company | C16: Service Offered | D16: Pricing Methdology | E16: Price for the Service | F16: Cost for the Service
A17: From | B17: To
E18: $ | F18: $
A19: Town of Goderiich | B19: West Coast Huron Energy | C19: Environment Tech | D19: 1/3 of actual cost | E19: 34000 | F19: 34000
A20: Town of Goderiich | B20: West Coast Huron Energy | C20: Admin Support | D20: % time allocated | E20: 42400 | F20: 42400
A21: Town of Goderiich | B21: West Coast Huron Energy | C21: Management fee | D21: % time allocated | E21: 41400 | F21: 41400
A22: West Coast Huron Energy | B22: Town of Goderich | C22: Billing/Collection of water/sewer revenue | D22: per bill fee | E22: 44000 | F22: 44000
A23: West Coast Huron Energy | B23: Town of Goderich | C23: Streetlight maintenance | D23: cost + 5% | E23: 52000 | F23: 49500
A28: Corporate Cost Allocation
A30: Name of Company | C30: Service Offered | D30: Pricing Methdology | E30: % of Corporate Costs Allocated | F30: Amount Allocated
A31: From | B31: To
E32: % | F32: $
A33: eg: parent company | B33: eg: regulated entity
A42: Note:
A43: 1 | B43: This appendix must be completed in relation to each service provided or received for the Historical (actuals), Bridge and Test years.

Sheet App.2-N_Shared Services 12
F1: File Number: | G1: ='LDC Info'!$E$18 -> EB-2012-0175
F2: Exhibit:
F3: Tab:
F4: Schedule:
F5: Page:
F7: Date:
A9: Appendix 2-N
A10: Shared Services and Corporate Cost Allocation
B12: Year: | C12: 2012
A14: Shared Services
A16: Name of Company | C16: Service Offered | D16: Pricing Methdology | E16: Price for the Service | F16: Cost for the Service
A17: From | B17: To
E18: $ | F18: $
A19: Town of Goderiich | B19: West Coast Huron Energy | C19: Environment Tech | D19: 1/3 of actual cost | E19: 33600 | F19: 33600
A20: Town of Goderiich | B20: West Coast Huron Energy | C20: Admin Support | D20: % time allocated | E20: 41200 | F20: 41200
A21: Town of Goderiich | B21: West Coast Huron Energy | C21: Management fee | D21: % time allocated | E21: 40170 | F21: 40170
A22: West Coast Huron Energy | B22: Town of Goderich | C22: Billing/Collection of water/sewer revenue | D22: per bill fee | E22: 44000 | F22: 44000
A23: West Coast Huron Energy | B23: Town of Goderich | C23: Streetlight maintenance | D23: cost + 5% | E23: 52000 | F23: 49500
A28: Corporate Cost Allocation
A30: Name of Company | C30: Service Offered | D30: Pricing Methdology | E30: % of Corporate Costs Allocated | F30: Amount Allocated
A31: From | B31: To
E32: % | F32: $
A33: eg: parent company | B33: eg: regulated entity
A42: Note:
A43: 1 | B43: This appendix must be completed in relation to each service provided or received for the Historical (actuals), Bridge and Test years.

Sheet App.2-N Shared Services 11
F1: File Number: | G1: ='LDC Info'!$E$18 -> EB-2012-0175
F2: Exhibit:
F3: Tab:
F4: Schedule:
F5: Page:
F7: Date:
A9: Appendix 2-N
A10: Shared Services and Corporate Cost Allocation
B12: Year: | C12: 2011
A14: Shared Services
A16: Name of Company | C16: Service Offered | D16: Pricing Methdology | E16: Price for the Service | F16: Cost for the Service
A17: From | B17: To
E18: $ | F18: $
A19: Town of Goderiich | B19: West Coast Huron Energy | C19: Environment Tech | D19: 1/3 of actual cost | E19: 30353 | F19: 30353
A20: Town of Goderiich | B20: West Coast Huron Energy | C20: Admin Support | D20: % time allocated | E20: 40000 | F20: 40000
A21: Town of Goderiich | B21: West Coast Huron Energy | C21: Management fee | D21: % time allocated | E21: 39000 | F21: 39000
A22: West Coast Huron Energy | B22: Town of Goderich | C22: Billing/Collection of water/sewer revenue | D22: per bill fee | E22: 40700 | F22: 40700
A23: West Coast Huron Energy | B23: Town of Goderich | C23: Streetlight maintenance | D23: cost + 5% | E23: 28576 | F23: 27215
A28: Corporate Cost Allocation
A30: Name of Company | C30: Service Offered | D30: Pricing Methdology | E30: % of Corporate Costs Allocated | F30: Amount Allocated
A31: From | B31: To
E32: % | F32: $
A33: eg: parent company | B33: eg: regulated entity
A42: Note:
A43: 1 | B43: This appendix must be completed in relation to each service provided or received for the Historical (actuals), Bridge and Test years.

Sheet App.2-N_Shared Services 10
F1: File Number: | G1: ='LDC Info'!$E$18 -> EB-2012-0175
F2: Exhibit:
F3: Tab:
F4: Schedule:
F5: Page:
F7: Date:
A9: Appendix 2-N
A10: Shared Services and Corporate Cost Allocation
B12: Year: | C12: 2010
A14: Shared Services
A16: Name of Company | C16: Service Offered | D16: Pricing Methdology | E16: Price for the Service | F16: Cost for the Service
A17: From | B17: To
E18: $ | F18: $
A19: Town of Goderiich | B19: West Coast Huron Energy | C19: Environment Tech | D19: 1/3 of actual cost | E19: 28007 | F19: 28007
A20: Town of Goderiich | B20: West Coast Huron Energy | C20: Admin Support | D20: % time allocated | E20: 40000 | F20: 40000
A21: Town of Goderiich | B21: West Coast Huron Energy | C21: Management fee | D21: % time allocated | E21: 39000 | F21: 39000
A22: West Coast Huron Energy | B22: Town of Goderich | C22: Billing/Collection of water/sewer revenue | D22: per bill fee | E22: 27536 | F22: 27536
A23: West Coast Huron Energy | B23: Town of Goderich | C23: Streetlight maintenance | D23: cost + 5% | E23: 27201 | F23: 25906
A28: Corporate Cost Allocation
A30: Name of Company | C30: Service Offered | D30: Pricing Methdology | E30: % of Corporate Costs Allocated | F30: Amount Allocated
A31: From | B31: To
E32: % | F32: $
A33: eg: parent company | B33: eg: regulated entity
A42: Note:
A43: 1 | B43: This appendix must be completed in relation to each service provided or received for the Historical (actuals), Bridge and Test years.

Sheet App.2-N_Shared Services 09
F1: File Number: | G1: ='LDC Info'!$E$18 -> EB-2012-0175
F2: Exhibit:
F3: Tab:
F4: Schedule:
F5: Page:
F7: Date:
A9: Appendix 2-N
A10: Shared Services and Corporate Cost Allocation
B12: Year: | C12: 2009
A14: Shared Services
A16: Name of Company | C16: Service Offered | D16: Pricing Methdology | E16: Price for the Service | F16: Cost for the Service
A17: From | B17: To
E18: $ | F18: $
A19: Town of Goderiich | B19: West Coast Huron Energy | C19: Environment Tech | D19: 1/3 of actual cost | E19: 30095 | F19: 30095
A20: Town of Goderiich | B20: West Coast Huron Energy | C20: Admin Support | D20: % time allocated | E20: 40000 | F20: 40000
A21: Town of Goderiich | B21: West Coast Huron Energy | C21: Management fee | D21: % time allocated | E21: 39000 | F21: 39000
A22: West Coast Huron Energy | B22: Town of Goderich | C22: Billing/Collection of water/sewer revenue | D22: per bill fee | E22: 27263 | F22: 27263
A23: West Coast Huron Energy | B23: Town of Goderich | C23: Streetlight maintenance | D23: cost + 5% | E23: 23946 | F23: 22806
A28: Corporate Cost Allocation
A30: Name of Company | C30: Service Offered | D30: Pricing Methdology | E30: % of Corporate Costs Allocated | F30: Amount Allocated
A31: From | B31: To
E32: % | F32: $
A33: eg: parent company | B33: eg: regulated entity
A42: Note:
A43: 1 | B43: This appendix must be completed in relation to each service provided or received for the Historical (actuals), Bridge and Test years.

Sheet App.2-OA Capital Structure 09
K1: File Number: | O1: ='LDC Info'!$E$18 -> EB-2012-0175
K2: Exhibit:
K3: Tab:
K4: Schedule:
K5: Page:
K7: Date:
C10: Appendix 2-OA
C11: Capital Structure and Cost of Capital - 2009
A13: This table must be completed for the required years of all historical years, the bridge year and the test year.
A15: Line No.
C16: Particulars | E16: Capitalization Ratio | K16: Cost Rate | O16: Return
C19: Application
E20: (%) | I20: ($) | K20: (%) | O20: ($)
C21: Debt
A22: 1 | C22: Long-term Debt | E22: 0.527 | I22: =$I$31*E22 -> 2829447.717 | K22: 0.0762 | O22: =K22*I22 -> 215603.916
A23: 2 | C23: Short-term Debt | E23: 0.04 | G23: (1) | I23: =$I$31*E23 -> 214758.84 | K23: 0.0133 | O23: =K23*I23 -> 2856.292572
A24: 3 | C24: Total Debt | E24: =SUM(E22:E23) -> 0.567 | I24: =SUM(I22:I23) -> 3044206.557 | K24: =IF(E24=0,0,SUMPRODUCT(E22:E23,K22:K23)/E24) -> 0.07176261023 | O24: =SUM(O22:O23) -> 218460.2086
C26: Equity
A27: 4 | C27: Common Equity | E27: 0.433 | I27: =$I$31*E27 -> 2324764.443 | K27: 0.0801 | O27: =K27*I27 -> 186213.6319
A28: 5 | C28: Preferred Shares | I28: =$I$31*E28 -> 0 | O28: =K28*I28 -> 0
A29: 6 | C29: Total Equity | E29: =SUM(E27:E28) -> 0.433 | I29: =SUM(I27:I28) -> 2324764.443 | K29: =IF(E29=0,0,SUMPRODUCT(E27:E28,K27:K28)/E29) -> 0.0801 | O29: =SUM(O27:O28) -> 186213.6319
A31: 7 | C31: Total | E31: 1 | I31: 5368971 | K31: =(K24*E24)+(K29*E29) -> 0.0753727 | O31: =O24+O29 -> 404673.8405
A34: Notes
A35: (1) | C35: 4.0% unless an applicant has proposed or been approved for a different amount.

Sheet App.2-OA Capital Structure 10
K1: File Number: | O1: ='LDC Info'!$E$18 -> EB-2012-0175
K2: Exhibit:
K3: Tab:
K4: Schedule:
K5: Page:
K7: Date:
C10: Appendix 2-OA
C11: Capital Structure and Cost of Capital - 2010
A13: This table must be completed for the required years of all historical years, the bridge year and the test year.
A15: Line No.
C16: Particulars | E16: Capitalization Ratio | K16: Cost Rate | O16: Return
C19: Application
E20: (%) | I20: ($) | K20: (%) | O20: ($)
C21: Debt
A22: 1 | C22: Long-term Debt | E22: 0.56 | I22: =$I$31*E22 -> 2995414.8 | K22: 0.0587 | O22: =K22*I22 -> 175830.8488
A23: 2 | C23: Short-term Debt | E23: 0.04 | G23: (1) | I23: =$I$31*E23 -> 213958.2 | K23: 0.0207 | O23: =K23*I23 -> 4428.93474
A24: 3 | C24: Total Debt | E24: =SUM(E22:E23) -> 0.6 | I24: =SUM(I22:I23) -> 3209373 | K24: =IF(E24=0,0,SUMPRODUCT(E22:E23,K22:K23)/E24) -> 0.05616666667 | O24: =SUM(O22:O23) -> 180259.7835
C26: Equity
A27: 4 | C27: Common Equity | E27: 0.4 | I27: =$I$31*E27 -> 2139582 | K27: 0.0985 | O27: =K27*I27 -> 210748.827
A28: 5 | C28: Preferred Shares | I28: =$I$31*E28 -> 0 | O28: =K28*I28 -> 0
A29: 6 | C29: Total Equity | E29: =SUM(E27:E28) -> 0.4 | I29: =SUM(I27:I28) -> 2139582 | K29: =IF(E29=0,0,SUMPRODUCT(E27:E28,K27:K28)/E29) -> 0.0985 | O29: =SUM(O27:O28) -> 210748.827
A31: 7 | C31: Total | E31: 1 | I31: 5348955 | K31: =(K24*E24)+(K29*E29) -> 0.0731 | O31: =O24+O29 -> 391008.6105
A34: Notes
A35: (1) | C35: 4.0% unless an applicant has proposed or been approved for a different amount.

Sheet App.2-OA Capital Structure 11
K1: File Number: | O1: ='LDC Info'!$E$18 -> EB-2012-0175
K2: Exhibit:
K3: Tab:
K4: Schedule:
K5: Page:
K7: Date:
C10: Appendix 2-OA
C11: Capital Structure and Cost of Capital - 2011
A13: This table must be completed for the required years of all historical years, the bridge year and the test year.
A15: Line No.
C16: Particulars | E16: Capitalization Ratio | K16: Cost Rate | O16: Return
C19: Application
E20: (%) | I20: ($) | K20: (%) | O20: ($)
C21: Debt
A22: 1 | C22: Long-term Debt | E22: 0.56 | I22: =$I$31*E22 -> 3656923.76 | K22: 0.0548 | O22: =K22*I22 -> 200399.422
A23: 2 | C23: Short-term Debt | E23: 0.04 | G23: (1) | I23: =$I$31*E23 -> 261208.84 | K23: 0.0243 | O23: =K23*I23 -> 6347.374812
A24: 3 | C24: Total Debt | E24: =SUM(E22:E23) -> 0.6 | I24: =SUM(I22:I23) -> 3918132.6 | K24: =IF(E24=0,0,SUMPRODUCT(E22:E23,K22:K23)/E24) -> 0.05276666667 | O24: =SUM(O22:O23) -> 206746.7969
C26: Equity
A27: 4 | C27: Common Equity | E27: 0.4 | I27: =$I$31*E27 -> 2612088.4 | K27: 0.0966 | O27: =K27*I27 -> 252327.7394
A28: 5 | C28: Preferred Shares | I28: =$I$31*E28 -> 0 | O28: =K28*I28 -> 0
A29: 6 | C29: Total Equity | E29: =SUM(E27:E28) -> 0.4 | I29: =SUM(I27:I28) -> 2612088.4 | K29: =IF(E29=0,0,SUMPRODUCT(E27:E28,K27:K28)/E29) -> 0.0966 | O29: =SUM(O27:O28) -> 252327.7394
A31: 7 | C31: Total | E31: 1 | I31: 6530221 | K31: =(K24*E24)+(K29*E29) -> 0.0703 | O31: =O24+O29 -> 459074.5363
A34: Notes
A35: (1) | C35: 4.0% unless an applicant has proposed or been approved for a different amount.

Sheet App.2-OA Capital Structure 12
K1: File Number: | O1: ='LDC Info'!$E$18 -> EB-2012-0175
K2: Exhibit:
K3: Tab:
K4: Schedule:
K5: Page:
K7: Date:
C10: Appendix 2-OA
C11: Capital Structure and Cost of Capital - 2012
A13: This table must be completed for the required years of all historical years, the bridge year and the test year.
A15: Line No.
C16: Particulars | E16: Capitalization Ratio | K16: Cost Rate | O16: Return
C19: Application
E20: (%) | I20: ($) | K20: (%) | O20: ($)
C21: Debt
A22: 1 | C22: Long-term Debt | E22: 0.56 | I22: =$I$31*E22 -> 5526438.96 | K22: 0.0441 | O22: =K22*I22 -> 243715.9581
A23: 2 | C23: Short-term Debt | E23: 0.04 | G23: (1) | I23: =$I$31*E23 -> 394745.64 | K23: 0.0208 | O23: =K23*I23 -> 8210.709312
A24: 3 | C24: Total Debt | E24: =SUM(E22:E23) -> 0.6 | I24: =SUM(I22:I23) -> 5921184.6 | K24: =IF(E24=0,0,SUMPRODUCT(E22:E23,K22:K23)/E24) -> 0.04254666667 | O24: =SUM(O22:O23) -> 251926.6674
C26: Equity
A27: 4 | C27: Common Equity | E27: 0.4 | I27: =$I$31*E27 -> 3947456.4 | K27: 0.0912 | O27: =K27*I27 -> 360008.0237
A28: 5 | C28: Preferred Shares | I28: =$I$31*E28 -> 0 | O28: =K28*I28 -> 0
A29: 6 | C29: Total Equity | E29: =SUM(E27:E28) -> 0.4 | I29: =SUM(I27:I28) -> 3947456.4 | K29: =IF(E29=0,0,SUMPRODUCT(E27:E28,K27:K28)/E29) -> 0.0912 | O29: =SUM(O27:O28) -> 360008.0237
A31: 7 | C31: Total | E31: 1 | I31: 9868641 | K31: =(K24*E24)+(K29*E29) -> 0.062008 | O31: =O24+O29 -> 611934.6911
A34: Notes
A35: (1) | C35: 4.0% unless an applicant has proposed or been approved for a different amount.

Sheet App.2-OA Capital Structure 13
K1: File Number: | O1: ='LDC Info'!$E$18 -> EB-2012-0175
K2: Exhibit:
K3: Tab:
K4: Schedule:
K5: Page:
K7: Date:
C10: Appendix 2-OA
C11: Capital Structure and Cost of Capital - 2013
A13: This table must be completed for the required years of all historical years, the bridge year and the test year.
A15: Line No.
C16: Particulars | E16: Capitalization Ratio | K16: Cost Rate | O16: Return
C19: Application
E20: (%) | I20: ($) | K20: (%) | O20: ($)
C21: Debt
A22: 1 | C22: Long-term Debt | E22: 0.56 | I22: =$I$31*E22 -> 6218864.96 | K22: 0.0441 | O22: =K22*I22 -> 274251.9447
A23: 2 | C23: Short-term Debt | E23: 0.04 | G23: (1) | I23: =$I$31*E23 -> 444204.64 | K23: 0.0208 | O23: =K23*I23 -> 9239.456512
A24: 3 | C24: Total Debt | E24: =SUM(E22:E23) -> 0.6 | I24: =SUM(I22:I23) -> 6663069.6 | K24: =IF(E24=0,0,SUMPRODUCT(E22:E23,K22:K23)/E24) -> 0.04254666667 | O24: =SUM(O22:O23) -> 283491.4012
C26: Equity
A27: 4 | C27: Common Equity | E27: 0.4 | I27: =$I$31*E27 -> 4442046.4 | K27: 0.0912 | O27: =K27*I27 -> 405114.6317
A28: 5 | C28: Preferred Shares | I28: =$I$31*E28 -> 0 | O28: =K28*I28 -> 0
A29: 6 | C29: Total Equity | E29: =SUM(E27:E28) -> 0.4 | I29: =SUM(I27:I28) -> 4442046.4 | K29: =IF(E29=0,0,SUMPRODUCT(E27:E28,K27:K28)/E29) -> 0.0912 | O29: =SUM(O27:O28) -> 405114.6317
A31: 7 | C31: Total | E31: 1 | I31: 11105116 | K31: =(K24*E24)+(K29*E29) -> 0.062008 | O31: =O24+O29 -> 688606.0329
A34: Notes
A35: (1) | C35: 4.0% unless an applicant has proposed or been approved for a different amount.

Sheet App.2-OB_Debt Instruments 12
J1: File Number: | K1: ='LDC Info'!$E$18 -> EB-2012-0175
J2: Exhibit:
J3: Tab:
J4: Schedule:
J5: Page:
J7: Date:
A10: Appendix 2-OB
A11: Debt Instruments
A13: This table must be completed for the required years of all historical years, the bridge year and the test year.
D14: Year | E14: 2012
A16: Row | B16: Description | C16: Lender | D16: Affiliated or Third-Party Debt? | E16: Fixed or Variable-Rate? | F16: Start Date | G16: Term (years) | H16: Principal ($) | I16: Rate (%) (Note 2) | J16: Interest ($) (Note 1)
A17: 1 | B17: Note payable | C17: Town of Goderich | D17: Affiliated | E17: Fixed Rate | F17: 2000-01-01 | H17: 974454 | I17: 0.0725 | J17: =H17*I17 -> 70647.915
A18: 2 | B18: Demand facility | C18: Bank | D18: Third-Party | E18: Variable Rate | F18: 2011-10-01 | H18: 1000000 | I18: 0.03 | J18: =H18*I18 -> 30000 | K18: prime
A19: 3 | B19: Short term debt | C19: Bank | D19: Third-Party | E19: Variable Rate | F19: 2011-10-01 | H19: 752584 | I19: 0.03 | J19: 22577.52 | K19: prime
A20: 4 | J20: 0
A21: 5 | B21: Additonal borrowing | H21: 3015000 | I21: 0.05 | J21: 150750 | K21: estimated rate
A22: 6 | J22: 0
A23: 7 | J23: 0
A24: 8 | J24: 0
A25: 9 | J25: 0
A26: 10 | J26: 0
A27: 11 | J27: 0
A28: 12 | J28: 0
A30: Total | H30: =SUM(H17:H28) -> 5742038 | I30: =IF(H30=0,"",J30/H30) -> 0.04771397107 | J30: =SUM(J17:J28) -> 273975.435
A32: Notes
A34: 1 | B34: If financing is in place only part of the year, calculate the pro-rated interest and input in the cell.
A35: 2 | B35: Input actual or deemed long-term debt rate in accordance with the guidelines in The Report of the Board on the Cost of Capital for Ontario's Regulated Utilities, issued December 11, 2009
A36: 3 | B36: Add more lines above row 12 if necessary.

Sheet App.2-OB_Debt Instruments 09
J1: File Number: | K1: ='LDC Info'!$E$18 -> EB-2012-0175
J2: Exhibit:
J3: Tab:
J4: Schedule:
J5: Page:
J7: Date:
A10: Appendix 2-OB
A11: Debt Instruments
A13: This table must be completed for the required years of all historical years, the bridge year and the test year.
D14: Year | E14: 2009
A16: Row | B16: Description | C16: Lender | D16: Affiliated or Third-Party Debt? | E16: Fixed or Variable-Rate? | F16: Start Date | G16: Term (years) | H16: Principal ($) | I16: Rate (%) (Note 2) | J16: Interest ($) (Note 1)
A17: 1 | B17: Note payable | C17: Town of Goderich | D17: Affiliated | E17: Fixed Rate | F17: 2000-01-01 | H17: 974454 | I17: 0.0725 | J17: =H17*I17 -> 70647.915
A18: 2 | J18: =H18*I18 -> 0
A19: 3 | J19: 0
A20: 4 | J20: 0
A21: 5 | J21: 0
A22: 6 | J22: 0
A23: 7 | J23: 0
A24: 8 | J24: 0
A25: 9 | J25: 0
A26: 10 | J26: 0
A27: 11 | J27: 0
A28: 12 | J28: 0
A30: Total | H30: =SUM(H17:H28) -> 974454 | I30: =IF(H30=0,"",J30/H30) -> 0.0725 | J30: =SUM(J17:J28) -> 70647.915
A32: Notes
A34: 1 | B34: If financing is in place only part of the year, calculate the pro-rated interest and input in the cell.
A35: 2 | B35: Input actual or deemed long-term debt rate in accordance with the guidelines in The Report of the Board on the Cost of Capital for Ontario's Regulated Utilities, issued December 11, 2009
A36: 3 | B36: Add more lines above row 12 if necessary.

Sheet App.2-P_Cost_Allocation
E1: File Number: | F1: ='LDC Info'!$E$18 -> EB-2012-0175
E2: Exhibit:
E3: Tab:
E4: Schedule:
E5: Page:
E7: Date:
A9: Appendix 2-P
A10: Cost Allocation
A12: Please complete the following four tables.
A14: A) Allocated Costs
A16: Classes | B16: Costs Allocated from Previous Study | C16: % | D16: Costs Allocated in Test Year Study (Column 7A) | E16: %
A17: Residential | B17: 1069427 | C17: =IF(B$28=0,"",B17/B$28) -> 0.4837007282 | D17: 1388371 | E17: =IF(D$28=0,"",D17/D$28) -> 0.5241252128
A18: GS < 50 kW | B18: 392520 | C18: =IF(B$28=0,"",B18/B$28) -> 0.1775363908 | D18: 339665 | E18: 0.1282272465
A19: GS > 50 kW (or 50 kW < GS < 499 kW, if applicable) | B19: 348569 | C19: 0.1576573989 | D19: 215927 | E19: 0.08151480032
A20: GS 500-4999 kW, if applicable | B20: 144419 | C20: 0.06532056463 | D20: 75001 | E20: 0.02831369647
A21: Large User, if applicable | B21: 184464 | C21: 0.0834328768 | D21: 442647 | E21: 0.167104076
A22: Street Lighting | B22: 61513 | C22: 0.02782226641 | D22: 172352 | E22: 0.065064762
A23: Sentinel Lighting | B23: 1555 | C23: 0.0007033248949 | D23: 3667 | E23: 0.001384332542
A24: Unmetered Scattered Load (USL) | B24: 8460 | C24: 0.003826449268 | D24: 11302 | E24: 0.004266628412
C25: 0 | E25: 0
C26: 0 | E26: 0
C27: 0 | E27: 0
A28: Total | B28: =SUM(B17:B27) -> 2210927 | C28: =SUM(C17:C27) -> 1 | D28: 2648930 | E28: =SUM(E17:E27) -> 1.000000755
A30: Notes
A32: 1 Customer Classification - If proposed rate classes differ from those in place in the previous Cost Allocation study, modify the rate classes to match the current application as closely as possible.
A35: 2 Host Distributors - Provide information on embedded distributor(s) as a separate class, if applicable. If embedded distributor(s) are billed as customers in a General Service class, include the allocated cost and revenue of the embedded distributor(s) in the applicable class. Also complete Appendix 2-Q.
A39: 3 Class Revenue Requirements - If using the Board-issued model, in column 7A enter the results from Worksheet O-1, Revenue Requirement (row 40 in the 2013 model). This excludes costs in deferral and variance accounts. Note to Embedded Distributor(s), it also does not include Account 4750 - Low Voltage (LV) Costs.
A43: B) Calculated Class Revenues
C45: Column 7B | D45: Column 7C | E45: Column 7D | F45: Column 7E
A46: Classes (same as previous table) | C46: Load Forecast (LF) X current approved rates | D46: L.F. X current approved rates X (1 + d) | E46: LF X proposed rates | F46: Miscellaneous Revenue
A48: =A17 -> Residential | C48: 1041877 | D48: =+C48*1.2444 -> 1296511.739 | E48: 1296513 | F48: 62259
A49: GS < 50 kW | C49: 354796 | D49: =+C49*1.2444 -> 441508.1424 | E49: 410523 | F49: 14623
A50: GS > 50 kW (or 50 kW < GS < 499 kW, if applicable) | C50: 317157 | D50: 394670.1708 | E50: 317157 | F50: 8098
A51: GS 500-4999 kW, if applicable | C51: 136445 | D51: 169792.158 | E51: 136445 | F51: 3976
A52: Large User, if applicable | C52: 214882 | D52: 267399.1608 | E52: 357464 | F52: 9386
A53: Street Lighting | C53: 58832 | D53: 73210.5408 | E53: 119024 | F53: 5406
A54: Sentinel Lighting | C54: 546 | D54: 679.4424 | E54: 2895 | F54: 193
A55: Unmetered Scattered Load (USL) | C55: 4143 | D55: 5155.5492 | E55: 8909 | F55: 660
A58: =A27 -> 0
A59: =A28 -> Total | C59: =SUM(C48:C58) -> 2128678 | D59: 2648930 | E59: =SUM(E48:E58) -> 2648930 | F59: =SUM(F48:F58)-1 -> 104600
A61: Notes:
A63: 1 Columns 7B to 7D - LF means Load Forecast of Annual Billing Quantities (i.e. customers or connections X 12, (kWh or kW, as applicable). Revenue Quantities should be net of Transfomrer Ownership Allowance. Exclude revenue from rate adders and rate riders.
A66: 2 Columns 7C and 7D - Column total in each column should equal the Base Revenue Requirement
A68: 3 Columns 7C - The Board cost allocation model calculates "1+d" in worksheet O-1, cell C21. "d" is defined as Revenue Deficiency/ Revenue at Current Rates.
A71: 4 Columns 7E - If using the Board-issued Cost Allocation model, enter Miscellaneous Revenue as it appears in Worksheet O-1, row 19.
A74: C) Rebalancing Revenue-to-Cost (R/C) Ratios
A76: Class | C76: Previously Approved Ratios | D76: Status Quo Ratios | E76: Proposed Ratios | F76: Policy Range
C77: Most Recent Year: | D77: (7C + 7E) / (7A) | E77: (7D + 7E) / (7A)
C78: 2009
C79: % | D79: % | E79: % | F79: %
A80: =A48 -> Residential | C80: 92.37 | D80: =IF(D17=0,"",(D48+F48)/D17*100) -> 97.86798621 | E80: =IF(D17=0,"",(E48+F48)/D17*100) -> 97.86807705 | F80: 85 - 115
A81: GS < 50 kW | C81: 91.09 | D81: =IF(D18=0,"",(D49+F49)/D18*100) -> 134.2885321 | E81: 125.1662668 | F81: 80 - 120
A82: GS > 50 kW (or 50 kW < GS < 499 kW, if applicable) | C82: 175.11 | D82: 186.5297859 | E82: 150.6319265 | F82: 80 - 120
A83: GS 500-4999 kW, if applicable | C83: 180 | D83: 231.6877882 | E83: 187.2255037 | F83: 80 - 120
A84: Large User, if applicable | C84: 75 | D84: 62.5295463 | E84: 82.87642297 | F84: 85 - 115
A85: Street Lighting | C85: 72.29 | D85: 45.6139417 | E85: 72.19527479 | F85: 70 - 120
A86: Sentinel Lighting | C86: 96.74 | D86: 23.79172075 | E86: 84.21052632 | F86: 80 - 120
A87: Unmetered Scattered Load (USL) | C87: 82.62 | D87: 51.45592992 | E87: 84.66643072 | F87: 80 - 120
A88: 0
A90: =A58 -> 0
A92: Notes
A94: 1 Previously Approved Revenue-to-Cost Ratios - For most applicants, Most Recent Year would be the third year of the IRM 3 period, e.g. if the applicant rebased in 2009 with further adjustments over 2 years, the Most recent year is 2011. For applicants that have had rates adjusted only under IRM 2, the Most Recent Year is 2006, and the applicant should enter the ratios from their Informational Filing.
A97: 2 Status Quo Ratios - The Board's updated Cost Allocation Model yields the Status Quo Ratios in Worksheet O-1. Status Quo means "Before Rebalancing".
A99: D) Proposed Revenue-to-Cost Ratios
A101: Class | C101: Proposed Revenue-to-Cost Ratios | F101: Policy Range
C102: 2013 | D102: 2014 | E102: 2015
C103: % | D103: % | E103: % | F103: %
A104: =A80 -> Residential | C104: =E80 -> 97.86807705 | F104: =F80 -> 85 - 115
A105: =A81 -> GS < 50 kW | C105: =E81 -> 125.1662668 | F105: =F81 -> 80 - 120
A106: GS > 50 kW (or 50 kW < GS < 499 kW, if applicable) | C106: 150.6319265 | F106: 80 - 120
A107: GS 500-4999 kW, if applicable | C107: 187.2255037 | F107: 80 - 120
A108: Large User, if applicable | C108: 82.87642297 | F108: 85 - 115
A109: Street Lighting | C109: 72.19527479 | F109: 70 - 120
A110: Sentinel Lighting | C110: 84.21052632 | F110: 80 - 120
A111: Unmetered Scattered Load (USL) | C111: 84.66643072 | F111: 80 - 120
A112: 0 | F112: =F88 -> 0
F113: =F89 -> 0
A114: 0
A116: Note
A117: 1 The applicant should complete Table D if it is applying for approval of a revenue to cost ratio in 2012 that is outside the Board’s policy range for any customer class. Table (d) will show the information that the distributor would likely enter in the IRM model) in 2013. In 2013 Table (d), enter the planned ratios for the classes that will be ‘Change’ and ‘No Change’ in 2013 (in the current Revenue Cost Ratio Adjustment Workform, Worksheet C1.1 ‘Decision – Cost Revenue Adjustment’, column d), and enter TBD for class(es) that will be entered as ‘Rebalance’.

Sheet App.2-Q_Cost of Serv. Emb. Dx
F1: File Number: | G1: ='LDC Info'!$E$18 -> EB-2012-0175
F2: Exhibit:
F3: Tab:
F4: Schedule:
F5: Page:
F7: Date:
A9: Appendix 2-Q
A10: Cost of Serving Embedded Distributor(s)
A12: To be completed by Host Distributors*
A13: (Not required if Host Distributor has an Embedded Distributor rate class, i.e. a separate row in Appendix 2-P.)
A17: Proposed Rate Class for Billing Embedded Distributor(s)
A19: Host's Distribution Facilities used by Embedded Distributor(s)
A21: (1) | B21: (2) | C21: (3) | D21: (4) | E21: (5) | F21: (6) = '(3) + (4)
A22: Asset Class | B22: Total OM&A costs asociated with asset class | C22: Original cost of asset class | D22: Accumulated amortization of asset class | E22: Annual amortization of asset class | F22: Net Book Value of asset class
A23: Totals for Host Distributor: | B23: ($) | C23: ($) | D23: ($) | E23: ($)
A24: Distribution Stations | F24: =C24+D24 -> 0
A25: Low Voltage Line | F25: 0
A26: LV Line category # 2 (if applcable) | F26: 0
A27: TS (owned by host) | F27: 0
A28: add rows if necessary... | F28: 0
F29: 0
F30: 0
A32: (1) | B32: (7) | C32: (8) | D32: (9) | E32: (10) | F32: (11)
A33: =A22 -> Asset Class | B33: Total line length or station capacity in asset class | C33: Line length or capacity required to provide LV service to Embedded Distributor(s) | D33: Annual total demand on station/line providing LV services (sum of 12 monthly peaks) | E33: Annual billed Embedded Distributor demand on station/line providing LV services | F33: Embedded Distributor(s)' Responsibility Share
A34: Embedded Distributor's share: | B34: kW or kVa; km | C34: kW or kVA; km | D34: kW or kVA | E34: kW or kVA | F34: percent
A35: Distribution Stations | F35: =IF(D35=0,0,(C35/B35)*(E35/D35)) -> 0
A36: Low Voltage Line | F36: =IF(D36=0,0,(C36/B36)*(E36/D36)) -> 0
A37: LV Line # 2 (if applicable) | F37: =IF(D37=0,0,(C37/B37)*(E37/D37)) -> 0
A38: TS (owned by host) | F38: =IF(D38=0,0,(C38/B38)*(E38/D38)) -> 0
A39: add rows if necessary | F39: =IF(D39=0,0,(C39/B39)*(E39/D39)) -> 0
A41: (1) | B41: (12) | C41: (12a) | D41: (13) | E41: (14) | F41: (15) | G41: (16)
A42: =A33 -> Asset Class | B42: Return on Assets used to Provide LV services | C42: Taxes/PILs | D42: Annual amortization on assets used to provide LV services | E42: OM&A costs with burden associated with assets used to provide LV services | F42: Total annual cost associated with assets used to provide LV services | G42: Monthly cost associated with the delivery of LV services
B43: ($) | C43: ($) | D43: ($) | E43: ($) | F43: ($) | G43: $/kW or $/kVA
A44: Distribution Stations | B44: =E$55*(F24+B24*E$60)*F35 -> 0 | C44: =(B44-(B$55*C$55*F35*(F24+B24*E58)+B$56*C$56*F35*(F24+B24*E$58)))*E$58/(1-E$58) -> 0 | D44: =E24*F35 -> 0 | E44: =B24*F35 -> 0 | F44: =SUM(B44:E44) -> 0 | G44: =IF(E35=0,0,(D44/E35)) -> 0
A45: Low Voltage Line | B45: =E$55*(F25+B25*E$60)*F36 -> 0 | C45: =(B45-(B$55*C$55*F36*(F25+B25*E59)+B$56*C$56*F36*(F25+B25*E59)))*E$58/(1-E$58) -> 0 | D45: =E25*F36 -> 0 | E45: =B25*F36 -> 0 | F45: =SUM(B45:E45) -> 0 | G45: =IF(E36=0,0,(D45/E36)) -> 0
A46: LV Line # 2 (if applicable) | B46: =E$55*(F26+B26*E$60)*F37 -> 0 | C46: =(B46-(B$55*C$55*F37*(F26+B26*E60)+B$56*C$56*F37*(F26+B26*E$60)))*E$58/(1-E$58) -> 0 | D46: =E26*F37 -> 0 | E46: =B26*F37 -> 0 | F46: =SUM(B46:E46) -> 0 | G46: =IF(E37=0,0,(D46/E37)) -> 0
A47: TS (owned by host) | B47: =E$55*(F27+B27*E$60)*F38 -> 0 | C47: =(B47-(B$55*C$55*F38*(F27+B27*E61)+B$56*C$56*F38*(F27+B27*E61)))*E$58/(1-E$58) -> 0 | D47: =E27*F38 -> 0 | E47: =B27*F38 -> 0 | F47: =SUM(B47:E47) -> 0 | G47: =IF(E38=0,0,(D47/E38)) -> 0
A48: add rows if necessary | B48: =E$55*(F28+B28*E$60)*F39 -> 0 | C48: =(B48-(B$55*C$55*F39*(F28+B28*I62)+B$56*C$56*F39*(F28+B28*I62)))*E$58/(1-E$58) -> 0 | D48: =E28*F39 -> 0 | E48: =B28*F39 -> 0 | F48: =SUM(B48:E48) -> 0 | G48: =IF(E39=0,0,(D48/E39)) -> 0
A50: Total | F50: =SUM(F44:F48) -> 0 | G50: =SUM(G44:G48) -> 0
A52: (17) | B52: (18) | C52: (19) | D52: (20) | E52: (21)
B53: Capital Structure | C53: Cost Rate
B54: (%) | C54: (%) | E54: (%)
A55: Long-Term Debt | D55: Weighted Average Cost of Capital | E55: =IF(B61=0%,0,SUMPRODUCT(B55:B59,C55:C59)/B61) -> 0
A56: Short-term Debt
A58: Common Equity | D58: Tax/PILs Rate
A59: Preferred Shares
D60: Working Capital Allowance Factor
A61: Total | B61: =SUM(B55:B59) -> 0

Sheet App.2-R_Loss Factors
G1: File Number: | H1: ='LDC Info'!$E$18 -> EB-2012-0175
G2: Exhibit:
G3: Tab:
G4: Schedule:
G5: Page:
G7: Date:
A9: Appendix 2-R
A10: Loss Factors
C14: Historical Years | H14: 5-Year Average
C15: =IF(ISBLANK('LDC Info'!E26-5), "Year 5", 'LDC Info'!E26-5) -> 2007 | D15: =IF(ISBLANK('LDC Info'!E26-4), "Year 5", 'LDC Info'!E26-4) -> 2008 | E15: =IF(ISBLANK('LDC Info'!E26-3), "Year 5", 'LDC Info'!E26-3) -> 2009 | F15: =IF(ISBLANK('LDC Info'!E26-2), "Year 5", 'LDC Info'!E26-2) -> 2010 | G15: =IF(ISBLANK('LDC Info'!E26-1), "Year 5", 'LDC Info'!E26-1) -> 2011
B16: Losses Within Distributor's System
A17: A(1) | B17: "Wholesale" kWh delivered to distributor (higher value) | C17: 150210128 | D17: 158943653 | E17: 160147594 | F17: 143170517 | G17: 149114365 | H17: =IF(SUM(C17:G17)=0,0,AVERAGE(C17:G17)) -> 152317251.4
A18: A(2) | B18: "Wholesale" kWh delivered to distributor (lower value) | C18: 150210128 | D18: 158943653 | E18: 160147594 | F18: 143170517 | G18: 149114365 | H18: =IF(SUM(C18:G18)=0,0,AVERAGE(C18:G18)) -> 152317251.4
A19: B | B19: Portion of "Wholesale" kWh delivered to distributor for its Large Use Customer(s) | C19: 62029064 | D19: 69504960 | E19: 75068856 | F19: 60219889 | G19: 68188925 | H19: =IF(SUM(C19:G19)=0,0,AVERAGE(C19:G19)) -> 67002338.8
A20: C | B20: Net "Wholesale" kWh delivered to distributor = A(2) - B | C20: =C18-C19 -> 88181064 | D20: 89438693 | E20: 85078738 | F20: 82950628 | G20: 80925440 | H20: 85314912.6
A21: D | B21: "Retail" kWh delivered by distributor | C21: 82588100 | D21: 91774459 | E21: 94418183 | F21: 79127580 | G21: 85610621 | H21: =IF(SUM(C21:G21)=0,0,AVERAGE(C21:G21)) -> 86703788.6
A22: E | B22: Portion of "Retail" kWh delivered by distributor to its Large Use Customer(s) | C22: 62029064 | D22: 69504960 | E22: 75068856 | F22: 60219889 | G22: 68188925 | H22: =IF(SUM(C22:G22)=0,0,AVERAGE(C22:G22)) -> 67002338.8
A23: F | B23: Net "Retail" kWh delivered by distributor = D - E | C23: =C21-C22 -> 20559036 | D23: 22269499 | E23: 19349327 | F23: 18907691 | G23: 17421696 | H23: 19701449.8
A24: G | B24: Loss Factor in Distributor's system = C / F | C24: =IF(C23=0,"",C20/C23) -> 4.289163363 | D24: 4.016196907 | E24: 4.396986934 | F24: 4.387136853 | G24: 4.645095403 | H24: 4.330387533
B25: Losses Upstream of Distributor's System
A26: H | B26: Supply Facilities Loss Factor | C26: 1.045 | D26: 1.045 | E26: 1.045 | F26: 1.045 | G26: 1.045 | H26: =IF(SUM(C26:G26)=0,0,AVERAGE(C26:G26)) -> 1.045
B27: Total Losses
A28: I | B28: Total Loss Factor = G x H | C28: =IF(C24="","",C24*C26) -> 4.482175715 | D28: 4.196925768 | E28: 4.594851346 | F28: 4.584558012 | G28: 4.854124696 | H28: 4.525254972
A30: Notes
A33: A(1) | B33: If directly connected to the IESO-controlled grid, kWh pertains to the virtual meter on the primary or high voltage side of the transformer at the interface with the transmission grid. This corresponds to the "With Losses" kWh value provided by the IESO's MV-WEB. It is the higher of the two values provided by MV-WEB.
B37: If fully embedded within a host distributor, kWh pertains to the virtual meter on the primary or high voltage side of the transformer, at the interface between the host distributor and the transmission grid. For example, if the host distributor is Hydro One Networks Inc., kWh from the Hydro One Networks' invoice corresponding to "Total kWh w Losses" should be reported. This corresponds to the higher of the two kWh values provided in Hydro One Networks' invoice.
B42: If partially embedded, kWh pertains to the sum of the above.
A44: A(2) | B44: If directly connected to the IESO-controlled grid, kWh pertains to a metering installation on the secondary or low voltage side of the transformer at the interface with the transmission grid. This corresponds to the "Without Losses" kWh value provided by the IESO's MV-WEB. It is the lower of the two kWh values provided by MV-WEB.
B48: If fully embedded with the host distributor, kWh pertains to an actual or virtual meter at the interface between the embedded distributor and the host distributor. For example, if the host distributor is Hydro One Networks Inc., kWh from the Hydro One Networks' invoice corresponding to "Total kWh" should be reported. This corresponds to the lower of the two kWh values provided in Hydro One Networks' invoice.
B53: If partially embedded, kWh pertains to the sum of the above.
B55: Additionally, kWh pertaining to distributed generation directly connected to the distributor's own distribution network should be included in A(2).
A58: B | B58: If a Large Use Customer is metered on the secondary or low voltage side of the transformer, the default loss is 1% (i.e., B = 1.01 X E).
A61: D | B61: kWh corresponding to D should equal metered or estimated kWh at the customer’s delivery point.
A64: G and I | B64: These loss factors pertain to secondary-metered customers with demand less than 5,000 kW.
A66: H | B66: If directly connected to the IESO-controlled grid, SFLF = 1.0045.
B68: If fully embedded within a host distributor, SFLF = loss factor re losses in transformer at grid interface X loss factor re losses in host distributor's system. If the host distributor is Hydro One Networks Inc., SFLF = 1.0060 X 1.0278 = 1.0340. If partially embedded, SFLF should be calculated as the weighted average of above.
B72: Distributors that wish to propose a different SFLF should provide appropriate justification for any such proposal including supporting
B73: calculations and any other relevant material.

Sheet App.2-S_Stranded Meters
G1: File Number: | H1: ='LDC Info'!$E$18 -> EB-2012-0175
G2: Exhibit:
G3: Tab:
G4: Schedule:
G5: Page:
G7: Date:
A9: Appendix 2-S
A10: Stranded Meter Treatment
A12: Year | B12: Notes | C12: Gross Asset Value | D12: Accumulated Amortization | E12: Contributed Capital (Net of Amortization) | F12: Net Asset | G12: Proceeds on Disposition | H12: Residual Net Book Value
C13: (A) | D13: (B) | E13: (C) | F13: (D ) = (A) - (B) - (C) | G13: (E) | H13: (F) = (D) - (E)
A14: 2006 | F14: =C14-D14-E14 -> 0 | H14: =F14-G14 -> 0
A15: 2007 | F15: 0 | H15: 0
A16: 2008 | F16: 0 | H16: 0
A17: 2009 | F17: 0 | H17: 0
A18: 2010 | C18: 326079 | D18: 121940 | F18: 204139 | H18: 204139
A19: 2011 | F19: 0 | H19: 0
A20: 2012 | B20: (1) | F20: 0 | H20: 0
A22: Notes:
A24: (1) | B24: For 2012, please indicate whether the amounts provided are on a forecast or actual basis.
A26: Some distributors have transferred the cost of stranded meters from Account 1860 - Meters to "Sub-account Stranded Meter Costs of Account 1555", while in some cases distributors have left these costs in Account 1860. Depending on which treatment the applicant has chosen. please provide the information under either of the two scenarios (A and B below), as applicable.
A31: Scenario A: If the stranded meter costs were transferred to "Sub-account Stranded Meter Costs" of Account 1555, the above table should be completed and the following information should be provided.
A34: 1 | B34: A description of the accounting treatment followed by the applicant on stranded meter costs for financial accounting and reporting purposes.
B37: The net book value of stranded meteres was transferred to a sub account of 1555 in 2010
A39: 2 | B39: The amount of the pooled residual net book value of the removed from service stranded meters, less any contributed capital (net of accumulated amortization), and less any net proceeds from sales, which were transferred to this sub-account as of December 31, 2010.
B43: The pooled residual net book value of stranded meters less any contributed capital is $204139
A45: 3 | B45: A statement as to whether or not, since transferring the removed stranded meter costs to the sub-account, the recording of depreciation expenses was continued in order to reduce the net book value through accumulated depreciation. If so, the total depreciation expense amount for the period from the time the costs for the stranded meters were transferred to the sub-account to December 31, 2010 should be provided.
B50: No depreciation has been charged since the stranded meter amount was transferred
B51: to account #1555. Annual depreciation of $13126 for 2010 and $13,126 for 2011 would have been charged
B52: in the absence of the smart meter deployment resulting in the stranding of these meter costs
B54: If no depreciation expenses were recorded to reduce the net book value of stranded meter costs through accumulated depreciation, the total depreciation expense amount that would have been applicable from the time that the stranded meter costs were transferred to the sub-account of Account 1555 to December 31, 2010 should be provided. In addition, the following information should be provided:
B59: a) | C59: Whether or not carrying charges were recorded for the stranded meter cost balances in the sub-account, and if so, the total carrying charges recorded to December 31, 2010.
C62: Carrying charges of $3000 were charged for 2011
C63: Carrying charges were not charged for 2010
B65: b) | C65: The estimated amount of the pooled residual net book value of the removed from service meters, less any net proceeds from sales and contributed capital, at the time when the smart meters will have been fully deployed (e.g., as of December 31, 2010). If the smart meters have been fully deployed, the actual amount should be provided.
C70: The actual pooled residual amount at the time the smart meters were fully deployed was $204,139
B72: c) | C72: A description as to how the applicant intends to recover in rates the remaining costs for stranded meters, including the proposed accounting treatment, the proposed disposition period, and the associated bill impacts.
C76: Recovery of stranded meter costs will be requested in the Utility's cost of service application filed in 2012
A78: Scenario B: If the stranded meter costs remained recorded in Account 1860, the above table should be completed and the following information should be provided:
A81: 1 | B81: A description of the accounting treatment followed by the applicant on stranded meter costs for financial accounting and reporting purposes.
A84: 2 | B84: The amount of the pooled residual net book value of the removed from service stranded meters, less any contributed capital (net of accumulated amortization), and less any net proceeds from sales, as of December 31, 2010.
A88: 3 | B88: A statement as to whether or not the recording of depreciation expenses continued in order to reduce the net book value through accumulated depreciation. If so, provision of the total (cumulative) depreciation expense for the period from the time that the meters became stranded to December 31, 2010.
A92: 4 | B92: If no depreciation expenses were recorded to reduce the net book value of stranded meters through accumulated depreciation, the total (cumulative) depreciation expense amount that would have been applicable for the period from the time that the meters became stranded to December 31, 2010.
A96: 5 | B96: The estimated amount of the pooled residual net book value of the removed from service meters, less any net proceeds from sales and contributed capital, at the time when smart meters will have been fully deployed. If the smart meters have been fully deployed, please provide the actual amount.
A100: 6 | B100: A description as to how the applicant intends to recover in rates the costs for stranded meters, including the proposed accounting treatment, the proposed disposition period and the associated bill impacts.
A103: Distributors should also provide the Net Book Value per class of meter as of December 31, 2010 as well as the number of meters that were removed / stranded. In preparing this information, distributors should review the Board's letter of January 16, 2007 Stranded Meter Costs Related to the Installation of Smart Meters which stated that records were to be kept of the type and number of each meter to support the stranded meter costs.

Sheet App.2-T_1592_Tax_Variance
C1: File Number: | E1: ='LDC Info'!$E$18 -> EB-2012-0175
C2: Exhibit:
C3: Tab:
C4: Schedule:
C5: Page:
C7: Date:
A9: Appendix 2-T
A10: Deferred PILs Account 1592 Balances
A12: The following table should be completed based on the information requested below, in accordance with the notes following the table. An explanation should be provided for any blank entries.
A14: Tax Item | E14: Principal as of
E15: December 31,
E16: 20XX
A17: Large Corporation Tax grossed-up proxy from 2006 EDR application PILs model for the period from May 1, 2006 to April 30, 2007
A18: Large Corporation Tax grossed-up proxy from 2006 EDR application PILs model for the period from January 1, 2006 to April 30, 2006 (4/12ths of the approved grossed-up proxy), if not recorded in PILs account 1562
A19: Ontario Capital Tax rate decrease and increase in capital deduction for 2007
A20: Ontario Capital Tax rate decrease and increase in capital deduction for 2008
A21: Ontario Capital Tax rate decrease and increase in capital deduction for 2009
A22: Ontario Capital Tax rate decrease and increase in capital deduction for 2010
A23: Capital Cost Allowance class changes from 2006 EDR application for 2006
A24: Capital Cost Allowance class changes from 2006 EDR application for 2007
A25: Capital Cost Allowance class changes from 2006 EDR application for 2008
A26: Capital Cost Allowance class changes from 2006 EDR application for 2009
A27: Capital Cost Allowance class changes from 2006 EDR application for 2010
A28: Capital Cost Allowance class changes from 2006 EDR application for 2011
A29: Capital Cost Allowance class changes from any prior application not recorded above. Please provide details and explanation separately.
A31: Total | E31: =SUM(E17:E30) -> 0
A33: Notes:
A35: 1 | B35: Revise the deferral and variance account continuity schedule to include account 1592 as a group 2 account and enter all relevant information for transactions, adjustments, etc., for all relevant years.
A38: 2 | B38: Describe each type of tax item that has been recorded in account 1592.
A40: 3 | B40: Provide the calculations that show how each item was determined and provide any pertinent supporting evidence and documentation.
A43: 4 | B43: Please state whether or not the applicant followed the guidance provided in the FAQ of July 2007. If not, please provide an explanation.
A46: 5 | B46: Identify the account balance as of December 31, 2011 as per the 2011 Audited Financial Statements. Identify the account balance as of December 31, 2011 as per the April 2012 2.1.7 RRR filing to the Board. Provide a reconciliation if the balances provided are not identical to each other and to the total shown on the continuity schedule.
A51: 6 | B51: Complete the above table based on the answers to the previous. Add rows as required to complete the analysis in an informative manner. Please provide the completed table as a working Excel spreadsheet.

Sheet App.2-U_IFRS Transition Costs
J1: File Number: | K1: ='LDC Info'!$E$18 -> EB-2012-0175
J2: Exhibit:
J3: Tab:
J4: Schedule:
J5: Page:
J7: Date:
A9: Appendix 2-U
A10: One-Time Incremental IFRS Transition Costs
A12: The following table should be completed based on the information requested below. An explanation should be provided for any blank entries. The entries should include one-time incremental IFRS transition costs that are currently included in Account 1508, Other Regulatory Assets, sub-account Deferred IFRS Transition Costs Account, or Account 1508, Other Regulatory Assets, sub-account IFRS Transition Costs Variance Account.
A14: Nature of One-Time Incremental IFRS Transition Costs 1 | E14: Audited Actual | F14: Audited Actual | G14: Audited Actual | H14: Audited Carrying | I14: Total Audited | J14: RRR 2.1.7 | K14: Variance 2 | L14: Reasons why the costs recorded meet the criteria of one-time IFRS administrative incremental costs
E15: Costs Incurred | F15: Costs Incurred | G15: Costs Incurred | H15: Charges | I15: Actual Costs | J15: Balance
E16: 2009 | F16: 2010 | G16: 2011 | H16: to Dec 31, 2011 | I16: to Dec 31, 2011 | J16: 2011-12-31
A17: professional accounting fees | I17: =SUM(E17:H17) -> 0
A18: professional legal fees | I18: =SUM(E18:H18) -> 0
A19: salaries, wages and benefits of staff added to support the transition to IFRS | I19: 0
A20: associated staff training and development costs | I20: 0
A21: costs related to system upgrades, or replacements or changes where IFRS was the major reason for conversion | I21: 0
I22: 0
I23: 0
I24: 0
I25: 0
I26: 0
I27: 0
I28: 0
A29: Insert description of additional item(s) and new rows if needed. | I29: 0
A30: Total | E30: =SUM(E17:E29) -> 0 | F30: =SUM(F17:F29) -> 0 | G30: =SUM(G17:G29) -> 0 | H30: =SUM(H17:H29) -> 0 | I30: =SUM(I17:I29) -> 0 | K30: =+I30-J30 -> 0
A33: Note:
A34: 1 | B34: The Deferred IFRS Transition Costs Account and the IFRS Transition Costs Variance Account are exclusively for necessary, incremental transition costs and shall not include ongoing IFRS compliance costs or impacts arising from adopting accounting policy changes that reflect changes in the timing of the recognition of income. The incremental costs in these accounts shall not include costs related to system upgrades, or replacements or changes where IFRS was not the major reason for conversion. In addition, incremental IFRS costs shall not include capital assets or expenditures.
A36: 2 | B36: Applicants are to provide an explanation of material variances in evidence
B41: No costs incurred to end of 2011

Sheet App.2-V_Rev_Reconciliation
O1: File Number: | P1: ='LDC Info'!$E$18 -> EB-2012-0175
O2: Exhibit:
O3: Tab:
O4: Schedule:
O5: Page:
O7: Date:
A9: Appendix 2-V
A10: Revenue Reconciliation
A12: Rate Class | B12: Customers/ Connections | C12: Number of Customers/Connections | F12: Test Year Consumption | H12: Proposed Rates | K12: Revenues at Proposed Rates | M12: Class Specific Revenue Requirement | N12: Transformer Allowance Credit | O12: Total | P12: Difference
C13: Start of Test Year | D13: End of Test Year | E13: Average | F13: kWh | G13: kW | H13: Monthly Service Charge | I13: Volumetric
I14: kWh | J14: kW
A16: Residential | B16: Customers | C16: 3202 | D16: 3234 | E16: =IF(SUM(C16:D16)=0,0,AVERAGE(C16:D16)) -> 3218 | F16: 26674085 | H16: 17.67 | I16: 0.0229 | K16: =H16*E16*12+I16*F16+J16*G16 -> 1293181.267 | M16: 1296513 | O16: =SUM(M16:N16) -> 1296513 | P16: =O16-K16 -> 3331.7335
A17: GS < 50 kW | B17: Customers | C17: 457 | D17: 461 | E17: 459 | F17: 14504928 | H17: 37 | I17: 0.0116 | K17: 372053.1648 | M17: 410523 | O17: 410523 | P17: 38469.8352
A18: GS >50, <499 kW | B18: Customers | C18: 46 | D18: 46 | E18: 46 | F18: 21358141 | G18: 68831 | H18: 396.04 | J18: 1.7549 | K18: 339405.6019 | M18: 317157 | N18: 22248 | O18: 339405 | P18: -0.6019
A19: GS > 499 to 4,999 kW | B19: Customers | C19: 3 | D19: 3 | E19: 3 | F19: 13606879 | G19: 32194 | H19: 2974.29 | J19: 1.5123 | K19: 155761.4262 | M19: 136445 | N19: 19316 | O19: 155761 | P19: -0.4262
A20: Large Use | B20: Customers | C20: 1 | D20: 1 | E20: 1 | F20: 72207033 | G20: 156689 | H20: 9509.57 | J20: 2.1531 | K20: 451481.9259 | M20: 357464 | N20: 94013 | O20: 451477 | P20: -4.9259
A21: Streetlighting | B21: Connections | C21: 1298 | D21: 1298 | E21: 1298 | F21: 942000 | G21: 2610 | H21: 3.99 | J21: 21.818 | K21: 119093.22 | M21: 119024 | O21: 119024 | P21: -69.22
A22: Sentinel Lighting | B22: Connections | C22: 8 | D22: 8 | E22: 8 | F22: 15251 | H22: 30.16 | K22: 2895.36 | M22: 2895 | O22: 2895 | P22: -0.36
A23: Unmetered Scattered Load | B23: Connections | C23: 4 | D23: 4 | E23: 4 | F23: 84408 | H23: 23.02 | I23: 0.0204 | K23: 2826.8832 | M23: 8909 | O23: 8909 | P23: 6082.1168
E24: 0 | K24: 0 | O24: 0 | P24: 0
E25: 0 | K25: 0 | O25: 0 | P25: 0
E26: 0 | K26: 0 | O26: 0 | P26: 0
E27: 0 | K27: 0 | O27: 0 | P27: 0
E28: 0 | K28: 0 | O28: 0 | P28: 0
E29: 0 | K29: 0 | O29: 0 | P29: 0
A31: Total | K31: =SUM(K16:K29) -> 2736698.849 | M31: =SUM(M16:M29) -> 2648930 | N31: =SUM(N16:N29) -> 135577 | O31: =M31+N31 -> 2784507 | P31: =O31-K31 -> 47808.1515
A33: Note
A35: 1 The class specific revenue requirements in column N must be the amounts used in the final rate design process. The total of column N should equate to the proposed base revenue requirement

Sheet App.2-W_Bill Impact - Res 100
N1: File Number: | O1: ='LDC Info'!$E$18 -> EB-2012-0175 | T1: 1
N2: Exhibit:
N3: Tab:
N4: Schedule:
N5: Page:
N7: Date:
B10: Appendix 2-W
B11: Bill Impacts
B14: Customer Class: | D14: Residential
D16: Consumption | F16: 100 | G16: kWh
F18: Current Board-Approved | J18: Proposed | N18: Impact
D19: Charge Unit | F19: Rate | G19: Volume | H19: Charge | J19: Rate | K19: Volume | L19: Charge | N19: $ Change | O19: % Change
F20: ($) | H20: ($) | J20: ($) | L20: ($)
B21: Monthly Service Charge | D21: Monthly | F21: 14.2 | G21: 1 | H21: =G21*F21 -> 14.2 | J21: 17.67 | K21: 1 | L21: =K21*J21 -> 17.67 | N21: =L21-H21 -> 3.47 | O21: =IF((H21)=0,"",(N21/H21)) -> 0.2443661972
B22: Smart Meter Rate Adder | G22: 1 | H22: =G22*F22 -> 0 | K22: 1 | L22: =K22*J22 -> 0 | N22: =L22-H22 -> 0 | O22: =IF((H22)=0,"",(N22/H22)) -> 
G23: 1 | H23: 0 | K23: 1 | L23: =K23*J23 -> 0 | N23: =L23-H23 -> 0 | O23: =IF((H23)=0,"",(N23/H23)) -> 
G24: 1 | H24: 0 | K24: 1 | L24: 0 | N24: 0
G25: 1 | H25: 0 | K25: 1 | L25: 0 | N25: 0
G26: 1 | H26: 0 | K26: 1 | L26: 0 | N26: 0
B27: Distribution Volumetric Rate | D27: per kWh | F27: 0.0184 | G27: =$F$16 -> 100 | H27: 1.84 | J27: 0.0229 | K27: =$F$16 -> 100 | L27: 2.29 | N27: 0.45 | O27: 0.2445652174
B28: Smart Meter Disposition Rider | D28: Monthly | F28: 0 | G28: =$F$16 -> 100 | H28: 0 | J28: 0.83 | K28: 1 | L28: 0.83 | N28: 0.83
B29: LRAM & SSM Rate Rider | D29: per kWh | F29: 0.0014 | G29: =$F$16 -> 100 | H29: 0.14 | J29: 0.0006 | K29: =$F$16 -> 100 | L29: 0.06 | N29: -0.08 | O29: -0.5714285714
B30: Stranded Meter Recovery Rider | D30: Monthly | F30: 0 | G30: =$F$16 -> 100 | H30: =G30*F30 -> 0 | J30: 2.3 | K30: 1 | L30: =K30*J30 -> 2.3 | N30: =L30-H30 -> 2.3 | O30: =IF((H30)=0,"",(N30/H30)) -> 
B31: Extraordinary Event Recovery Rider | D31: Monthly | F31: 0 | G31: 100 | H31: 0 | J31: 1.11 | K31: 1 | L31: 1.11 | N31: 1.11
G32: 100 | H32: 0 | K32: 100 | L32: 0 | N32: 0
G33: =$F$16 -> 100 | H33: 0 | K33: 100 | L33: 0 | N33: 0
G34: 100 | H34: 0 | K34: 100 | L34: 0 | N34: 0
G35: 100 | H35: 0 | K35: 100 | L35: 0 | N35: 0
G36: 100 | H36: 0 | K36: 100 | L36: 0 | N36: 0
B37: Sub-Total A | H37: =SUM(H21:H36) -> 16.18 | L37: =SUM(L21:L36) -> 24.26 | N37: 8.08 | O37: 0.499381953
B38: Deferral/Variance Account Disposition Rate Rider | D38: per kWh | F38: 0 | G38: =$F$16 -> 100 | H38: =G38*F38 -> 0 | J38: 0.0031 | K38: =$F$16 -> 100 | L38: =K38*J38 -> 0.31 | N38: =L38-H38 -> 0.31
B39: Global Adjustment Variance Rider | D39: per kWh | F39: 0 | G39: =$F$16 -> 100 | H39: =G39*F39 -> 0 | J39: -0.002 | K39: =$F$16 -> 100 | L39: =K39*J39 -> -0.2 | N39: =L39-H39 -> -0.2
G40: 100 | H40: 0 | K40: 100 | L40: 0 | N40: 0 | O40: =IF((H40)=0,"",(N40/H40)) -> 
G41: 100 | H41: 0 | K41: 100 | L41: 0 | N41: 0
B42: Low Voltage Service Charge | G42: 100 | H42: =G42*F42 -> 0 | K42: =$F$16 -> 100 | L42: =K42*J42 -> 0 | N42: =L42-H42 -> 0 | O42: =IF((H42)=0,"",(N42/H42)) -> 
B43: Smart Meter Entity Charge | K43: 100 | L43: =K43*J43 -> 0 | N43: =L43-H43 -> 0
B44: Sub-Total B - Distribution (includes Sub-Total A) | H44: =SUM(H38:H42)+H37 -> 16.18 | L44: =SUM(L38:L42)+L37 -> 24.37 | N44: =L44-H44 -> 8.19 | O44: =IF((H44)=0,"",(N44/H44)) -> 0.5061804697
B45: RTSR - Network | D45: per kWh | F45: 0.0063 | G45: =F16*(1+F71) -> 104.67 | H45: =G45*F45 -> 0.659421 | J45: 0.0072 | K45: =F16*(1+J71) -> 104.5253 | L45: =K45*J45 -> 0.75258216 | N45: 0.09316116 | O45: 0.1412772114
B46: RTSR - Line and Transformation Connection | D46: per kWh | F46: 0.0051 | G46: =G45 -> 104.67 | H46: =G46*F46 -> 0.533817 | J46: 0.0058 | K46: =K45 -> 104.5253 | L46: =K46*J46 -> 0.60624674 | N46: 0.07242974 | O46: 0.1356827152
B47: Sub-Total C - Delivery (including Sub-Total B) | H47: =SUM(H44:H46) -> 17.373238 | L47: =SUM(L44:L46) -> 25.7288289 | N47: 8.3555909 | O47: 0.4809460908
B48: Wholesale Market Service Charge (WMSC) | D48: per kWh | F48: 0.0052 | G48: =G46 -> 104.67 | H48: =G48*F48 -> 0.544284 | J48: 0.0052 | K48: =K46 -> 104.5253 | L48: =K48*J48 -> 0.54353156 | N48: -0.00075244 | O48: -0.00138244005
B49: Rural and Remote Rate Protection (RRRP) | D49: per kWh | F49: 0.0011 | G49: =G46 -> 104.67 | H49: 0.115137 | J49: 0.0011 | K49: =K46 -> 104.5253 | L49: 0.11497783 | N49: -0.00015917 | O49: -0.00138244005
B50: Standard Supply Service Charge | D50: Monthly | F50: 0.25 | G50: 1 | H50: 0.25 | J50: 0.25 | K50: 1 | L50: 0.25 | N50: 0 | O50: 0
B51: Debt Retirement Charge (DRC) | D51: per kWh | F51: 0.007 | G51: =F16 -> 100 | H51: 0.7 | J51: 0.007 | K51: =F16 -> 100 | L51: 0.7 | N51: 0 | O51: 0
B52: Energy - RPP - Tier 1 | F52: 0.075 | G52: =IF($T$1=1,IF($F$16>=600,600,IF($F$16<600,$F$16*(1+$F$71),$F$16-600)),IF($T$1=2,IF($F$16>=1000,1000,IF($F$16<1000,$F$16*(1+$F$71),$F$16-1000)))) -> 104.67 | H52: =G52*F52 -> 7.85025 | J52: 0.075 | K52: =IF($T$1=1,IF($F$16>=600,600,IF($F$16<600,$F$16*(1+$J$71),$F$16-600)),IF($T$1=2,IF($F$16>=1000,1000,IF($F$16<1000,$F$16*(1+$J$71),$F$16-1000)))) -> 104.5253 | L52: =K52*J52 -> 7.8393975 | N52: -0.0108525 | O52: -0.00138244005
B53: Energy - RPP - Tier 2 | F53: 0.088 | G53: =IF($T$1=1,IF($F$16>=600,$F$16*(1+$F$71)-600,IF($F$16<600,0,)), IF($T$1=2,IF($F$16>=1000,$F$16*(1+$F$71)-1000,IF($F$16<1000,0)))) -> 0 | H53: =G53*F53 -> 0 | J53: 0.088 | K53: =IF($T$1=1,IF($F$16>=600,$F$16*(1+$J$71)-600,IF($F$16<600,0,)), IF($T$1=2,IF($F$16>=1000,$F$16*(1+$J$71)-1000,IF($F$16<1000,0)))) -> 0 | L53: =K53*J53 -> 0 | N53: 0
B54: TOU - Off Peak | F54: 0.065 | G54: =0.64*$F$16*(1+$F$71) -> 66.9888 | H54: 4.354272 | J54: 0.065 | K54: =0.64*$F$16*(1+$J$71) -> 66.896192 | L54: 4.34825248 | N54: -0.00601952 | O54: -0.00138244005
B55: TOU - Mid Peak | F55: 0.1 | G55: =0.18*$F$16*(1+$F$71) -> 18.8406 | H55: 1.88406 | J55: 0.1 | K55: =0.18*$F$16*(1+$J$71) -> 18.814554 | L55: 1.8814554 | N55: -0.0026046 | O55: -0.00138244005
B56: TOU - On Peak | F56: 0.117 | G56: =0.18*$F$16*(1+$F$71) -> 18.8406 | H56: 2.2043502 | J56: 0.117 | K56: =0.18*$F$16*(1+$J$71) -> 18.814554 | L56: 2.201302818 | N56: -0.003047382 | O56: -0.00138244005
B58: Total Bill on RPP (before Taxes) | H58: =SUM(H47:H53) -> 26.832909 | L58: =SUM(L47:L53) -> 35.17673579 | N58: 8.34382679 | O58: 0.310954984
B59: HST | F59: 0.13 | H59: =H58*F59 -> 3.48827817 | J59: 0.13 | L59: =L58*J59 -> 4.572975653 | N59: =L59-H59 -> 1.084697483 | O59: =IF((H59)=0,"",(N59/H59)) -> 0.310954984
B60: Total Bill (including HST) | H60: =H58+H59 -> 30.32118717 | L60: =L58+L59 -> 39.74971144 | N60: =L60-H60 -> 9.428524273 | O60: =IF((H60)=0,"",(N60/H60)) -> 0.310954984
B61: Ontario Clean Energy Benefit 1 | H61: =ROUND(-H60*10%,2) -> -3.03 | L61: =ROUND(-L60*10%,2) -> -3.97 | N61: =L61-H61 -> -0.94 | O61: =IF((H61)=0,"",(N61/H61)) -> 0.3102310231
B62: Total Bill on RPP (including OCEB) | H62: =SUM(H60:H61) -> 27.29118717 | L62: =SUM(L60:L61) -> 35.77971144 | N62: 8.488524273 | O62: 0.3110353617
B64: Total Bill on TOU (before Taxes) | H64: =SUM(H47:H51,H54:H56) -> 27.4253412 | L64: =SUM(L47:L51,L54:L56) -> 35.76834899 | N64: =L64-H64 -> 8.343007788 | O64: =IF((H64)=0,"",(N64/H64)) -> 0.3042079851
B65: HST | F65: 0.13 | H65: =H64*F65 -> 3.565294356 | J65: 0.13 | L65: =L64*J65 -> 4.649885368 | N65: 1.084591012 | O65: 0.3042079851
B66: Total Bill (including HST) | H66: =H64+H65 -> 30.99063556 | L66: =L64+L65 -> 40.41823436 | N66: 9.4275988 | O66: 0.3042079851
B67: Ontario Clean Energy Benefit 1 | H67: =ROUND(-H66*10%,2) -> -3.1 | L67: =ROUND(-L66*10%,2) -> -4.04 | N67: -0.94 | O67: 0.3032258065
B68: Total Bill on TOU (including OCEB) | H68: =H66+H67 -> 27.89063556 | L68: =L66+L67 -> 36.37823436 | N68: 8.4875988 | O68: 0.3043171527
B71: Loss Factor (%) | F71: 0.0467 | J71: 0.045253
A73: 1 Applicable to eligible customers only. Refer to the Ontario Clean Energy Benefit Act, 2010.
A75: Note that the "Charge $" columns provide breakdowns of the amounts that each bill component contributes to the total monthly bill at the referenced
A76: consumption level at existing and proposed rates.
A78: Applicants must provide bill impacts for residential at 800 kWh and GS<50kW at 2000 kWh. In addition, their filing should cover the range that is relevant
A79: to their service territory, class by class. A general guideline of consumption levels follows:
A81: Residential (kWh) - 100, 250, 500, 800, 1000, 1500, 2000
A82: GS<50kW (kWh) - 1000, 2000, 5000, 10000, 15000
A83: GS>50kW (kW) - 60, 100, 500, 1000
A84: Large User - range appropriate for utility
A85: Lighting Classes and USL - 150 kWh and 1 kW, range appropriate for utility.

Sheet App.2-W_Bill Impact - Res 250
N1: File Number: | O1: ='LDC Info'!$E$18 -> EB-2012-0175 | T1: 1
N2: Exhibit:
N3: Tab:
N4: Schedule:
N5: Page:
N7: Date:
B10: Appendix 2-W
B11: Bill Impacts
B14: Customer Class: | D14: Residential
D16: Consumption | F16: 250 | G16: kWh
F18: Current Board-Approved | J18: Proposed | N18: Impact
D19: Charge Unit | F19: Rate | G19: Volume | H19: Charge | J19: Rate | K19: Volume | L19: Charge | N19: $ Change | O19: % Change
F20: ($) | H20: ($) | J20: ($) | L20: ($)
B21: Monthly Service Charge | D21: Monthly | F21: 14.2 | G21: 1 | H21: =G21*F21 -> 14.2 | J21: 17.67 | K21: 1 | L21: =K21*J21 -> 17.67 | N21: =L21-H21 -> 3.47 | O21: =IF((H21)=0,"",(N21/H21)) -> 0.2443661972
B22: Smart Meter Rate Adder | G22: 1 | H22: =G22*F22 -> 0 | K22: 1 | L22: =K22*J22 -> 0 | N22: =L22-H22 -> 0 | O22: =IF((H22)=0,"",(N22/H22)) -> 
G23: 1 | H23: 0 | K23: 1 | L23: =K23*J23 -> 0 | N23: =L23-H23 -> 0 | O23: =IF((H23)=0,"",(N23/H23)) -> 
G24: 1 | H24: 0 | K24: 1 | L24: 0 | N24: 0
G25: 1 | H25: 0 | K25: 1 | L25: 0 | N25: 0
G26: 1 | H26: 0 | K26: 1 | L26: 0 | N26: 0
B27: Distribution Volumetric Rate | D27: per kWh | F27: 0.0184 | G27: =$F$16 -> 250 | H27: 4.6 | J27: 0.0229 | K27: =$F$16 -> 250 | L27: 5.725 | N27: 1.125 | O27: 0.2445652174
B28: Smart Meter Disposition Rider | D28: Monthly | G28: =$F$16 -> 250 | H28: 0 | J28: 0.83 | K28: 1 | L28: 0.83 | N28: 0.83
B29: LRAM & SSM Rate Rider | D29: per kWh | F29: 0.0014 | G29: =$F$16 -> 250 | H29: 0.35 | J29: 0.0006 | K29: =$F$16 -> 250 | L29: 0.15 | N29: -0.2 | O29: -0.5714285714
B30: Stranded Meter Recovery Rider | D30: Monthly | G30: =$F$16 -> 250 | H30: 0 | J30: 2.3 | K30: 1 | L30: 2.3 | N30: 2.3
B31: Extraordinary Event Recovery Rider | D31: Monthly | G31: 250 | H31: 0 | J31: 1.11 | K31: 1 | L31: 1.11 | N31: 1.11
G32: 250 | H32: 0 | K32: 250 | L32: 0 | N32: 0
G33: 250 | H33: 0 | K33: 250 | L33: 0 | N33: 0
G34: 250 | H34: 0 | K34: 250 | L34: 0 | N34: 0
G35: 250 | H35: 0 | K35: 250 | L35: 0 | N35: 0
G36: 250 | H36: 0 | K36: 250 | L36: 0 | N36: 0
B37: Sub-Total A | H37: =SUM(H21:H36) -> 19.15 | L37: =SUM(L21:L36) -> 27.785 | N37: 8.635 | O37: 0.4509138381
B38: Deferral/Variance Account Disposition Rate Rider | G38: =$F$16 -> 250 | H38: =G38*F38 -> 0 | J38: 0.0031 | K38: =$F$16 -> 250 | L38: =K38*J38 -> 0.775 | N38: =L38-H38 -> 0.775 | O38: =IF((H38)=0,"",(N38/H38)) -> 
B39: Global Adjustment Variance Rider | G39: =$F$16 -> 250 | H39: =G39*F39 -> 0 | J39: -0.002 | K39: =$F$16 -> 250 | L39: =K39*J39 -> -0.5 | N39: =L39-H39 -> -0.5 | O39: =IF((H39)=0,"",(N39/H39)) -> 
G40: 250 | H40: 0 | K40: 250 | L40: 0 | N40: 0
G41: 250 | H41: 0 | K41: 250 | L41: 0 | N41: 0
B42: Low Voltage Service Charge | F42: 0 | G42: 250 | H42: =G42*F42 -> 0 | K42: 250 | L42: =K42*J42 -> 0 | N42: =L42-H42 -> 0 | O42: =IF((H42)=0,"",(N42/H42)) -> 
B43: Smart Meter Entity Charge | K43: 250 | L43: =K43*J43 -> 0 | N43: =L43-H43 -> 0
B44: Sub-Total B - Distribution (includes Sub-Total A) | H44: =SUM(H38:H42)+H37 -> 19.15 | L44: =SUM(L38:L42)+L37 -> 28.06 | N44: =L44-H44 -> 8.91 | O44: =IF((H44)=0,"",(N44/H44)) -> 0.4652741514
B45: RTSR - Network | D45: per kWh | F45: 0.0063 | G45: =F16*(1+F71) -> 261.675 | H45: =G45*F45 -> 1.6485525 | J45: 0.0072 | K45: =F16*(1+J71) -> 261.31325 | L45: =K45*J45 -> 1.8814554 | N45: 0.2329029 | O45: 0.1412772114
B46: RTSR - Line and Transformation Connection | D46: per kWh | F46: 0.0051 | G46: =G45 -> 261.675 | H46: =G46*F46 -> 1.3345425 | J46: 0.0058 | K46: =K45 -> 261.31325 | L46: =K46*J46 -> 1.51561685 | N46: 0.18107435 | O46: 0.1356827152
B47: Sub-Total C - Delivery (including Sub-Total B) | H47: =SUM(H44:H46) -> 22.133095 | L47: =SUM(L44:L46) -> 31.45707225 | N47: 9.32397725 | O47: 0.4212685686
B48: Wholesale Market Service Charge (WMSC) | D48: per kWh | F48: 0.0052 | G48: =G46 -> 261.675 | H48: =G48*F48 -> 1.36071 | J48: 0.0052 | K48: =K46 -> 261.31325 | L48: =K48*J48 -> 1.3588289 | N48: -0.0018811 | O48: -0.00138244005
B49: Rural and Remote Rate Protection (RRRP) | D49: per kWh | F49: 0.0011 | G49: =G46 -> 261.675 | H49: 0.2878425 | J49: 0.0011 | K49: =K46 -> 261.31325 | L49: 0.287444575 | N49: -0.000397925 | O49: -0.00138244005
B50: Standard Supply Service Charge | D50: Monthly | F50: 0.25 | G50: 1 | H50: 0.25 | J50: 0.25 | K50: 1 | L50: 0.25 | N50: 0 | O50: 0
B51: Debt Retirement Charge (DRC) | D51: per kWh | F51: 0.007 | G51: =F16 -> 250 | H51: 1.75 | J51: 0.007 | K51: =F16 -> 250 | L51: 1.75 | N51: 0 | O51: 0
B52: Energy - RPP - Tier 1 | F52: 0.075 | G52: =IF($T$1=1,IF($F$16>=600,600,IF($F$16<600,$F$16*(1+$F$71),$F$16-600)),IF($T$1=2,IF($F$16>=1000,1000,IF($F$16<1000,$F$16*(1+$F$71),$F$16-1000)))) -> 261.675 | H52: =G52*F52 -> 19.625625 | J52: 0.075 | K52: =IF($T$1=1,IF($F$16>=600,600,IF($F$16<600,$F$16*(1+$J$71),$F$16-600)),IF($T$1=2,IF($F$16>=1000,1000,IF($F$16<1000,$F$16*(1+$J$71),$F$16-1000)))) -> 261.31325 | L52: =K52*J52 -> 19.59849375 | N52: -0.02713125 | O52: -0.00138244005
B53: Energy - RPP - Tier 2 | F53: 0.088 | G53: =IF($T$1=1,IF($F$16>=600,$F$16*(1+$F$71)-600,IF($F$16<600,0,)), IF($T$1=2,IF($F$16>=1000,$F$16*(1+$F$71)-1000,IF($F$16<1000,0)))) -> 0 | H53: =G53*F53 -> 0 | J53: 0.088 | K53: =IF($T$1=1,IF($F$16>=600,$F$16*(1+$J$71)-600,IF($F$16<600,0,)), IF($T$1=2,IF($F$16>=1000,$F$16*(1+$J$71)-1000,IF($F$16<1000,0)))) -> 0 | L53: =K53*J53 -> 0 | N53: 0
B54: TOU - Off Peak | F54: 0.065 | G54: =0.64*$F$16*(1+$F$71) -> 167.472 | H54: 10.88568 | J54: 0.065 | K54: =0.64*$F$16*(1+$J$71) -> 167.24048 | L54: 10.8706312 | N54: -0.0150488 | O54: -0.00138244005
B55: TOU - Mid Peak | F55: 0.1 | G55: =0.18*$F$16*(1+$F$71) -> 47.1015 | H55: 4.71015 | J55: 0.1 | K55: =0.18*$F$16*(1+$J$71) -> 47.036385 | L55: 4.7036385 | N55: -0.0065115 | O55: -0.00138244005
B56: TOU - On Peak | F56: 0.117 | G56: =0.18*$F$16*(1+$F$71) -> 47.1015 | H56: 5.5108755 | J56: 0.117 | K56: =0.18*$F$16*(1+$J$71) -> 47.036385 | L56: 5.503257045 | N56: -0.007618455 | O56: -0.00138244005
B58: Total Bill on RPP (before Taxes) | H58: =SUM(H47:H53) -> 45.4072725 | L58: =SUM(L47:L53) -> 54.70183947 | N58: 9.294566975 | O58: 0.2046933556
B59: HST | F59: 0.13 | H59: =H58*F59 -> 5.902945425 | J59: 0.13 | L59: =L58*J59 -> 7.111239132 | N59: 1.208293707 | O59: 0.2046933556
B60: Total Bill (including HST) | H60: =H58+H59 -> 51.31021793 | L60: =L58+L59 -> 61.81307861 | N60: 10.50286068 | O60: 0.2046933556
B61: Ontario Clean Energy Benefit 1 | H61: =ROUND(-H60*10%,2) -> -5.13 | L61: =ROUND(-L60*10%,2) -> -6.18 | N61: -1.05 | O61: 0.2046783626
B62: Total Bill on RPP (including OCEB) | H62: =SUM(H60:H61) -> 46.18021793 | L62: =SUM(L60:L61) -> 55.63307861 | N62: 9.452860682 | O62: 0.2046950211
B64: Total Bill on TOU (before Taxes) | H64: =SUM(H47:H51,H54:H56) -> 46.888353 | L64: =SUM(L47:L51,L54:L56) -> 56.18087247 | N64: =L64-H64 -> 9.29251947 | O64: =IF((H64)=0,"",(N64/H64)) -> 0.1981839599
B65: HST | F65: 0.13 | H65: =H64*F65 -> 6.09548589 | J65: 0.13 | L65: =L64*J65 -> 7.303513421 | N65: 1.208027531 | O65: 0.1981839599
B66: Total Bill (including HST) | H66: =H64+H65 -> 52.98383889 | L66: =L64+L65 -> 63.48438589 | N66: 10.500547 | O66: 0.1981839599
B67: Ontario Clean Energy Benefit 1 | H67: =ROUND(-H66*10%,2) -> -5.3 | L67: =ROUND(-L66*10%,2) -> -6.35 | N67: -1.05 | O67: 0.1981132075
B68: Total Bill on TOU (including OCEB) | H68: =H66+H67 -> 47.68383889 | L68: =L66+L67 -> 57.13438589 | N68: 9.450547001 | O68: 0.1981918239
B71: Loss Factor (%) | F71: 0.0467 | J71: 0.045253
A73: 1 Applicable to eligible customers only. Refer to the Ontario Clean Energy Benefit Act, 2010.
A75: Note that the "Charge $" columns provide breakdowns of the amounts that each bill component contributes to the total monthly bill at the referenced
A76: consumption level at existing and proposed rates.
A78: Applicants must provide bill impacts for residential at 800 kWh and GS<50kW at 2000 kWh. In addition, their filing should cover the range that is relevant
A79: to their service territory, class by class. A general guideline of consumption levels follows:
A81: Residential (kWh) - 100, 250, 500, 800, 1000, 1500, 2000
A82: GS<50kW (kWh) - 1000, 2000, 5000, 10000, 15000
A83: GS>50kW (kW) - 60, 100, 500, 1000
A84: Large User - range appropriate for utility
A85: Lighting Classes and USL - 150 kWh and 1 kW, range appropriate for utility.

Sheet App.2-W_Bill Impact - Res 500
N1: File Number: | O1: ='LDC Info'!$E$18 -> EB-2012-0175 | T1: 1
N2: Exhibit:
N3: Tab:
N4: Schedule:
N5: Page:
N7: Date:
B10: Appendix 2-W
B11: Bill Impacts
B14: Customer Class: | D14: Residential
D16: Consumption | F16: 500 | G16: kWh
F18: Current Board-Approved | J18: Proposed | N18: Impact
D19: Charge Unit | F19: Rate | G19: Volume | H19: Charge | J19: Rate | K19: Volume | L19: Charge | N19: $ Change | O19: % Change
F20: ($) | H20: ($) | J20: ($) | L20: ($)
B21: Monthly Service Charge | D21: Monthly | F21: 14.2 | G21: 1 | H21: =G21*F21 -> 14.2 | J21: 17.67 | K21: 1 | L21: =K21*J21 -> 17.67 | N21: =L21-H21 -> 3.47 | O21: =IF((H21)=0,"",(N21/H21)) -> 0.2443661972
B22: Smart Meter Rate Adder | G22: 1 | H22: =G22*F22 -> 0 | K22: 1 | L22: =K22*J22 -> 0 | N22: =L22-H22 -> 0 | O22: =IF((H22)=0,"",(N22/H22)) -> 
G23: 1 | H23: 0 | K23: 1 | L23: =K23*J23 -> 0 | N23: =L23-H23 -> 0 | O23: =IF((H23)=0,"",(N23/H23)) -> 
G24: 1 | H24: 0 | K24: 1 | L24: 0 | N24: 0
G25: 1 | H25: 0 | K25: 1 | L25: 0 | N25: 0
G26: 1 | H26: 0 | K26: 1 | L26: 0 | N26: 0
B27: Distribution Volumetric Rate | D27: per kWh | F27: 0.0184 | G27: =$F$16 -> 500 | H27: 9.2 | J27: 0.0229 | K27: =$F$16 -> 500 | L27: 11.45 | N27: 2.25 | O27: 0.2445652174
B28: Smart Meter Disposition Rider | D28: Monthly | G28: =$F$16 -> 500 | H28: 0 | J28: 0.83 | K28: 1 | L28: 0.83 | N28: 0.83
B29: LRAM & SSM Rate Rider | D29: per kWh | F29: 0.0014 | G29: =$F$16 -> 500 | H29: 0.7 | J29: 0.0006 | K29: =$F$16 -> 500 | L29: 0.3 | N29: -0.4 | O29: -0.5714285714
B30: Stranded Meter Recovery Rider | D30: Monthly | G30: =$F$16 -> 500 | H30: 0 | J30: 2.3 | K30: 1 | L30: 2.3 | N30: 2.3
B31: Extraordinary Event Recovery Rider | D31: Monthly | G31: 500 | H31: 0 | J31: 1.11 | K31: 1 | L31: 1.11 | N31: 1.11
G32: 500 | H32: 0 | K32: 500 | L32: 0 | N32: 0
G33: 500 | H33: 0 | K33: 500 | L33: 0 | N33: 0
G34: 500 | H34: 0 | K34: 500 | L34: 0 | N34: 0
G35: 500 | H35: 0 | K35: 500 | L35: 0 | N35: 0
G36: 500 | H36: 0 | K36: 500 | L36: 0 | N36: 0
B37: Sub-Total A | H37: =SUM(H21:H36) -> 24.1 | L37: =SUM(L21:L36) -> 33.66 | N37: 9.56 | O37: 0.3966804979
B38: Deferral/Variance Account Disposition Rate Rider | D38: per kWh | G38: =$F$16 -> 500 | H38: =G38*F38 -> 0 | J38: 0.0031 | K38: =$F$16 -> 500 | L38: =K38*J38 -> 1.55 | N38: =L38-H38 -> 1.55 | O38: =IF((H38)=0,"",(N38/H38)) -> 
B39: Global Adjustment Variance Rider | D39: per kWh | G39: =$F$16 -> 500 | H39: =G39*F39 -> 0 | J39: -0.002 | K39: =$F$16 -> 500 | L39: =K39*J39 -> -1 | N39: =L39-H39 -> -1 | O39: =IF((H39)=0,"",(N39/H39)) -> 
G40: 500 | H40: 0 | K40: 500 | L40: 0 | N40: 0
G41: 500 | H41: 0 | K41: 500 | L41: 0 | N41: 0
B42: Low Voltage Service Charge | G42: 500 | H42: =G42*F42 -> 0 | K42: 500 | L42: =K42*J42 -> 0 | N42: =L42-H42 -> 0 | O42: =IF((H42)=0,"",(N42/H42)) -> 
B43: Smart Meter Entity Charge | K43: 500 | L43: =K43*J43 -> 0 | N43: =L43-H43 -> 0
B44: Sub-Total B - Distribution (includes Sub-Total A) | H44: =SUM(H38:H42)+H37 -> 24.1 | L44: =SUM(L38:L42)+L37 -> 34.21 | N44: =L44-H44 -> 10.11 | O44: =IF((H44)=0,"",(N44/H44)) -> 0.4195020747
B45: RTSR - Network | D45: per kWh | F45: 0.0063 | G45: =F16*(1+F71) -> 523.35 | H45: =G45*F45 -> 3.297105 | J45: 0.0072 | K45: =F16*(1+J71) -> 522.6265 | L45: =K45*J45 -> 3.7629108 | N45: 0.4658058 | O45: 0.1412772114
B46: RTSR - Line and Transformation Connection | D46: per kWh | F46: 0.0051 | G46: =G45 -> 523.35 | H46: =G46*F46 -> 2.669085 | J46: 0.0058 | K46: =K45 -> 522.6265 | L46: =K46*J46 -> 3.0312337 | N46: 0.3621487 | O46: 0.1356827152
B47: Sub-Total C - Delivery (including Sub-Total B) | H47: =SUM(H44:H46) -> 30.06619 | L47: =SUM(L44:L46) -> 41.0041445 | N47: 10.9379545 | O47: 0.3637958285
B48: Wholesale Market Service Charge (WMSC) | D48: per kWh | F48: 0.0052 | G48: =G46 -> 523.35 | H48: =G48*F48 -> 2.72142 | J48: 0.0052 | K48: =K46 -> 522.6265 | L48: =K48*J48 -> 2.7176578 | N48: -0.0037622 | O48: -0.00138244005
B49: Rural and Remote Rate Protection (RRRP) | D49: per kWh | F49: 0.0011 | G49: =G46 -> 523.35 | H49: 0.575685 | J49: 0.0011 | K49: =K46 -> 522.6265 | L49: 0.57488915 | N49: -0.00079585 | O49: -0.00138244005
B50: Standard Supply Service Charge | D50: Monthly | F50: 0.25 | G50: 1 | H50: 0.25 | J50: 0.25 | K50: 1 | L50: 0.25 | N50: 0 | O50: 0
B51: Debt Retirement Charge (DRC) | D51: per kWh | F51: 0.007 | G51: =F16 -> 500 | H51: 3.5 | J51: 0.007 | K51: =F16 -> 500 | L51: 3.5 | N51: 0 | O51: 0
B52: Energy - RPP - Tier 1 | F52: 0.075 | G52: =IF($T$1=1,IF($F$16>=600,600,IF($F$16<600,$F$16*(1+$F$71),$F$16-600)),IF($T$1=2,IF($F$16>=1000,1000,IF($F$16<1000,$F$16*(1+$F$71),$F$16-1000)))) -> 523.35 | H52: =G52*F52 -> 39.25125 | J52: 0.075 | K52: =IF($T$1=1,IF($F$16>=600,600,IF($F$16<600,$F$16*(1+$J$71),$F$16-600)),IF($T$1=2,IF($F$16>=1000,1000,IF($F$16<1000,$F$16*(1+$J$71),$F$16-1000)))) -> 522.6265 | L52: =K52*J52 -> 39.1969875 | N52: -0.0542625 | O52: -0.00138244005
B53: Energy - RPP - Tier 2 | F53: 0.088 | G53: =IF($T$1=1,IF($F$16>=600,$F$16*(1+$F$71)-600,IF($F$16<600,0,)), IF($T$1=2,IF($F$16>=1000,$F$16*(1+$F$71)-1000,IF($F$16<1000,0)))) -> 0 | H53: =G53*F53 -> 0 | J53: 0.088 | K53: =IF($T$1=1,IF($F$16>=600,$F$16*(1+$J$71)-600,IF($F$16<600,0,)), IF($T$1=2,IF($F$16>=1000,$F$16*(1+$J$71)-1000,IF($F$16<1000,0)))) -> 0 | L53: =K53*J53 -> 0 | N53: 0
B54: TOU - Off Peak | F54: 0.065 | G54: =0.64*$F$16*(1+$F$71) -> 334.944 | H54: 21.77136 | J54: 0.065 | K54: =0.64*$F$16*(1+$J$71) -> 334.48096 | L54: 21.7412624 | N54: -0.0300976 | O54: -0.00138244005
B55: TOU - Mid Peak | F55: 0.1 | G55: =0.18*$F$16*(1+$F$71) -> 94.203 | H55: 9.4203 | J55: 0.1 | K55: =0.18*$F$16*(1+$J$71) -> 94.07277 | L55: 9.407277 | N55: -0.013023 | O55: -0.00138244005
B56: TOU - On Peak | F56: 0.117 | G56: =0.18*$F$16*(1+$F$71) -> 94.203 | H56: 11.021751 | J56: 0.117 | K56: =0.18*$F$16*(1+$J$71) -> 94.07277 | L56: 11.00651409 | N56: -0.01523691 | O56: -0.00138244005
B58: Total Bill on RPP (before Taxes) | H58: =SUM(H47:H53) -> 76.364545 | L58: =SUM(L47:L53) -> 87.24367895 | N58: 10.87913395 | O58: 0.1424631542
B59: HST | F59: 0.13 | H59: =H58*F59 -> 9.92739085 | J59: 0.13 | L59: =L58*J59 -> 11.34167826 | N59: 1.414287413 | O59: 0.1424631542
B60: Total Bill (including HST) | H60: =H58+H59 -> 86.29193585 | L60: =L58+L59 -> 98.58535721 | N60: 12.29342136 | O60: 0.1424631542
B61: Ontario Clean Energy Benefit 1 | H61: =ROUND(-H60*10%,2) -> -8.63 | L61: =ROUND(-L60*10%,2) -> -9.86 | N61: -1.23 | O61: 0.1425260718
B62: Total Bill on RPP (including OCEB) | H62: =SUM(H60:H61) -> 77.66193585 | L62: =SUM(L60:L61) -> 88.72535721 | N62: 11.06342136 | O62: 0.1424561626
B64: Total Bill on TOU (before Taxes) | H64: =SUM(H47:H51,H54:H56) -> 79.326706 | L64: =SUM(L47:L51,L54:L56) -> 90.20174494 | N64: =L64-H64 -> 10.87503894 | O64: =IF((H64)=0,"",(N64/H64)) -> 0.1370917751
B65: HST | F65: 0.13 | H65: =H64*F65 -> 10.31247178 | J65: 0.13 | L65: =L64*J65 -> 11.72622684 | N65: 1.413755062 | O65: 0.1370917751
B66: Total Bill (including HST) | H66: =H64+H65 -> 89.63917778 | L66: =L64+L65 -> 101.9279718 | N66: 12.288794 | O66: 0.1370917751
B67: Ontario Clean Energy Benefit 1 | H67: =ROUND(-H66*10%,2) -> -8.96 | L67: =ROUND(-L66*10%,2) -> -10.19 | N67: -1.23 | O67: 0.1372767857
B68: Total Bill on TOU (including OCEB) | H68: =H66+H67 -> 80.67917778 | L68: =L66+L67 -> 91.73797178 | N68: 11.058794 | O68: 0.1370712284
B71: Loss Factor (%) | F71: 0.0467 | J71: 0.045253
A73: 1 Applicable to eligible customers only. Refer to the Ontario Clean Energy Benefit Act, 2010.
A75: Note that the "Charge $" columns provide breakdowns of the amounts that each bill component contributes to the total monthly bill at the referenced
A76: consumption level at existing and proposed rates.
A78: Applicants must provide bill impacts for residential at 800 kWh and GS<50kW at 2000 kWh. In addition, their filing should cover the range that is relevant
A79: to their service territory, class by class. A general guideline of consumption levels follows:
A81: Residential (kWh) - 100, 250, 500, 800, 1000, 1500, 2000
A82: GS<50kW (kWh) - 1000, 2000, 5000, 10000, 15000
A83: GS>50kW (kW) - 60, 100, 500, 1000
A84: Large User - range appropriate for utility
A85: Lighting Classes and USL - 150 kWh and 1 kW, range appropriate for utility.

Sheet App.2-W_Bill Impact - Res 800
N1: File Number: | O1: ='LDC Info'!$E$18 -> EB-2012-0175 | T1: 1
N2: Exhibit:
N3: Tab:
N4: Schedule:
N5: Page:
N7: Date:
B10: Appendix 2-W
B11: Bill Impacts
B14: Customer Class: | D14: Residential
D16: Consumption | F16: 800 | G16: kWh
F18: Current Board-Approved | J18: Proposed | N18: Impact
D19: Charge Unit | F19: Rate | G19: Volume | H19: Charge | J19: Rate | K19: Volume | L19: Charge | N19: $ Change | O19: % Change
F20: ($) | H20: ($) | J20: ($) | L20: ($)
B21: Monthly Service Charge | D21: Monthly | F21: 14.2 | G21: 1 | H21: =G21*F21 -> 14.2 | J21: 17.67 | K21: 1 | L21: =K21*J21 -> 17.67 | N21: =L21-H21 -> 3.47 | O21: =IF((H21)=0,"",(N21/H21)) -> 0.2443661972
B22: Smart Meter Rate Adder | G22: 1 | H22: =G22*F22 -> 0 | K22: 1 | L22: =K22*J22 -> 0 | N22: =L22-H22 -> 0 | O22: =IF((H22)=0,"",(N22/H22)) -> 
G23: 1 | H23: 0 | K23: 1 | L23: =K23*J23 -> 0 | N23: =L23-H23 -> 0 | O23: =IF((H23)=0,"",(N23/H23)) -> 
G24: 1 | H24: 0 | K24: 1 | L24: 0 | N24: 0
G25: 1 | H25: 0 | K25: 1 | L25: 0 | N25: 0
G26: 1 | H26: 0 | K26: 1 | L26: 0 | N26: 0
B27: Distribution Volumetric Rate | D27: per kWh | F27: 0.0184 | G27: =$F$16 -> 800 | H27: 14.72 | J27: 0.0229 | K27: =$F$16 -> 800 | L27: 18.32 | N27: 3.6 | O27: 0.2445652174
B28: Smart Meter Disposition Rider | D28: Monthly | G28: =$F$16 -> 800 | H28: 0 | J28: 0.83 | K28: 1 | L28: 0.83 | N28: 0.83
B29: LRAM & SSM Rate Rider | D29: per kWh | F29: 0.0014 | G29: =$F$16 -> 800 | H29: 1.12 | J29: 0.0006 | K29: =$F$16 -> 800 | L29: 0.48 | N29: -0.64 | O29: -0.5714285714
B30: Stranded Meter Recovery Rider | D30: Monthly | G30: =$F$16 -> 800 | H30: 0 | J30: 2.3 | K30: 1 | L30: 2.3 | N30: 2.3
B31: Extraordinary Event Recovery Rider | D31: Monthly | G31: 800 | H31: 0 | J31: 1.11 | K31: 1 | L31: 1.11 | N31: 1.11
G32: 800 | H32: 0 | K32: 800 | L32: 0 | N32: 0
G33: 800 | H33: 0 | K33: 800 | L33: 0 | N33: 0
G34: 800 | H34: 0 | K34: 800 | L34: 0 | N34: 0
G35: 800 | H35: 0 | K35: 800 | L35: 0 | N35: 0
G36: 800 | H36: 0 | K36: 800 | L36: 0 | N36: 0
B37: Sub-Total A | H37: =SUM(H21:H36) -> 30.04 | L37: =SUM(L21:L36) -> 40.71 | N37: 10.67 | O37: 0.3551930759
B38: Deferral/Variance Account Disposition Rate Rider | D38: per kWh | G38: =$F$16 -> 800 | H38: =G38*F38 -> 0 | J38: 0.0031 | K38: =$F$16 -> 800 | L38: =K38*J38 -> 2.48 | N38: =L38-H38 -> 2.48 | O38: =IF((H38)=0,"",(N38/H38)) -> 
B39: Global Adjustment Variance Rider | D39: per kWh | G39: =$F$16 -> 800 | H39: =G39*F39 -> 0 | J39: -0.002 | K39: =$F$16 -> 800 | L39: =K39*J39 -> -1.6 | N39: =L39-H39 -> -1.6 | O39: =IF((H39)=0,"",(N39/H39)) -> 
G40: 800 | H40: 0 | K40: 800 | L40: 0 | N40: 0
G41: 800 | H41: 0 | K41: 800 | L41: 0 | N41: 0
B42: Low Voltage Service Charge | G42: 800 | H42: =G42*F42 -> 0 | K42: 800 | L42: =K42*J42 -> 0 | N42: =L42-H42 -> 0 | O42: =IF((H42)=0,"",(N42/H42)) -> 
B43: Smart Meter Entity Charge | K43: 800 | L43: =K43*J43 -> 0 | N43: =L43-H43 -> 0
B44: Sub-Total B - Distribution (includes Sub-Total A) | H44: =SUM(H38:H42)+H37 -> 30.04 | L44: =SUM(L38:L42)+L37 -> 41.59 | N44: =L44-H44 -> 11.55 | O44: =IF((H44)=0,"",(N44/H44)) -> 0.3844873502
B45: RTSR - Network | D45: per kWh | F45: 0.0063 | G45: =F16*(1+F71) -> 837.36 | H45: =G45*F45 -> 5.275368 | J45: 0.0072 | K45: =F16*(1+J71) -> 836.2024 | L45: =K45*J45 -> 6.02065728 | N45: 0.74528928 | O45: 0.1412772114
B46: RTSR - Line and Transformation Connection | D46: per kWh | F46: 0.0051 | G46: =G45 -> 837.36 | H46: =G46*F46 -> 4.270536 | J46: 0.0058 | K46: =K45 -> 836.2024 | L46: =K46*J46 -> 4.84997392 | N46: 0.57943792 | O46: 0.1356827152
B47: Sub-Total C - Delivery (including Sub-Total B) | H47: =SUM(H44:H46) -> 39.585904 | L47: =SUM(L44:L46) -> 52.4606312 | N47: 12.8747272 | O47: 0.3252351443
B48: Wholesale Market Service Charge (WMSC) | D48: per kWh | F48: 0.0052 | G48: =G46 -> 837.36 | H48: =G48*F48 -> 4.354272 | J48: 0.0052 | K48: =K46 -> 836.2024 | L48: =K48*J48 -> 4.34825248 | N48: -0.00601952 | O48: -0.00138244005
B49: Rural and Remote Rate Protection (RRRP) | D49: per kWh | F49: 0.0011 | G49: =G46 -> 837.36 | H49: 0.921096 | J49: 0.0011 | K49: =K46 -> 836.2024 | L49: 0.91982264 | N49: -0.00127336 | O49: -0.00138244005
B50: Standard Supply Service Charge | D50: Monthly | F50: 0.25 | G50: 1 | H50: 0.25 | J50: 0.25 | K50: 1 | L50: 0.25 | N50: 0 | O50: 0
B51: Debt Retirement Charge (DRC) | D51: per kWh | F51: 0.007 | G51: =F16 -> 800 | H51: 5.6 | J51: 0.007 | K51: =F16 -> 800 | L51: 5.6 | N51: 0 | O51: 0
B52: Energy - RPP - Tier 1 | F52: 0.075 | G52: =IF($T$1=1,IF($F$16>=600,600,IF($F$16<600,$F$16*(1+$F$71),$F$16-600)),IF($T$1=2,IF($F$16>=1000,1000,IF($F$16<1000,$F$16*(1+$F$71),$F$16-1000)))) -> 600 | H52: =G52*F52 -> 45 | J52: 0.075 | K52: =IF($T$1=1,IF($F$16>=600,600,IF($F$16<600,$F$16*(1+$J$71),$F$16-600)),IF($T$1=2,IF($F$16>=1000,1000,IF($F$16<1000,$F$16*(1+$J$71),$F$16-1000)))) -> 600 | L52: =K52*J52 -> 45 | N52: 0 | O52: 0
B53: Energy - RPP - Tier 2 | F53: 0.088 | G53: =IF($T$1=1,IF($F$16>=600,$F$16*(1+$F$71)-600,IF($F$16<600,0,)), IF($T$1=2,IF($F$16>=1000,$F$16*(1+$F$71)-1000,IF($F$16<1000,0)))) -> 237.36 | H53: =G53*F53 -> 20.88768 | J53: 0.088 | K53: =IF($T$1=1,IF($F$16>=600,$F$16*(1+$J$71)-600,IF($F$16<600,0,)), IF($T$1=2,IF($F$16>=1000,$F$16*(1+$J$71)-1000,IF($F$16<1000,0)))) -> 236.2024 | L53: =K53*J53 -> 20.7858112 | N53: -0.1018688 | O53: -0.004876980115
B54: TOU - Off Peak | F54: 0.065 | G54: =0.64*$F$16*(1+$F$71) -> 535.9104 | H54: 34.834176 | J54: 0.065 | K54: =0.64*$F$16*(1+$J$71) -> 535.169536 | L54: 34.78601984 | N54: -0.04815616 | O54: -0.00138244005
B55: TOU - Mid Peak | F55: 0.1 | G55: =0.18*$F$16*(1+$F$71) -> 150.7248 | H55: 15.07248 | J55: 0.1 | K55: =0.18*$F$16*(1+$J$71) -> 150.516432 | L55: 15.0516432 | N55: -0.0208368 | O55: -0.00138244005
B56: TOU - On Peak | F56: 0.117 | G56: =0.18*$F$16*(1+$F$71) -> 150.7248 | H56: 17.6348016 | J56: 0.117 | K56: =0.18*$F$16*(1+$J$71) -> 150.516432 | L56: 17.61042254 | N56: -0.024379056 | O56: -0.00138244005
B58: Total Bill on RPP (before Taxes) | H58: =SUM(H47:H53) -> 116.598952 | L58: =SUM(L47:L53) -> 129.3645175 | N58: 12.76556552 | O58: 0.109482678
B59: HST | F59: 0.13 | H59: =H58*F59 -> 15.15786376 | J59: 0.13 | L59: =L58*J59 -> 16.81738728 | N59: 1.659523518 | O59: 0.109482678
B60: Total Bill (including HST) | H60: =H58+H59 -> 131.7568158 | L60: =L58+L59 -> 146.1819048 | N60: 14.42508904 | O60: 0.109482678
B61: Ontario Clean Energy Benefit 1 | H61: =ROUND(-H60*10%,2) -> -13.18 | L61: =ROUND(-L60*10%,2) -> -14.62 | N61: -1.44 | O61: 0.1092564492
B62: Total Bill on RPP (including OCEB) | H62: =SUM(H60:H61) -> 118.5768158 | L62: =SUM(L60:L61) -> 131.5619048 | N62: 12.98508904 | O62: 0.1095078237
B64: Total Bill on TOU (before Taxes) | H64: =SUM(H47:H51,H54:H56) -> 118.2527296 | L64: =SUM(L47:L51,L54:L56) -> 131.0267919 | N64: =L64-H64 -> 12.7740623 | O64: =IF((H64)=0,"",(N64/H64)) -> 0.1080234033
B65: HST | F65: 0.13 | H65: =H64*F65 -> 15.37285485 | J65: 0.13 | L65: =L64*J65 -> 17.03348295 | N65: 1.6606281 | O65: 0.1080234033
B66: Total Bill (including HST) | H66: =H64+H65 -> 133.6255844 | L66: =L64+L65 -> 148.0602749 | N66: 14.4346904 | O66: 0.1080234033
B67: Ontario Clean Energy Benefit 1 | H67: =ROUND(-H66*10%,2) -> -13.36 | L67: =ROUND(-L66*10%,2) -> -14.81 | N67: -1.45 | O67: 0.1085329341
B68: Total Bill on TOU (including OCEB) | H68: =H66+H67 -> 120.2655844 | L68: =L66+L67 -> 133.2502749 | N68: 12.9846904 | O68: 0.1079668008
B71: Loss Factor (%) | F71: 0.0467 | J71: 0.045253
A73: 1 Applicable to eligible customers only. Refer to the Ontario Clean Energy Benefit Act, 2010.
A75: Note that the "Charge $" columns provide breakdowns of the amounts that each bill component contributes to the total monthly bill at the referenced
A76: consumption level at existing and proposed rates.
A78: Applicants must provide bill impacts for residential at 800 kWh and GS<50kW at 2000 kWh. In addition, their filing should cover the range that is relevant
A79: to their service territory, class by class. A general guideline of consumption levels follows:
A81: Residential (kWh) - 100, 250, 500, 800, 1000, 1500, 2000
A82: GS<50kW (kWh) - 1000, 2000, 5000, 10000, 15000
A83: GS>50kW (kW) - 60, 100, 500, 1000
A84: Large User - range appropriate for utility
A85: Lighting Classes and USL - 150 kWh and 1 kW, range appropriate for utility.

Sheet App.2-W_Bill Impact - Res 1000
N1: File Number: | O1: ='LDC Info'!$E$18 -> EB-2012-0175 | T1: 1
N2: Exhibit:
N3: Tab:
N4: Schedule:
N5: Page:
N7: Date:
B10: Appendix 2-W
B11: Bill Impacts
B14: Customer Class: | D14: Residential
D16: Consumption | F16: 1000 | G16: kWh
F18: Current Board-Approved | J18: Proposed | N18: Impact
D19: Charge Unit | F19: Rate | G19: Volume | H19: Charge | J19: Rate | K19: Volume | L19: Charge | N19: $ Change | O19: % Change
F20: ($) | H20: ($) | J20: ($) | L20: ($)
B21: Monthly Service Charge | D21: Monthly | F21: 14.2 | G21: 1 | H21: =G21*F21 -> 14.2 | J21: 17.67 | K21: 1 | L21: =K21*J21 -> 17.67 | N21: =L21-H21 -> 3.47 | O21: =IF((H21)=0,"",(N21/H21)) -> 0.2443661972
B22: Smart Meter Rate Adder | G22: 1 | H22: =G22*F22 -> 0 | K22: 1 | L22: =K22*J22 -> 0 | N22: =L22-H22 -> 0 | O22: =IF((H22)=0,"",(N22/H22)) -> 
G23: 1 | H23: 0 | K23: 1 | L23: =K23*J23 -> 0 | N23: =L23-H23 -> 0 | O23: =IF((H23)=0,"",(N23/H23)) -> 
G24: 1 | H24: 0 | K24: 1 | L24: 0 | N24: 0
G25: 1 | H25: 0 | K25: 1 | L25: 0 | N25: 0
G26: 1 | H26: 0 | K26: 1 | L26: 0 | N26: 0
B27: Distribution Volumetric Rate | D27: per kWh | F27: 0.0184 | G27: =$F$16 -> 1000 | H27: 18.4 | J27: 0.0229 | K27: =$F$16 -> 1000 | L27: 22.9 | N27: 4.5 | O27: 0.2445652174
B28: Smart Meter Disposition Rider | D28: Monthly | G28: =$F$16 -> 1000 | H28: 0 | J28: 0.83 | K28: 1 | L28: 0.83 | N28: 0.83
B29: LRAM & SSM Rate Rider | D29: per kWh | F29: 0.0014 | G29: =$F$16 -> 1000 | H29: 1.4 | J29: 0.0006 | K29: =$F$16 -> 1000 | L29: 0.6 | N29: -0.8 | O29: -0.5714285714
B30: Stranded Meter Recovery Rider | D30: Monthly | G30: =$F$16 -> 1000 | H30: 0 | J30: 2.3 | K30: 1 | L30: 2.3 | N30: 2.3
B31: Extraordinary Event Recovery Rider | D31: Monthly | G31: 1000 | H31: 0 | J31: 1.11 | K31: 1 | L31: 1.11 | N31: 1.11
G32: 1000 | H32: 0 | K32: 1000 | L32: 0 | N32: 0
G33: 1000 | H33: 0 | K33: 1000 | L33: 0 | N33: 0
G34: 1000 | H34: 0 | K34: 1000 | L34: 0 | N34: 0
G35: 1000 | H35: 0 | K35: 1000 | L35: 0 | N35: 0
G36: 1000 | H36: 0 | K36: 1000 | L36: 0 | N36: 0
B37: Sub-Total A | H37: =SUM(H21:H36) -> 34 | L37: =SUM(L21:L36) -> 45.41 | N37: 11.41 | O37: 0.3355882353
B38: Deferral/Variance Account Disposition Rate Rider | D38: per kWh | G38: =$F$16 -> 1000 | H38: =G38*F38 -> 0 | J38: 0.0031 | K38: =$F$16 -> 1000 | L38: =K38*J38 -> 3.1 | N38: =L38-H38 -> 3.1 | O38: =IF((H38)=0,"",(N38/H38)) -> 
B39: Global Adjustment Variance Rider | D39: per kWh | G39: =$F$16 -> 1000 | H39: =G39*F39 -> 0 | J39: -0.002 | K39: =$F$16 -> 1000 | L39: =K39*J39 -> -2 | N39: =L39-H39 -> -2 | O39: =IF((H39)=0,"",(N39/H39)) -> 
G40: 1000 | H40: 0 | K40: 1000 | L40: 0 | N40: 0
G41: 1000 | H41: 0 | K41: 1000 | L41: 0 | N41: 0
B42: Low Voltage Service Charge | G42: 1000 | H42: =G42*F42 -> 0 | K42: 1000 | L42: =K42*J42 -> 0 | N42: =L42-H42 -> 0 | O42: =IF((H42)=0,"",(N42/H42)) -> 
B43: Smart Meter Entity Charge | K43: 1000 | L43: =K43*J43 -> 0 | N43: =L43-H43 -> 0
B44: Sub-Total B - Distribution (includes Sub-Total A) | H44: =SUM(H38:H42)+H37 -> 34 | L44: =SUM(L38:L42)+L37 -> 46.51 | N44: =L44-H44 -> 12.51 | O44: =IF((H44)=0,"",(N44/H44)) -> 0.3679411765
B45: RTSR - Network | D45: per kWh | F45: 0.0063 | G45: =F16*(1+F71) -> 1046.7 | H45: =G45*F45 -> 6.59421 | J45: 0.0072 | K45: =F16*(1+J71) -> 1045.253 | L45: =K45*J45 -> 7.5258216 | N45: 0.9316116 | O45: 0.1412772114
B46: RTSR - Line and Transformation Connection | D46: per kWh | F46: 0.0051 | G46: =G45 -> 1046.7 | H46: =G46*F46 -> 5.33817 | J46: 0.0058 | K46: =K45 -> 1045.253 | L46: =K46*J46 -> 6.0624674 | N46: 0.7242974 | O46: 0.1356827152
B47: Sub-Total C - Delivery (including Sub-Total B) | H47: =SUM(H44:H46) -> 45.93238 | L47: =SUM(L44:L46) -> 60.098289 | N47: 14.165909 | O47: 0.3084079031
B48: Wholesale Market Service Charge (WMSC) | D48: per kWh | F48: 0.0052 | G48: =G46 -> 1046.7 | H48: =G48*F48 -> 5.44284 | J48: 0.0052 | K48: =K46 -> 1045.253 | L48: =K48*J48 -> 5.4353156 | N48: -0.0075244 | O48: -0.00138244005
B49: Rural and Remote Rate Protection (RRRP) | D49: per kWh | F49: 0.0011 | G49: =G46 -> 1046.7 | H49: 1.15137 | J49: 0.0011 | K49: =K46 -> 1045.253 | L49: 1.1497783 | N49: -0.0015917 | O49: -0.00138244005
B50: Standard Supply Service Charge | D50: Monthly | F50: 0.25 | G50: 1 | H50: 0.25 | J50: 0.25 | K50: 1 | L50: 0.25 | N50: 0 | O50: 0
B51: Debt Retirement Charge (DRC) | D51: per kWh | F51: 0.007 | G51: =F16 -> 1000 | H51: 7 | J51: 0.007 | K51: =F16 -> 1000 | L51: 7 | N51: 0 | O51: 0
B52: Energy - RPP - Tier 1 | F52: 0.075 | G52: =IF($T$1=1,IF($F$16>=600,600,IF($F$16<600,$F$16*(1+$F$71),$F$16-600)),IF($T$1=2,IF($F$16>=1000,1000,IF($F$16<1000,$F$16*(1+$F$71),$F$16-1000)))) -> 600 | H52: =G52*F52 -> 45 | J52: 0.075 | K52: =IF($T$1=1,IF($F$16>=600,600,IF($F$16<600,$F$16*(1+$J$71),$F$16-600)),IF($T$1=2,IF($F$16>=1000,1000,IF($F$16<1000,$F$16*(1+$J$71),$F$16-1000)))) -> 600 | L52: =K52*J52 -> 45 | N52: 0 | O52: 0
B53: Energy - RPP - Tier 2 | F53: 0.088 | G53: =IF($T$1=1,IF($F$16>=600,$F$16*(1+$F$71)-600,IF($F$16<600,0,)), IF($T$1=2,IF($F$16>=1000,$F$16*(1+$F$71)-1000,IF($F$16<1000,0)))) -> 446.7 | H53: =G53*F53 -> 39.3096 | J53: 0.088 | K53: =IF($T$1=1,IF($F$16>=600,$F$16*(1+$J$71)-600,IF($F$16<600,0,)), IF($T$1=2,IF($F$16>=1000,$F$16*(1+$J$71)-1000,IF($F$16<1000,0)))) -> 445.253 | L53: =K53*J53 -> 39.182264 | N53: -0.127336 | O53: -0.003239310499
B54: TOU - Off Peak | F54: 0.065 | G54: =0.64*$F$16*(1+$F$71) -> 669.888 | H54: 43.54272 | J54: 0.065 | K54: =0.64*$F$16*(1+$J$71) -> 668.96192 | L54: 43.4825248 | N54: -0.0601952 | O54: -0.00138244005
B55: TOU - Mid Peak | F55: 0.1 | G55: =0.18*$F$16*(1+$F$71) -> 188.406 | H55: 18.8406 | J55: 0.1 | K55: =0.18*$F$16*(1+$J$71) -> 188.14554 | L55: 18.814554 | N55: -0.026046 | O55: -0.00138244005
B56: TOU - On Peak | F56: 0.117 | G56: =0.18*$F$16*(1+$F$71) -> 188.406 | H56: 22.043502 | J56: 0.117 | K56: =0.18*$F$16*(1+$J$71) -> 188.14554 | L56: 22.01302818 | N56: -0.03047382 | O56: -0.00138244005
B58: Total Bill on RPP (before Taxes) | H58: =SUM(H47:H53) -> 144.08619 | L58: =SUM(L47:L53) -> 158.1156469 | N58: 14.0294569 | O58: 0.09736850492
B59: HST | F59: 0.13 | H59: =H58*F59 -> 18.7312047 | J59: 0.13 | L59: =L58*J59 -> 20.5550341 | N59: 1.823829397 | O59: 0.09736850492
B60: Total Bill (including HST) | H60: =H58+H59 -> 162.8173947 | L60: =L58+L59 -> 178.670681 | N60: 15.8532863 | O60: 0.09736850492
B61: Ontario Clean Energy Benefit 1 | H61: =ROUND(-H60*10%,2) -> -16.28 | L61: =ROUND(-L60*10%,2) -> -17.87 | N61: -1.59 | O61: 0.09766584767
B62: Total Bill on RPP (including OCEB) | H62: =SUM(H60:H61) -> 146.5373947 | L62: =SUM(L60:L61) -> 160.800681 | N62: 14.2632863 | O62: 0.09733547076
B64: Total Bill on TOU (before Taxes) | H64: =SUM(H47:H51,H54:H56) -> 144.203412 | L64: =SUM(L47:L51,L54:L56) -> 158.2434899 | N64: =L64-H64 -> 14.04007788 | O64: =IF((H64)=0,"",(N64/H64)) -> 0.09736300747
B65: HST | F65: 0.13 | H65: =H64*F65 -> 18.74644356 | J65: 0.13 | L65: =L64*J65 -> 20.57165368 | N65: 1.825210124 | O65: 0.09736300747
B66: Total Bill (including HST) | H66: =H64+H65 -> 162.9498556 | L66: =L64+L65 -> 178.8151436 | N66: 15.865288 | O66: 0.09736300747
B67: Ontario Clean Energy Benefit 1 | H67: =ROUND(-H66*10%,2) -> -16.29 | L67: =ROUND(-L66*10%,2) -> -17.88 | N67: -1.59 | O67: 0.09760589319
B68: Total Bill on TOU (including OCEB) | H68: =H66+H67 -> 146.6598556 | L68: =L66+L67 -> 160.9351436 | N68: 14.275288 | O68: 0.09733602934
B71: Loss Factor (%) | F71: 0.0467 | J71: 0.045253
A73: 1 Applicable to eligible customers only. Refer to the Ontario Clean Energy Benefit Act, 2010.
A75: Note that the "Charge $" columns provide breakdowns of the amounts that each bill component contributes to the total monthly bill at the referenced
A76: consumption level at existing and proposed rates.
A78: Applicants must provide bill impacts for residential at 800 kWh and GS<50kW at 2000 kWh. In addition, their filing should cover the range that is relevant
A79: to their service territory, class by class. A general guideline of consumption levels follows:
A81: Residential (kWh) - 100, 250, 500, 800, 1000, 1500, 2000
A82: GS<50kW (kWh) - 1000, 2000, 5000, 10000, 15000
A83: GS>50kW (kW) - 60, 100, 500, 1000
A84: Large User - range appropriate for utility
A85: Lighting Classes and USL - 150 kWh and 1 kW, range appropriate for utility.

Sheet App.2-W_Bill Impact - Res 1500
N1: File Number: | O1: ='LDC Info'!$E$18 -> EB-2012-0175 | T1: 1
N2: Exhibit:
N3: Tab:
N4: Schedule:
N5: Page:
N7: Date:
B10: Appendix 2-W
B11: Bill Impacts
B14: Customer Class: | D14: Residential
D16: Consumption | F16: 1500 | G16: kWh
F18: Current Board-Approved | J18: Proposed | N18: Impact
D19: Charge Unit | F19: Rate | G19: Volume | H19: Charge | J19: Rate | K19: Volume | L19: Charge | N19: $ Change | O19: % Change
F20: ($) | H20: ($) | J20: ($) | L20: ($)
B21: Monthly Service Charge | D21: Monthly | F21: 14.2 | G21: 1 | H21: =G21*F21 -> 14.2 | J21: 17.67 | K21: 1 | L21: =K21*J21 -> 17.67 | N21: =L21-H21 -> 3.47 | O21: =IF((H21)=0,"",(N21/H21)) -> 0.2443661972
B22: Smart Meter Rate Adder | G22: 1 | H22: =G22*F22 -> 0 | K22: 1 | L22: =K22*J22 -> 0 | N22: =L22-H22 -> 0 | O22: =IF((H22)=0,"",(N22/H22)) -> 
G23: 1 | H23: 0 | K23: 1 | L23: =K23*J23 -> 0 | N23: =L23-H23 -> 0 | O23: =IF((H23)=0,"",(N23/H23)) -> 
G24: 1 | H24: 0 | K24: 1 | L24: 0 | N24: 0
G25: 1 | H25: 0 | K25: 1 | L25: 0 | N25: 0
G26: 1 | H26: 0 | K26: 1 | L26: 0 | N26: 0
B27: Distribution Volumetric Rate | D27: per kWh | F27: 0.0184 | G27: =$F$16 -> 1500 | H27: 27.6 | J27: 0.0229 | K27: =$F$16 -> 1500 | L27: 34.35 | N27: 6.75 | O27: 0.2445652174
B28: Smart Meter Disposition Rider | D28: Monthly | G28: =$F$16 -> 1500 | H28: 0 | J28: 0.83 | K28: 1 | L28: 0.83 | N28: 0.83
B29: LRAM & SSM Rate Rider | D29: per kWh | F29: 0.0014 | G29: =$F$16 -> 1500 | H29: 2.1 | J29: 0.0006 | K29: =$F$16 -> 1500 | L29: 0.9 | N29: -1.2 | O29: -0.5714285714
B30: Stranded Meter Recovery Rider | D30: Monthly | G30: =$F$16 -> 1500 | H30: 0 | J30: 2.3 | K30: 1 | L30: 2.3 | N30: 2.3
B31: Extraordinary Event Recovery Rider | D31: Monthly | G31: 1500 | H31: 0 | J31: 1.11 | K31: 1 | L31: 1.11 | N31: 1.11
G32: 1500 | H32: 0 | K32: 1500 | L32: 0 | N32: 0
G33: 1500 | H33: 0 | K33: 1500 | L33: 0 | N33: 0
G34: 1500 | H34: 0 | K34: 1500 | L34: 0 | N34: 0
G35: 1500 | H35: 0 | K35: 1500 | L35: 0 | N35: 0
G36: 1500 | H36: 0 | K36: 1500 | L36: 0 | N36: 0
B37: Sub-Total A | H37: =SUM(H21:H36) -> 43.9 | L37: =SUM(L21:L36) -> 57.16 | N37: 13.26 | O37: 0.3020501139
B38: Deferral/Variance Account Disposition Rate Rider | D38: per kWh | G38: =$F$16 -> 1500 | H38: =G38*F38 -> 0 | J38: 0.0031 | K38: =$F$16 -> 1500 | L38: =K38*J38 -> 4.65 | N38: =L38-H38 -> 4.65 | O38: =IF((H38)=0,"",(N38/H38)) -> 
B39: Global Adjustment Variance Rider | D39: per kWh | G39: =$F$16 -> 1500 | H39: =G39*F39 -> 0 | J39: -0.002 | K39: =$F$16 -> 1500 | L39: =K39*J39 -> -3 | N39: =L39-H39 -> -3 | O39: =IF((H39)=0,"",(N39/H39)) -> 
G40: 1500 | H40: 0 | K40: 1500 | L40: 0 | N40: 0
G41: 1500 | H41: 0 | K41: 1500 | L41: 0 | N41: 0
B42: Low Voltage Service Charge | G42: 1500 | H42: =G42*F42 -> 0 | K42: 1500 | L42: =K42*J42 -> 0 | N42: =L42-H42 -> 0 | O42: =IF((H42)=0,"",(N42/H42)) -> 
B43: Smart Meter Entity Charge | K43: 1500 | L43: =K43*J43 -> 0 | N43: =L43-H43 -> 0
B44: Sub-Total B - Distribution (includes Sub-Total A) | H44: =SUM(H38:H42)+H37 -> 43.9 | L44: =SUM(L38:L42)+L37 -> 58.81 | N44: =L44-H44 -> 14.91 | O44: =IF((H44)=0,"",(N44/H44)) -> 0.3396355353
B45: RTSR - Network | D45: per kWh | F45: 0.0063 | G45: =F16*(1+F71) -> 1570.05 | H45: =G45*F45 -> 9.891315 | J45: 0.0072 | K45: =F16*(1+J71) -> 1567.8795 | L45: =K45*J45 -> 11.2887324 | N45: 1.3974174 | O45: 0.1412772114
B46: RTSR - Line and Transformation Connection | D46: per kWh | F46: 0.0051 | G46: =G45 -> 1570.05 | H46: =G46*F46 -> 8.007255 | J46: 0.0058 | K46: =K45 -> 1567.8795 | L46: =K46*J46 -> 9.0937011 | N46: 1.0864461 | O46: 0.1356827152
B47: Sub-Total C - Delivery (including Sub-Total B) | H47: =SUM(H44:H46) -> 61.79857 | L47: =SUM(L44:L46) -> 79.1924335 | N47: 17.3938635 | O47: 0.2814606147
B48: Wholesale Market Service Charge (WMSC) | D48: per kWh | F48: 0.0052 | G48: =G46 -> 1570.05 | H48: =G48*F48 -> 8.16426 | J48: 0.0052 | K48: =K46 -> 1567.8795 | L48: =K48*J48 -> 8.1529734 | N48: -0.0112866 | O48: -0.00138244005
B49: Rural and Remote Rate Protection (RRRP) | D49: per kWh | F49: 0.0011 | G49: =G46 -> 1570.05 | H49: 1.727055 | J49: 0.0011 | K49: =K46 -> 1567.8795 | L49: 1.72466745 | N49: -0.00238755 | O49: -0.00138244005
B50: Standard Supply Service Charge | D50: Monthly | F50: 0.25 | G50: 1 | H50: 0.25 | J50: 0.25 | K50: 1 | L50: 0.25 | N50: 0 | O50: 0
B51: Debt Retirement Charge (DRC) | D51: per kWh | F51: 0.007 | G51: =F16 -> 1500 | H51: 10.5 | J51: 0.007 | K51: =F16 -> 1500 | L51: 10.5 | N51: 0 | O51: 0
B52: Energy - RPP - Tier 1 | F52: 0.075 | G52: =IF($T$1=1,IF($F$16>=600,600,IF($F$16<600,$F$16*(1+$F$71),$F$16-600)),IF($T$1=2,IF($F$16>=1000,1000,IF($F$16<1000,$F$16*(1+$F$71),$F$16-1000)))) -> 600 | H52: =G52*F52 -> 45 | J52: 0.075 | K52: =IF($T$1=1,IF($F$16>=600,600,IF($F$16<600,$F$16*(1+$J$71),$F$16-600)),IF($T$1=2,IF($F$16>=1000,1000,IF($F$16<1000,$F$16*(1+$J$71),$F$16-1000)))) -> 600 | L52: =K52*J52 -> 45 | N52: 0 | O52: 0
B53: Energy - RPP - Tier 2 | F53: 0.088 | G53: =IF($T$1=1,IF($F$16>=600,$F$16*(1+$F$71)-600,IF($F$16<600,0,)), IF($T$1=2,IF($F$16>=1000,$F$16*(1+$F$71)-1000,IF($F$16<1000,0)))) -> 970.05 | H53: =G53*F53 -> 85.3644 | J53: 0.088 | K53: =IF($T$1=1,IF($F$16>=600,$F$16*(1+$J$71)-600,IF($F$16<600,0,)), IF($T$1=2,IF($F$16>=1000,$F$16*(1+$J$71)-1000,IF($F$16<1000,0)))) -> 967.8795 | L53: =K53*J53 -> 85.173396 | N53: -0.191004 | O53: -0.00223751353
B54: TOU - Off Peak | F54: 0.065 | G54: =0.64*$F$16*(1+$F$71) -> 1004.832 | H54: 65.31408 | J54: 0.065 | K54: =0.64*$F$16*(1+$J$71) -> 1003.44288 | L54: 65.2237872 | N54: -0.0902928 | O54: -0.00138244005
B55: TOU - Mid Peak | F55: 0.1 | G55: =0.18*$F$16*(1+$F$71) -> 282.609 | H55: 28.2609 | J55: 0.1 | K55: =0.18*$F$16*(1+$J$71) -> 282.21831 | L55: 28.221831 | N55: -0.039069 | O55: -0.00138244005
B56: TOU - On Peak | F56: 0.117 | G56: =0.18*$F$16*(1+$F$71) -> 282.609 | H56: 33.065253 | J56: 0.117 | K56: =0.18*$F$16*(1+$J$71) -> 282.21831 | L56: 33.01954227 | N56: -0.04571073 | O56: -0.00138244005
B58: Total Bill on RPP (before Taxes) | H58: =SUM(H47:H53) -> 212.804285 | L58: =SUM(L47:L53) -> 229.9934703 | N58: 17.18918535 | O58: 0.08077462045
B59: HST | F59: 0.13 | H59: =H58*F59 -> 27.66455705 | J59: 0.13 | L59: =L58*J59 -> 29.89915115 | N59: 2.234594096 | O59: 0.08077462045
B60: Total Bill (including HST) | H60: =H58+H59 -> 240.468842 | L60: =L58+L59 -> 259.8926215 | N60: 19.42377945 | O60: 0.08077462045
B61: Ontario Clean Energy Benefit 1 | H61: =ROUND(-H60*10%,2) -> -24.05 | L61: =ROUND(-L60*10%,2) -> -25.99 | N61: -1.94 | O61: 0.08066528067
B62: Total Bill on RPP (including OCEB) | H62: =SUM(H60:H61) -> 216.418842 | L62: =SUM(L60:L61) -> 233.9026215 | N62: 17.48377945 | O62: 0.08078677106
B64: Total Bill on TOU (before Taxes) | H64: =SUM(H47:H51,H54:H56) -> 209.080118 | L64: =SUM(L47:L51,L54:L56) -> 226.2852348 | N64: =L64-H64 -> 17.20511682 | O64: =IF((H64)=0,"",(N64/H64)) -> 0.08228958824
B65: HST | F65: 0.13 | H65: =H64*F65 -> 27.18041534 | J65: 0.13 | L65: =L64*J65 -> 29.41708053 | N65: 2.236665187 | O65: 0.08228958824
B66: Total Bill (including HST) | H66: =H64+H65 -> 236.2605333 | L66: =L64+L65 -> 255.7023153 | N66: 19.44178201 | O66: 0.08228958824
B67: Ontario Clean Energy Benefit 1 | H67: =ROUND(-H66*10%,2) -> -23.63 | L67: =ROUND(-L66*10%,2) -> -25.57 | N67: -1.94 | O67: 0.08209902666
B68: Total Bill on TOU (including OCEB) | H68: =H66+H67 -> 212.6305333 | L68: =L66+L67 -> 230.1323153 | N68: 17.50178201 | O68: 0.08231076568
B71: Loss Factor (%) | F71: 0.0467 | J71: 0.045253
A73: 1 Applicable to eligible customers only. Refer to the Ontario Clean Energy Benefit Act, 2010.
A75: Note that the "Charge $" columns provide breakdowns of the amounts that each bill component contributes to the total monthly bill at the referenced
A76: consumption level at existing and proposed rates.
A78: Applicants must provide bill impacts for residential at 800 kWh and GS<50kW at 2000 kWh. In addition, their filing should cover the range that is relevant
A79: to their service territory, class by class. A general guideline of consumption levels follows:
A81: Residential (kWh) - 100, 250, 500, 800, 1000, 1500, 2000
A82: GS<50kW (kWh) - 1000, 2000, 5000, 10000, 15000
A83: GS>50kW (kW) - 60, 100, 500, 1000
A84: Large User - range appropriate for utility
A85: Lighting Classes and USL - 150 kWh and 1 kW, range appropriate for utility.

Sheet App.2-W_Bill Impact - Res 2000
N1: File Number: | O1: ='LDC Info'!$E$18 -> EB-2012-0175 | T1: 1
N2: Exhibit:
N3: Tab:
N4: Schedule:
N5: Page:
N7: Date:
B10: Appendix 2-W
B11: Bill Impacts
B14: Customer Class: | D14: Residential
D16: Consumption | F16: 2000 | G16: kWh
F18: Current Board-Approved | J18: Proposed | N18: Impact
D19: Charge Unit | F19: Rate | G19: Volume | H19: Charge | J19: Rate | K19: Volume | L19: Charge | N19: $ Change | O19: % Change
F20: ($) | H20: ($) | J20: ($) | L20: ($)
B21: Monthly Service Charge | D21: Monthly | F21: 14.2 | G21: 1 | H21: =G21*F21 -> 14.2 | J21: 17.67 | K21: 1 | L21: =K21*J21 -> 17.67 | N21: =L21-H21 -> 3.47 | O21: =IF((H21)=0,"",(N21/H21)) -> 0.2443661972
B22: Smart Meter Rate Adder | G22: 1 | H22: =G22*F22 -> 0 | K22: 1 | L22: =K22*J22 -> 0 | N22: =L22-H22 -> 0 | O22: =IF((H22)=0,"",(N22/H22)) -> 
G23: 1 | H23: 0 | K23: 1 | L23: =K23*J23 -> 0 | N23: =L23-H23 -> 0 | O23: =IF((H23)=0,"",(N23/H23)) -> 
G24: 1 | H24: 0 | K24: 1 | L24: 0 | N24: 0
G25: 1 | H25: 0 | K25: 1 | L25: 0 | N25: 0
G26: 1 | H26: 0 | K26: 1 | L26: 0 | N26: 0
B27: Distribution Volumetric Rate | D27: per kWh | F27: 0.0184 | G27: =$F$16 -> 2000 | H27: 36.8 | J27: 0.0229 | K27: =$F$16 -> 2000 | L27: 45.8 | N27: 9 | O27: 0.2445652174
B28: Smart Meter Disposition Rider | D28: Monthly | G28: =$F$16 -> 2000 | H28: 0 | J28: 0.83 | K28: 1 | L28: 0.83 | N28: 0.83
B29: LRAM & SSM Rate Rider | D29: per kWh | F29: 0.0014 | G29: =$F$16 -> 2000 | H29: 2.8 | J29: 0.0006 | K29: =$F$16 -> 2000 | L29: 1.2 | N29: -1.6 | O29: -0.5714285714
B30: Stranded Meter Recovery Rider | D30: Monthly | G30: =$F$16 -> 2000 | H30: 0 | J30: 2.3 | K30: 1 | L30: 2.3 | N30: 2.3
B31: Extraordinary Event Recovery Rider | D31: Monthly | G31: 2000 | H31: 0 | J31: 1.11 | K31: 1 | L31: 1.11 | N31: 1.11
G32: 2000 | H32: 0 | K32: 2000 | L32: 0 | N32: 0
G33: 2000 | H33: 0 | K33: 2000 | L33: 0 | N33: 0
G34: 2000 | H34: 0 | K34: 2000 | L34: 0 | N34: 0
G35: 2000 | H35: 0 | K35: 2000 | L35: 0 | N35: 0
G36: 2000 | H36: 0 | K36: 2000 | L36: 0 | N36: 0
B37: Sub-Total A | H37: =SUM(H21:H36) -> 53.8 | L37: =SUM(L21:L36) -> 68.91 | N37: 15.11 | O37: 0.2808550186
B38: Deferral/Variance Account Disposition Rate Rider | D38: per kWh | G38: =$F$16 -> 2000 | H38: =G38*F38 -> 0 | J38: 0.0031 | K38: =$F$16 -> 2000 | L38: =K38*J38 -> 6.2 | N38: =L38-H38 -> 6.2 | O38: =IF((H38)=0,"",(N38/H38)) -> 
B39: Global Adjustment Variance Rider | D39: per kWh | G39: =$F$16 -> 2000 | H39: =G39*F39 -> 0 | J39: -0.002 | K39: =$F$16 -> 2000 | L39: =K39*J39 -> -4 | N39: =L39-H39 -> -4 | O39: =IF((H39)=0,"",(N39/H39)) -> 
G40: 2000 | H40: 0 | K40: 2000 | L40: 0 | N40: 0
G41: 2000 | H41: 0 | K41: 2000 | L41: 0 | N41: 0
B42: Low Voltage Service Charge | G42: 2000 | H42: =G42*F42 -> 0 | K42: 2000 | L42: =K42*J42 -> 0 | N42: =L42-H42 -> 0 | O42: =IF((H42)=0,"",(N42/H42)) -> 
B43: Smart Meter Entity Charge | K43: 2000 | L43: =K43*J43 -> 0 | N43: =L43-H43 -> 0
B44: Sub-Total B - Distribution (includes Sub-Total A) | H44: =SUM(H38:H42)+H37 -> 53.8 | L44: =SUM(L38:L42)+L37 -> 71.11 | N44: =L44-H44 -> 17.31 | O44: =IF((H44)=0,"",(N44/H44)) -> 0.3217472119
B45: RTSR - Network | D45: per kWh | F45: 0.0063 | G45: =F16*(1+F71) -> 2093.4 | H45: =G45*F45 -> 13.18842 | J45: 0.0072 | K45: =F16*(1+J71) -> 2090.506 | L45: =K45*J45 -> 15.0516432 | N45: 1.8632232 | O45: 0.1412772114
B46: RTSR - Line and Transformation Connection | D46: per kWh | F46: 0.0051 | G46: =G45 -> 2093.4 | H46: =G46*F46 -> 10.67634 | J46: 0.0058 | K46: =K45 -> 2090.506 | L46: =K46*J46 -> 12.1249348 | N46: 1.4485948 | O46: 0.1356827152
B47: Sub-Total C - Delivery (including Sub-Total B) | H47: =SUM(H44:H46) -> 77.66476 | L47: =SUM(L44:L46) -> 98.286578 | N47: 20.621818 | O47: 0.2655234884
B48: Wholesale Market Service Charge (WMSC) | D48: per kWh | F48: 0.0052 | G48: =G46 -> 2093.4 | H48: =G48*F48 -> 10.88568 | J48: 0.0052 | K48: =K46 -> 2090.506 | L48: =K48*J48 -> 10.8706312 | N48: -0.0150488 | O48: -0.00138244005
B49: Rural and Remote Rate Protection (RRRP) | D49: per kWh | F49: 0.0011 | G49: =G46 -> 2093.4 | H49: 2.30274 | J49: 0.0011 | K49: =K46 -> 2090.506 | L49: 2.2995566 | N49: -0.0031834 | O49: -0.00138244005
B50: Standard Supply Service Charge | D50: Monthly | F50: 0.25 | G50: 1 | H50: 0.25 | J50: 0.25 | K50: 1 | L50: 0.25 | N50: 0 | O50: 0
B51: Debt Retirement Charge (DRC) | D51: per kWh | F51: 0.007 | G51: =F16 -> 2000 | H51: 14 | J51: 0.007 | K51: =F16 -> 2000 | L51: 14 | N51: 0 | O51: 0
B52: Energy - RPP - Tier 1 | F52: 0.075 | G52: =IF($T$1=1,IF($F$16>=600,600,IF($F$16<600,$F$16*(1+$F$71),$F$16-600)),IF($T$1=2,IF($F$16>=1000,1000,IF($F$16<1000,$F$16*(1+$F$71),$F$16-1000)))) -> 600 | H52: =G52*F52 -> 45 | J52: 0.075 | K52: =IF($T$1=1,IF($F$16>=600,600,IF($F$16<600,$F$16*(1+$J$71),$F$16-600)),IF($T$1=2,IF($F$16>=1000,1000,IF($F$16<1000,$F$16*(1+$J$71),$F$16-1000)))) -> 600 | L52: =K52*J52 -> 45 | N52: 0 | O52: 0
B53: Energy - RPP - Tier 2 | F53: 0.088 | G53: =IF($T$1=1,IF($F$16>=600,$F$16*(1+$F$71)-600,IF($F$16<600,0,)), IF($T$1=2,IF($F$16>=1000,$F$16*(1+$F$71)-1000,IF($F$16<1000,0)))) -> 1493.4 | H53: =G53*F53 -> 131.4192 | J53: 0.088 | K53: =IF($T$1=1,IF($F$16>=600,$F$16*(1+$J$71)-600,IF($F$16<600,0,)), IF($T$1=2,IF($F$16>=1000,$F$16*(1+$J$71)-1000,IF($F$16<1000,0)))) -> 1490.506 | L53: =K53*J53 -> 131.164528 | N53: -0.254672 | O53: -0.001937859917
B54: TOU - Off Peak | F54: 0.065 | G54: =0.64*$F$16*(1+$F$71) -> 1339.776 | H54: 87.08544 | J54: 0.065 | K54: =0.64*$F$16*(1+$J$71) -> 1337.92384 | L54: 86.9650496 | N54: -0.1203904 | O54: -0.00138244005
B55: TOU - Mid Peak | F55: 0.1 | G55: =0.18*$F$16*(1+$F$71) -> 376.812 | H55: 37.6812 | J55: 0.1 | K55: =0.18*$F$16*(1+$J$71) -> 376.29108 | L55: 37.629108 | N55: -0.052092 | O55: -0.00138244005
B56: TOU - On Peak | F56: 0.117 | G56: =0.18*$F$16*(1+$F$71) -> 376.812 | H56: 44.087004 | J56: 0.117 | K56: =0.18*$F$16*(1+$J$71) -> 376.29108 | L56: 44.02605636 | N56: -0.06094764 | O56: -0.00138244005
B58: Total Bill on RPP (before Taxes) | H58: =SUM(H47:H53) -> 281.52238 | L58: =SUM(L47:L53) -> 301.8712938 | N58: 20.3489138 | O58: 0.07228169142
B59: HST | F59: 0.13 | H59: =H58*F59 -> 36.5979094 | J59: 0.13 | L59: =L58*J59 -> 39.24326819 | N59: 2.645358794 | O59: 0.07228169142
B60: Total Bill (including HST) | H60: =H58+H59 -> 318.1202894 | L60: =L58+L59 -> 341.114562 | N60: 22.99427259 | O60: 0.07228169142
B61: Ontario Clean Energy Benefit 1 | H61: =ROUND(-H60*10%,2) -> -31.81 | L61: =ROUND(-L60*10%,2) -> -34.11 | N61: -2.3 | O61: 0.07230430682
B62: Total Bill on RPP (including OCEB) | H62: =SUM(H60:H61) -> 286.3102894 | L62: =SUM(L60:L61) -> 307.004562 | N62: 20.69427259 | O62: 0.07227917878
B64: Total Bill on TOU (before Taxes) | H64: =SUM(H47:H51,H54:H56) -> 273.956824 | L64: =SUM(L47:L51,L54:L56) -> 294.3269798 | N64: =L64-H64 -> 20.37015576 | O64: =IF((H64)=0,"",(N64/H64)) -> 0.07435535083
B65: HST | F65: 0.13 | H65: =H64*F65 -> 35.61438712 | J65: 0.13 | L65: =L64*J65 -> 38.26250737 | N65: 2.648120249 | O65: 0.07435535083
B66: Total Bill (including HST) | H66: =H64+H65 -> 309.5712111 | L66: =L64+L65 -> 332.5894871 | N66: 23.01827601 | O66: 0.07435535083
B67: Ontario Clean Energy Benefit 1 | H67: =ROUND(-H66*10%,2) -> -30.96 | L67: =ROUND(-L66*10%,2) -> -33.26 | N67: -2.3 | O67: 0.07428940568
B68: Total Bill on TOU (including OCEB) | H68: =H66+H67 -> 278.6112111 | L68: =L66+L67 -> 299.3294871 | N68: 20.71827601 | O68: 0.07436267882
B71: Loss Factor (%) | F71: 0.0467 | J71: 0.045253
A73: 1 Applicable to eligible customers only. Refer to the Ontario Clean Energy Benefit Act, 2010.
A75: Note that the "Charge $" columns provide breakdowns of the amounts that each bill component contributes to the total monthly bill at the referenced
A76: consumption level at existing and proposed rates.
A78: Applicants must provide bill impacts for residential at 800 kWh and GS<50kW at 2000 kWh. In addition, their filing should cover the range that is relevant
A79: to their service territory, class by class. A general guideline of consumption levels follows:
A81: Residential (kWh) - 100, 250, 500, 800, 1000, 1500, 2000
A82: GS<50kW (kWh) - 1000, 2000, 5000, 10000, 15000
A83: GS>50kW (kW) - 60, 100, 500, 1000
A84: Large User - range appropriate for utility
A85: Lighting Classes and USL - 150 kWh and 1 kW, range appropriate for utility.

Sheet App.2-W_Bill Impact - GS<50- 1k
N1: File Number: | O1: ='LDC Info'!$E$18 -> EB-2012-0175 | T1: 1
N2: Exhibit:
N3: Tab:
N4: Schedule:
N5: Page:
N7: Date:
B10: Appendix 2-W
B11: Bill Impacts
B14: Customer Class: | D14: General Service Less Than 50kW
D16: Consumption | F16: 1000 | G16: kWh
F18: Current Board-Approved | J18: Proposed | N18: Impact
D19: Charge Unit | F19: Rate | G19: Volume | H19: Charge | J19: Rate | K19: Volume | L19: Charge | N19: $ Change | O19: % Change
F20: ($) | H20: ($) | J20: ($) | L20: ($)
B21: Monthly Service Charge | D21: Monthly | F21: 33.72 | G21: 1 | H21: =G21*F21 -> 33.72 | J21: 37 | K21: 1 | L21: =K21*J21 -> 37 | N21: =L21-H21 -> 3.28 | O21: =IF((H21)=0,"",(N21/H21)) -> 0.09727164887
B22: Smart Meter Rate Adder | G22: 1 | H22: =G22*F22 -> 0 | K22: 1 | L22: =K22*J22 -> 0 | N22: =L22-H22 -> 0 | O22: =IF((H22)=0,"",(N22/H22)) -> 
G23: 1 | H23: 0 | K23: 1 | L23: =K23*J23 -> 0 | N23: =L23-H23 -> 0 | O23: =IF((H23)=0,"",(N23/H23)) -> 
G24: 1 | H24: 0 | K24: 1 | L24: 0 | N24: 0
G25: 1 | H25: 0 | K25: 1 | L25: 0 | N25: 0
G26: 1 | H26: 0 | K26: 1 | L26: 0 | N26: 0
B27: Distribution Volumetric Rate | D27: per kWh | F27: 0.0116 | G27: =$F$16 -> 1000 | H27: 11.6 | J27: 0.0142 | K27: =$F$16 -> 1000 | L27: 14.2 | N27: 2.6 | O27: 0.224137931
B28: Smart Meter Disposition Rider | D28: Monthly | G28: =$F$16 -> 1000 | H28: 0 | J28: 0.83 | K28: 1 | L28: 0.83 | N28: 0.83
B29: LRAM & SSM Rate Rider | D29: per kWh | F29: 0.0023 | G29: =$F$16 -> 1000 | H29: 2.3 | J29: 0.0012 | K29: =$F$16 -> 1000 | L29: 1.2 | N29: -1.1 | O29: -0.4782608696
B30: Stranded Meter Recovery Rider | D30: Monthly | G30: =$F$16 -> 1000 | H30: 0 | J30: 2.3 | K30: 1 | L30: 2.3 | N30: 2.3
B31: Extraordinary Event Recovery Rider | D31: Monthly | G31: 1000 | H31: 0 | J31: 2.47 | K31: 1 | L31: 2.47 | N31: 2.47
G32: 1000 | H32: 0 | K32: 1000 | L32: 0 | N32: 0
G33: 1000 | H33: 0 | K33: 1000 | L33: 0 | N33: 0
G34: 1000 | H34: 0 | K34: 1000 | L34: 0 | N34: 0
G35: 1000 | H35: 0 | K35: 1000 | L35: 0 | N35: 0
G36: 1000 | H36: 0 | K36: 1000 | L36: 0 | N36: 0
B37: Sub-Total A | H37: =SUM(H21:H36) -> 47.62 | L37: =SUM(L21:L36) -> 58 | N37: 10.38 | O37: 0.2179756405
B38: Deferral/Variance Account Disposition Rate Rider | D38: per kWh | G38: =$F$16 -> 1000 | H38: =G38*F38 -> 0 | J38: 0.004 | K38: =$F$16 -> 1000 | L38: =K38*J38 -> 4 | N38: =L38-H38 -> 4 | O38: =IF((H38)=0,"",(N38/H38)) -> 
B39: Global Adjustment Variance Rider | D39: per kWh | G39: =$F$16 -> 1000 | H39: =G39*F39 -> 0 | J39: -0.002 | K39: =$F$16 -> 1000 | L39: =K39*J39 -> -2 | N39: =L39-H39 -> -2 | O39: =IF((H39)=0,"",(N39/H39)) -> 
G40: 1000 | H40: 0 | K40: 1000 | L40: 0 | N40: 0
G41: 1000 | H41: 0 | K41: 1000 | L41: 0 | N41: 0
B42: Low Voltage Service Charge | G42: 1000 | H42: =G42*F42 -> 0 | K42: 1000 | L42: =K42*J42 -> 0 | N42: =L42-H42 -> 0 | O42: =IF((H42)=0,"",(N42/H42)) -> 
B43: Smart Meter Entity Charge | K43: 1000 | L43: =K43*J43 -> 0 | N43: =L43-H43 -> 0
B44: Sub-Total B - Distribution (includes Sub-Total A) | H44: =SUM(H38:H42)+H37 -> 47.62 | L44: =SUM(L38:L42)+L37 -> 60 | N44: =L44-H44 -> 12.38 | O44: =IF((H44)=0,"",(N44/H44)) -> 0.2599748005
B45: RTSR - Network | D45: per kWh | F45: 0.0058 | G45: =F16*(1+F71) -> 1046.7 | H45: =G45*F45 -> 6.07086 | J45: 0.0066 | K45: =F16*(1+J71) -> 1045.253 | L45: =K45*J45 -> 6.8986698 | N45: 0.8278098 | O45: 0.136357913
B46: RTSR - Line and Transformation Connection | D46: per kWh | F46: 0.0045 | G46: =G45 -> 1046.7 | H46: =G46*F46 -> 4.71015 | J46: 0.0051 | K46: =K45 -> 1045.253 | L46: =K46*J46 -> 5.3307903 | N46: 0.6206403 | O46: 0.1317665679
B47: Sub-Total C - Delivery (including Sub-Total B) | H47: =SUM(H44:H46) -> 58.40101 | L47: =SUM(L44:L46) -> 72.2294601 | N47: 13.8284501 | O47: 0.236784434
B48: Wholesale Market Service Charge (WMSC) | D48: per kWh | F48: 0.0052 | G48: =G46 -> 1046.7 | H48: =G48*F48 -> 5.44284 | J48: 0.0052 | K48: =K46 -> 1045.253 | L48: =K48*J48 -> 5.4353156 | N48: -0.0075244 | O48: -0.00138244005
B49: Rural and Remote Rate Protection (RRRP) | D49: per kWh | F49: 0.0011 | G49: =G46 -> 1046.7 | H49: 1.15137 | J49: 0.0011 | K49: =K46 -> 1045.253 | L49: 1.1497783 | N49: -0.0015917 | O49: -0.00138244005
B50: Standard Supply Service Charge | D50: Monthly | F50: 0.25 | G50: 1 | H50: 0.25 | J50: 0.25 | K50: 1 | L50: 0.25 | N50: 0 | O50: 0
B51: Debt Retirement Charge (DRC) | D51: per kWh | F51: 0.007 | G51: =F16 -> 1000 | H51: 7 | J51: 0.007 | K51: =F16 -> 1000 | L51: 7 | N51: 0 | O51: 0
B52: Energy - RPP - Tier 1 | F52: 0.075 | G52: =IF($T$1=1,IF($F$16>=600,600,IF($F$16<600,$F$16*(1+$F$71),$F$16-600)),IF($T$1=2,IF($F$16>=1000,1000,IF($F$16<1000,$F$16*(1+$F$71),$F$16-1000)))) -> 600 | H52: =G52*F52 -> 45 | J52: 0.075 | K52: =IF($T$1=1,IF($F$16>=600,600,IF($F$16<600,$F$16*(1+$J$71),$F$16-600)),IF($T$1=2,IF($F$16>=1000,1000,IF($F$16<1000,$F$16*(1+$J$71),$F$16-1000)))) -> 600 | L52: =K52*J52 -> 45 | N52: 0 | O52: 0
B53: Energy - RPP - Tier 2 | F53: 0.088 | G53: =IF($T$1=1,IF($F$16>=600,$F$16*(1+$F$71)-600,IF($F$16<600,0,)), IF($T$1=2,IF($F$16>=1000,$F$16*(1+$F$71)-1000,IF($F$16<1000,0)))) -> 446.7 | H53: =G53*F53 -> 39.3096 | J53: 0.088 | K53: =IF($T$1=1,IF($F$16>=600,$F$16*(1+$J$71)-600,IF($F$16<600,0,)), IF($T$1=2,IF($F$16>=1000,$F$16*(1+$J$71)-1000,IF($F$16<1000,0)))) -> 445.253 | L53: =K53*J53 -> 39.182264 | N53: -0.127336 | O53: -0.003239310499
B54: TOU - Off Peak | F54: 0.065 | G54: =0.64*$F$16*(1+$F$71) -> 669.888 | H54: 43.54272 | J54: 0.065 | K54: =0.64*$F$16*(1+$J$71) -> 668.96192 | L54: 43.4825248 | N54: -0.0601952 | O54: -0.00138244005
B55: TOU - Mid Peak | F55: 0.1 | G55: =0.18*$F$16*(1+$F$71) -> 188.406 | H55: 18.8406 | J55: 0.1 | K55: =0.18*$F$16*(1+$J$71) -> 188.14554 | L55: 18.814554 | N55: -0.026046 | O55: -0.00138244005
B56: TOU - On Peak | F56: 0.117 | G56: =0.18*$F$16*(1+$F$71) -> 188.406 | H56: 22.043502 | J56: 0.117 | K56: =0.18*$F$16*(1+$J$71) -> 188.14554 | L56: 22.01302818 | N56: -0.03047382 | O56: -0.00138244005
B58: Total Bill on RPP (before Taxes) | H58: =SUM(H47:H53) -> 156.55482 | L58: =SUM(L47:L53) -> 170.246818 | N58: 13.691998 | O58: 0.0874581696
B59: HST | F59: 0.13 | H59: =H58*F59 -> 20.3521266 | J59: 0.13 | L59: =L58*J59 -> 22.13208634 | N59: 1.77995974 | O59: 0.0874581696
B60: Total Bill (including HST) | H60: =H58+H59 -> 176.9069466 | L60: =L58+L59 -> 192.3789043 | N60: 15.47195774 | O60: 0.0874581696
B61: Ontario Clean Energy Benefit 1 | H61: =ROUND(-H60*10%,2) -> -17.69 | L61: =ROUND(-L60*10%,2) -> -19.24 | N61: -1.55 | O61: 0.08762012436
B62: Total Bill on RPP (including OCEB) | H62: =SUM(H60:H61) -> 159.2169466 | L62: =SUM(L60:L61) -> 173.1389043 | N62: 13.92195774 | O62: 0.08744017542
B64: Total Bill on TOU (before Taxes) | H64: =SUM(H47:H51,H54:H56) -> 156.672042 | L64: =SUM(L47:L51,L54:L56) -> 170.374661 | N64: =L64-H64 -> 13.70261898 | O64: =IF((H64)=0,"",(N64/H64)) -> 0.08746052458
B65: HST | F65: 0.13 | H65: =H64*F65 -> 20.36736546 | J65: 0.13 | L65: =L64*J65 -> 22.14870593 | N65: 1.781340467 | O65: 0.08746052458
B66: Total Bill (including HST) | H66: =H64+H65 -> 177.0394075 | L66: =L64+L65 -> 192.5233669 | N66: 15.48395945 | O66: 0.08746052458
B67: Ontario Clean Energy Benefit 1 | H67: =ROUND(-H66*10%,2) -> -17.7 | L67: =ROUND(-L66*10%,2) -> -19.25 | N67: -1.55 | O67: 0.08757062147
B68: Total Bill on TOU (including OCEB) | H68: =H66+H67 -> 159.3394075 | L68: =L66+L67 -> 173.2733669 | N68: 13.93395945 | O68: 0.08744829462
B71: Loss Factor (%) | F71: 0.0467 | J71: 0.045253
A73: 1 Applicable to eligible customers only. Refer to the Ontario Clean Energy Benefit Act, 2010.
A75: Note that the "Charge $" columns provide breakdowns of the amounts that each bill component contributes to the total monthly bill at the referenced
A76: consumption level at existing and proposed rates.
A78: Applicants must provide bill impacts for residential at 800 kWh and GS<50kW at 2000 kWh. In addition, their filing should cover the range that is relevant
A79: to their service territory, class by class. A general guideline of consumption levels follows:
A81: Residential (kWh) - 100, 250, 500, 800, 1000, 1500, 2000
A82: GS<50kW (kWh) - 1000, 2000, 5000, 10000, 15000
A83: GS>50kW (kW) - 60, 100, 500, 1000
A84: Large User - range appropriate for utility
A85: Lighting Classes and USL - 150 kWh and 1 kW, range appropriate for utility.

Sheet App.2-W_Bill Impact - GS<50-2k
N1: File Number: | O1: ='LDC Info'!$E$18 -> EB-2012-0175 | T1: 1
N2: Exhibit:
N3: Tab:
N4: Schedule:
N5: Page:
N7: Date:
B10: Appendix 2-W
B11: Bill Impacts
B14: Customer Class: | D14: General Service Less Than 50kW
D16: Consumption | F16: 2000 | G16: kWh
F18: Current Board-Approved | J18: Proposed | N18: Impact
D19: Charge Unit | F19: Rate | G19: Volume | H19: Charge | J19: Rate | K19: Volume | L19: Charge | N19: $ Change | O19: % Change
F20: ($) | H20: ($) | J20: ($) | L20: ($)
B21: Monthly Service Charge | D21: Monthly | F21: 33.72 | G21: 1 | H21: =G21*F21 -> 33.72 | J21: 37 | K21: 1 | L21: =K21*J21 -> 37 | N21: =L21-H21 -> 3.28 | O21: =IF((H21)=0,"",(N21/H21)) -> 0.09727164887
B22: Smart Meter Rate Adder | G22: 1 | H22: =G22*F22 -> 0 | K22: 1 | L22: =K22*J22 -> 0 | N22: =L22-H22 -> 0 | O22: =IF((H22)=0,"",(N22/H22)) -> 
G23: 1 | H23: 0 | K23: 1 | L23: =K23*J23 -> 0 | N23: =L23-H23 -> 0 | O23: =IF((H23)=0,"",(N23/H23)) -> 
G24: 1 | H24: 0 | K24: 1 | L24: 0 | N24: 0
G25: 1 | H25: 0 | K25: 1 | L25: 0 | N25: 0
G26: 1 | H26: 0 | K26: 1 | L26: 0 | N26: 0
B27: Distribution Volumetric Rate | D27: per kWh | F27: 0.0116 | G27: =$F$16 -> 2000 | H27: 23.2 | J27: 0.0142 | K27: =$F$16 -> 2000 | L27: 28.4 | N27: 5.2 | O27: 0.224137931
B28: Smart Meter Disposition Rider | D28: Monthly | G28: =$F$16 -> 2000 | H28: 0 | J28: 0.83 | K28: 1 | L28: 0.83 | N28: 0.83
B29: LRAM & SSM Rate Rider | D29: per kWh | F29: 0.0023 | G29: =$F$16 -> 2000 | H29: 4.6 | J29: 0.0012 | K29: =$F$16 -> 2000 | L29: 2.4 | N29: -2.2 | O29: -0.4782608696
B30: Stranded Meter Recovery Rider | D30: Monthly | G30: =$F$16 -> 2000 | H30: 0 | J30: 2.3 | K30: 1 | L30: 2.3 | N30: 2.3
B31: Extraordinary Event Rider | D31: Monthly | G31: 2000 | H31: 0 | J31: 2.47 | K31: 1 | L31: 2.47 | N31: 2.47
G32: 2000 | H32: 0 | K32: 2000 | L32: 0 | N32: 0
G33: 2000 | H33: 0 | K33: 2000 | L33: 0 | N33: 0
G34: 2000 | H34: 0 | K34: 2000 | L34: 0 | N34: 0
G35: 2000 | H35: 0 | K35: 2000 | L35: 0 | N35: 0
G36: 2000 | H36: 0 | K36: 2000 | L36: 0 | N36: 0
B37: Sub-Total A | H37: =SUM(H21:H36) -> 61.52 | L37: =SUM(L21:L36) -> 73.4 | N37: 11.88 | O37: 0.1931079324
B38: Deferral/Variance Account Disposition Rate Rider | D38: per kWh | G38: =$F$16 -> 2000 | H38: =G38*F38 -> 0 | J38: 0.004 | K38: =$F$16 -> 2000 | L38: =K38*J38 -> 8 | N38: =L38-H38 -> 8 | O38: =IF((H38)=0,"",(N38/H38)) -> 
B39: Global Adjustment Variance Rider | D39: per kWh | G39: =$F$16 -> 2000 | H39: =G39*F39 -> 0 | J39: -0.002 | K39: =$F$16 -> 2000 | L39: =K39*J39 -> -4 | N39: =L39-H39 -> -4 | O39: =IF((H39)=0,"",(N39/H39)) -> 
G40: 2000 | H40: 0 | K40: 2000 | L40: 0 | N40: 0
G41: 2000 | H41: 0 | K41: 2000 | L41: 0 | N41: 0
B42: Low Voltage Service Charge | G42: 2000 | H42: =G42*F42 -> 0 | K42: 2000 | L42: =K42*J42 -> 0 | N42: =L42-H42 -> 0 | O42: =IF((H42)=0,"",(N42/H42)) -> 
B43: Smart Meter Entity Charge | K43: 2000 | L43: =K43*J43 -> 0 | N43: =L43-H43 -> 0
B44: Sub-Total B - Distribution (includes Sub-Total A) | H44: =SUM(H38:H42)+H37 -> 61.52 | L44: =SUM(L38:L42)+L37 -> 77.4 | N44: =L44-H44 -> 15.88 | O44: =IF((H44)=0,"",(N44/H44)) -> 0.2581274382
B45: RTSR - Network | D45: per kWh | F45: 0.0058 | G45: =F16*(1+F71) -> 2093.4 | H45: =G45*F45 -> 12.14172 | J45: 0.0066 | K45: =F16*(1+J71) -> 2090.506 | L45: =K45*J45 -> 13.7973396 | N45: 1.6556196 | O45: 0.136357913
B46: RTSR - Line and Transformation Connection | D46: per kWh | F46: 0.0045 | G46: =G45 -> 2093.4 | H46: =G46*F46 -> 9.4203 | J46: 0.0051 | K46: =K45 -> 2090.506 | L46: =K46*J46 -> 10.6615806 | N46: 1.2412806 | O46: 0.1317665679
B47: Sub-Total C - Delivery (including Sub-Total B) | H47: =SUM(H44:H46) -> 83.08202 | L47: =SUM(L44:L46) -> 101.8589202 | N47: 18.7769002 | O47: 0.2260043774
B48: Wholesale Market Service Charge (WMSC) | D48: per kWh | F48: 0.0052 | G48: =G46 -> 2093.4 | H48: =G48*F48 -> 10.88568 | J48: 0.0052 | K48: =K46 -> 2090.506 | L48: =K48*J48 -> 10.8706312 | N48: -0.0150488 | O48: -0.00138244005
B49: Rural and Remote Rate Protection (RRRP) | D49: per kWh | F49: 0.0011 | G49: =G46 -> 2093.4 | H49: 2.30274 | J49: 0.0011 | K49: =K46 -> 2090.506 | L49: 2.2995566 | N49: -0.0031834 | O49: -0.00138244005
B50: Standard Supply Service Charge | D50: Monthly | F50: 0.25 | G50: 1 | H50: 0.25 | J50: 0.25 | K50: 1 | L50: 0.25 | N50: 0 | O50: 0
B51: Debt Retirement Charge (DRC) | D51: per kWh | F51: 0.007 | G51: =F16 -> 2000 | H51: 14 | J51: 0.007 | K51: =F16 -> 2000 | L51: 14 | N51: 0 | O51: 0
B52: Energy - RPP - Tier 1 | F52: 0.075 | G52: =IF($T$1=1,IF($F$16>=600,600,IF($F$16<600,$F$16*(1+$F$71),$F$16-600)),IF($T$1=2,IF($F$16>=1000,1000,IF($F$16<1000,$F$16*(1+$F$71),$F$16-1000)))) -> 600 | H52: =G52*F52 -> 45 | J52: 0.075 | K52: =IF($T$1=1,IF($F$16>=600,600,IF($F$16<600,$F$16*(1+$J$71),$F$16-600)),IF($T$1=2,IF($F$16>=1000,1000,IF($F$16<1000,$F$16*(1+$J$71),$F$16-1000)))) -> 600 | L52: =K52*J52 -> 45 | N52: 0 | O52: 0
B53: Energy - RPP - Tier 2 | F53: 0.088 | G53: =IF($T$1=1,IF($F$16>=600,$F$16*(1+$F$71)-600,IF($F$16<600,0,)), IF($T$1=2,IF($F$16>=1000,$F$16*(1+$F$71)-1000,IF($F$16<1000,0)))) -> 1493.4 | H53: =G53*F53 -> 131.4192 | J53: 0.088 | K53: =IF($T$1=1,IF($F$16>=600,$F$16*(1+$J$71)-600,IF($F$16<600,0,)), IF($T$1=2,IF($F$16>=1000,$F$16*(1+$J$71)-1000,IF($F$16<1000,0)))) -> 1490.506 | L53: =K53*J53 -> 131.164528 | N53: -0.254672 | O53: -0.001937859917
B54: TOU - Off Peak | F54: 0.065 | G54: =0.64*$F$16*(1+$F$71) -> 1339.776 | H54: 87.08544 | J54: 0.065 | K54: =0.64*$F$16*(1+$J$71) -> 1337.92384 | L54: 86.9650496 | N54: -0.1203904 | O54: -0.00138244005
B55: TOU - Mid Peak | F55: 0.1 | G55: =0.18*$F$16*(1+$F$71) -> 376.812 | H55: 37.6812 | J55: 0.1 | K55: =0.18*$F$16*(1+$J$71) -> 376.29108 | L55: 37.629108 | N55: -0.052092 | O55: -0.00138244005
B56: TOU - On Peak | F56: 0.117 | G56: =0.18*$F$16*(1+$F$71) -> 376.812 | H56: 44.087004 | J56: 0.117 | K56: =0.18*$F$16*(1+$J$71) -> 376.29108 | L56: 44.02605636 | N56: -0.06094764 | O56: -0.00138244005
B58: Total Bill on RPP (before Taxes) | H58: =SUM(H47:H53) -> 286.93964 | L58: =SUM(L47:L53) -> 305.443636 | N58: 18.503996 | O58: 0.06448741624
B59: HST | F59: 0.13 | H59: =H58*F59 -> 37.3021532 | J59: 0.13 | L59: =L58*J59 -> 39.70767268 | N59: 2.40551948 | O59: 0.06448741624
B60: Total Bill (including HST) | H60: =H58+H59 -> 324.2417932 | L60: =L58+L59 -> 345.1513087 | N60: 20.90951548 | O60: 0.06448741624
B61: Ontario Clean Energy Benefit 1 | H61: =ROUND(-H60*10%,2) -> -32.42 | L61: =ROUND(-L60*10%,2) -> -34.52 | N61: -2.1 | O61: 0.06477483035
B62: Total Bill on RPP (including OCEB) | H62: =SUM(H60:H61) -> 291.8217932 | L62: =SUM(L60:L61) -> 310.6313087 | N62: 18.80951548 | O62: 0.06445548591
B64: Total Bill on TOU (before Taxes) | H64: =SUM(H47:H51,H54:H56) -> 279.374084 | L64: =SUM(L47:L51,L54:L56) -> 297.899322 | N64: =L64-H64 -> 18.52523796 | O64: =IF((H64)=0,"",(N64/H64)) -> 0.066309794
B65: HST | F65: 0.13 | H65: =H64*F65 -> 36.31863092 | J65: 0.13 | L65: =L64*J65 -> 38.72691185 | N65: 2.408280935 | O65: 0.066309794
B66: Total Bill (including HST) | H66: =H64+H65 -> 315.6927149 | L66: =L64+L65 -> 336.6262338 | N66: 20.93351889 | O66: 0.066309794
B67: Ontario Clean Energy Benefit 1 | H67: =ROUND(-H66*10%,2) -> -31.57 | L67: =ROUND(-L66*10%,2) -> -33.66 | N67: -2.09 | O67: 0.06620209059
B68: Total Bill on TOU (including OCEB) | H68: =H66+H67 -> 284.1227149 | L68: =L66+L67 -> 302.9662338 | N68: 18.84351889 | O68: 0.06632176136
B71: Loss Factor (%) | F71: 0.0467 | J71: 0.045253
A73: 1 Applicable to eligible customers only. Refer to the Ontario Clean Energy Benefit Act, 2010.
A75: Note that the "Charge $" columns provide breakdowns of the amounts that each bill component contributes to the total monthly bill at the referenced
A76: consumption level at existing and proposed rates.
A78: Applicants must provide bill impacts for residential at 800 kWh and GS<50kW at 2000 kWh. In addition, their filing should cover the range that is relevant
A79: to their service territory, class by class. A general guideline of consumption levels follows:
A81: Residential (kWh) - 100, 250, 500, 800, 1000, 1500, 2000
A82: GS<50kW (kWh) - 1000, 2000, 5000, 10000, 15000
A83: GS>50kW (kW) - 60, 100, 500, 1000
A84: Large User - range appropriate for utility
A85: Lighting Classes and USL - 150 kWh and 1 kW, range appropriate for utility.

Sheet App.2W - Bill Impact GS<50 3000
N1: File Number: | O1: ='LDC Info'!$E$18 -> EB-2012-0175 | T1: 1
N2: Exhibit:
N3: Tab:
N4: Schedule:
N5: Page:
N7: Date:
B10: Appendix 2-W
B11: Bill Impacts
B14: Customer Class: | D14: General Service Less Than 50kW
D16: Consumption | F16: 3000 | G16: kWh
F18: Current Board-Approved | J18: Proposed | N18: Impact
D19: Charge Unit | F19: Rate | G19: Volume | H19: Charge | J19: Rate | K19: Volume | L19: Charge | N19: $ Change | O19: % Change
F20: ($) | H20: ($) | J20: ($) | L20: ($)
B21: Monthly Service Charge | D21: Monthly | F21: 33.72 | G21: 1 | H21: =G21*F21 -> 33.72 | J21: 37 | K21: 1 | L21: =K21*J21 -> 37 | N21: =L21-H21 -> 3.28 | O21: =IF((H21)=0,"",(N21/H21)) -> 0.09727164887
B22: Smart Meter Rate Adder | G22: 1 | H22: =G22*F22 -> 0 | K22: 1 | L22: =K22*J22 -> 0 | N22: =L22-H22 -> 0 | O22: =IF((H22)=0,"",(N22/H22)) -> 
G23: 1 | H23: 0 | K23: 1 | L23: =K23*J23 -> 0 | N23: =L23-H23 -> 0 | O23: =IF((H23)=0,"",(N23/H23)) -> 
G24: 1 | H24: 0 | K24: 1 | L24: 0 | N24: 0
G25: 1 | H25: 0 | K25: 1 | L25: 0 | N25: 0
G26: 1 | H26: 0 | K26: 1 | L26: 0 | N26: 0
B27: Distribution Volumetric Rate | D27: per kWh | F27: 0.0116 | G27: =$F$16 -> 3000 | H27: 34.8 | J27: 0.0142 | K27: =$F$16 -> 3000 | L27: 42.6 | N27: 7.8 | O27: 0.224137931
B28: Smart Meter Disposition Rider | D28: Monthly | G28: =$F$16 -> 3000 | H28: 0 | J28: 0.83 | K28: 1 | L28: 0.83 | N28: 0.83
B29: LRAM & SSM Rate Rider | D29: per kWh | F29: 0.0023 | G29: =$F$16 -> 3000 | H29: 6.9 | J29: 0.0012 | K29: =$F$16 -> 3000 | L29: 3.6 | N29: -3.3 | O29: -0.4782608696
B30: Stranded Meter Recovery Rider | D30: Monthly | G30: =$F$16 -> 3000 | H30: 0 | J30: 2.3 | K30: 1 | L30: 2.3 | N30: 2.3
B31: Extraordinary Event Recovery Rider | D31: Monthly | G31: 3000 | H31: 0 | J31: 2.47 | K31: 1 | L31: 2.47 | N31: 2.47
G32: 3000 | H32: 0 | K32: 3000 | L32: 0 | N32: 0
G33: 3000 | H33: 0 | K33: 3000 | L33: 0 | N33: 0
G34: 3000 | H34: 0 | K34: 3000 | L34: 0 | N34: 0
G35: 3000 | H35: 0 | K35: 3000 | L35: 0 | N35: 0
G36: 3000 | H36: 0 | K36: 3000 | L36: 0 | N36: 0
B37: Sub-Total A | H37: =SUM(H21:H36) -> 75.42 | L37: =SUM(L21:L36) -> 88.8 | N37: 13.38 | O37: 0.1774065235
B38: Deferral/Variance Account Disposition Rate Rider | D38: per kWh | G38: =$F$16 -> 3000 | H38: =G38*F38 -> 0 | J38: 0.004 | K38: =$F$16 -> 3000 | L38: =K38*J38 -> 12 | N38: =L38-H38 -> 12 | O38: =IF((H38)=0,"",(N38/H38)) -> 
B39: Global Adjustment Variance Rider | D39: per kWh | G39: =$F$16 -> 3000 | H39: =G39*F39 -> 0 | J39: -0.002 | K39: =$F$16 -> 3000 | L39: =K39*J39 -> -6 | N39: =L39-H39 -> -6 | O39: =IF((H39)=0,"",(N39/H39)) -> 
G40: 3000 | H40: 0 | K40: 3000 | L40: 0 | N40: 0
G41: 3000 | H41: 0 | K41: 3000 | L41: 0 | N41: 0
B42: Low Voltage Service Charge | G42: 3000 | H42: =G42*F42 -> 0 | K42: 3000 | L42: =K42*J42 -> 0 | N42: =L42-H42 -> 0 | O42: =IF((H42)=0,"",(N42/H42)) -> 
B43: Smart Meter Entity Charge | K43: 3000 | L43: =K43*J43 -> 0 | N43: =L43-H43 -> 0
B44: Sub-Total B - Distribution (includes Sub-Total A) | H44: =SUM(H38:H42)+H37 -> 75.42 | L44: =SUM(L38:L42)+L37 -> 94.8 | N44: =L44-H44 -> 19.38 | O44: =IF((H44)=0,"",(N44/H44)) -> 0.2569610183
B45: RTSR - Network | D45: per kWh | F45: 0.0058 | G45: =F16*(1+F71) -> 3140.1 | H45: =G45*F45 -> 18.21258 | J45: 0.0066 | K45: =F16*(1+J71) -> 3135.759 | L45: =K45*J45 -> 20.6960094 | N45: 2.4834294 | O45: 0.136357913
B46: RTSR - Line and Transformation Connection | D46: per kWh | F46: 0.0045 | G46: =G45 -> 3140.1 | H46: =G46*F46 -> 14.13045 | J46: 0.0051 | K46: =K45 -> 3135.759 | L46: =K46*J46 -> 15.9923709 | N46: 1.8619209 | O46: 0.1317665679
B47: Sub-Total C - Delivery (including Sub-Total B) | H47: =SUM(H44:H46) -> 107.76303 | L47: =SUM(L44:L46) -> 131.4883803 | N47: 23.7253503 | O47: 0.2201622421
B48: Wholesale Market Service Charge (WMSC) | D48: per kWh | F48: 0.0052 | G48: =G46 -> 3140.1 | H48: =G48*F48 -> 16.32852 | J48: 0.0052 | K48: =K46 -> 3135.759 | L48: =K48*J48 -> 16.3059468 | N48: -0.0225732 | O48: -0.00138244005
B49: Rural and Remote Rate Protection (RRRP) | D49: per kWh | F49: 0.0011 | G49: =G46 -> 3140.1 | H49: 3.45411 | J49: 0.0011 | K49: =K46 -> 3135.759 | L49: 3.4493349 | N49: -0.0047751 | O49: -0.00138244005
B50: Standard Supply Service Charge | D50: Monthly | F50: 0.25 | G50: 1 | H50: 0.25 | J50: 0.25 | K50: 1 | L50: 0.25 | N50: 0 | O50: 0
B51: Debt Retirement Charge (DRC) | D51: per kWh | F51: 0.007 | G51: =F16 -> 3000 | H51: 21 | J51: 0.007 | K51: =F16 -> 3000 | L51: 21 | N51: 0 | O51: 0
B52: Energy - RPP - Tier 1 | F52: 0.075 | G52: =IF($T$1=1,IF($F$16>=600,600,IF($F$16<600,$F$16*(1+$F$71),$F$16-600)),IF($T$1=2,IF($F$16>=1000,1000,IF($F$16<1000,$F$16*(1+$F$71),$F$16-1000)))) -> 600 | H52: =G52*F52 -> 45 | J52: 0.075 | K52: =IF($T$1=1,IF($F$16>=600,600,IF($F$16<600,$F$16*(1+$J$71),$F$16-600)),IF($T$1=2,IF($F$16>=1000,1000,IF($F$16<1000,$F$16*(1+$J$71),$F$16-1000)))) -> 600 | L52: =K52*J52 -> 45 | N52: 0 | O52: 0
B53: Energy - RPP - Tier 2 | F53: 0.088 | G53: =IF($T$1=1,IF($F$16>=600,$F$16*(1+$F$71)-600,IF($F$16<600,0,)), IF($T$1=2,IF($F$16>=1000,$F$16*(1+$F$71)-1000,IF($F$16<1000,0)))) -> 2540.1 | H53: =G53*F53 -> 223.5288 | J53: 0.088 | K53: =IF($T$1=1,IF($F$16>=600,$F$16*(1+$J$71)-600,IF($F$16<600,0,)), IF($T$1=2,IF($F$16>=1000,$F$16*(1+$J$71)-1000,IF($F$16<1000,0)))) -> 2535.759 | L53: =K53*J53 -> 223.146792 | N53: -0.382008 | O53: -0.001708987835
B54: TOU - Off Peak | F54: 0.065 | G54: =0.64*$F$16*(1+$F$71) -> 2009.664 | H54: 130.62816 | J54: 0.065 | K54: =0.64*$F$16*(1+$J$71) -> 2006.88576 | L54: 130.4475744 | N54: -0.1805856 | O54: -0.00138244005
B55: TOU - Mid Peak | F55: 0.1 | G55: =0.18*$F$16*(1+$F$71) -> 565.218 | H55: 56.5218 | J55: 0.1 | K55: =0.18*$F$16*(1+$J$71) -> 564.43662 | L55: 56.443662 | N55: -0.078138 | O55: -0.00138244005
B56: TOU - On Peak | F56: 0.117 | G56: =0.18*$F$16*(1+$F$71) -> 565.218 | H56: 66.130506 | J56: 0.117 | K56: =0.18*$F$16*(1+$J$71) -> 564.43662 | L56: 66.03908454 | N56: -0.09142146 | O56: -0.00138244005
B58: Total Bill on RPP (before Taxes) | H58: =SUM(H47:H53) -> 417.32446 | L58: =SUM(L47:L53) -> 440.640454 | N58: 23.315994 | O58: 0.05587018312
B59: HST | F59: 0.13 | H59: =H58*F59 -> 54.2521798 | J59: 0.13 | L59: =L58*J59 -> 57.28325902 | N59: 3.03107922 | O59: 0.05587018312
B60: Total Bill (including HST) | H60: =H58+H59 -> 471.5766398 | L60: =L58+L59 -> 497.923713 | N60: 26.34707322 | O60: 0.05587018312
B61: Ontario Clean Energy Benefit 1 | H61: =ROUND(-H60*10%,2) -> -47.16 | L61: =ROUND(-L60*10%,2) -> -49.79 | N61: -2.63 | O61: 0.05576759966
B62: Total Bill on RPP (including OCEB) | H62: =SUM(H60:H61) -> 424.4166398 | L62: =SUM(L60:L61) -> 448.133713 | N62: 23.71707322 | O62: 0.05588158191
B64: Total Bill on TOU (before Taxes) | H64: =SUM(H47:H51,H54:H56) -> 402.076126 | L64: =SUM(L47:L51,L54:L56) -> 425.4239829 | N64: =L64-H64 -> 23.34785694 | O64: =IF((H64)=0,"",(N64/H64)) -> 0.05806824984
B65: HST | F65: 0.13 | H65: =H64*F65 -> 52.26989638 | J65: 0.13 | L65: =L64*J65 -> 55.30511778 | N65: 3.035221402 | O65: 0.05806824984
B66: Total Bill (including HST) | H66: =H64+H65 -> 454.3460224 | L66: =L64+L65 -> 480.7291007 | N66: 26.38307834 | O66: 0.05806824984
B67: Ontario Clean Energy Benefit 1 | H67: =ROUND(-H66*10%,2) -> -45.43 | L67: =ROUND(-L66*10%,2) -> -48.07 | N67: -2.64 | O67: 0.05811138015
B68: Total Bill on TOU (including OCEB) | H68: =H66+H67 -> 408.9160224 | L68: =L66+L67 -> 432.6591007 | N68: 23.74307834 | O68: 0.05806345813
B71: Loss Factor (%) | F71: 0.0467 | J71: 0.045253
A73: 1 Applicable to eligible customers only. Refer to the Ontario Clean Energy Benefit Act, 2010.
A75: Note that the "Charge $" columns provide breakdowns of the amounts that each bill component contributes to the total monthly bill at the referenced
A76: consumption level at existing and proposed rates.
A78: Applicants must provide bill impacts for residential at 800 kWh and GS<50kW at 2000 kWh. In addition, their filing should cover the range that is relevant
A79: to their service territory, class by class. A general guideline of consumption levels follows:
A81: Residential (kWh) - 100, 250, 500, 800, 1000, 1500, 2000
A82: GS<50kW (kWh) - 1000, 2000, 5000, 10000, 15000
A83: GS>50kW (kW) - 60, 100, 500, 1000
A84: Large User - range appropriate for utility
A85: Lighting Classes and USL - 150 kWh and 1 kW, range appropriate for utility.

Sheet App.2-W_Bill Impact - GS<50-5k
N1: File Number: | O1: ='LDC Info'!$E$18 -> EB-2012-0175 | T1: 1
N2: Exhibit:
N3: Tab:
N4: Schedule:
N5: Page:
N7: Date:
B10: Appendix 2-W
B11: Bill Impacts
B14: Customer Class: | D14: General Service Less Than 50kW
D16: Consumption | F16: 5000 | G16: kWh
F18: Current Board-Approved | J18: Proposed | N18: Impact
D19: Charge Unit | F19: Rate | G19: Volume | H19: Charge | J19: Rate | K19: Volume | L19: Charge | N19: $ Change | O19: % Change
F20: ($) | H20: ($) | J20: ($) | L20: ($)
B21: Monthly Service Charge | D21: Monthly | F21: 33.72 | G21: 1 | H21: =G21*F21 -> 33.72 | J21: 37 | K21: 1 | L21: =K21*J21 -> 37 | N21: =L21-H21 -> 3.28 | O21: =IF((H21)=0,"",(N21/H21)) -> 0.09727164887
B22: Smart Meter Rate Adder | G22: 1 | H22: =G22*F22 -> 0 | K22: 1 | L22: =K22*J22 -> 0 | N22: =L22-H22 -> 0 | O22: =IF((H22)=0,"",(N22/H22)) -> 
G23: 1 | H23: 0 | K23: 1 | L23: =K23*J23 -> 0 | N23: =L23-H23 -> 0 | O23: =IF((H23)=0,"",(N23/H23)) -> 
G24: 1 | H24: 0 | K24: 1 | L24: 0 | N24: 0
G25: 1 | H25: 0 | K25: 1 | L25: 0 | N25: 0
G26: 1 | H26: 0 | K26: 1 | L26: 0 | N26: 0
B27: Distribution Volumetric Rate | D27: per kWh | F27: 0.0116 | G27: =$F$16 -> 5000 | H27: 58 | J27: 0.0142 | K27: =$F$16 -> 5000 | L27: 71 | N27: 13 | O27: 0.224137931
B28: Smart Meter Disposition Rider | D28: Monthly | G28: =$F$16 -> 5000 | H28: 0 | J28: 0.83 | K28: 1 | L28: 0.83 | N28: 0.83
B29: LRAM & SSM Rate Rider | D29: per kWh | F29: 0.0023 | G29: =$F$16 -> 5000 | H29: 11.5 | J29: 0.0012 | K29: =$F$16 -> 5000 | L29: 6 | N29: -5.5 | O29: -0.4782608696
B30: Stranded Meter Recovery Rider | D30: Monthly | G30: =$F$16 -> 5000 | H30: 0 | J30: 2.3 | K30: 1 | L30: 2.3 | N30: 2.3
B31: Extraordinary Event Recovery Rider | D31: Monthly | G31: 5000 | H31: 0 | J31: 2.47 | K31: 1 | L31: 2.47 | N31: 2.47
G32: 5000 | H32: 0 | K32: 5000 | L32: 0 | N32: 0
G33: 5000 | H33: 0 | K33: 5000 | L33: 0 | N33: 0
G34: 5000 | H34: 0 | K34: 5000 | L34: 0 | N34: 0
G35: 5000 | H35: 0 | K35: 5000 | L35: 0 | N35: 0
G36: 5000 | H36: 0 | K36: 5000 | L36: 0 | N36: 0
B37: Sub-Total A | H37: =SUM(H21:H36) -> 103.22 | L37: =SUM(L21:L36) -> 119.6 | N37: 16.38 | O37: 0.1586901763
B38: Deferral/Variance Account Disposition Rate Rider | D38: per kWh | G38: =$F$16 -> 5000 | H38: =G38*F38 -> 0 | J38: 0.004 | K38: =$F$16 -> 5000 | L38: =K38*J38 -> 20 | N38: =L38-H38 -> 20 | O38: =IF((H38)=0,"",(N38/H38)) -> 
B39: Global Adjustment Variance Rider | D39: per kWh | G39: =$F$16 -> 5000 | H39: =G39*F39 -> 0 | J39: -0.002 | K39: =$F$16 -> 5000 | L39: =K39*J39 -> -10 | N39: =L39-H39 -> -10 | O39: =IF((H39)=0,"",(N39/H39)) -> 
G40: 5000 | H40: 0 | K40: 5000 | L40: 0 | N40: 0
G41: 5000 | H41: 0 | K41: 5000 | L41: 0 | N41: 0
B42: Low Voltage Service Charge | G42: 5000 | H42: =G42*F42 -> 0 | K42: 5000 | L42: =K42*J42 -> 0 | N42: =L42-H42 -> 0 | O42: =IF((H42)=0,"",(N42/H42)) -> 
B43: Smart Meter Entity Charge | K43: 5000 | L43: =K43*J43 -> 0 | N43: =L43-H43 -> 0
B44: Sub-Total B - Distribution (includes Sub-Total A) | H44: =SUM(H38:H42)+H37 -> 103.22 | L44: =SUM(L38:L42)+L37 -> 129.6 | N44: =L44-H44 -> 26.38 | O44: =IF((H44)=0,"",(N44/H44)) -> 0.2555706258
B45: RTSR - Network | D45: per kWh | F45: 0.0058 | G45: =F16*(1+F71) -> 5233.5 | H45: =G45*F45 -> 30.3543 | J45: 0.0066 | K45: =F16*(1+J71) -> 5226.265 | L45: =K45*J45 -> 34.493349 | N45: 4.139049 | O45: 0.136357913
B46: RTSR - Line and Transformation Connection | D46: per kWh | F46: 0.0045 | G46: =G45 -> 5233.5 | H46: =G46*F46 -> 23.55075 | J46: 0.0051 | K46: =K45 -> 5226.265 | L46: =K46*J46 -> 26.6539515 | N46: 3.1032015 | O46: 0.1317665679
B47: Sub-Total C - Delivery (including Sub-Total B) | H47: =SUM(H44:H46) -> 157.12505 | L47: =SUM(L44:L46) -> 190.7473005 | N47: 33.6222505 | O47: 0.2139840242
B48: Wholesale Market Service Charge (WMSC) | D48: per kWh | F48: 0.0052 | G48: =G46 -> 5233.5 | H48: =G48*F48 -> 27.2142 | J48: 0.0052 | K48: =K46 -> 5226.265 | L48: =K48*J48 -> 27.176578 | N48: -0.037622 | O48: -0.00138244005
B49: Rural and Remote Rate Protection (RRRP) | D49: per kWh | F49: 0.0011 | G49: =G46 -> 5233.5 | H49: 5.75685 | J49: 0.0011 | K49: =K46 -> 5226.265 | L49: 5.7488915 | N49: -0.0079585 | O49: -0.00138244005
B50: Standard Supply Service Charge | D50: Monthly | F50: 0.25 | G50: 1 | H50: 0.25 | J50: 0.25 | K50: 1 | L50: 0.25 | N50: 0 | O50: 0
B51: Debt Retirement Charge (DRC) | D51: per kWh | F51: 0.007 | G51: =F16 -> 5000 | H51: 35 | J51: 0.007 | K51: =F16 -> 5000 | L51: 35 | N51: 0 | O51: 0
B52: Energy - RPP - Tier 1 | F52: 0.075 | G52: =IF($T$1=1,IF($F$16>=600,600,IF($F$16<600,$F$16*(1+$F$71),$F$16-600)),IF($T$1=2,IF($F$16>=1000,1000,IF($F$16<1000,$F$16*(1+$F$71),$F$16-1000)))) -> 600 | H52: =G52*F52 -> 45 | J52: 0.075 | K52: =IF($T$1=1,IF($F$16>=600,600,IF($F$16<600,$F$16*(1+$J$71),$F$16-600)),IF($T$1=2,IF($F$16>=1000,1000,IF($F$16<1000,$F$16*(1+$J$71),$F$16-1000)))) -> 600 | L52: =K52*J52 -> 45 | N52: 0 | O52: 0
B53: Energy - RPP - Tier 2 | F53: 0.088 | G53: =IF($T$1=1,IF($F$16>=600,$F$16*(1+$F$71)-600,IF($F$16<600,0,)), IF($T$1=2,IF($F$16>=1000,$F$16*(1+$F$71)-1000,IF($F$16<1000,0)))) -> 4633.5 | H53: =G53*F53 -> 407.748 | J53: 0.088 | K53: =IF($T$1=1,IF($F$16>=600,$F$16*(1+$J$71)-600,IF($F$16<600,0,)), IF($T$1=2,IF($F$16>=1000,$F$16*(1+$J$71)-1000,IF($F$16<1000,0)))) -> 4626.265 | L53: =K53*J53 -> 407.11132 | N53: -0.63668 | O53: -0.001561454624
B54: TOU - Off Peak | F54: 0.065 | G54: =0.64*$F$16*(1+$F$71) -> 3349.44 | H54: 217.7136 | J54: 0.065 | K54: =0.64*$F$16*(1+$J$71) -> 3344.8096 | L54: 217.412624 | N54: -0.300976 | O54: -0.00138244005
B55: TOU - Mid Peak | F55: 0.1 | G55: =0.18*$F$16*(1+$F$71) -> 942.03 | H55: 94.203 | J55: 0.1 | K55: =0.18*$F$16*(1+$J$71) -> 940.7277 | L55: 94.07277 | N55: -0.13023 | O55: -0.00138244005
B56: TOU - On Peak | F56: 0.117 | G56: =0.18*$F$16*(1+$F$71) -> 942.03 | H56: 110.21751 | J56: 0.117 | K56: =0.18*$F$16*(1+$J$71) -> 940.7277 | L56: 110.0651409 | N56: -0.1523691 | O56: -0.00138244005
B58: Total Bill on RPP (before Taxes) | H58: =SUM(H47:H53) -> 678.0941 | L58: =SUM(L47:L53) -> 711.03409 | N58: 32.93999 | O58: 0.04857731397
B59: HST | F59: 0.13 | H59: =H58*F59 -> 88.152233 | J59: 0.13 | L59: =L58*J59 -> 92.4344317 | N59: 4.2821987 | O59: 0.04857731397
B60: Total Bill (including HST) | H60: =H58+H59 -> 766.246333 | L60: =L58+L59 -> 803.4685217 | N60: 37.2221887 | O60: 0.04857731397
B61: Ontario Clean Energy Benefit 1 | H61: -46.49 | L61: -47.64 | N61: -1.15 | O61: 0.02473650247
B62: Total Bill on RPP (including OCEB) | H62: =SUM(H60:H61) -> 719.756333 | L62: =SUM(L60:L61) -> 755.8285217 | N62: 36.0721887 | O62: 0.05011722307
B64: Total Bill on TOU (before Taxes) | H64: =SUM(H47:H51,H54:H56) -> 647.48021 | L64: =SUM(L47:L51,L54:L56) -> 680.4733049 | N64: =L64-H64 -> 32.9930949 | O64: =IF((H64)=0,"",(N64/H64)) -> 0.05095614413
B65: HST | F65: 0.13 | H65: =H64*F65 -> 84.1724273 | J65: 0.13 | L65: =L64*J65 -> 88.46152964 | N65: 4.289102337 | O65: 0.05095614413
B66: Total Bill (including HST) | H66: =H64+H65 -> 731.6526373 | L66: =L64+L65 -> 768.9348345 | N66: 37.28219724 | O66: 0.05095614413
B67: Ontario Clean Energy Benefit 1 | H67: -44.77 | L67: -45.92 | N67: -1.15 | O67: 0.02568684387
B68: Total Bill on TOU (including OCEB) | H68: =H66+H67 -> 686.8826373 | L68: =L66+L67 -> 723.0148345 | N68: 36.13219724 | O68: 0.05260315995
B71: Loss Factor (%) | F71: 0.0467 | J71: 0.045253
A73: 1 Applicable to eligible customers only. Refer to the Ontario Clean Energy Benefit Act, 2010.
A75: Note that the "Charge $" columns provide breakdowns of the amounts that each bill component contributes to the total monthly bill at the referenced
A76: consumption level at existing and proposed rates.
A78: Applicants must provide bill impacts for residential at 800 kWh and GS<50kW at 2000 kWh. In addition, their filing should cover the range that is relevant
A79: to their service territory, class by class. A general guideline of consumption levels follows:
A81: Residential (kWh) - 100, 250, 500, 800, 1000, 1500, 2000
A82: GS<50kW (kWh) - 1000, 2000, 5000, 10000, 15000
A83: GS>50kW (kW) - 60, 100, 500, 1000
A84: Large User - range appropriate for utility
A85: Lighting Classes and USL - 150 kWh and 1 kW, range appropriate for utility.

Sheet App.2-W_Bill Impact - GS<50-10k
N1: File Number: | O1: ='LDC Info'!$E$18 -> EB-2012-0175 | T1: 1
N2: Exhibit:
N3: Tab:
N4: Schedule:
N5: Page:
N7: Date:
B10: Appendix 2-W
B11: Bill Impacts
B14: Customer Class: | D14: General Service Less Than 50kW
D16: Consumption | F16: 10000 | G16: kWh
F18: Current Board-Approved | J18: Proposed | N18: Impact
D19: Charge Unit | F19: Rate | G19: Volume | H19: Charge | J19: Rate | K19: Volume | L19: Charge | N19: $ Change | O19: % Change
F20: ($) | H20: ($) | J20: ($) | L20: ($)
B21: Monthly Service Charge | D21: Monthly | F21: 33.72 | G21: 1 | H21: =G21*F21 -> 33.72 | J21: 37 | K21: 1 | L21: =K21*J21 -> 37 | N21: =L21-H21 -> 3.28 | O21: =IF((H21)=0,"",(N21/H21)) -> 0.09727164887
B22: Smart Meter Rate Adder | G22: 1 | H22: =G22*F22 -> 0 | K22: 1 | L22: =K22*J22 -> 0 | N22: =L22-H22 -> 0 | O22: =IF((H22)=0,"",(N22/H22)) -> 
G23: 1 | H23: 0 | K23: 1 | L23: =K23*J23 -> 0 | N23: =L23-H23 -> 0 | O23: =IF((H23)=0,"",(N23/H23)) -> 
G24: 1 | H24: 0 | K24: 1 | L24: 0 | N24: 0
G25: 1 | H25: 0 | K25: 1 | L25: 0 | N25: 0
G26: 1 | H26: 0 | K26: 1 | L26: 0 | N26: 0
B27: Distribution Volumetric Rate | D27: per kWh | F27: 0.0116 | G27: =$F$16 -> 10000 | H27: 116 | J27: 0.0142 | K27: =$F$16 -> 10000 | L27: 142 | N27: 26 | O27: 0.224137931
B28: Smart Meter Disposition Rider | D28: Monthly | G28: =$F$16 -> 10000 | H28: 0 | J28: 0.83 | K28: 1 | L28: 0.83 | N28: 0.83
B29: LRAM & SSM Rate Rider | D29: per kWh | F29: 0.0023 | G29: =$F$16 -> 10000 | H29: 23 | J29: 0.0012 | K29: =$F$16 -> 10000 | L29: 12 | N29: -11 | O29: -0.4782608696
B30: Stranded Meter Recovery Rider | D30: Monthly | G30: =$F$16 -> 10000 | H30: 0 | J30: 2.3 | K30: 1 | L30: 2.3 | N30: 2.3
B31: Extrraordinary Event Recovery Rider | D31: Monthly | G31: 10000 | H31: 0 | J31: 2.47 | K31: 1 | L31: 2.47 | N31: 2.47
G32: 10000 | H32: 0 | K32: 10000 | L32: 0 | N32: 0
G33: 10000 | H33: 0 | K33: 10000 | L33: 0 | N33: 0
G34: 10000 | H34: 0 | K34: 10000 | L34: 0 | N34: 0
G35: 10000 | H35: 0 | K35: 10000 | L35: 0 | N35: 0
G36: 10000 | H36: 0 | K36: 10000 | L36: 0 | N36: 0
B37: Sub-Total A | H37: =SUM(H21:H36) -> 172.72 | L37: =SUM(L21:L36) -> 196.6 | N37: 23.88 | O37: 0.138258453
B38: Deferral/Variance Account Disposition Rate Rider | D38: per kWh | G38: =$F$16 -> 10000 | H38: =G38*F38 -> 0 | J38: 0.004 | K38: =$F$16 -> 10000 | L38: =K38*J38 -> 40 | N38: =L38-H38 -> 40 | O38: =IF((H38)=0,"",(N38/H38)) -> 
